Workbook

Sheet K on Soybean SQRT (hidden)
B1: RELYLD | C1: KRATE | D1: YEAR | E1: SITE | F1: YEAROB | G1: KSOIL | H1: DCLAY
A2: 1 | B2: 90.04914005 | C2: 0 | D2: 2004 | E2: 1 | F2: 1 | G2: 101 | H2: 0 | Q2: Rice Price | U2: 10 | V2: $/cwt | Y2: Conventional
A3: 2 | B3: 91.76904177 | C3: 40 | D3: 2004 | E3: 1 | F3: 14 | G3: 101 | H3: 0 | J3: Dependent Variable: RELYLD | Y3: Clearfield
A4: 3 | B4: 89.31203931 | C4: 80 | D4: 2004 | E4: 1 | F4: 31 | G4: 101 | H4: 0 | J4: Method: Panel EGLS (Period random effects) | Q4: Cost of K (0-0-60) | U4: 450 | V4: $/ton
A5: 4 | B5: 100 | C5: 120 | D5: 2004 | E5: 1 | F5: 41 | G5: 101 | H5: 0 | J5: Date: 03/12/19 Time: 15:57 | Y5: Clay
A6: 5 | B6: 96.92874693 | C6: 160 | D6: 2004 | E6: 1 | F6: 52 | G6: 101 | H6: 0 | J6: Sample: 2001 2018 IF KRATE<>135 | Q6: How much K do you currently apply per acre? | U6: 25 | V6: lbs/acre | Y6: Loam
A7: 6 | B7: 77.50865052 | C7: 0 | D7: 2004 | E7: 3 | F7: 2 | G7: 85 | H7: 0 | J7: Periods included: 17
A8: 7 | B8: 82.52595156 | C8: 30 | D8: 2004 | E8: 3 | F8: 12 | G8: 86 | H8: 0 | J8: Cross-sections included: 79 | Q8: What yield do you expect at that application rate? | U8: 180 | V8: bu/acre | Y8: Yes
A9: 8 | B9: 100 | C9: 60 | D9: 2004 | E9: 3 | F9: 23 | G9: 85 | H9: 0 | J9: Total panel (unbalanced) observations: 440 | Y9: No
A10: 9 | B10: 99.30795848 | C10: 90 | D10: 2004 | E10: 3 | F10: 39 | G10: 89 | H10: 0 | J10: Wallace and Hussain estimator of component variances | Q10: Do you use conventional or hybrid seed? | U10: Conventional
A11: 10 | B11: 96.71280277 | C11: 120 | D11: 2004 | E11: 3 | F11: 42 | G11: 95 | H11: 0
A12: 11 | B12: 69.81707317 | C12: 0 | D12: 2004 | E12: 4 | F12: 3 | G12: 73 | H12: 0 | J12: Variable | K12: Coefficient | L12: Std. Error | M12: t-Statistic | N12: Prob. | Q12: What is your soil test K? | U12: 110
A13: 12 | B13: 83.53658537 | C13: 30 | D13: 2004 | E13: 4 | F13: 13 | G13: 80 | H13: 0
A14: 13 | B14: 87.04268293 | C14: 60 | D14: 2004 | E14: 4 | F14: 24 | G14: 78 | H14: 0 | J14: C | K14: 85.53190393 | L14: 1.088768197 | M14: 78.55841503 | N14: 1.523340846e-257 | Q14: Does the field have mostly clayey or loamy soil texture? | U14: Loam
A15: 14 | B15: 91.61585366 | C15: 90 | D15: 2004 | E15: 4 | F15: 40 | G15: 79 | H15: 0 | J15: DRREC | K15: 1.821873436 | L15: 0.6169528489 | M15: 2.953018921 | N15: 0.00331893321
A16: 15 | B16: 100 | C16: 120 | D16: 2004 | E16: 4 | F16: 43 | G16: 85 | H16: 0 | J16: KRATE | K16: 0.1546276126 | L16: 0.01680227412 | M16: 9.202778833 | N16: 1.519289268e-18 | Q16: Do you operate South of I-40? | U16: No
A17: 16 | B17: 74.81203008 | C17: 0 | D17: 2005 | E17: 5 | F17: 1 | G17: 71 | H17: 0 | J17: KRATE^2 | K17: -0.000421958113 | L17: 8.710848e-05 | M17: -4.84405322 | N17: 1.77718926e-06
A18: 17 | B18: 84.02255639 | C18: 30 | D18: 2005 | E18: 5 | F18: 12 | G18: 70 | H18: 0 | J18: DCLFIELD | K18: 2.254139283 | L18: 0.9265560337 | M18: 2.432814855 | N18: 0.01538783875 | Q18: Predicted RELYLD based on above questions: | U18: =+K14+IF($U$16="Yes",K15,0)+$U$6*($U$12*K21+K16+IF($U$10="Clearfield",K23,0))+$U$6^2*(K17+IF($U$14="Clay",K22))+IF($U$14="Clay",K20,0)+IF($U$10="Clearfield",K18,0)+$U$12*K19 -> 93.32878185
A19: 18 | B19: 89.47368421 | C19: 60 | D19: 2005 | E19: 5 | F19: 23 | G19: 81 | H19: 0 | J19: KSOIL | K19: 0.04813541892 | L19: 0.009622753276 | M19: 5.00225014 | N19: 8.265255539e-07
A20: 19 | B20: 94.54887218 | C20: 90 | D20: 2005 | E20: 5 | F20: 39 | G20: 92 | H20: 0 | J20: DCLAY | K20: -3.267803257 | L20: 1.636446995 | M20: -1.996889155 | N20: 0.04646560705 | Q20: Yield/RELYLD | U20: =+U8/U18 -> 1.928665482
A21: 20 | B21: 100 | C21: 120 | D21: 2005 | E21: 5 | F21: 41 | G21: 91 | H21: 0 | J21: KSOIL*KRATE | K21: -0.0003999944219 | L21: 8.797209869e-05 | M21: -4.546832779 | N21: 7.086112312e-06
A22: 21 | B22: 70.80536913 | C22: 0 | D22: 2005 | E22: 6 | F22: 2 | G22: 65 | H22: 0 | J22: DCLAY*KRATE^2 | Q22: dRELYLD/dKRATE | U22: =+K16+U12*K21+IF(U10="Clearfield",K23,0)+2*U6*(K17+IF(U14="Clay",K22)) -> 0.08953032052 | W22: =+K16+U12*K21+IF(U10="Clearfield",K23,0)+2*U28*(K17+IF(U14="Clay",K22)) -> 0.0431645616
A23: 22 | B23: 81.04026846 | C23: 30 | D23: 2005 | E23: 6 | F23: 13 | G23: 68 | H23: 0 | J23: DCLFIELD*KRATE | K23: -0.02087856875 | L23: 0.009566473542 | M23: -2.182472847 | N23: 0.02961379485
A24: 23 | B24: 94.63087248 | C24: 60 | D24: 2005 | E24: 6 | F24: 24 | G24: 63 | H24: 0 | Q24: =CONCATENATE("VMP of K @ KRATE = ",U6," lbs/acre and soil test K of ",U12) -> VMP of K @ KRATE = 25 lbs/acre and soil test K of 110 | U24: =+U22*U2/2.22*U20 -> 0.7778109854 | W24: =+W22*U2/2.22*U20 -> 0.375
A25: 24 | B25: 92.7852349 | C25: 90 | D25: 2005 | E25: 6 | F25: 40 | G25: 83 | H25: 0 | K25: Effects Specification
A26: 25 | B26: 100 | C26: 120 | D26: 2005 | E26: 6 | F26: 42 | G26: 79 | H26: 0 | M26: S.D. | N26: Rho | Q26: Cost per lb of K | U26: =+U4/0.6/2000 -> 0.375
A27: 26 | B27: 96.96394687 | C27: 0 | D27: 2005 | E27: 8 | F27: 3 | G27: 154 | H27: 0
A28: 27 | B28: 100 | C28: 40 | D28: 2005 | E28: 8 | F28: 14 | G28: 154 | H28: 0 | J28: Period random | M28: 1.060097175 | N28: 0.04768826784 | Q28: Profit Maximizing K rate: | U28: =IF((U26/(U2/2.22*U20)-(K16+U12*K21+IF(U10="Clearfield",K23,0)))/(2*(K17+IF(U14="Clay",K22)))>180,180,(U26/(U2/2.22*U20)-(K16+U12*K21+IF(U10="Clearfield",K23,0)))/(2*(K17+IF(U14="Clay",K22)))) -> 79.94118668 | W28: 125 | X28: Alt User K
A29: 28 | B29: 98.86148008 | C29: 80 | D29: 2005 | E29: 8 | F29: 31 | G29: 154 | H29: 0 | J29: Idiosyncratic random | M29: 4.737284535 | N29: 0.9523117322
A30: 29 | B30: 94.30740038 | C30: 120 | D30: 2005 | E30: 8 | F30: 43 | G30: 154 | H30: 0 | Q30: Expected Yield at Profit-Maximizing K rate: | U30: =(+K14+IF(U16="Yes",K15,0)+U28*(U12*K21+K16+IF(U10="Clearfield",K23,0))+U28^2*(K17+IF(U14="Clay",K22))+IF(U14="Clay",K20,0)+IF(U10="Clearfield",K18,0)+U12*K19)*U20 -> 187.0303852 | W30: =(+K14+IF(U16="Yes",K15,0)+W28*(U12*K21+K16+IF(U10="Clearfield",K23,0))+W28^2*(K17+IF(U14="Clay",K22))+IF(U14="Clay",K20,0)+IF(U10="Clearfield",K18,0)+U12*K19)*U20 -> 189.1292434
A31: 30 | B31: 99.24098672 | C31: 160 | D31: 2005 | E31: 8 | F31: 52 | G31: 154 | H31: 0 | K31: Weighted Statistics
A32: 31 | B32: 77.47747748 | C32: 0 | D32: 2005 | E32: 9 | F32: 4 | G32: 72 | H32: 1 | Q32: Added Profit in $/acre | U32: =+(U30-U8)*U2/2.22-(U28-U6)*U26 -> 11.06545677 | W32: =+(W30-U8)*U2/2.22-(W28-U6)*U26 -> 3.622718031
A33: 32 | B33: 85.58558559 | C33: 40 | D33: 2005 | E33: 9 | F33: 15 | G33: 72 | H33: 1 | J33: R-squared | K33: 0.2954420526 | L33: Mean dependent var | N33: 60.43268787
A34: 33 | B34: 97.83783784 | C34: 80 | D34: 2005 | E34: 9 | F34: 32 | G34: 72 | H34: 1 | J34: Adjusted R-squared | K34: 0.2823644109 | L34: S.D. dependent var | N34: 9.884122327 | BH34: K rate | BI34: Exp. Yield
A35: 34 | B35: 98.73873874 | C35: 120 | D35: 2005 | E35: 9 | F35: 44 | G35: 72 | H35: 1 | J35: S.E. of regression | K35: 4.743914196 | L35: Sum squared resid | N35: 9699.535137 | BH35: 0 | BI35: =(+$K$14+IF($U$16="Yes",$K$15,0)+BH35*($U$12*$K$21+$K$16+IF($U$10="Clearfield",$K$23,0))+BH35^2*($K$17+IF($U$14="Clay",$K$22))+IF($U$14="Clay",$K$20,0)+IF($U$10="Clearfield",$K$18,0)+$U$12*$K$19)*$U$20 -> 175.174514
A36: 35 | B36: 100 | C36: 160 | D36: 2005 | E36: 9 | F36: 53 | G36: 72 | H36: 1 | J36: F-statistic | K36: 22.59138605 | L36: Durbin-Watson stat | N36: 2.49064464 | BH36: 10 | BI36: =(+$K$14+IF($U$16="Yes",$K$15,0)+BH36*($U$12*$K$21+$K$16+IF($U$10="Clearfield",$K$23,0))+BH36^2*($K$17+IF($U$14="Clay",$K$22))+IF($U$14="Clay",$K$20,0)+IF($U$10="Clearfield",$K$18,0)+$U$12*$K$19)*$U$20 -> 177.2267808
A37: 36 | B37: 94.12628488 | C37: 0 | D37: 2005 | E37: 10 | F37: 5 | G37: 167 | H37: 0 | J37: Prob(F-statistic) | K37: 7.693327162e-29 | BH37: 20 | BI37: 179.1162844
A38: 37 | B38: 94.71365639 | C38: 40 | D38: 2005 | E38: 10 | F38: 16 | G38: 167 | H38: 0 | BH38: 30 | BI38: 180.8430248
A39: 38 | B39: 97.65051395 | C39: 80 | D39: 2005 | E39: 10 | F39: 33 | G39: 167 | H39: 0 | K39: Unweighted Statistics | BH39: 40 | BI39: 182.407002
A40: 39 | B40: 99.85315712 | C40: 120 | D40: 2005 | E40: 10 | F40: 45 | G40: 167 | H40: 0 | BH40: 50 | BI40: 183.8082159
A41: 40 | B41: 100 | C41: 160 | D41: 2005 | E41: 10 | F41: 54 | G41: 167 | H41: 0 | J41: R-squared | K41: 0.2961173096 | L41: Mean dependent var | N41: 95.92045455 | BH41: 60 | BI41: 185.0466667
A42: 41 | B42: 92.02898551 | C42: 0 | D42: 2005 | E42: 12 | F42: 6 | G42: 108 | H42: 0 | J42: Sum squared resid | K42: 10114.18604 | L42: Durbin-Watson stat | N42: 2.482420507 | BH42: 70 | BI42: 186.1223542
A43: 42 | B43: 94.56521739 | C43: 40 | D43: 2005 | E43: 12 | F43: 17 | G43: 108 | H43: 0 | BH43: 80 | BI43: 187.0352786
A44: 43 | B44: 99.0942029 | C44: 80 | D44: 2005 | E44: 12 | F44: 34 | G44: 108 | H44: 0 | BH44: 90 | BI44: 187.7854397
A45: 44 | B45: 79.89130435 | C45: 120 | D45: 2005 | E45: 12 | F45: 46 | G45: 108 | H45: 0 | BH45: 100 | BI45: 188.3728376
A46: 45 | B46: 100 | C46: 160 | D46: 2005 | E46: 12 | F46: 55 | G46: 108 | H46: 0 | BH46: 110 | BI46: 188.7974724
A47: 46 | B47: 88.08373591 | C47: 0 | D47: 2006 | E47: 13 | F47: 1 | G47: 102 | H47: 0 | M47: =174/192 -> 0.90625 | BH47: 120 | BI47: 189.0593439
A48: 47 | B48: 91.14331723 | C48: 40 | D48: 2006 | E48: 13 | F48: 14 | G48: 102 | H48: 0 | BH48: 130 | BI48: 189.1584521
A49: 48 | B49: 100 | C49: 80 | D49: 2006 | E49: 13 | F49: 31 | G49: 102 | H49: 0 | BH49: 140 | BI49: 189.0947972
A50: 49 | B50: 99.8389694 | C50: 120 | D50: 2006 | E50: 13 | F50: 41 | G50: 102 | H50: 0 | BH50: 150 | BI50: 188.8683791
A51: 50 | B51: 98.71175523 | C51: 160 | D51: 2006 | E51: 13 | F51: 52 | G51: 102 | H51: 0 | BH51: 160 | BI51: 188.4791978
A52: 51 | B52: 92.5087108 | C52: 0 | D52: 2006 | E52: 14 | F52: 2 | G52: 104 | H52: 0 | BH52: 170 | BI52: 187.9272532
A53: 52 | B53: 95.47038328 | C53: 40 | D53: 2006 | E53: 14 | F53: 15 | G53: 104 | H53: 0 | BH53: 180 | BI53: 187.2125455
A54: 53 | B54: 95.47038328 | C54: 80 | D54: 2006 | E54: 14 | F54: 32 | G54: 104 | H54: 0
A55: 54 | B55: 99.30313589 | C55: 120 | D55: 2006 | E55: 14 | F55: 42 | G55: 104 | H55: 0
A56: 55 | B56: 100 | C56: 160 | D56: 2006 | E56: 14 | F56: 53 | G56: 104 | H56: 0
A57: 56 | B57: 96.84741488 | C57: 0 | D57: 2006 | E57: 15 | F57: 3 | G57: 154 | H57: 0
A58: 57 | B58: 94.8297604 | C58: 40 | D58: 2006 | E58: 15 | F58: 16 | G58: 154 | H58: 0 | J58: Dependent Variable: RELYLD | Q58: Predicted RELYLD based on above questions: | U58: =+K69+IF($U$16="Yes",K70,0)+$U$6*($U$12*K76+K71+IF($U$10="Clearfield",K77,0)+IF($U$14="Clay",K78))+$U$6^0.5*K72+IF($U$14="Clay",K75,0)+IF($U$10="Clearfield",K73,0)+$U$12*K74 -> 94.5669452
A59: 58 | B59: 98.73896595 | C59: 80 | D59: 2006 | E59: 15 | F59: 33 | G59: 154 | H59: 0 | J59: Method: Panel EGLS (Period random effects)
A60: 59 | B60: 100 | C60: 120 | D60: 2006 | E60: 15 | F60: 43 | G60: 154 | H60: 0 | J60: Date: 03/13/19 Time: 09:12 | Q60: Yield/RELYLD | U60: =+U8/U58 -> 1.903413498
A61: 60 | B61: 94.95586381 | C61: 160 | D61: 2006 | E61: 15 | F61: 54 | G61: 154 | H61: 0 | J61: Sample: 2001 2018 IF KRATE<>135
A62: 61 | B62: 73.73134328 | C62: 0 | D62: 2006 | E62: 17 | F62: 4 | G62: 86 | H62: 0 | J62: Periods included: 17 | Q62: dRELYLD/dKRATE | U62: =+K71+U12*K76+IF(U10="Clearfield",K77,0)+IF(U14="Clay",K78,0)+0.5*U6^-0.5*K72 -> 0.05961510745 | W62: =+K71+U12*K76+IF(U10="Clearfield",K77,0)+IF(U14="Clay",K78,0)+0.5*U68^-0.5*K72 -> 0.04373721215
A63: 62 | B63: 82.3880597 | C63: 40 | D63: 2006 | E63: 17 | F63: 17 | G63: 86 | H63: 0 | J63: Cross-sections included: 79
A64: 63 | B64: 93.28358209 | C64: 80 | D64: 2006 | E64: 17 | F64: 34 | G64: 86 | H64: 0 | J64: Total panel (unbalanced) observations: 440 | Q64: =CONCATENATE("VMP of K @ KRATE = ",U6," lbs/acre and soil test K of ",U12) -> VMP of K @ KRATE = 25 lbs/acre and soil test K of 110 | U64: =+U62*U2/2.22*U60 -> 0.5111360371 | W64: =+W62*U2/2.22*U60 -> 0.375
A65: 64 | B65: 98.20895522 | C65: 120 | D65: 2006 | E65: 17 | F65: 44 | G65: 86 | H65: 0 | J65: Wallace and Hussain estimator of component variances
A66: 65 | B66: 100 | C66: 160 | D66: 2006 | E66: 17 | F66: 55 | G66: 86 | H66: 0 | Q66: Cost per lb of K | U66: =+U4/0.6/2000 -> 0.375 | W66: =(K71+U12*K76+IF(U10="Clearfield",K77,0)+IF(U14="Clay",K78)+0.5*W68^-0.5*K72)*U2/2.22*U60 -> 1.383980984 | X66: VMP at Alt User K
A67: 66 | B67: 79.68503937 | C67: 0 | D67: 2006 | E67: 20 | F67: 5 | G67: 103 | H67: 0 | J67: Variable | K67: Coefficient | L67: Std. Error | M67: t-Statistic | N67: Prob.
A68: 67 | B68: 87.55905512 | C68: 40 | D68: 2006 | E68: 20 | F68: 18 | G68: 108 | H68: 0 | Q68: Optimal K | U68: =IF(((U66/(U2/2.22*U60)-(K71+U12*K76+IF(U10="Clearfield",K77,0)+IF(U14="Clay",K78,0)))*2/K72)^-2>180,180,((U66/(U2/2.22*U60)-(K71+U12*K76+IF(U10="Clearfield",K77,0)+IF(U14="Clay",K78,0)))*2/K72)^-2) -> 38.36754456 | W68: 5 | X68: Alt User K
A69: 68 | B69: 92.75590551 | C69: 80 | D69: 2006 | E69: 20 | F69: 35 | G69: 118 | H69: 0 | J69: C | K69: 83.57802419 | L69: 1.206595779 | M69: 69.26762523 | N69: 2.275095698e-235
A70: 69 | B70: 100 | C70: 120 | D70: 2006 | E70: 20 | F70: 45 | G70: 131 | H70: 0 | J70: DRREC | K70: 1.901372692 | L70: 0.6112073646 | M70: 3.110847156 | N70: 0.001989737646 | Q70: Expected Yield | U70: =(+K69+IF(U16="Yes",K70,0)+U68*(K71+IF(U10="Clearfield",K77,0)+IF(U14="Clay",K78,0)+U12*K76)+U68^0.5*(K72)+IF(U14="Clay",K75,0)+IF(U10="Clearfield",K73,0)+U12*K74)*U60 -> 181.2932979 | W70: =(K69+IF($U$16="Yes",K70,0)+$W$68*($U$12*K76+K71+IF($U$10="Clearfield",K77,0)+IF($U$14="Clay",K78,0))+$W$68^0.5*K72+IF($U$14="Clay",K75,0)+IF($U$10="Clearfield",K73,0)+$U$12*K74)*U60 -> 176.5329818
A71: 70 | B71: 94.80314961 | C71: 160 | D71: 2006 | E71: 20 | F71: 56 | G71: 133 | H71: 0 | J71: KRATE | K71: 0.05527424609 | L71: 0.01945111966 | M71: 2.841699967 | N71: 0.004700819505
A72: 71 | B72: 77.48344371 | C72: 0 | D72: 2006 | E72: 21 | F72: 6 | G72: 96 | H72: 0 | J72: KRATE^.5 | K72: 0.8235966589 | L72: 0.1795438504 | M72: 4.587161615 | N72: 5.902285465e-06 | Q72: Added Profit in $/acre | U72: =+(U70-U8)*U2/2.22-(U68-U6)*U66 -> 0.8128370095 | W72: =+(W70-U8)*U2/2.22-(W68-U6)*U66 -> -8.117199183
A73: 72 | B73: 85.09933775 | C73: 40 | D73: 2006 | E73: 21 | F73: 19 | G73: 95 | H73: 0 | J73: DCLFIELD | K73: 2.333261436 | L73: 0.9170687768 | M73: 2.544260032 | N73: 0.0112997258
A74: 73 | B74: 92.54966887 | C74: 80 | D74: 2006 | E74: 21 | F74: 36 | G74: 94 | H74: 0 | J74: KSOIL | K74: 0.06763228791 | L74: 0.01098263876 | M74: 6.158109118 | N74: 1.69129018e-09
A75: 74 | B75: 97.84768212 | C75: 120 | D75: 2006 | E75: 21 | F75: 46 | G75: 111 | H75: 0 | J75: DCLAY | K75: -9.296610794 | L75: 2.441795438 | M75: -3.807284857 | N75: 0.0001609195768
A76: 75 | B76: 100 | C76: 160 | D76: 2006 | E76: 21 | F76: 57 | G76: 123 | H76: 0 | J76: KSOIL*KRATE | K76: -0.0007092618593 | L76: 0.0001239922289 | M76: -5.720212189 | N76: 1.99520725e-08 | Q76: K rate | R76: Exp. Yield
A77: 76 | B77: 64.6884273 | C77: 0 | D77: 2007 | E77: 22 | F77: 1 | G77: 60 | H77: 0 | J77: DCLFIELD*KRATE | K77: -0.02113021601 | L77: 0.009446821853 | M77: -2.236753941 | N77: 0.02581434428 | Q77: 0.01 | R77: =(+$K$69+IF($U$16="Yes",$K$70,0)+Q77*($U$12*$K$76+$K$71+IF($U$10="Clearfield",$K$77,0)+IF($U$14="Clay",$K$78,0))+Q77^0.5*($K$72)+IF($U$14="Clay",$K$75,0)+IF($U$10="Clearfield",$K$73,0)+$U$12*$K$74)*$U$60 -> 173.4004141
A78: 77 | B78: 86.64688427 | C78: 40 | D78: 2007 | E78: 22 | F78: 14 | G78: 72 | H78: 0 | J78: DCLAY*KRATE | K78: 0.09240656048 | L78: 0.02766610215 | M78: 3.340064314 | N78: 0.0009106295903 | Q78: 2 | R78: 175.3744827
A79: 78 | B79: 89.91097923 | C79: 80 | D79: 2007 | E79: 22 | F79: 31 | G79: 78 | H79: 0 | Q79: 7 | R79: 177.0886352
A80: 79 | B80: 100 | C80: 120 | D80: 2007 | E80: 22 | F80: 41 | G80: 81 | H80: 0 | K80: Effects Specification | Q80: 15 | R80: 178.666161
A81: 80 | B81: 92.28486647 | C81: 160 | D81: 2007 | E81: 22 | F81: 52 | G81: 96 | H81: 0 | M81: S.D. | N81: Rho | Q81: 25 | R81: 180
A82: 81 | B82: 65.50764951 | C82: 0 | D82: 2007 | E82: 23 | F82: 2 | G82: 71 | H82: 0 | Q82: 45 | R82: 181.8120114
A83: 82 | B83: 91.09874826 | C83: 40 | D83: 2007 | E83: 23 | F83: 15 | G83: 67 | H83: 0 | J83: Period random | M83: 1.099880019 | N83: 0.05237979079 | Q83: 60 | R83: 182.7894705
A84: 83 | B84: 94.01947149 | C84: 80 | D84: 2007 | E84: 23 | F84: 32 | G84: 72 | H84: 0 | J84: Idiosyncratic random | M84: 4.678219447 | N84: 0.9476202092 | Q84: 70 | R84: 183.3294806
A85: 84 | B85: 92.6286509 | C85: 120 | D85: 2007 | E85: 23 | F85: 42 | G85: 78 | H85: 0 | Q85: 80 | R85: 183.8021417
A86: 85 | B86: 100 | C86: 160 | D86: 2007 | E86: 23 | F86: 53 | G86: 97 | H86: 0 | K86: Weighted Statistics | Q86: 90 | R86: 184.2197618
A87: 86 | B87: 82.85302594 | C87: 0 | D87: 2007 | E87: 24 | F87: 3 | G87: 113 | H87: 0 | Q87: 100 | R87: 184.5913025
A88: 87 | B88: 92.93948127 | C88: 40 | D88: 2007 | E88: 24 | F88: 16 | G88: 113 | H88: 0 | J88: R-squared | K88: 0.3131037289 | L88: Mean dependent var | N88: 58.69433819 | Q88: 110 | R88: 184.923529
A89: 88 | B89: 91.6426513 | C89: 80 | D89: 2007 | E89: 24 | F89: 33 | G89: 113 | H89: 0 | J89: Adjusted R-squared | K89: 0.2987268302 | L89: S.D. dependent var | N89: 10.00229228 | Q89: 120 | R89: 185.2216971
A90: 89 | B90: 100 | C90: 120 | D90: 2007 | E90: 24 | F90: 43 | G90: 113 | H90: 0 | J90: S.E. of regression | K90: 4.685069483 | L90: Sum squared resid | N90: 9438.446708 | Q90: 130 | R90: 185.4899866
A91: 90 | B91: 91.93083573 | C91: 160 | D91: 2007 | E91: 24 | F91: 54 | G91: 113 | H91: 0 | J91: F-statistic | K91: 21.77825243 | L91: Durbin-Watson stat | N91: 2.440948805 | Q91: 140 | R91: 185.7317863
A92: 91 | B92: 92.43027888 | C92: 0 | D92: 2007 | E92: 26 | F92: 4 | G92: 102 | H92: 0 | J92: Prob(F-statistic) | K92: 1.9758798e-30 | Q92: 150 | R92: 185.9498893
A93: 92 | B93: 96.21513944 | C93: 40 | D93: 2007 | E93: 26 | F93: 17 | G93: 102 | H93: 0 | Q93: 160 | R93: 186.1466296
A94: 93 | B94: 100 | C94: 80 | D94: 2007 | E94: 26 | F94: 34 | G94: 102 | H94: 0 | K94: Unweighted Statistics | Q94: 170 | R94: 186.3239817
A95: 94 | B95: 95.01992032 | C95: 120 | D95: 2007 | E95: 26 | F95: 44 | G95: 102 | H95: 0 | Q95: 180 | R95: 186.4836333
A96: 95 | B96: 94.22310757 | C96: 160 | D96: 2007 | E96: 26 | F96: 55 | G96: 102 | H96: 0 | J96: R-squared | K96: 0.3119695218 | L96: Mean dependent var | N96: 95.92045455
A97: 96 | B97: 87.73234201 | C97: 0 | D97: 2007 | E97: 27 | F97: 5 | G97: 139 | H97: 0 | J97: Sum squared resid | K97: 9886.403451 | L97: Durbin-Watson stat | N97: 2.431277786
A98: 97 | B98: 88.84758364 | C98: 40 | D98: 2007 | E98: 27 | F98: 18 | G98: 139 | H98: 0
A99: 98 | B99: 100 | C99: 80 | D99: 2007 | E99: 27 | F99: 35 | G99: 139 | H99: 0
A100: 99 | B100: 94.42379182 | C100: 120 | D100: 2007 | E100: 27 | F100: 45 | G100: 139 | H100: 0
A101: 100 | B101: 91.44981413 | C101: 160 | D101: 2007 | E101: 27 | F101: 56 | G101: 139 | H101: 0 | J101: Dependent Variable: RELYLD | Q101: Predicted RELYLD based on above questions: | U101: =+K112+IF($U$16="Yes",K113,0)+LN($U$6)*(K117+$U$12*K120+IF($U$10="Clearfield",K119,0)+IF($U$14="Clay",K118))+IF($U$14="Clay",K116,0)+IF($U$10="Clearfield",K114,0)+$U$12*K115 -> 96.18393227
A102: 101 | B102: 90.23622047 | C102: 0 | D102: 2007 | E102: 28 | F102: 6 | G102: 272 | H102: 1 | J102: Method: Panel EGLS (Period random effects)
A103: 102 | B103: 100 | C103: 40 | D103: 2007 | E103: 28 | F103: 19 | G103: 272 | H103: 1 | J103: Date: 03/13/19 Time: 16:57 | Q103: Yield/RELYLD | U103: =+U8/U101 -> 1.871414443
A104: 103 | B104: 91.33858268 | C104: 80 | D104: 2007 | E104: 28 | F104: 36 | G104: 272 | H104: 1 | J104: Sample: 2001 2018 IF KRATE<>135
A105: 104 | B105: 91.49606299 | C105: 120 | D105: 2007 | E105: 28 | F105: 46 | G105: 272 | H105: 1 | J105: Periods included: 17 | Q105: dRELYLD/dKRATE | U105: =(K117+IF(U14="Clay",K118,0)+IF(U10="Clearfield",K119,0)+U12*K120)/U6 -> 0.01701949554 | W105: =(K117+IF(U14="Clay",K118,0)+IF(U10="Clearfield",K119,0)+U12*K120)/U111 -> 0.04448506867
A106: 105 | B106: 93.22834646 | C106: 160 | D106: 2007 | E106: 28 | F106: 57 | G106: 272 | H106: 1 | J106: Cross-sections included: 79
A107: 106 | B107: 90.35433071 | C107: 0 | D107: 2007 | E107: 30 | F107: 7 | G107: 94 | H107: 0 | J107: Total panel (unbalanced) observations: 440 | Q107: =CONCATENATE("VMP of K @ KRATE = ",U49," lbs/acre and soil test K of ",U55) -> VMP of K @ KRATE = lbs/acre and soil test K of | U107: =+U105*U2/2.22*U103 -> 0.1434708548 | W107: =+W105*U2/2.22*U103 -> 0.375
A108: 107 | B108: 97.44094488 | C108: 40 | D108: 2007 | E108: 30 | F108: 20 | G108: 94 | H108: 0 | J108: Wallace and Hussain estimator of component variances
A109: 108 | B109: 100 | C109: 80 | D109: 2007 | E109: 30 | F109: 37 | G109: 94 | H109: 0 | Q109: Cost per lb of K | U109: =+U4/0.6/2000 -> 0.375 | W109: =(K117+IF(U14="Clay",K118,0)+IF(U10="Clearfield",K119,0)+U12*K120)/W111*U2/2.22*U103 -> 0.717354274 | X109: VMP at Alt User K
A110: 109 | B110: 96.65354331 | C110: 120 | D110: 2007 | E110: 30 | F110: 47 | G110: 94 | H110: 0 | J110: Variable | K110: Coefficient | L110: Std. Error | M110: t-Statistic | N110: Prob.
A111: 110 | B111: 93.30708661 | C111: 160 | D111: 2007 | E111: 30 | F111: 58 | G111: 94 | H111: 0 | Q111: Optimal K | U111: =IF(((K117+IF(U14="Clay",K118,0)+IF(U10="Clearfield",K119,0)+U12*K120)/(U109/(U2/2.22*U103)))>180,180,((K117+IF(U14="Clay",K118,0)+IF(U10="Clearfield",K119,0)+U12*K120)/(U109/(U2/2.22*U103)))) -> 9.564723654 | W111: 5 | X111: Alt User K
A112: 111 | B112: 91.94630872 | C112: 0 | D112: 2007 | E112: 31 | F112: 8 | G112: 94 | H112: 0 | J112: C | K112: 92.04835626 | L112: 0.8118564696 | M112: 113.3800859 | N112: 0
A113: 112 | B113: 96.51006711 | C113: 40 | D113: 2007 | E113: 31 | F113: 21 | G113: 94 | H113: 0 | J113: DRREC | K113: 1.674272927 | L113: 0.6247099459 | M113: 2.680080472 | N113: 0.007642508367 | Q113: Expected Yield | U113: =(+K112+IF(U16="Yes",K113,0)+LN(U111)*(K117+IF(U10="Clearfield",K119,0)+IF(U14="Clay",K118,0)+U12*K120)+IF(U14="Clay",K116,0)+IF(U10="Clearfield",K114,0)+U12*K115)*U103 -> 179.234955 | W113: =(+K112+IF(U16="Yes",K113,0)+LN(W111)*(K117+IF(U10="Clearfield",K119,0)+IF(U14="Clay",K118,0)+U12*K120)+IF(U14="Clay",K116,0)+IF(U10="Clearfield",K114,0)+U12*K115)*U103 -> 178.7184637
A114: 113 | B114: 100 | C114: 80 | D114: 2007 | E114: 31 | F114: 38 | G114: 94 | H114: 0 | J114: DCLFIELD | K114: 0.9538761766 | L114: 0.599352375 | M114: 1.591511465 | N114: 0.1122276617
A115: 114 | B115: 92.08053691 | C115: 120 | D115: 2007 | E115: 31 | F115: 48 | G115: 94 | H115: 0 | J115: KSOIL | K115: 0.02514531757 | L115: 0.007907350482 | M115: 3.179992796 | N115: 0.001579079719 | Q115: Added Profit in $/acre | U115: =+(U113-U8)*U2/2.22-(U111-U6)*U109 -> 2.34207981 | W115: =+(W113-U8)*U2/2.22-(W111-U6)*U109 -> 1.727314174
A116: 115 | B116: 97.18120805 | C116: 160 | D116: 2007 | E116: 31 | F116: 59 | G116: 94 | H116: 0 | J116: DCLAY | K116: -3.488411949 | L116: 1.646380839 | M116: -2.118836581 | N116: 0.03467569419
A117: 116 | B117: 91.5862069 | C117: 0 | D117: 2008 | E117: 32 | F117: 1 | G117: 125 | H117: 0 | J117: LNK | K117: 0.9466911285 | L117: 0.1187053689 | M117: 7.975133199 | N117: 1.383119288e-14
A118: 117 | B118: 95.72413793 | C118: 40 | D118: 2008 | E118: 32 | F118: 14 | G118: 125 | H118: 0 | J118: LNK*DCLAY | K118: 0.4990002373 | L118: 0.2438559311 | M118: 2.046291165 | N118: 0.04133396676 | Q118: K rate | R118: Exp. Yield
A119: 118 | B119: 98.48275862 | C119: 80 | D119: 2008 | E119: 32 | F119: 31 | G119: 125 | H119: 0 | J119: LNK*DCLFIELD | K119: -0.1496455639 | L119: 0.09193539344 | M119: -1.627725279 | N119: 0.1043139117 | Q119: 0.01 | R119: =(+$K$112+IF($U$16="Yes",$K$113,0)+LN(Q119)*($K$117+IF($U$10="Clearfield",$K$119,0)+IF($U$14="Clay",$K$118,0)+$U$12*$K$120)+IF($U$14="Clay",$K$116,0)+IF($U$10="Clearfield",$K$114,0)+$U$12*$K$115)*$U$103 -> 173.7699997
A120: 119 | B120: 96.82758621 | C120: 120 | D120: 2008 | E120: 32 | F120: 41 | G120: 125 | H120: 0 | J120: LNK*KSOIL | K120: -0.004738215818 | L120: 0.001134485983 | M120: -4.176530947 | N120: 3.583942662e-05 | Q120: 2 | R120: 177.9888551
A121: 120 | B121: 100 | C121: 160 | D121: 2008 | E121: 32 | F121: 52 | G121: 125 | H121: 0 | Q121: 5 | R121: 178.7184637
A122: 121 | B122: 89.61748634 | C122: 0 | D122: 2008 | E122: 33 | F122: 2 | G122: 114 | H122: 0 | K122: Effects Specification | Q122: 7 | R122: 178.9863842
A123: 122 | B123: 91.66666667 | C123: 40 | D123: 2008 | E123: 33 | F123: 15 | G123: 114 | H123: 0 | M123: S.D. | N123: Rho | Q123: 10 | R123: 179.2703914
A124: 123 | B124: 87.29508197 | C124: 80 | D124: 2008 | E124: 33 | F124: 32 | G124: 114 | H124: 0 | Q124: 15 | R124: 179.5932483
A125: 124 | B125: 98.36065574 | C125: 120 | D125: 2008 | E125: 33 | F125: 42 | G125: 114 | H125: 0 | J125: Period random | M125: 1.106470735 | N125: 0.05032333769 | Q125: 30 | R125: 180.145176
A126: 125 | B126: 100 | C126: 160 | D126: 2008 | E126: 33 | F126: 53 | G126: 114 | H126: 0 | J126: Idiosyncratic random | M126: 4.806656593 | N126: 0.9496766623 | Q126: 50 | R126: 180.5519276
A127: 126 | B127: 88.4137931 | C127: 0 | D127: 2008 | E127: 34 | F127: 3 | G127: 87 | H127: 0 | Q127: 70 | R127: 180.8198481
A128: 127 | B128: 95.72413793 | C128: 40 | D128: 2008 | E128: 34 | F128: 16 | G128: 87 | H128: 0 | K128: Weighted Statistics | Q128: 90 | R128: 181.0199605
A129: 128 | B129: 98.48275862 | C129: 80 | D129: 2008 | E129: 34 | F129: 33 | G129: 87 | H129: 0 | Q129: 100 | R129: 181.1038552
A130: 129 | B130: 96.82758621 | C130: 120 | D130: 2008 | E130: 34 | F130: 43 | G130: 87 | H130: 0 | J130: R-squared | K130: 0.2740428809 | L130: Mean dependent var | N130: 59.43892963 | Q130: 110 | R130: 181.1797472
A131: 130 | B131: 100 | C131: 160 | D131: 2008 | E131: 34 | F131: 54 | G131: 87 | H131: 0 | J131: Adjusted R-squared | K131: 0.2605680388 | L131: S.D. dependent var | N131: 9.954107887 | Q131: 120 | R131: 181.2490312
A132: 131 | B132: 100 | C132: 0 | D132: 2008 | E132: 35 | F132: 4 | G132: 155 | H132: 0 | J132: S.E. of regression | K132: 4.812796269 | L132: Sum squared resid | N132: 9983.256415 | Q132: 130 | R132: 181.3127663
A133: 132 | B133: 100 | C133: 40 | D133: 2008 | E133: 35 | F133: 17 | G133: 155 | H133: 0 | J133: F-statistic | K133: 20.33737231 | L133: Durbin-Watson stat | N133: 2.371216243 | Q133: 140 | R133: 181.3717757
A134: 133 | B134: 98.6135182 | C134: 80 | D134: 2008 | E134: 35 | F134: 34 | G134: 155 | H134: 0 | J134: Prob(F-statistic) | K134: 3.890647391e-26 | Q134: 150 | R134: 181.4267122
A135: 134 | B135: 100 | C135: 120 | D135: 2008 | E135: 35 | F135: 44 | G135: 155 | H135: 0 | Q135: 160 | R135: 181.4781019
A136: 135 | B136: 98.26689775 | C136: 160 | D136: 2008 | E136: 35 | F136: 55 | G136: 155 | H136: 0 | K136: Unweighted Statistics | Q136: 170 | R136: 181.526375
A137: 136 | B137: 81.4159292 | C137: 0 | D137: 2008 | E137: 38 | F137: 5 | G137: 110 | H137: 0 | Q137: 180 | R137: 181.5718882
A138: 137 | B138: 100 | C138: 40 | D138: 2008 | E138: 38 | F138: 18 | G138: 113 | H138: 0 | J138: R-squared | K138: 0.2734639836 | L138: Mean dependent var | N138: 95.92045455
A139: 138 | B139: 99.70501475 | C139: 80 | D139: 2008 | E139: 38 | F139: 35 | G139: 113 | H139: 0 | J139: Sum squared resid | K139: 10439.69476 | L139: Durbin-Watson stat | N139: 2.364096255
A140: 139 | B140: 97.19764012 | C140: 120 | D140: 2008 | E140: 38 | F140: 45 | G140: 133 | H140: 0
A141: 140 | B141: 100 | C141: 160 | D141: 2008 | E141: 38 | F141: 56 | G141: 147 | H141: 0
A142: 141 | B142: 95.5 | C142: 0 | D142: 2009 | E142: 39 | F142: 1 | G142: 102 | H142: 0 | W142: TRUE
A143: 142 | B143: 98.33333333 | C143: 45 | D143: 2009 | E143: 39 | F143: 22 | G143: 102 | H143: 0 | J143: =0.8301513*2.47105*0.453592 -> 0.930473849 | Q143: Profit-Maximizing K Rate Calculator
A144: 143 | B144: 100 | C144: 90 | D144: 2009 | E144: 39 | F144: 39 | G144: 102 | H144: 0
A145: 144 | B145: 90.67669173 | C145: 0 | D145: 2009 | E145: 42 | F145: 2 | G145: 98 | H145: 0 | J145: Dependent Variable: RY | Q145: What is your expected soybean price? | U145: 0.3993974133 | V145: =IF(W142,CONCATENATE("$ kg",Z155),"$/bu") -> $ kg⁻¹
A146: 145 | B146: 100 | C146: 60 | D146: 2009 | E146: 42 | F146: 23 | G146: 98 | H146: 0 | J146: Method: Panel EGLS (Period random effects)
A147: 146 | B147: 88.57142857 | C147: 120 | D147: 2009 | E147: 42 | F147: 41 | G147: 98 | H147: 0 | J147: Date: 06/03/20 Time: 12:34 | Q147: What do you expect to pay for muriate of potash fertilizer? | U147: 512.5661376 | V147: =IF(W142,CONCATENATE("$ Mg",Z155),"$/ton") -> $ Mg⁻¹ | W147: =+U147/IF(W142,1000,2000)/IF(W142,0.49809078131038,0.6) -> 1.029061683 | X147: =IF(W142,CONCATENATE("$ kg",Z155," K"),CONCATENATE("$/lb of K",Z153,"O")) -> $ kg⁻¹ K
A148: 147 | B148: 99.07264297 | C148: 0 | D148: 2009 | E148: 43 | F148: 3 | G148: 104 | H148: 0 | J148: Sample: 2004 2019
A149: 148 | B149: 100 | C149: 60 | D149: 2009 | E149: 43 | F149: 24 | G149: 104 | H149: 0 | J149: Periods included: 16 | Q149: What is the yield potential of your field? | U149: 4219 | V149: =IF(W142,CONCATENATE("kg ha",Z155),"bu/acre") -> kg ha⁻¹ | W149: =+U149/100 -> 42.19 | X149: kg ha-1/relative yield % (100% = yield potential) | Y149: =180*IF(W142,BP172,1) -> 167.4916362 | Z149: Max. Fert applied per acre in the experiment
A150: 149 | B150: 95.67233385 | C150: 120 | D150: 2009 | E150: 43 | F150: 42 | G150: 104 | H150: 0 | J150: Cross-sections included: 59 | BV150: Labels
A151: 150 | B151: 86.77165354 | C151: 0 | D151: 2009 | E151: 44 | F151: 4 | G151: 84 | H151: 0 | J151: Total panel (unbalanced) observations: 374 | Q151: What is your soil-test K value (STK) and range? | U151: 113 | V151: =IF(W142,CONCATENATE("mg K kg",Z155),"ppm") -> mg K kg⁻¹ | W151: Soil test range +/- | Y151: 10 | BI151: High | BJ151: =MMULT($BJ$157:$BO$157,BJ160:BJ165) -> -0.002719963723 | BK151: 8.055160094e-05 | BL151: -0.0001498576954 | BM151: 0.002811231461 | BN151: -2.577442566e-05 | BO151: 1.241997255e-06 | BP151: =SQRT(MMULT(BJ151:BO151,BR160:BR165))*1.96 -> 1.052584358 | BV151: =CONCATENATE(TEXT(T156,0)," ",BQ154," ",TEXT(BP151,"0.0")) -> 35 ± 1.1
A152: 151 | B152: 92.75590551 | C152: 60 | D152: 2009 | E152: 44 | F152: 25 | G152: 84 | H152: 0 | J152: Wallace and Hussain estimator of component variances | BI152: Avg | BJ152: =MMULT($BJ$156:$BO$156,BJ160:BJ165) -> 0.0203670838 | BK152: -1.10834293e-06 | BL152: -0.0001352035035 | BM152: 0.0009163081636 | BN152: -2.269325796e-05 | BO152: 1.476917759e-06 | BP152: =SQRT(MMULT(BJ152:BO152,BQ160:BQ165))*1.96 -> 1.502010278 | BQ152: 95% C.I. of profit maximizing rate at conditional mean | BV152: =CONCATENATE(TEXT(U156,0)," ",BQ154," ",TEXT(BP152,"0.0")) -> 55 ± 1.5
A153: 152 | B153: 100 | C153: 120 | D153: 2009 | E153: 44 | F153: 43 | G153: 84 | H153: 0 | J153: White cross-section standard errors & covariance (d.f. corrected) | Q153: What is your cost to apply fertilizer (equipment, labor, fuel or custom)? | U153: 15 | V153: =IF(W142,CONCATENATE("$ ha",Z155),"$/acre") -> $ ha⁻¹ | W153: =CONCATENATE("...your rate in ",IF(W142,CONCATENATE("kg K ha",Z155),CONCATENATE("lbs of K",Z153,"O/acre")),":") -> ...your rate in kg K ha⁻¹: | Y153: =(237-1.61*U151)*0.9305091 -> 51.24313614 | Z153: ₂ | BI153: Low | BJ153: =MMULT($BJ$155:$BO$155,BJ160:BJ165) -> 0.05579888637 | BK153: =MMULT($BJ$155:$BO$155,BK160:BK165) -> -0.0001510476318 | BL153: -4.471113126e-05 | BM153: -0.003081705655 | BN153: -7.99497435e-06 | BO153: 1.292875357e-06 | BP153: =SQRT(MMULT(BJ153:BO153,BP160:BP165))*1.96 -> 1.873822094 | BV153: =CONCATENATE(TEXT(V156,0)," ",BQ154," ",TEXT(BP153,"0.0")) -> 71 ± 1.9
A154: 153 | B154: 66.2139219 | C154: 0 | D154: 2009 | E154: 45 | F154: 5 | G154: 85 | H154: 0 | J154: Variable | K154: Coefficient | L154: Std. Error | M154: t-Statistic | N154: Prob. | O154: English | Q154: =CONCATENATE("Profit change comparing applying at ",TEXT(ROUND(U156,1),"0.0"),IF(W142,CONCATENATE(" kg K ha",Z155),CONCATENATE("lb K",Z153,"O/acre"))," to no fertilizer:") -> Profit change comparing applying at 55.0 kg K ha⁻¹ to no fertilizer: | U154: =+U160*$U$145/IF(W142,1,1)-U156*$W$147-IF(U156>0,$U$153)-R165*$U$145/IF(W142,1,1) -> 6.438516055 | V154: =IF(W142,CONCATENATE("$ ha",Z155),"$/acre") -> $ ha⁻¹ | W154: ...to your rate: | Y154: =+U162 -> 0.09905518224 | Z154: =CONCATENATE("Fertilizer-K Application Rate (lbs K",Z153,"O/acre)") -> Fertilizer-K Application Rate (lbs K₂O/acre) | BQ154: ±
A155: 154 | B155: 77.58913413 | C155: 40 | D155: 2009 | E155: 45 | F155: 14 | G155: 99 | H155: 0 | T155: =CONCATENATE(U151+Y151," ppm soil K") -> 123 ppm soil K | U155: =CONCATENATE(U151," ppm soil K") -> 113 ppm soil K | V155: =CONCATENATE(U151-Y151," ppm soil K") -> 103 ppm soil K | W155: K yield max | Z155: ⁻¹ | BI155: Low | BJ155: =+V156 -> 70.83053816 | BK155: =+BJ155^2 -> 5016.965136 | BL155: =+(U151-Y151)*BJ155 -> 7295.545431 | BM155: =+(U151-Y151)^0.5*BJ155 -> 718.8514513 | BN155: =+(U151-Y151)^0.5*BK155 -> 50916.63515 | BO155: =+(U151-Y151)*BK155 -> 516747.409
A156: 155 | B156: 83.36162988 | C156: 80 | D156: 2009 | E156: 45 | F156: 31 | G156: 101 | H156: 0 | J156: C | K156: 13.04610573 | L156: 8.219766 | M156: 1.587163 | N156: 0.1133 | O156: 13.04610573 | Q156: Profit Maximizing K rate: | T156: =IF((IF(W142,K159,O159)+2*IF(W142,K160,O160)*0.1+IF(W142,K161,O161)*(U151+Y151)+IF(W142,K162,O162)*(U151+Y151)^0.5+2*IF(W142,K163,O163)*(U151+Y151)^0.5*0.1+2*IF(W142,K164,O164)*(U151+Y151)*0.1)<0,0,IF(((IF(W142,K159,O159)+2*IF(W142,K160,O160)*Y149+IF(W142,K161,O161)*(U151+Y151)+IF(W142,K162,O162)*(U151+Y151)^0.5+2*IF(W142,K163,O163)*(U151+Y151)^0.5*Y149+2*IF(W142,K164,O164)*(U151+Y151)*Y149)*U145/IF(W142,1,1)*W149)>W147,IF(Y149<T188,Y149,T188),IF((W147/(U145/IF(W142,1,1)*W149)-IF(W142,K159,O159)-IF(W142,K161,O161)*(U151+Y151)-IF(W142,K162,O162)*(U151+Y151)^0.5)/(2*(IF(W142,K160,O160)+IF(W142,K163,O163)*(U151+Y151)^0.5+IF(W142,K164,O164)*(U151+Y151)))<0,0,IF((W147/(U145/IF(W142,1,1)*W149)-IF(W142,K159,O159)-IF(W142,K161,O161)*(U151+Y151)-IF(W142,K162,O162)*(U151+Y151)^0.5)/(2*(IF(W142,K160,O160)+IF(W142,K163,O163)*(U151+Y151)^0.5+IF(W142,K164,O164)*(U151+Y151)))>T188,T188,(W147/(U145/IF(W142,1,1)*W149)-IF(W142,K159,O159)-IF(W142,K161,O161)*(U151+Y151)-IF(W142,K162,O162)*(U151+Y151)^0.5)/(2*(IF(W142,K160,O160)+IF(W142,K163,O163)*(U151+Y151)^0.5+IF(W142,K164,O164)*(U151+Y151))))))) -> 35.29425102 | U156: =IF((IF(W142,K159,O159)+2*IF(W142,K160,O160)*0.1+IF(W142,K161,O161)*(U151)+IF(W142,K162,O162)*(U151)^0.5+2*IF(W142,K163,O163)*(U151)^0.5*0.1+2*IF(W142,K164,O164)*(U151)*0.1)<0,0,IF(((IF(W142,K159,O159)+2*IF(W142,K160,O160)*Y149+IF(W142,K161,O161)*(U151)+IF(W142,K162,O162)*(U151)^0.5+2*IF(W142,K163,O163)*(U151)^0.5*Y149+2*IF(W142,K164,O164)*(U151)*Y149)*U145/IF(W142,1,1)*W149)>W147,IF(Y149<U188,Y149,U188),IF((W147/(U145/IF(W142,1,1)*W149)-IF(W142,K159,O159)-IF(W142,K161,O161)*(U151)-IF(W142,K162,O162)*(U151)^0.5)/(2*(IF(W142,K160,O160)+IF(W142,K163,O163)*(U151)^0.5+IF(W142,K164,O164)*(U151)))<0,0,IF((W147/(U145/IF(W142,1,1)*W149)-IF(W142,K159,O159)-IF(W142,K161,O161)*(U151)-IF(W142,K162,O162)*(U151)^0.5)/(2*(IF(W142,K160,O160)+IF(W142,K163,O163)*(U151)^0.5+IF(W142,K164,O164)*(U151)))>U188,U188,(W147/(U145/IF(W142,1,1)*W149)-IF(W142,K159,O159)-IF(W142,K161,O161)*(U151)-IF(W142,K162,O162)*(U151)^0.5)/(2*(IF(W142,K160,O160)+IF(W142,K163,O163)*(U151)^0.5+IF(W142,K164,O164)*(U151))))))) -> 54.98035729 | V156: =IF((IF(W142,K159,O159)+2*IF(W142,K160,O160)*0.1+IF(W142,K161,O161)*(U151-Y151)+IF(W142,K162,O162)*(U151-Y151)^0.5+2*IF(W142,K163,O163)*(U151-Y151)^0.5*0.1+2*IF(W142,K164,O164)*(U151-Y151)*0.1)<0,0,IF(((IF(W142,K159,O159)+2*IF(W142,K160,O160)*Y149+IF(W142,K161,O161)*(U151-Y151)+IF(W142,K162,O162)*(U151-Y151)^0.5+2*IF(W142,K163,O163)*(U151-Y151)^0.5*Y149+2*IF(W142,K164,O164)*(U151-Y151)*Y149)*U145/IF(W142,1,1)*W149)>W147,IF(Y149<V188,Y149,V188),IF((W147/(U145/IF(W142,1,1)*W149)-IF(W142,K159,O159)-IF(W142,K161,O161)*(U151-Y151)-IF(W142,K162,O162)*(U151-Y151)^0.5)/(2*(IF(W142,K160,O160)+IF(W142,K163,O163)*(U151-Y151)^0.5+IF(W142,K164,O164)*(U151-Y151)))<0,0,IF((W147/(U145/IF(W142,1,1)*W149)-IF(W142,K159,O159)-IF(W142,K161,O161)*(U151-Y151)-IF(W142,K162,O162)*(U151-Y151)^0.5)/(2*(IF(W142,K160,O160)+IF(W142,K163,O163)*(U151-Y151)^0.5+IF(W142,K164,O164)*(U151-Y151)))>V188,V188,(W147/(U145/IF(W142,1,1)*W149)-IF(W142,K159,O159)-IF(W142,K161,O161)*(U151-Y151)-IF(W142,K162,O162)*(U151-Y151)^0.5)/(2*(IF(W142,K160,O160)+IF(W142,K163,O163)*(U151-Y151)^0.5+IF(W142,K164,O164)*(U151-Y151))))))) -> 70.83053816 | W156: =+U187 -> 127.5294201 | Z156: =CONCATENATE("Soybean Grain Yield (kg ha",Z155,")") -> Soybean Grain Yield (kg ha⁻¹) | BI156: Avg | BJ156: =+U156 -> 54.98035729 | BK156: =+BJ156^2 -> 3022.839687 | BL156: =+U151*BJ156 -> 6212.780373 | BM156: =U151^0.5*BJ156 -> 584.4492148 | BN156: =+U151^0.5*BK156 -> 32133.22665 | BO156: =U151*BK156 -> 341580.8847
A157: 156 | B157: 96.26485569 | C157: 120 | D157: 2009 | E157: 45 | F157: 44 | G157: 105 | H157: 0 | J157: KSOIL | K157: -0.3699784222 | L157: 0.045536 | M157: -8.124924 | N157: 0 | O157: -0.3699784222 | Q157: VMP @ Profit Max: | T157: 91.95580414 | U157: 91.95580414 | V157: 91.95580414 | Z157: =CONCATENATE("Fertilizer-K Application Rate (kg K ha",Z155,")") -> Fertilizer-K Application Rate (kg K ha⁻¹) | BI157: High | BJ157: =+T156 -> 35.29425102 | BK157: =+BJ157^2 -> 1245.684155 | BL157: =+(U151+Y151)*BJ157 -> 4341.192875 | BM157: =+(U151+Y151)^0.5*BJ157 -> 391.4321794 | BN157: =+(U151+Y151)^0.5*BK157 -> 13815.3056 | BO157: =(U151+Y151)*BK157 -> 153219.1511
A158: 157 | B158: 100 | C158: 160 | D158: 2009 | E158: 45 | F158: 52 | G158: 123 | H158: 0 | J158: KSOIL^.5 | K158: 11.25855885 | L158: 1.221937 | M158: 9.213696 | N158: 0 | O158: 11.25855885 | Q158: UAEX recommendation: | T158: =237-1.61*(U151+Y151) -> 38.97 | U158: =+Y153 -> 51.24313614 | V158: =237-1.61*(U151-Y151) -> 71.17 | BJ158: Coefficient Covariance Matrix as available in Eviews under the View Menu in the Equation Editor
A159: 158 | B159: 76.82333874 | C159: 0 | D159: 2009 | E159: 46 | F159: 6 | G159: 81 | H159: 0 | J159: MKRATE | K159: 1.260773491 | L159: 0.186145 | M159: 6.773063 | N159: 0 | O159: 1.173161194 | T159: =+T156-T158 -> -3.675748982 | U159: =+U156-U158 -> 3.73722115 | V159: =+V156-V158 -> -0.3394618377 | W159: Est. Yield Max | BJ159: K | BK159: K^2 | BL159: S*K | BM159: S^.5*K | BN159: S^.5*K^2 | BO159: S*K^2 | BP159: Low | BQ159: Avg | BR159: High | BW159: English
A160: 159 | B160: 86.54781199 | C160: 40 | D160: 2009 | E160: 46 | F160: 15 | G160: 94 | H160: 0 | J160: MKRATE^2 | K160: -0.004270066746 | L160: 0.000889 | M160: -4.800978 | N160: 0 | O160: -0.003697225193 | Q160: Est. Yield at Profit-Max K: | T160: =IF((+K156+K157*(U151+Y151)+K158*(U151+Y151)^0.5+IF(W142,K159,O159)*T156+IF(W142,K160,O160)*T156^2+IF(W142,K161,O161)*(U151+Y151)*T156+IF(W142,K162,O162)*(U151+Y151)^0.5*T156+IF(W142,K163,O163)*(U151+Y151)^0.5*T156^2+IF(W142,K164,O164)*(U151+Y151)*T156^2)*W149>U149,U149,(+K156+K157*(U151+Y151)+K158*(U151+Y151)^0.5+IF(W142,K159,O159)*T156+IF(W142,K160,O160)*T156^2+IF(W142,K161,O161)*(U151+Y151)*T156+IF(W142,K162,O162)*(U151+Y151)^0.5*T156+IF(W142,K163,O163)*(U151+Y151)^0.5*T156^2+IF(W142,K164,O164)*(U151+Y151)*T156^2)*W149) -> 4007.759534 | U160: =IF((+K156+K157*U151+K158*U151^0.5+IF(W142,K159,O159)*U156+IF(W142,K160,O160)*U156^2+IF(W142,K161,O161)*U151*U156+IF(W142,K162,O162)*U151^0.5*U156+IF(W142,K163,O163)*U151^0.5*U156^2+IF(W142,K164,O164)*(U151)*U156^2)*W149>U149,U149,(+K156+K157*U151+K158*U151^0.5+IF(W142,K159,O159)*U156+IF(W142,K160,O160)*U156^2+IF(W142,K161,O161)*U151*U156+IF(W142,K162,O162)*U151^0.5*U156+IF(W142,K163,O163)*U151^0.5*U156^2+IF(W142,K164,O164)*(U151)*U156^2)*W149) -> 4031.194531 | V160: =IF((+K156+K157*(U151-Y151)+K158*(U151-Y151)^0.5+IF(W142,K159,O159)*V156+IF(W142,K160,O160)*V156^2+IF(W142,K161,O161)*(U151-Y151)*V156+IF(W142,K162,O162)*(U151-Y151)^0.5*V156+IF(W142,K163,O163)*(U151-Y151)^0.5*V156^2+IF(W142,K164,O164)*(U151-Y151)*V156^2)*W149>U149,U149,(+K156+K157*(U151-Y151)+K158*(U151-Y151)^0.5+IF(W142,K159,O159)*V156+IF(W142,K160,O160)*V156^2+IF(W142,K161,O161)*(U151-Y151)*V156+IF(W142,K162,O162)*(U151-Y151)^0.5*V156+IF(W142,K163,O163)*(U151-Y151)^0.5*V156^2+IF(W142,K164,O164)*(U151-Y151)*V156^2)*W149) -> 4052.508363 | W160: =IF((+K156+K157*U151+K158*U151^0.5+IF(W142,K159,O159)*W156+IF(W142,K160,O160)*W156^2+IF(W142,K161,O161)*U151*W156+IF(W142,K162,O162)*U151^0.5*W156+IF(W142,K163,O163)*U151^0.5*W156^2+IF(W142,K164,O164)*(U151)*W156^2)*W149>U149,U149,(+K156+K157*U151+K158*U151^0.5+IF(W142,K159,O159)*W156+IF(W142,K160,O160)*W156^2+IF(W142,K161,O161)*U151*W156+IF(W142,K162,O162)*U151^0.5*W156+IF(W142,K163,O163)*U151^0.5*W156^2+IF(W142,K164,O164)*(U151)*W156^2)*W149) -> 4124.657155 | BI160: KRATE | BJ160: =IF($W$142,BU167,BU160) -> 0.0346500498 | BK160: =IF($W$142,BV167,BV160) -> -0.0001608797525 | BL160: 0.0001690043633 | BM160: -0.005006588313 | BN160: 2.254190923e-05 | BO160: -7.220134567e-07 | BP160: =+BJ155 -> 70.83053816 | BQ160: =+BJ156 -> 54.98035729 | BR160: =+BJ157 -> 35.29425102 | BU160: 0.03000164745 | BV160: -0.0001296173833 | BW160: 0.0001463319492 | BX160: -0.004334940305 | BY160: 1.81615352e-05 | BZ160: -5.817108337e-07
A161: 160 | B161: 94.81361426 | C161: 80 | D161: 2009 | E161: 46 | F161: 32 | G161: 98 | H161: 0 | J161: KSOIL*MKRATE | K161: 0.00555251162 | L161: 0.001058 | M161: 5.247849 | N161: 0 | O161: 0.005166662535 | Q161: Est. Yield at UAEX rec.: | T161: =IF((+K156+K157*(U151+Y151)+K158*(U151+Y151)^0.5+IF(W142,K159,O159)*T158+IF(W142,K160,O160)*T158^2+IF(W142,K161,O161)*(U151+Y151)*T158+IF(W142,K162,O162)*(U151+Y151)^0.5*T158+IF(W142,K163,O163)*(U151+Y151)^0.5*T158^2+IF(W142,K164,O164)*(U151+Y151)*T158^2)*W149>U149,U149,(+K156+K157*(U151+Y151)+K158*(U151+Y151)^0.5+IF(W142,K159,O159)*T158+IF(W142,K160,O160)*T158^2+IF(W142,K161,O161)*(U151+Y151)*T158+IF(W142,K162,O162)*(U151+Y151)^0.5*T158+IF(W142,K163,O163)*(U151+Y151)^0.5*T158^2+IF(W142,K164,O164)*(U151+Y151)*T158^2)*W149) -> 4017.030951 | U161: =IF((+K156+K157*U151+K158*U151^0.5+IF(W142,K159,O159)*U158+IF(W142,K160,O160)*U158^2+IF(W142,K161,O161)*U151*U158+IF(W142,K162,O162)*U151^0.5*U158+IF(W142,K163,O163)*U151^0.5*U158^2+IF(W142,K164,O164)*(U151)*U158^2)*W149>U149,U149,(+K156+K157*U151+K158*U151^0.5+IF(W142,K159,O159)*U158+IF(W142,K160,O160)*U158^2+IF(W142,K161,O161)*U151*U158+IF(W142,K162,O162)*U151^0.5*U158+IF(W142,K163,O163)*U151^0.5*U158^2+IF(W142,K164,O164)*(U151)*U158^2)*W149) -> 4021.317436 | V161: =IF((+K156+K157*(U151-Y151)+K158*(U151-Y151)^0.5+IF(W142,K159,O159)*V158+IF(W142,K160,O160)*V158^2+IF(W142,K161,O161)*(U151-Y151)*V158+IF(W142,K162,O162)*(U151-Y151)^0.5*V158+IF(W142,K163,O163)*(U151-Y151)^0.5*V158^2+IF(W142,K164,O164)*(U151-Y151)*V158^2)*W149>U149,U149,(+K156+K157*(U151-Y151)+K158*(U151-Y151)^0.5+IF(W142,K159,O159)*V158+IF(W142,K160,O160)*V158^2+IF(W142,K161,O161)*(U151-Y151)*V158+IF(W142,K162,O162)*(U151-Y151)^0.5*V158+IF(W142,K163,O163)*(U151-Y151)^0.5*V158^2+IF(W142,K164,O164)*(U151-Y151)*V158^2)*W149) -> 4053.380548 | BI161: KRATE^2 | BJ161: =IF($W$142,BU168,BU161) -> -0.0001608797525 | BK161: 7.910609198e-07 | BL161: -8.278657192e-07 | BM161: 2.394802559e-05 | BN161: -1.166446549e-07 | BO161: 3.946297707e-09 | BP161: =+BK155 -> 5016.965136 | BQ161: =+BK156 -> 3022.839687 | BR161: =+BK157 -> 1245.684155 | BU161: -0.0001296173833 | BV161: 5.930515021e-07 | BW161: -6.669937426e-07 | BX161: 1.929441314e-05 | BY161: -8.744748486e-08 | BZ161: 2.958505121e-09
A162: 161 | B162: 96.75850891 | C162: 120 | D162: 2009 | E162: 46 | F162: 45 | G162: 105 | H162: 0 | J162: KSOIL^.5*MKRATE | K162: -0.1675288894 | L162: 0.027783 | M162: -6.030002 | N162: 0 | O162: -0.1558871544 | Q162: Added Profit in $/acre | T162: =+(T160-T161)*U145/IF(W142,1,1)-(T156-T158)*W147-IF(T158=0,IF(T156=0,0,U153),IF(T156=0,IF(T158>0,-U153,0))) -> 0.07959225296 | U162: =+(U160-U161)*U145/IF(W142,1,1)-(U156-U158)*W147-IF(U158=0,IF(U156=0,0,U153),IF(U156=0,IF(U158>0,-U153,0))) -> 0.09905518224 | V162: =+(V160-V161)*U145/IF(W142,1,1)-(V156-V158)*W147-IF(V158=0,IF(V156=0,0,U153),IF(V156=0,IF(V158>0,-U153,0))) -> 0.0009784118391 | W162: =+(U160-W160)*U145/IF(W142,1,1)-(U156-W156)*W147-IF(W156=0,IF(U156=0,0,U153),IF(U156=0,IF(W156>0,-U153,0))) -> 37.32873032 | BI162: KSOIL*KRATE | BJ162: =IF($W$142,BU169,BU162) -> 0.0001690043633 | BK162: -8.278657192e-07 | BL162: 1.119479919e-06 | BM162: -2.811297293e-05 | BN162: 1.391642103e-07 | BO162: -5.623533231e-09 | BP162: =+BL155 -> 7295.545431 | BQ162: =+BL156 -> 6212.780373 | BR162: =+BL157 -> 4341.192875 | BU162: 0.0001463319492 | BV162: -6.669937426e-07 | BW162: 9.69298516e-07 | BX162: -2.434153796e-05 | BY162: 1.121216344e-07 | BZ162: -4.530760713e-09
A163: 162 | B163: 100 | C163: 160 | D163: 2009 | E163: 46 | F163: 53 | G163: 115 | H163: 0 | J163: KSOIL^.5*MKRATE^2 | K163: 0.0005607463354 | L163: 0.000139 | M163: 4.045355 | N163: 0.0001 | O163: 0.0004855206257 | Q163: Yield change: | T163: =+T161-T160 -> 9.271417533 | U163: =+U161-U160 -> -9.877095186 | V163: =+V161-V160 -> 0.8721858141 | W163: =+W160-U160 -> 93.46262415 | BI163: KSOIL^0.5*KRATE | BJ163: =IF($W$142,BU170,BU163) -> -0.005006588313 | BK163: 2.394802559e-05 | BL163: -2.811297293e-05 | BM163: 0.0007718705403 | BN163: -3.6585277e-06 | BO163: 1.314188741e-07 | BP163: =+BM155 -> 718.8514513 | BQ163: =+BM156 -> 584.4492148 | BR163: =+BM157 -> 391.4321794 | BU163: -0.004334940305 | BV163: 1.929441314e-05 | BW163: -2.434153796e-05 | BX163: 0.0006683219204 | BY163: -2.947597692e-06 | BZ163: 1.058813822e-07
A164: 163 | B164: 78.63397548 | C164: 0 | D164: 2010 | E164: 47 | F164: 1 | G164: 73 | H164: 0 | J164: KSOIL*MKRATE^2 | K164: -1.868703455e-05 | L164: 5.73e-06 | M164: -3.263828 | N164: 0.0012 | O164: -1.618011592e-05 | Q164: K rate | R164: =CONCATENATE("Est. Yield (STK = ",U151,")") -> Est. Yield (STK = 113) | S164: =CONCATENATE("Est. Yield (STK = ",U151-Y151,")") -> Est. Yield (STK = 103) | T164: =CONCATENATE("Est. Yield (STK = ",U151+Y151,")") -> Est. Yield (STK = 123) | AA164: Year | AB164: Potash Fertilizer Price in $/ton | AC164: Soybean Price in $/bu | AD164: Soybean Yield in bu/acre | AE164: $/kg Ps | AF164: $/Mg K | AG164: Y in kg/ha | AI164: $/kg K | BI164: KSOIL0.5*KRATE^2 | BJ164: =IF($W$142,BU171,BU164) -> 2.254190923e-05 | BK164: -1.166446549e-07 | BL164: 1.391642103e-07 | BM164: -3.6585277e-06 | BN164: 1.92140827e-08 | BO164: -7.413790048e-10 | BP164: =+BN155 -> 50916.63515 | BQ164: =+BN156 -> 32133.22665 | BR164: =+BN157 -> 13815.3056 | BU164: 1.81615352e-05 | BV164: -8.744748486e-08 | BW164: 1.121216344e-07 | BX164: -2.947597692e-06 | BY164: 1.440463094e-08 | BZ164: -5.558054018e-10
A165: 164 | B165: 95.79684764 | C165: 45 | D165: 2010 | E165: 47 | F165: 22 | G165: 73 | H165: 0 | Q165: 0 | R165: =IF((+$K$156+$K$157*$U$151+$K$158*$U$151^0.5+$K$159*Q165+$K$160*Q165^2+$K$161*$U$151*Q165+$K$162*$U$151^0.5*Q165+$K$163*$U$151^0.5*Q165^2+$K$164*$U$151*Q165^2)*$W$149>$U$149,$U$149,(+$K$156+$K$157*$U$151+$K$158*$U$151^0.5+$K$159*Q165+$K$160*Q165^2+$K$161*$U$151*Q165+$K$162*$U$151^0.5*Q165+$K$163*$U$151^0.5*Q165^2+$K$164*$U$151*Q165^2)*$W$149) -> 3835.858526 | S165: =IF((+$K$156+$K$157*($U$151-$Y$151)+$K$158*($U$151-$Y$151)^0.5+$K$159*Q165+$K$160*Q165^2+$K$161*($U$151-$Y$151)*Q165+$K$162*($U$151-$Y$151)^0.5*Q165+$K$163*($U$151-$Y$151)^0.5*Q165^2+$K$164*($U$151-$Y$151)*Q165^2)*$W$149>$U$149,$U$149,(+$K$156+$K$157*($U$151-$Y$151)+$K$158*($U$151-$Y$151)^0.5+$K$159*Q165+$K$160*Q165^2+$K$161*($U$151-$Y$151)*Q165+$K$162*($U$151-$Y$151)^0.5*Q165+$K$163*($U$151-$Y$151)^0.5*Q165^2+$K$164*($U$151-$Y$151)*Q165^2)*$W$149) -> 3763.35733 | T165: =IF((+$K$156+$K$157*($U$151+$Y$151)+$K$158*($U$151+$Y$151)^0.5+$K$159*Q165+$K$160*Q165^2+$K$161*($U$151+$Y$151)*Q165+$K$162*($U$151+$Y$151)^0.5*Q165+$K$163*($U$151+$Y$151)^0.5*Q165^2+$K$164*($U$151+$Y$151)*Q165^2)*$W$149>$U$149,$U$149,(+$K$156+$K$157*($U$151+$Y$151)+$K$158*($U$151+$Y$151)^0.5+$K$159*Q165+$K$160*Q165^2+$K$161*($U$151+$Y$151)*Q165+$K$162*($U$151+$Y$151)^0.5*Q165+$K$163*($U$151+$Y$151)^0.5*Q165^2+$K$164*($U$151+$Y$151)*Q165^2)*$W$149) -> 3898.449564 | U165: =ROUNDUP((MAX(BJ175:BJ548,U149)+IF(W142,500,10))/10,0)*10 -> 4720 | AA165: 2009 | AB165: =26.1*20 -> 522 | AC165: 9.66 | AD165: 39 | AE165: =+AC165/60*2204.62/1000 -> 0.35494382 | AF165: =+AB165/2000*2204 -> 575.244 | AG165: =+(AD165*60*0.4536)*2.4711 -> 2622.884846 | AI165: =+AF165/1000/0.49809078131038 -> 1.154897905 | AR165: =CONCATENATE("Obs. Yields (",U151-Y151," < STK < ",U151+Y151,")") -> Obs. Yields (103 < STK < 123) | BI165: KSOIL*KRATE^2 | BJ165: =IF($W$142,BU172,BU165) -> -7.220134567e-07 | BK165: 3.946297707e-09 | BL165: -5.623533231e-09 | BM165: 1.314188741e-07 | BN165: -7.413790048e-10 | BO165: 3.27813103e-11 | BP165: =+BO155 -> 516747.409 | BQ165: =+BO156 -> 341580.8847 | BR165: =+BO157 -> 153219.1511 | BU165: -5.817108337e-07 | BV165: 2.958505121e-09 | BW165: -4.530760713e-09 | BX165: 1.058813822e-07 | BY165: -5.558054018e-10 | BZ165: 2.457586366e-11
A166: 165 | B166: 100 | C166: 90 | D166: 2010 | E166: 47 | F166: 39 | G166: 73 | H166: 0 | K166: Effects Specification | Q166: 2 | R166: =IF((+$K$156+$K$157*$U$151+$K$158*$U$151^0.5+$K$159*Q166+$K$160*Q166^2+$K$161*$U$151*Q166+$K$162*$U$151^0.5*Q166+$K$163*$U$151^0.5*Q166^2+$K$164*$U$151*Q166^2)*$W$149>$U$149,$U$149,(+$K$156+$K$157*$U$151+$K$158*$U$151^0.5+$K$159*Q166+$K$160*Q166^2+$K$161*$U$151*Q166+$K$162*$U$151^0.5*Q166+$K$163*$U$151^0.5*Q166^2+$K$164*$U$151*Q166^2)*$W$149) -> 3844.845757 | S166: =IF((+$K$156+$K$157*($U$151-$Y$151)+$K$158*($U$151-$Y$151)^0.5+$K$159*Q166+$K$160*Q166^2+$K$161*($U$151-$Y$151)*Q166+$K$162*($U$151-$Y$151)^0.5*Q166+$K$163*($U$151-$Y$151)^0.5*Q166^2+$K$164*($U$151-$Y$151)*Q166^2)*$W$149>$U$149,$U$149,(+$K$156+$K$157*($U$151-$Y$151)+$K$158*($U$151-$Y$151)^0.5+$K$159*Q166+$K$160*Q166^2+$K$161*($U$151-$Y$151)*Q166+$K$162*($U$151-$Y$151)^0.5*Q166+$K$163*($U$151-$Y$151)^0.5*Q166^2+$K$164*($U$151-$Y$151)*Q166^2)*$W$149) -> 3774.448398 | T166: =IF((+$K$156+$K$157*($U$151+$Y$151)+$K$158*($U$151+$Y$151)^0.5+$K$159*Q166+$K$160*Q166^2+$K$161*($U$151+$Y$151)*Q166+$K$162*($U$151+$Y$151)^0.5*Q166+$K$163*($U$151+$Y$151)^0.5*Q166^2+$K$164*($U$151+$Y$151)*Q166^2)*$W$149>$U$149,$U$149,(+$K$156+$K$157*($U$151+$Y$151)+$K$158*($U$151+$Y$151)^0.5+$K$159*Q166+$K$160*Q166^2+$K$161*($U$151+$Y$151)*Q166+$K$162*($U$151+$Y$151)^0.5*Q166+$K$163*($U$151+$Y$151)^0.5*Q166^2+$K$164*($U$151+$Y$151)*Q166^2)*$W$149) -> 3905.625911 | U166: =ROUNDDOWN((S165-IF(W142,500,10))/10,0)*10 -> 3260 | AA166: 2010 | AB166: =23*20 -> 460 | AC166: 10.9 | AD166: 39.5 | AE166: =+AC166/60*2204.62/1000 -> 0.4005059667 | AF166: =+AB166/2000*2204 -> 506.92 | AG166: =+(AD166*60*0.4536)*2.4711 -> 2656.511575 | AI166: =+AF166/1000/0.49809078131038 -> 1.017726123 | AR166: =CONCATENATE("Estimated Yield Response to K Fertilizer and Profit-Maximizing Application Rates for a Range of Initial Soil-Test K Values (STK) at Specified Yield Potential") -> Estimated Yield Response to K Fertilizer and Profit-Maximizing Application Rates for a Range of Initial Soil-Test K Values (STK) at Specified Yield Potential | BW166: Metric
A167: 166 | B167: 92.92543021 | C167: 0 | D167: 2010 | E167: 49 | F167: 2 | G167: 73 | H167: 0 | M167: S.D. | N167: Rho | Q167: 5 | R167: 3858.060244 | S167: 3790.76612 | T167: 3916.169192 | AA167: 2011 | AB167: =29.19*20 -> 583.8 | AC167: 12.3 | AD167: 42.2 | AE167: 0.4519471 | AF167: 643.3476 | AG167: 2838.095911 | AI167: 1.291627198 | BU167: 0.0346500498 | BV167: -0.0001608797525 | BW167: 0.0001690043633 | BX167: -0.005006588313 | BY167: 2.254190923e-05 | BZ167: -7.220134567e-07
A168: 167 | B168: 98.47036329 | C168: 40 | D168: 2010 | E168: 49 | F168: 14 | G168: 109 | H168: 0 | Q168: 7 | R168: 3866.69233 | S168: 3801.432016 | T168: 3923.050552 | AA168: 2012 | AB168: =29.8*20 -> 596 | AC168: 14.3 | AD168: 48.3 | AE168: 0.5254344333 | AF168: 656.792 | AG168: 3248.342002 | AI168: 1.318619064 | BU168: -0.0001608797525 | BV168: 7.910609198e-07 | BW168: -8.278657192e-07 | BX168: 2.394802559e-05 | BY168: -1.166446549e-07 | BZ168: 3.946297707e-09
A169: 168 | B169: 100 | C169: 80 | D169: 2010 | E169: 49 | F169: 31 | G169: 115 | H169: 0 | J169: Period random | M169: 1.143795 | N169: 0.0549 | Q169: 10 | R169: 3879.374102 | S169: 3817.11198 | T169: 3933.151351 | AA169: 2013 | AB169: =23.75*20 -> 475 | AC169: 13.1 | AD169: 46.4 | AE169: 0.4813420333 | AF169: 523.45 | AG169: 3120.560433 | AI169: 1.050912845 | BU169: 0.0001690043633 | BV169: -8.278657192e-07 | BW169: 1.119479919e-06 | BX169: -2.811297293e-05 | BY169: 1.391642103e-07 | BZ169: -5.623533231e-09
A170: 169 | B170: 93.30783939 | C170: 120 | D170: 2010 | E170: 49 | F170: 41 | G170: 142 | H170: 0 | J170: Idiosyncratic random | M170: 4.746554 | N170: 0.9451 | Q170: 15 | R170: 3899.8001 | S170: 3842.394911 | T170: 3949.396041 | AA170: 2014 | AB170: =23.6*20 -> 472 | AC170: 10.6 | AD170: 51.9 | AE170: 0.3894828667 | AF170: 520.144 | AG170: 3490.454449 | AI170: 1.044275501 | BU170: -0.005006588313 | BV170: 2.394802559e-05 | BW170: -2.811297293e-05 | BX170: 0.0007718705403 | BY170: -3.6585277e-06 | BZ170: 1.314188741e-07
A171: 170 | B171: 96.94072658 | C171: 160 | D171: 2010 | E171: 49 | F171: 52 | G171: 151 | H171: 0 | Q171: 30 | R171: 3955.750936 | S171: 3911.866124 | T171: 3993.705295 | AA171: 2015 | AB171: =21.27*20 -> 425.4 | AC171: 9.46 | AD171: 51.4 | AE171: 0.3475950867 | AF171: 468.7908 | AG171: 3456.827721 | AI171: 0.9411754194 | BU171: 2.254190923e-05 | BV171: -1.166446549e-07 | BW171: 1.391642103e-07 | BX171: -3.6585277e-06 | BY171: 1.92140827e-08 | BZ171: -7.413790048e-10
A172: 171 | B172: 74.32432432 | C172: 0 | D172: 2011 | E172: 51 | F172: 1 | G172: 167 | H172: 0 | K172: Weighted Statistics | Q172: 45 | R172: 4003.711034 | S172: 3971.770971 | T172: 4031.377327 | AA172: 2016 | AB172: =16.97*20 -> 339.4 | AC172: 9.83 | AD172: 50 | AE172: 0.3611902433 | AF172: 374.0188 | AG172: 3362.67288 | AI172: 0.7509048833 | BP172: 0.9305090901 | BQ172: convert lbs of K20/acre to kg K ha-1 | BU172: -7.220134567e-07 | BV172: 3.946297707e-09 | BW172: -5.623533231e-09 | BX172: 1.314188741e-07 | BY172: -7.413790048e-10 | BZ172: 3.27813103e-11
A173: 172 | B173: 91.89189189 | C173: 40 | D173: 2011 | E173: 51 | F173: 14 | G173: 57 | H173: 0 | Q173: 60 | R173: 4043.680395 | S173: 4022.10945 | T173: 4062.412137 | AA173: 2017 | AB173: =18.98*20 -> 379.6 | AC173: 9.77 | AD173: 52.9 | AE173: 0.3589856233 | AF173: 418.3192 | AG173: 3557.707907 | AI173: 0.8398452967 | BJ173: Actual RelYld Obs Converted to Yield | BN173: Min Yield
A174: 173 | B174: 95.94594595 | C174: 80 | D174: 2011 | E174: 51 | F174: 31 | G174: 63 | H174: 0 | J174: R-squared | K174: 0.611528 | L174: Mean dependent var | N174: 60.15285 | Q174: 75 | R174: 4075.659018 | S174: 4062.881562 | T174: 4086.809724 | AA174: 2018 | AB174: =20*20 -> 400 | AC174: 8.81 | AD174: 53.2 | AE174: 0.3237117033 | AF174: 440.8 | AG174: 3577.883944 | AI174: 0.8849792378 | BI174: RelYld | BJ174: Yield | BK174: Krate | BL174: Ksoil | BN174: =MIN(BN175:BN548) -> 999 | BP174: Mkrate
A175: 174 | B175: 98.64864865 | C175: 120 | D175: 2011 | E175: 51 | F175: 41 | G175: 72 | H175: 0 | J175: Adjusted R-squared | K175: 0.603013 | L175: S.D. dependent var | N175: 8.607961 | Q175: 90 | R175: 4099.646903 | S175: 4094.087306 | T175: 4104.570088 | AA175: Avg. | AB175: =AVERAGE($AB$165:$AB$174) -> 465.32 | AC175: =AVERAGE($AC$165:$AC$174) -> 10.873 | AD175: =AVERAGE($AD$165:$AD$174) -> 47.48 | AE175: =+AC175/60*2204.62/1000 -> 0.3995138877 | AF175: 512.78264 | AG175: =+(AD175*60*0.4536)*2.4711 -> 3193.194167 | AI175: 1.029496347 | BI175: =_xlfn.NUMBERVALUE(IF(AND($G2>=($U$151-$Y$151),$G2<=($U$151+$Y$151)),B2,"")) -> 0 | BJ175: =_xlfn.NUMBERVALUE(IFERROR(+BI175*$W$149,"")) -> 0 | BK175: =_xlfn.NUMBERVALUE(IF(AND($G2>=($U$151-$Y$151),$G2<=($U$151+$Y$151)),C2,"")) -> 0 | BL175: =_xlfn.NUMBERVALUE(IF(AND($G2>=($U$151-$Y$151),$G2<=($U$151+$Y$151)),G2,"")) -> 0 | BN175: =IF(BJ175=0,999,BJ175) -> 999 | BP175: =+BK175*$BP$172 -> 0
A176: 175 | B176: 100 | C176: 160 | D176: 2011 | E176: 51 | F176: 52 | G176: 83 | H176: 0 | J176: S.E. of regression | K176: 4.745963 | L176: Sum squared resid | N176: 8221.32 | Q176: 105 | R176: 4115.644051 | S176: 4115.726684 | T176: 4115.693231 | AA176: Min. | AB176: =MIN($AB$165:$AB$174) -> 339.4 | AC176: =MIN($AC$165:$AC$174) -> 8.81 | AD176: =MIN($AD$165:$AD$174) -> 39 | BI176: =_xlfn.NUMBERVALUE(IF(AND($G3>=($U$151-$Y$151),$G3<=($U$151+$Y$151)),B3,"")) -> 0 | BJ176: =_xlfn.NUMBERVALUE(IFERROR(+BI176*$W$149,"")) -> 0 | BK176: =_xlfn.NUMBERVALUE(IF(AND($G3>=($U$151-$Y$151),$G3<=($U$151+$Y$151)),C3,"")) -> 0 | BL176: =_xlfn.NUMBERVALUE(IF(AND($G3>=($U$151-$Y$151),$G3<=($U$151+$Y$151)),G3,"")) -> 0 | BN176: =IF(BJ176=0,999,BJ176) -> 999 | BP176: =+BK176*$BP$172 -> 0
A177: 176 | B177: 89.65517241 | C177: 0 | D177: 2011 | E177: 53 | F177: 2 | G177: 89 | H177: 0 | J177: F-statistic | K177: 71.82226 | L177: Durbin-Watson stat | N177: 1.923694 | Q177: 120 | R177: 4123.650461 | S177: 4127.799694 | T177: 4120.17915 | AA177: Max. | AB177: =MAX($AB$165:$AB$174) -> 596 | AC177: =MAX($AC$165:$AC$174) -> 14.3 | AD177: =MAX($AD$165:$AD$174) -> 53.2 | BI177: 0 | BJ177: 0 | BK177: 0 | BL177: 0 | BN177: 999 | BP177: 0
A178: 177 | B178: 98.27586207 | C178: 40 | D178: 2011 | E178: 53 | F178: 15 | G178: 113 | H178: 0 | J178: Prob(F-statistic) | K178: 0 | Q178: 135 | R178: 4123.666134 | S178: 4130.306336 | T178: 4118.027848 | BI178: 0 | BJ178: 0 | BK178: 0 | BL178: 0 | BN178: 999 | BP178: 0
A179: 178 | B179: 100 | C179: 80 | D179: 2011 | E179: 53 | F179: 32 | G179: 120 | H179: 0 | Q179: 150 | R179: 4115.691069 | S179: 4123.246612 | T179: 4109.239323 | BI179: 0 | BJ179: 0 | BK179: 0 | BL179: 0 | BN179: 999 | BP179: 0
A180: 179 | B180: 94.82758621 | C180: 120 | D180: 2011 | E180: 53 | F180: 42 | G180: 126 | H180: 0 | K180: Unweighted Statistics | Q180: 165 | R180: 4099.725266 | S180: 4106.62052 | T180: 4093.813575 | BI180: 0 | BJ180: 0 | BK180: 0 | BL180: 0 | BN180: 999 | BP180: 0
A181: 180 | B181: 93.10344828 | C181: 160 | D181: 2011 | E181: 53 | F181: 53 | G181: 143 | H181: 0 | Q181: 180 | R181: 4075.768726 | S181: 4080.428061 | T181: 4071.750605 | BI181: 0 | BJ181: 0 | BK181: 0 | BL181: 0 | BN181: 999 | BP181: 0
A182: 181 | B182: 92.06349206 | C182: 0 | D182: 2012 | E182: 57 | F182: 1 | G182: 164 | H182: 0 | J182: R-squared | K182: 0.605919 | L182: Mean dependent var | N182: 93.9008 | R182: 3835.858526 | S182: 3763.35733 | T182: 3898.449564 | BI182: 0 | BJ182: 0 | BK182: 0 | BL182: 0 | BN182: 999 | BP182: 0
A183: 182 | B183: 98.41269841 | C183: 40 | D183: 2012 | E183: 57 | F183: 14 | G183: 105 | H183: 0 | J183: Sum squared resid | K183: 8692.296 | L183: Durbin-Watson stat | N183: 1.870458 | R183: 3835.858526 | S183: 3763.35733 | T183: 3898.449564 | BI183: 0 | BJ183: 0 | BK183: 0 | BL183: 0 | BN183: 999 | BP183: 0
A184: 183 | B184: 100 | C184: 80 | D184: 2012 | E184: 57 | F184: 31 | G184: 126 | H184: 0 | Q184: Disclaimer: This software is provided ‘as is’ and without warranties as to performance or merchantability. Further, statements may have been made to you about this software, and they do not constitute warranties and shall not be relied upon by the user to use the program or act on its results. This program is provided without any expressed or implied warranties whatsoever. Because the diversity of conditions and hardware under which this program may be used, no warranty of merchantability or warranty of fitness for a particular purpose is offered. The user is advised to test the program thoroughly before relying on it. The user assumes the entire risk of using the program. The authors will not be liable for any claim or damage brought against the user by any third party, nor will the authors be liable for any consequential, indirect, or special damages suffered by the user as a result of the software. Results pertain to silt loam soils common in major rice producing regions of the humid mid-Southern U.S. | BI184: 0 | BJ184: 0 | BK184: 0 | BL184: 0 | BN184: 999 | BP184: 0
A185: 184 | B185: 96.82539683 | C185: 120 | D185: 2012 | E185: 57 | F185: 41 | G185: 142 | H185: 0 | BI185: 0 | BJ185: 0 | BK185: 0 | BL185: 0 | BN185: 999 | BP185: 0
A186: 185 | B186: 96.82539683 | C186: 160 | D186: 2012 | E186: 57 | F186: 52 | G186: 156 | H186: 0 | BI186: 0 | BJ186: 0 | BK186: 0 | BL186: 0 | BN186: 999 | BP186: 0
A187: 186 | B187: 96.875 | C187: 0 | D187: 2012 | E187: 58 | F187: 2 | G187: 185 | H187: 0 | R187: Potash fertilizer needed @ RY = 100 if possible or K max or zero if yield max at negative K: | T187: =IF((IF(W142,K159,O159)+IF(W142,K161,O161)*($U$151+$Y$151)+IF(W142,K162,O162)*($U$151+$Y$151)^0.5)/(-2*(IF(W142,K160,O160)+IF(W142,K163,O163)*($U$151+$Y$151)^0.5+IF(W142,K164,O164)*($U$151+$Y$151)))>$Y$149,$Y$149,(IF(W142,K159,O159)+IF(W142,K161,O161)*($U$151+$Y$151)+IF(W142,K162,O162)*($U$151+$Y$151)^0.5)/(-2*(IF(W142,K160,O160)+IF(W142,K163,O163)*($U$151+$Y$151)^0.5+IF(W142,K164,O164)*($U$151+$Y$151)))) -> 122.6380958 | U187: =IF((IF(W142,K159,O159)+IF(W142,K161,O161)*($U$151)+IF(W142,K162,O162)*($U$151)^0.5)/(-2*(IF(W142,K160,O160)+IF(W142,K163,O163)*($U$151)^0.5+IF(W142,K164,O164)*($U$151)))>$Y$149,$Y$149,(IF(W142,K159,O159)+IF(W142,K161,O161)*($U$151)+IF(W142,K162,O162)*($U$151)^0.5)/(-2*(IF(W142,K160,O160)+IF(W142,K163,O163)*($U$151)^0.5+IF(W142,K164,O164)*($U$151)))) -> 127.5294201 | V187: =IF((IF(W142,K159,O159)+IF(W142,K161,O161)*($U$151-$Y$151)+IF(W142,K162,O162)*($U$151-$Y$151)^0.5)/(-2*(IF(W142,K160,O160)+IF(W142,K163,O163)*($U$151-$Y$151)^0.5+IF(W142,K164,O164)*($U$151-$Y$151)))>$Y$149,$Y$149,(IF(W142,K159,O159)+IF(W142,K161,O161)*($U$151-$Y$151)+IF(W142,K162,O162)*($U$151-$Y$151)^0.5)/(-2*(IF(W142,K160,O160)+IF(W142,K163,O163)*($U$151-$Y$151)^0.5+IF(W142,K164,O164)*($U$151-$Y$151)))) -> 131.4303992 | BI187: 0 | BJ187: 0 | BK187: 0 | BL187: 0 | BN187: 999 | BP187: 0
A188: 187 | B188: 100 | C188: 80 | D188: 2012 | E188: 58 | F188: 32 | G188: 72 | H188: 0 | T188: =IF(T187<0,0,IFERROR((SQRT(T191^2+4*T192*T190)-T191)/(2*T192),$Y$149)) -> 167.4916362 | U188: =IF(U187<0,0,IFERROR((SQRT(U191^2+4*U192*U190)-U191)/(2*U192),$Y$149)) -> 167.4916362 | V188: =IF(V187<0,0,IFERROR((SQRT(V191^2+4*V192*V190)-V191)/(2*V192),$Y$149)) -> 167.4916362 | BI188: 0 | BJ188: 0 | BK188: 0 | BL188: 0 | BN188: 999 | BP188: 0
A189: 188 | B189: 89.85507246 | C189: 0 | D189: 2012 | E189: 59 | F189: 3 | G189: 72 | H189: 0 | BI189: 0 | BJ189: 0 | BK189: 0 | BL189: 0 | BN189: 999 | BP189: 0
A190: 189 | B190: 100 | C190: 80 | D190: 2012 | E190: 59 | F190: 33 | G190: 72 | H190: 0 | S190: c | T190: =100-$K$156-$K$157*(U151+Y151)-$K$158*(U151+Y151)^0.5 -> 7.59778232 | U190: =100-$K$156-$K$157*U151-$K$158*U151^0.5 -> 9.081333814 | V190: =100-$K$156-$K$157*(U151-Y151)-$K$158*(U151-Y151)^0.5 -> 10.79977886 | BI190: 0 | BJ190: 0 | BK190: 0 | BL190: 0 | BN190: 999 | BP190: 0
A191: 190 | B191: 95.83333333 | C191: 0 | D191: 2012 | E191: 60 | F191: 4 | G191: 72 | H191: 0 | S191: a | T191: =IF(W142,K159,O159)+IF(W142,K161,O161)*(U151+Y151)+IF(W142,K162,O162)*(U151+Y151)^0.5 -> 0.08574715663 | U191: =IF(W142,K159,O159)+IF(W142,K161,O161)*(U151)+IF(W142,K162,O162)*(U151)^0.5 -> 0.107350782 | V191: =IF(W142,K159,O159)+IF(W142,K161,O161)*(U151-Y151)+IF(W142,K162,O162)*(U151-Y151)^0.5 -> 0.1324496555 | BI191: 0 | BJ191: 0 | BK191: 0 | BL191: 0 | BN191: 999 | BP191: 0
A192: 191 | B192: 95.83333333 | C192: 45 | D192: 2012 | E192: 60 | F192: 22 | G192: 95 | H192: 0 | S192: b | T192: =+IF(W142,K160,O160)+IF(W142,K163,O163)*(U151+Y151)^0.5+IF(W142,K164,O164)*(U151+Y151) -> -0.0003495942924 | U192: =+IF(W142,K160,O160)+IF(W142,K163,O163)*(U151)^0.5+IF(W142,K164,O164)*(U151) -> -0.0004208863412 | V192: =+IF(W142,K160,O160)+IF(W142,K163,O163)*(U151-Y151)^0.5+IF(W142,K164,O164)*(U151-Y151) -> -0.0005038775514 | BI192: 0 | BJ192: 0 | BK192: 0 | BL192: 0 | BN192: 999 | BP192: 0
A193: 192 | B193: 100 | C193: 90 | D193: 2012 | E193: 60 | F193: 39 | G193: 95 | H193: 0 | BI193: 0 | BJ193: 0 | BK193: 0 | BL193: 0 | BN193: 999 | BP193: 0
A194: 193 | B194: 91.75572519 | C194: 0 | D194: 2012 | E194: 61 | F194: 5 | G194: 95 | H194: 0 | BI194: 0 | BJ194: 0 | BK194: 0 | BL194: 0 | BN194: 999 | BP194: 0
A195: 194 | B195: 99.84732824 | C195: 40 | D195: 2012 | E195: 61 | F195: 15 | G195: 64 | H195: 0 | BI195: 0 | BJ195: 0 | BK195: 0 | BL195: 0 | BN195: 999 | BP195: 0
A196: 195 | B196: 97.40458015 | C196: 80 | D196: 2012 | E196: 61 | F196: 34 | G196: 73 | H196: 0 | BI196: 0 | BJ196: 0 | BK196: 0 | BL196: 0 | BN196: 999 | BP196: 0
A197: 196 | B197: 100 | C197: 120 | D197: 2012 | E197: 61 | F197: 42 | G197: 78 | H197: 0 | BI197: 0 | BJ197: 0 | BK197: 0 | BL197: 0 | BN197: 999 | BP197: 0
A198: 197 | B198: 98.77862595 | C198: 160 | D198: 2012 | E198: 61 | F198: 53 | G198: 82 | H198: 0 | BI198: 0 | BJ198: 0 | BK198: 0 | BL198: 0 | BN198: 999 | BP198: 0
A199: 198 | B199: 72.95081967 | C199: 0 | D199: 2013 | E199: 62 | F199: 1 | G199: 91 | H199: 0 | BI199: 0 | BJ199: 0 | BK199: 0 | BL199: 0 | BN199: 999 | BP199: 0
A200: 199 | B200: 95.49180328 | C200: 40 | D200: 2013 | E200: 62 | F200: 14 | G200: 64 | H200: 0 | BI200: 0 | BJ200: 0 | BK200: 0 | BL200: 0 | BN200: 999 | BP200: 0
... 348 more rows

Sheet K on Soybean
B1: RELYLD | C1: KRATE | D1: YEAR | E1: SITE | F1: YEAROB | G1: KSOIL | H1: DCLAY
A2: 1 | B2: 90.04914005 | C2: 0 | D2: 2004 | E2: 1 | F2: 1 | G2: 101 | H2: 0 | Q2: Rice Price | U2: 10 | V2: $/cwt | Y2: Conventional
A3: 2 | B3: 91.76904177 | C3: 40 | D3: 2004 | E3: 1 | F3: 14 | G3: 101 | H3: 0 | J3: Dependent Variable: RELYLD | Y3: Clearfield
A4: 3 | B4: 89.31203931 | C4: 80 | D4: 2004 | E4: 1 | F4: 31 | G4: 101 | H4: 0 | J4: Method: Panel EGLS (Period random effects) | Q4: Cost of K (0-0-60) | U4: 450 | V4: $/ton
A5: 4 | B5: 100 | C5: 120 | D5: 2004 | E5: 1 | F5: 41 | G5: 101 | H5: 0 | J5: Date: 03/12/19 Time: 15:57 | Y5: Clay
A6: 5 | B6: 96.92874693 | C6: 160 | D6: 2004 | E6: 1 | F6: 52 | G6: 101 | H6: 0 | J6: Sample: 2001 2018 IF KRATE<>135 | Q6: How much K do you currently apply per acre? | U6: 25 | V6: lbs/acre | Y6: Loam
A7: 6 | B7: 77.50865052 | C7: 0 | D7: 2004 | E7: 3 | F7: 2 | G7: 85 | H7: 0 | J7: Periods included: 17
A8: 7 | B8: 82.52595156 | C8: 30 | D8: 2004 | E8: 3 | F8: 12 | G8: 86 | H8: 0 | J8: Cross-sections included: 79 | Q8: What yield do you expect at that application rate? | U8: 180 | V8: bu/acre | Y8: Yes
A9: 8 | B9: 100 | C9: 60 | D9: 2004 | E9: 3 | F9: 23 | G9: 85 | H9: 0 | J9: Total panel (unbalanced) observations: 440 | Y9: No
A10: 9 | B10: 99.30795848 | C10: 90 | D10: 2004 | E10: 3 | F10: 39 | G10: 89 | H10: 0 | J10: Wallace and Hussain estimator of component variances | Q10: Do you use conventional or hybrid seed? | U10: Conventional
A11: 10 | B11: 96.71280277 | C11: 120 | D11: 2004 | E11: 3 | F11: 42 | G11: 95 | H11: 0
A12: 11 | B12: 69.81707317 | C12: 0 | D12: 2004 | E12: 4 | F12: 3 | G12: 73 | H12: 0 | J12: Variable | K12: Coefficient | L12: Std. Error | M12: t-Statistic | N12: Prob. | Q12: What is your soil test K? | U12: 110
A13: 12 | B13: 83.53658537 | C13: 30 | D13: 2004 | E13: 4 | F13: 13 | G13: 80 | H13: 0
A14: 13 | B14: 87.04268293 | C14: 60 | D14: 2004 | E14: 4 | F14: 24 | G14: 78 | H14: 0 | J14: C | K14: 85.53190393 | L14: 1.088768197 | M14: 78.55841503 | N14: 1.523340846e-257 | Q14: Does the field have mostly clayey or loamy soil texture? | U14: Loam
A15: 14 | B15: 91.61585366 | C15: 90 | D15: 2004 | E15: 4 | F15: 40 | G15: 79 | H15: 0 | J15: DRREC | K15: 1.821873436 | L15: 0.6169528489 | M15: 2.953018921 | N15: 0.00331893321
A16: 15 | B16: 100 | C16: 120 | D16: 2004 | E16: 4 | F16: 43 | G16: 85 | H16: 0 | J16: KRATE | K16: 0.1546276126 | L16: 0.01680227412 | M16: 9.202778833 | N16: 1.519289268e-18 | Q16: Do you operate South of I-40? | U16: No
A17: 16 | B17: 74.81203008 | C17: 0 | D17: 2005 | E17: 5 | F17: 1 | G17: 71 | H17: 0 | J17: KRATE^2 | K17: -0.000421958113 | L17: 8.710848e-05 | M17: -4.84405322 | N17: 1.77718926e-06
A18: 17 | B18: 84.02255639 | C18: 30 | D18: 2005 | E18: 5 | F18: 12 | G18: 70 | H18: 0 | J18: DCLFIELD | K18: 2.254139283 | L18: 0.9265560337 | M18: 2.432814855 | N18: 0.01538783875 | Q18: Predicted RELYLD based on above questions: | U18: =+K14+IF($U$16="Yes",K15,0)+$U$6*($U$12*K21+K16+IF($U$10="Clearfield",K23,0))+$U$6^2*(K17+IF($U$14="Clay",K22))+IF($U$14="Clay",K20,0)+IF($U$10="Clearfield",K18,0)+$U$12*K19 -> 93.32878185
A19: 18 | B19: 89.47368421 | C19: 60 | D19: 2005 | E19: 5 | F19: 23 | G19: 81 | H19: 0 | J19: KSOIL | K19: 0.04813541892 | L19: 0.009622753276 | M19: 5.00225014 | N19: 8.265255539e-07
A20: 19 | B20: 94.54887218 | C20: 90 | D20: 2005 | E20: 5 | F20: 39 | G20: 92 | H20: 0 | J20: DCLAY | K20: -3.267803257 | L20: 1.636446995 | M20: -1.996889155 | N20: 0.04646560705 | Q20: Yield/RELYLD | U20: =+U8/U18 -> 1.928665482
A21: 20 | B21: 100 | C21: 120 | D21: 2005 | E21: 5 | F21: 41 | G21: 91 | H21: 0 | J21: KSOIL*KRATE | K21: -0.0003999944219 | L21: 8.797209869e-05 | M21: -4.546832779 | N21: 7.086112312e-06
A22: 21 | B22: 70.80536913 | C22: 0 | D22: 2005 | E22: 6 | F22: 2 | G22: 65 | H22: 0 | J22: DCLAY*KRATE^2 | Q22: dRELYLD/dKRATE | U22: =+K16+U12*K21+IF(U10="Clearfield",K23,0)+2*U6*(K17+IF(U14="Clay",K22)) -> 0.08953032052 | W22: =+K16+U12*K21+IF(U10="Clearfield",K23,0)+2*U28*(K17+IF(U14="Clay",K22)) -> 0.0431645616
A23: 22 | B23: 81.04026846 | C23: 30 | D23: 2005 | E23: 6 | F23: 13 | G23: 68 | H23: 0 | J23: DCLFIELD*KRATE | K23: -0.02087856875 | L23: 0.009566473542 | M23: -2.182472847 | N23: 0.02961379485
A24: 23 | B24: 94.63087248 | C24: 60 | D24: 2005 | E24: 6 | F24: 24 | G24: 63 | H24: 0 | Q24: =CONCATENATE("VMP of K @ KRATE = ",U6," lbs/acre and soil test K of ",U12) -> VMP of K @ KRATE = 25 lbs/acre and soil test K of 110 | U24: =+U22*U2/2.22*U20 -> 0.7778109854 | W24: =+W22*U2/2.22*U20 -> 0.375
A25: 24 | B25: 92.7852349 | C25: 90 | D25: 2005 | E25: 6 | F25: 40 | G25: 83 | H25: 0 | K25: Effects Specification
A26: 25 | B26: 100 | C26: 120 | D26: 2005 | E26: 6 | F26: 42 | G26: 79 | H26: 0 | M26: S.D. | N26: Rho | Q26: Cost per lb of K | U26: =+U4/0.6/2000 -> 0.375
A27: 26 | B27: 96.96394687 | C27: 0 | D27: 2005 | E27: 8 | F27: 3 | G27: 154 | H27: 0
A28: 27 | B28: 100 | C28: 40 | D28: 2005 | E28: 8 | F28: 14 | G28: 154 | H28: 0 | J28: Period random | M28: 1.060097175 | N28: 0.04768826784 | Q28: Profit Maximizing K rate: | U28: =IF((U26/(U2/2.22*U20)-(K16+U12*K21+IF(U10="Clearfield",K23,0)))/(2*(K17+IF(U14="Clay",K22)))>180,180,(U26/(U2/2.22*U20)-(K16+U12*K21+IF(U10="Clearfield",K23,0)))/(2*(K17+IF(U14="Clay",K22)))) -> 79.94118668 | W28: 125 | X28: Alt User K
A29: 28 | B29: 98.86148008 | C29: 80 | D29: 2005 | E29: 8 | F29: 31 | G29: 154 | H29: 0 | J29: Idiosyncratic random | M29: 4.737284535 | N29: 0.9523117322
A30: 29 | B30: 94.30740038 | C30: 120 | D30: 2005 | E30: 8 | F30: 43 | G30: 154 | H30: 0 | Q30: Expected Yield at Profit-Maximizing K rate: | U30: =(+K14+IF(U16="Yes",K15,0)+U28*(U12*K21+K16+IF(U10="Clearfield",K23,0))+U28^2*(K17+IF(U14="Clay",K22))+IF(U14="Clay",K20,0)+IF(U10="Clearfield",K18,0)+U12*K19)*U20 -> 187.0303852 | W30: =(+K14+IF(U16="Yes",K15,0)+W28*(U12*K21+K16+IF(U10="Clearfield",K23,0))+W28^2*(K17+IF(U14="Clay",K22))+IF(U14="Clay",K20,0)+IF(U10="Clearfield",K18,0)+U12*K19)*U20 -> 189.1292434
A31: 30 | B31: 99.24098672 | C31: 160 | D31: 2005 | E31: 8 | F31: 52 | G31: 154 | H31: 0 | K31: Weighted Statistics
A32: 31 | B32: 77.47747748 | C32: 0 | D32: 2005 | E32: 9 | F32: 4 | G32: 72 | H32: 1 | Q32: Added Profit in $/acre | U32: =+(U30-U8)*U2/2.22-(U28-U6)*U26 -> 11.06545677 | W32: =+(W30-U8)*U2/2.22-(W28-U6)*U26 -> 3.622718031
A33: 32 | B33: 85.58558559 | C33: 40 | D33: 2005 | E33: 9 | F33: 15 | G33: 72 | H33: 1 | J33: R-squared | K33: 0.2954420526 | L33: Mean dependent var | N33: 60.43268787
A34: 33 | B34: 97.83783784 | C34: 80 | D34: 2005 | E34: 9 | F34: 32 | G34: 72 | H34: 1 | J34: Adjusted R-squared | K34: 0.2823644109 | L34: S.D. dependent var | N34: 9.884122327 | BH34: K rate | BI34: Exp. Yield
A35: 34 | B35: 98.73873874 | C35: 120 | D35: 2005 | E35: 9 | F35: 44 | G35: 72 | H35: 1 | J35: S.E. of regression | K35: 4.743914196 | L35: Sum squared resid | N35: 9699.535137 | BH35: 0 | BI35: =(+$K$14+IF($U$16="Yes",$K$15,0)+BH35*($U$12*$K$21+$K$16+IF($U$10="Clearfield",$K$23,0))+BH35^2*($K$17+IF($U$14="Clay",$K$22))+IF($U$14="Clay",$K$20,0)+IF($U$10="Clearfield",$K$18,0)+$U$12*$K$19)*$U$20 -> 175.174514
A36: 35 | B36: 100 | C36: 160 | D36: 2005 | E36: 9 | F36: 53 | G36: 72 | H36: 1 | J36: F-statistic | K36: 22.59138605 | L36: Durbin-Watson stat | N36: 2.49064464 | BH36: 10 | BI36: =(+$K$14+IF($U$16="Yes",$K$15,0)+BH36*($U$12*$K$21+$K$16+IF($U$10="Clearfield",$K$23,0))+BH36^2*($K$17+IF($U$14="Clay",$K$22))+IF($U$14="Clay",$K$20,0)+IF($U$10="Clearfield",$K$18,0)+$U$12*$K$19)*$U$20 -> 177.2267808
A37: 36 | B37: 94.12628488 | C37: 0 | D37: 2005 | E37: 10 | F37: 5 | G37: 167 | H37: 0 | J37: Prob(F-statistic) | K37: 7.693327162e-29 | BH37: 20 | BI37: 179.1162844
A38: 37 | B38: 94.71365639 | C38: 40 | D38: 2005 | E38: 10 | F38: 16 | G38: 167 | H38: 0 | BH38: 30 | BI38: 180.8430248
A39: 38 | B39: 97.65051395 | C39: 80 | D39: 2005 | E39: 10 | F39: 33 | G39: 167 | H39: 0 | K39: Unweighted Statistics | BH39: 40 | BI39: 182.407002
A40: 39 | B40: 99.85315712 | C40: 120 | D40: 2005 | E40: 10 | F40: 45 | G40: 167 | H40: 0 | BH40: 50 | BI40: 183.8082159
A41: 40 | B41: 100 | C41: 160 | D41: 2005 | E41: 10 | F41: 54 | G41: 167 | H41: 0 | J41: R-squared | K41: 0.2961173096 | L41: Mean dependent var | N41: 95.92045455 | BH41: 60 | BI41: 185.0466667
A42: 41 | B42: 92.02898551 | C42: 0 | D42: 2005 | E42: 12 | F42: 6 | G42: 108 | H42: 0 | J42: Sum squared resid | K42: 10114.18604 | L42: Durbin-Watson stat | N42: 2.482420507 | BH42: 70 | BI42: 186.1223542
A43: 42 | B43: 94.56521739 | C43: 40 | D43: 2005 | E43: 12 | F43: 17 | G43: 108 | H43: 0 | BH43: 80 | BI43: 187.0352786
A44: 43 | B44: 99.0942029 | C44: 80 | D44: 2005 | E44: 12 | F44: 34 | G44: 108 | H44: 0 | BH44: 90 | BI44: 187.7854397
A45: 44 | B45: 79.89130435 | C45: 120 | D45: 2005 | E45: 12 | F45: 46 | G45: 108 | H45: 0 | BH45: 100 | BI45: 188.3728376
A46: 45 | B46: 100 | C46: 160 | D46: 2005 | E46: 12 | F46: 55 | G46: 108 | H46: 0 | BH46: 110 | BI46: 188.7974724
A47: 46 | B47: 88.08373591 | C47: 0 | D47: 2006 | E47: 13 | F47: 1 | G47: 102 | H47: 0 | M47: =174/192 -> 0.90625 | BH47: 120 | BI47: 189.0593439
A48: 47 | B48: 91.14331723 | C48: 40 | D48: 2006 | E48: 13 | F48: 14 | G48: 102 | H48: 0 | BH48: 130 | BI48: 189.1584521
A49: 48 | B49: 100 | C49: 80 | D49: 2006 | E49: 13 | F49: 31 | G49: 102 | H49: 0 | BH49: 140 | BI49: 189.0947972
A50: 49 | B50: 99.8389694 | C50: 120 | D50: 2006 | E50: 13 | F50: 41 | G50: 102 | H50: 0 | BH50: 150 | BI50: 188.8683791
A51: 50 | B51: 98.71175523 | C51: 160 | D51: 2006 | E51: 13 | F51: 52 | G51: 102 | H51: 0 | BH51: 160 | BI51: 188.4791978
A52: 51 | B52: 92.5087108 | C52: 0 | D52: 2006 | E52: 14 | F52: 2 | G52: 104 | H52: 0 | BH52: 170 | BI52: 187.9272532
A53: 52 | B53: 95.47038328 | C53: 40 | D53: 2006 | E53: 14 | F53: 15 | G53: 104 | H53: 0 | BH53: 180 | BI53: 187.2125455
A54: 53 | B54: 95.47038328 | C54: 80 | D54: 2006 | E54: 14 | F54: 32 | G54: 104 | H54: 0
A55: 54 | B55: 99.30313589 | C55: 120 | D55: 2006 | E55: 14 | F55: 42 | G55: 104 | H55: 0
A56: 55 | B56: 100 | C56: 160 | D56: 2006 | E56: 14 | F56: 53 | G56: 104 | H56: 0
A57: 56 | B57: 96.84741488 | C57: 0 | D57: 2006 | E57: 15 | F57: 3 | G57: 154 | H57: 0
A58: 57 | B58: 94.8297604 | C58: 40 | D58: 2006 | E58: 15 | F58: 16 | G58: 154 | H58: 0 | J58: Dependent Variable: RELYLD | Q58: Predicted RELYLD based on above questions: | U58: =+K69+IF($U$16="Yes",K70,0)+$U$6*($U$12*K76+K71+IF($U$10="Clearfield",K77,0)+IF($U$14="Clay",K78))+$U$6^0.5*K72+IF($U$14="Clay",K75,0)+IF($U$10="Clearfield",K73,0)+$U$12*K74 -> 94.5669452
A59: 58 | B59: 98.73896595 | C59: 80 | D59: 2006 | E59: 15 | F59: 33 | G59: 154 | H59: 0 | J59: Method: Panel EGLS (Period random effects)
A60: 59 | B60: 100 | C60: 120 | D60: 2006 | E60: 15 | F60: 43 | G60: 154 | H60: 0 | J60: Date: 03/13/19 Time: 09:12 | Q60: Yield/RELYLD | U60: =+U8/U58 -> 1.903413498
A61: 60 | B61: 94.95586381 | C61: 160 | D61: 2006 | E61: 15 | F61: 54 | G61: 154 | H61: 0 | J61: Sample: 2001 2018 IF KRATE<>135
A62: 61 | B62: 73.73134328 | C62: 0 | D62: 2006 | E62: 17 | F62: 4 | G62: 86 | H62: 0 | J62: Periods included: 17 | Q62: dRELYLD/dKRATE | U62: =+K71+U12*K76+IF(U10="Clearfield",K77,0)+IF(U14="Clay",K78,0)+0.5*U6^-0.5*K72 -> 0.05961510745 | W62: =+K71+U12*K76+IF(U10="Clearfield",K77,0)+IF(U14="Clay",K78,0)+0.5*U68^-0.5*K72 -> 0.04373721215
A63: 62 | B63: 82.3880597 | C63: 40 | D63: 2006 | E63: 17 | F63: 17 | G63: 86 | H63: 0 | J63: Cross-sections included: 79
A64: 63 | B64: 93.28358209 | C64: 80 | D64: 2006 | E64: 17 | F64: 34 | G64: 86 | H64: 0 | J64: Total panel (unbalanced) observations: 440 | Q64: =CONCATENATE("VMP of K @ KRATE = ",U6," lbs/acre and soil test K of ",U12) -> VMP of K @ KRATE = 25 lbs/acre and soil test K of 110 | U64: =+U62*U2/2.22*U60 -> 0.5111360371 | W64: =+W62*U2/2.22*U60 -> 0.375
A65: 64 | B65: 98.20895522 | C65: 120 | D65: 2006 | E65: 17 | F65: 44 | G65: 86 | H65: 0 | J65: Wallace and Hussain estimator of component variances
A66: 65 | B66: 100 | C66: 160 | D66: 2006 | E66: 17 | F66: 55 | G66: 86 | H66: 0 | Q66: Cost per lb of K | U66: =+U4/0.6/2000 -> 0.375 | W66: =(K71+U12*K76+IF(U10="Clearfield",K77,0)+IF(U14="Clay",K78)+0.5*W68^-0.5*K72)*U2/2.22*U60 -> 1.383980984 | X66: VMP at Alt User K
A67: 66 | B67: 79.68503937 | C67: 0 | D67: 2006 | E67: 20 | F67: 5 | G67: 103 | H67: 0 | J67: Variable | K67: Coefficient | L67: Std. Error | M67: t-Statistic | N67: Prob.
A68: 67 | B68: 87.55905512 | C68: 40 | D68: 2006 | E68: 20 | F68: 18 | G68: 108 | H68: 0 | Q68: Optimal K | U68: =IF(((U66/(U2/2.22*U60)-(K71+U12*K76+IF(U10="Clearfield",K77,0)+IF(U14="Clay",K78,0)))*2/K72)^-2>180,180,((U66/(U2/2.22*U60)-(K71+U12*K76+IF(U10="Clearfield",K77,0)+IF(U14="Clay",K78,0)))*2/K72)^-2) -> 38.36754456 | W68: 5 | X68: Alt User K
A69: 68 | B69: 92.75590551 | C69: 80 | D69: 2006 | E69: 20 | F69: 35 | G69: 118 | H69: 0 | J69: C | K69: 83.57802419 | L69: 1.206595779 | M69: 69.26762523 | N69: 2.275095698e-235
A70: 69 | B70: 100 | C70: 120 | D70: 2006 | E70: 20 | F70: 45 | G70: 131 | H70: 0 | J70: DRREC | K70: 1.901372692 | L70: 0.6112073646 | M70: 3.110847156 | N70: 0.001989737646 | Q70: Expected Yield | U70: =(+K69+IF(U16="Yes",K70,0)+U68*(K71+IF(U10="Clearfield",K77,0)+IF(U14="Clay",K78,0)+U12*K76)+U68^0.5*(K72)+IF(U14="Clay",K75,0)+IF(U10="Clearfield",K73,0)+U12*K74)*U60 -> 181.2932979 | W70: =(K69+IF($U$16="Yes",K70,0)+$W$68*($U$12*K76+K71+IF($U$10="Clearfield",K77,0)+IF($U$14="Clay",K78,0))+$W$68^0.5*K72+IF($U$14="Clay",K75,0)+IF($U$10="Clearfield",K73,0)+$U$12*K74)*U60 -> 176.5329818
A71: 70 | B71: 94.80314961 | C71: 160 | D71: 2006 | E71: 20 | F71: 56 | G71: 133 | H71: 0 | J71: KRATE | K71: 0.05527424609 | L71: 0.01945111966 | M71: 2.841699967 | N71: 0.004700819505
A72: 71 | B72: 77.48344371 | C72: 0 | D72: 2006 | E72: 21 | F72: 6 | G72: 96 | H72: 0 | J72: KRATE^.5 | K72: 0.8235966589 | L72: 0.1795438504 | M72: 4.587161615 | N72: 5.902285465e-06 | Q72: Added Profit in $/acre | U72: =+(U70-U8)*U2/2.22-(U68-U6)*U66 -> 0.8128370095 | W72: =+(W70-U8)*U2/2.22-(W68-U6)*U66 -> -8.117199183
A73: 72 | B73: 85.09933775 | C73: 40 | D73: 2006 | E73: 21 | F73: 19 | G73: 95 | H73: 0 | J73: DCLFIELD | K73: 2.333261436 | L73: 0.9170687768 | M73: 2.544260032 | N73: 0.0112997258
A74: 73 | B74: 92.54966887 | C74: 80 | D74: 2006 | E74: 21 | F74: 36 | G74: 94 | H74: 0 | J74: KSOIL | K74: 0.06763228791 | L74: 0.01098263876 | M74: 6.158109118 | N74: 1.69129018e-09
A75: 74 | B75: 97.84768212 | C75: 120 | D75: 2006 | E75: 21 | F75: 46 | G75: 111 | H75: 0 | J75: DCLAY | K75: -9.296610794 | L75: 2.441795438 | M75: -3.807284857 | N75: 0.0001609195768
A76: 75 | B76: 100 | C76: 160 | D76: 2006 | E76: 21 | F76: 57 | G76: 123 | H76: 0 | J76: KSOIL*KRATE | K76: -0.0007092618593 | L76: 0.0001239922289 | M76: -5.720212189 | N76: 1.99520725e-08 | Q76: K rate | R76: Exp. Yield
A77: 76 | B77: 64.6884273 | C77: 0 | D77: 2007 | E77: 22 | F77: 1 | G77: 60 | H77: 0 | J77: DCLFIELD*KRATE | K77: -0.02113021601 | L77: 0.009446821853 | M77: -2.236753941 | N77: 0.02581434428 | Q77: 0.01 | R77: =(+$K$69+IF($U$16="Yes",$K$70,0)+Q77*($U$12*$K$76+$K$71+IF($U$10="Clearfield",$K$77,0)+IF($U$14="Clay",$K$78,0))+Q77^0.5*($K$72)+IF($U$14="Clay",$K$75,0)+IF($U$10="Clearfield",$K$73,0)+$U$12*$K$74)*$U$60 -> 173.4004141
A78: 77 | B78: 86.64688427 | C78: 40 | D78: 2007 | E78: 22 | F78: 14 | G78: 72 | H78: 0 | J78: DCLAY*KRATE | K78: 0.09240656048 | L78: 0.02766610215 | M78: 3.340064314 | N78: 0.0009106295903 | Q78: 2 | R78: 175.3744827
A79: 78 | B79: 89.91097923 | C79: 80 | D79: 2007 | E79: 22 | F79: 31 | G79: 78 | H79: 0 | Q79: 7 | R79: 177.0886352
A80: 79 | B80: 100 | C80: 120 | D80: 2007 | E80: 22 | F80: 41 | G80: 81 | H80: 0 | K80: Effects Specification | Q80: 15 | R80: 178.666161
A81: 80 | B81: 92.28486647 | C81: 160 | D81: 2007 | E81: 22 | F81: 52 | G81: 96 | H81: 0 | M81: S.D. | N81: Rho | Q81: 25 | R81: 180
A82: 81 | B82: 65.50764951 | C82: 0 | D82: 2007 | E82: 23 | F82: 2 | G82: 71 | H82: 0 | Q82: 45 | R82: 181.8120114
A83: 82 | B83: 91.09874826 | C83: 40 | D83: 2007 | E83: 23 | F83: 15 | G83: 67 | H83: 0 | J83: Period random | M83: 1.099880019 | N83: 0.05237979079 | Q83: 60 | R83: 182.7894705
A84: 83 | B84: 94.01947149 | C84: 80 | D84: 2007 | E84: 23 | F84: 32 | G84: 72 | H84: 0 | J84: Idiosyncratic random | M84: 4.678219447 | N84: 0.9476202092 | Q84: 70 | R84: 183.3294806
A85: 84 | B85: 92.6286509 | C85: 120 | D85: 2007 | E85: 23 | F85: 42 | G85: 78 | H85: 0 | Q85: 80 | R85: 183.8021417
A86: 85 | B86: 100 | C86: 160 | D86: 2007 | E86: 23 | F86: 53 | G86: 97 | H86: 0 | K86: Weighted Statistics | Q86: 90 | R86: 184.2197618
A87: 86 | B87: 82.85302594 | C87: 0 | D87: 2007 | E87: 24 | F87: 3 | G87: 113 | H87: 0 | Q87: 100 | R87: 184.5913025
A88: 87 | B88: 92.93948127 | C88: 40 | D88: 2007 | E88: 24 | F88: 16 | G88: 113 | H88: 0 | J88: R-squared | K88: 0.3131037289 | L88: Mean dependent var | N88: 58.69433819 | Q88: 110 | R88: 184.923529
A89: 88 | B89: 91.6426513 | C89: 80 | D89: 2007 | E89: 24 | F89: 33 | G89: 113 | H89: 0 | J89: Adjusted R-squared | K89: 0.2987268302 | L89: S.D. dependent var | N89: 10.00229228 | Q89: 120 | R89: 185.2216971
A90: 89 | B90: 100 | C90: 120 | D90: 2007 | E90: 24 | F90: 43 | G90: 113 | H90: 0 | J90: S.E. of regression | K90: 4.685069483 | L90: Sum squared resid | N90: 9438.446708 | Q90: 130 | R90: 185.4899866
A91: 90 | B91: 91.93083573 | C91: 160 | D91: 2007 | E91: 24 | F91: 54 | G91: 113 | H91: 0 | J91: F-statistic | K91: 21.77825243 | L91: Durbin-Watson stat | N91: 2.440948805 | Q91: 140 | R91: 185.7317863
A92: 91 | B92: 92.43027888 | C92: 0 | D92: 2007 | E92: 26 | F92: 4 | G92: 102 | H92: 0 | J92: Prob(F-statistic) | K92: 1.9758798e-30 | Q92: 150 | R92: 185.9498893
A93: 92 | B93: 96.21513944 | C93: 40 | D93: 2007 | E93: 26 | F93: 17 | G93: 102 | H93: 0 | Q93: 160 | R93: 186.1466296
A94: 93 | B94: 100 | C94: 80 | D94: 2007 | E94: 26 | F94: 34 | G94: 102 | H94: 0 | K94: Unweighted Statistics | Q94: 170 | R94: 186.3239817
A95: 94 | B95: 95.01992032 | C95: 120 | D95: 2007 | E95: 26 | F95: 44 | G95: 102 | H95: 0 | Q95: 180 | R95: 186.4836333
A96: 95 | B96: 94.22310757 | C96: 160 | D96: 2007 | E96: 26 | F96: 55 | G96: 102 | H96: 0 | J96: R-squared | K96: 0.3119695218 | L96: Mean dependent var | N96: 95.92045455
A97: 96 | B97: 87.73234201 | C97: 0 | D97: 2007 | E97: 27 | F97: 5 | G97: 139 | H97: 0 | J97: Sum squared resid | K97: 9886.403451 | L97: Durbin-Watson stat | N97: 2.431277786
A98: 97 | B98: 88.84758364 | C98: 40 | D98: 2007 | E98: 27 | F98: 18 | G98: 139 | H98: 0
A99: 98 | B99: 100 | C99: 80 | D99: 2007 | E99: 27 | F99: 35 | G99: 139 | H99: 0
A100: 99 | B100: 94.42379182 | C100: 120 | D100: 2007 | E100: 27 | F100: 45 | G100: 139 | H100: 0
A101: 100 | B101: 91.44981413 | C101: 160 | D101: 2007 | E101: 27 | F101: 56 | G101: 139 | H101: 0 | J101: Dependent Variable: RELYLD | Q101: Predicted RELYLD based on above questions: | U101: =+K112+IF($U$16="Yes",K113,0)+LN($U$6)*(K117+$U$12*K120+IF($U$10="Clearfield",K119,0)+IF($U$14="Clay",K118))+IF($U$14="Clay",K116,0)+IF($U$10="Clearfield",K114,0)+$U$12*K115 -> 96.18393227
A102: 101 | B102: 90.23622047 | C102: 0 | D102: 2007 | E102: 28 | F102: 6 | G102: 272 | H102: 1 | J102: Method: Panel EGLS (Period random effects)
A103: 102 | B103: 100 | C103: 40 | D103: 2007 | E103: 28 | F103: 19 | G103: 272 | H103: 1 | J103: Date: 03/13/19 Time: 16:57 | Q103: Yield/RELYLD | U103: =+U8/U101 -> 1.871414443
A104: 103 | B104: 91.33858268 | C104: 80 | D104: 2007 | E104: 28 | F104: 36 | G104: 272 | H104: 1 | J104: Sample: 2001 2018 IF KRATE<>135
A105: 104 | B105: 91.49606299 | C105: 120 | D105: 2007 | E105: 28 | F105: 46 | G105: 272 | H105: 1 | J105: Periods included: 17 | Q105: dRELYLD/dKRATE | U105: =(K117+IF(U14="Clay",K118,0)+IF(U10="Clearfield",K119,0)+U12*K120)/U6 -> 0.01701949554 | W105: =(K117+IF(U14="Clay",K118,0)+IF(U10="Clearfield",K119,0)+U12*K120)/U111 -> 0.04448506867
A106: 105 | B106: 93.22834646 | C106: 160 | D106: 2007 | E106: 28 | F106: 57 | G106: 272 | H106: 1 | J106: Cross-sections included: 79
A107: 106 | B107: 90.35433071 | C107: 0 | D107: 2007 | E107: 30 | F107: 7 | G107: 94 | H107: 0 | J107: Total panel (unbalanced) observations: 440 | Q107: =CONCATENATE("VMP of K @ KRATE = ",U49," lbs/acre and soil test K of ",U55) -> VMP of K @ KRATE = lbs/acre and soil test K of | U107: =+U105*U2/2.22*U103 -> 0.1434708548 | W107: =+W105*U2/2.22*U103 -> 0.375
A108: 107 | B108: 97.44094488 | C108: 40 | D108: 2007 | E108: 30 | F108: 20 | G108: 94 | H108: 0 | J108: Wallace and Hussain estimator of component variances
A109: 108 | B109: 100 | C109: 80 | D109: 2007 | E109: 30 | F109: 37 | G109: 94 | H109: 0 | Q109: Cost per lb of K | U109: =+U4/0.6/2000 -> 0.375 | W109: =(K117+IF(U14="Clay",K118,0)+IF(U10="Clearfield",K119,0)+U12*K120)/W111*U2/2.22*U103 -> 0.717354274 | X109: VMP at Alt User K
A110: 109 | B110: 96.65354331 | C110: 120 | D110: 2007 | E110: 30 | F110: 47 | G110: 94 | H110: 0 | J110: Variable | K110: Coefficient | L110: Std. Error | M110: t-Statistic | N110: Prob.
A111: 110 | B111: 93.30708661 | C111: 160 | D111: 2007 | E111: 30 | F111: 58 | G111: 94 | H111: 0 | Q111: Optimal K | U111: =IF(((K117+IF(U14="Clay",K118,0)+IF(U10="Clearfield",K119,0)+U12*K120)/(U109/(U2/2.22*U103)))>180,180,((K117+IF(U14="Clay",K118,0)+IF(U10="Clearfield",K119,0)+U12*K120)/(U109/(U2/2.22*U103)))) -> 9.564723654 | W111: 5 | X111: Alt User K
A112: 111 | B112: 91.94630872 | C112: 0 | D112: 2007 | E112: 31 | F112: 8 | G112: 94 | H112: 0 | J112: C | K112: 92.04835626 | L112: 0.8118564696 | M112: 113.3800859 | N112: 0
A113: 112 | B113: 96.51006711 | C113: 40 | D113: 2007 | E113: 31 | F113: 21 | G113: 94 | H113: 0 | J113: DRREC | K113: 1.674272927 | L113: 0.6247099459 | M113: 2.680080472 | N113: 0.007642508367 | Q113: Expected Yield | U113: =(+K112+IF(U16="Yes",K113,0)+LN(U111)*(K117+IF(U10="Clearfield",K119,0)+IF(U14="Clay",K118,0)+U12*K120)+IF(U14="Clay",K116,0)+IF(U10="Clearfield",K114,0)+U12*K115)*U103 -> 179.234955 | W113: =(+K112+IF(U16="Yes",K113,0)+LN(W111)*(K117+IF(U10="Clearfield",K119,0)+IF(U14="Clay",K118,0)+U12*K120)+IF(U14="Clay",K116,0)+IF(U10="Clearfield",K114,0)+U12*K115)*U103 -> 178.7184637
A114: 113 | B114: 100 | C114: 80 | D114: 2007 | E114: 31 | F114: 38 | G114: 94 | H114: 0 | J114: DCLFIELD | K114: 0.9538761766 | L114: 0.599352375 | M114: 1.591511465 | N114: 0.1122276617
A115: 114 | B115: 92.08053691 | C115: 120 | D115: 2007 | E115: 31 | F115: 48 | G115: 94 | H115: 0 | J115: KSOIL | K115: 0.02514531757 | L115: 0.007907350482 | M115: 3.179992796 | N115: 0.001579079719 | Q115: Added Profit in $/acre | U115: =+(U113-U8)*U2/2.22-(U111-U6)*U109 -> 2.34207981 | W115: =+(W113-U8)*U2/2.22-(W111-U6)*U109 -> 1.727314174
A116: 115 | B116: 97.18120805 | C116: 160 | D116: 2007 | E116: 31 | F116: 59 | G116: 94 | H116: 0 | J116: DCLAY | K116: -3.488411949 | L116: 1.646380839 | M116: -2.118836581 | N116: 0.03467569419
A117: 116 | B117: 91.5862069 | C117: 0 | D117: 2008 | E117: 32 | F117: 1 | G117: 125 | H117: 0 | J117: LNK | K117: 0.9466911285 | L117: 0.1187053689 | M117: 7.975133199 | N117: 1.383119288e-14
A118: 117 | B118: 95.72413793 | C118: 40 | D118: 2008 | E118: 32 | F118: 14 | G118: 125 | H118: 0 | J118: LNK*DCLAY | K118: 0.4990002373 | L118: 0.2438559311 | M118: 2.046291165 | N118: 0.04133396676 | Q118: K rate | R118: Exp. Yield
A119: 118 | B119: 98.48275862 | C119: 80 | D119: 2008 | E119: 32 | F119: 31 | G119: 125 | H119: 0 | J119: LNK*DCLFIELD | K119: -0.1496455639 | L119: 0.09193539344 | M119: -1.627725279 | N119: 0.1043139117 | Q119: 0.01 | R119: =(+$K$112+IF($U$16="Yes",$K$113,0)+LN(Q119)*($K$117+IF($U$10="Clearfield",$K$119,0)+IF($U$14="Clay",$K$118,0)+$U$12*$K$120)+IF($U$14="Clay",$K$116,0)+IF($U$10="Clearfield",$K$114,0)+$U$12*$K$115)*$U$103 -> 173.7699997
A120: 119 | B120: 96.82758621 | C120: 120 | D120: 2008 | E120: 32 | F120: 41 | G120: 125 | H120: 0 | J120: LNK*KSOIL | K120: -0.004738215818 | L120: 0.001134485983 | M120: -4.176530947 | N120: 3.583942662e-05 | Q120: 2 | R120: 177.9888551
A121: 120 | B121: 100 | C121: 160 | D121: 2008 | E121: 32 | F121: 52 | G121: 125 | H121: 0 | Q121: 5 | R121: 178.7184637
A122: 121 | B122: 89.61748634 | C122: 0 | D122: 2008 | E122: 33 | F122: 2 | G122: 114 | H122: 0 | K122: Effects Specification | Q122: 7 | R122: 178.9863842
A123: 122 | B123: 91.66666667 | C123: 40 | D123: 2008 | E123: 33 | F123: 15 | G123: 114 | H123: 0 | M123: S.D. | N123: Rho | Q123: 10 | R123: 179.2703914
A124: 123 | B124: 87.29508197 | C124: 80 | D124: 2008 | E124: 33 | F124: 32 | G124: 114 | H124: 0 | Q124: 15 | R124: 179.5932483
A125: 124 | B125: 98.36065574 | C125: 120 | D125: 2008 | E125: 33 | F125: 42 | G125: 114 | H125: 0 | J125: Period random | M125: 1.106470735 | N125: 0.05032333769 | Q125: 30 | R125: 180.145176
A126: 125 | B126: 100 | C126: 160 | D126: 2008 | E126: 33 | F126: 53 | G126: 114 | H126: 0 | J126: Idiosyncratic random | M126: 4.806656593 | N126: 0.9496766623 | Q126: 50 | R126: 180.5519276
A127: 126 | B127: 88.4137931 | C127: 0 | D127: 2008 | E127: 34 | F127: 3 | G127: 87 | H127: 0 | Q127: 70 | R127: 180.8198481
A128: 127 | B128: 95.72413793 | C128: 40 | D128: 2008 | E128: 34 | F128: 16 | G128: 87 | H128: 0 | K128: Weighted Statistics | Q128: 90 | R128: 181.0199605
A129: 128 | B129: 98.48275862 | C129: 80 | D129: 2008 | E129: 34 | F129: 33 | G129: 87 | H129: 0 | Q129: 100 | R129: 181.1038552
A130: 129 | B130: 96.82758621 | C130: 120 | D130: 2008 | E130: 34 | F130: 43 | G130: 87 | H130: 0 | J130: R-squared | K130: 0.2740428809 | L130: Mean dependent var | N130: 59.43892963 | Q130: 110 | R130: 181.1797472
A131: 130 | B131: 100 | C131: 160 | D131: 2008 | E131: 34 | F131: 54 | G131: 87 | H131: 0 | J131: Adjusted R-squared | K131: 0.2605680388 | L131: S.D. dependent var | N131: 9.954107887 | Q131: 120 | R131: 181.2490312
A132: 131 | B132: 100 | C132: 0 | D132: 2008 | E132: 35 | F132: 4 | G132: 155 | H132: 0 | J132: S.E. of regression | K132: 4.812796269 | L132: Sum squared resid | N132: 9983.256415 | Q132: 130 | R132: 181.3127663
A133: 132 | B133: 100 | C133: 40 | D133: 2008 | E133: 35 | F133: 17 | G133: 155 | H133: 0 | J133: F-statistic | K133: 20.33737231 | L133: Durbin-Watson stat | N133: 2.371216243 | Q133: 140 | R133: 181.3717757
A134: 133 | B134: 98.6135182 | C134: 80 | D134: 2008 | E134: 35 | F134: 34 | G134: 155 | H134: 0 | J134: Prob(F-statistic) | K134: 3.890647391e-26 | Q134: 150 | R134: 181.4267122
A135: 134 | B135: 100 | C135: 120 | D135: 2008 | E135: 35 | F135: 44 | G135: 155 | H135: 0 | Q135: 160 | R135: 181.4781019
A136: 135 | B136: 98.26689775 | C136: 160 | D136: 2008 | E136: 35 | F136: 55 | G136: 155 | H136: 0 | K136: Unweighted Statistics | Q136: 170 | R136: 181.526375
A137: 136 | B137: 81.4159292 | C137: 0 | D137: 2008 | E137: 38 | F137: 5 | G137: 110 | H137: 0 | Q137: 180 | R137: 181.5718882
A138: 137 | B138: 100 | C138: 40 | D138: 2008 | E138: 38 | F138: 18 | G138: 113 | H138: 0 | J138: R-squared | K138: 0.2734639836 | L138: Mean dependent var | N138: 95.92045455
A139: 138 | B139: 99.70501475 | C139: 80 | D139: 2008 | E139: 38 | F139: 35 | G139: 113 | H139: 0 | J139: Sum squared resid | K139: 10439.69476 | L139: Durbin-Watson stat | N139: 2.364096255
A140: 139 | B140: 97.19764012 | C140: 120 | D140: 2008 | E140: 38 | F140: 45 | G140: 133 | H140: 0
A141: 140 | B141: 100 | C141: 160 | D141: 2008 | E141: 38 | F141: 56 | G141: 147 | H141: 0
A142: 141 | B142: 95.5 | C142: 0 | D142: 2009 | E142: 39 | F142: 1 | G142: 102 | H142: 0 | W142: FALSE
A143: 142 | B143: 98.33333333 | C143: 45 | D143: 2009 | E143: 39 | F143: 22 | G143: 102 | H143: 0 | J143: =0.8301513*2.47105*0.453592 -> 0.930473849 | Q143: Profit-Maximizing K Rate Calculator for Irrigated Soybeans as developed by Dr. M. Popp, Dr. N. Slaton, and Dr. T. Roberts
A144: 143 | B144: 100 | C144: 90 | D144: 2009 | E144: 39 | F144: 39 | G144: 102 | H144: 0
A145: 144 | B145: 90.67669173 | C145: 0 | D145: 2009 | E145: 42 | F145: 2 | G145: 98 | H145: 0 | J145: Dependent Variable: RY | Q145: What is your expected soybean price? | U145: 13.5 | V145: =IF(W142,CONCATENATE("$ kg",Z155),"$/bu") -> $/bu
A146: 145 | B146: 100 | C146: 60 | D146: 2009 | E146: 42 | F146: 23 | G146: 98 | H146: 0 | J146: Method: Panel EGLS (Period random effects)
A147: 146 | B147: 88.57142857 | C147: 120 | D147: 2009 | E147: 42 | F147: 41 | G147: 98 | H147: 0 | J147: Date: 08/10/20 Time: 15:22 | Q147: What do you expect to pay for muriate of potash fertilizer? | U147: 820 | V147: =IF(W142,CONCATENATE("$ Mg",Z155),"$/ton") -> $/ton | W147: =+U147/IF(W142,1000,2000)/IF(W142,0.49809078131038,0.6) -> 0.6833333333 | X147: =IF(W142,CONCATENATE("$ kg",Z155," K"),CONCATENATE("$/lb of K",Z153,"O")) -> $/lb of K₂O
A148: 147 | B148: 99.07264297 | C148: 0 | D148: 2009 | E148: 43 | F148: 3 | G148: 104 | H148: 0 | J148: Sample: 2004 2019
A149: 148 | B149: 100 | C149: 60 | D149: 2009 | E149: 43 | F149: 24 | G149: 104 | H149: 0 | J149: Periods included: 16 | Q149: What is the yield potential of your field? | U149: 75 | V149: =IF(W142,CONCATENATE("kg ha",Z155),"bu/acre") -> bu/acre | W149: =+U149/100 -> 0.75 | X149: kg ha-1/relative yield % (100% = yield potential) | Y149: =180*IF(W142,BP172,1) -> 180 | Z149: Max. Fert applied per acre in the experiment
A150: 149 | B150: 95.67233385 | C150: 120 | D150: 2009 | E150: 43 | F150: 42 | G150: 104 | H150: 0 | J150: Cross-sections included: 59 | BV150: Labels
A151: 150 | B151: 86.77165354 | C151: 0 | D151: 2009 | E151: 44 | F151: 4 | G151: 84 | H151: 0 | J151: Total panel (unbalanced) observations: 374 | Q151: What is your soil-test K value (STK) and range? | U151: 85 | V151: =IF(W142,CONCATENATE("mg K kg",Z155),"ppm") -> ppm | W151: Soil test range +/- | Y151: 10 | BI151: High | BJ151: =MMULT($BJ$157:$BO$157,BJ160:BJ165) -> 0.0289793106 | BK151: -0.0001302433555 | BL151: -0.0001624036422 | BM151: 1.499096335e-07 | BN151: -3.778235463e-10 | BO151: 6.526818121e-07 | BP151: =SQRT(MMULT(BJ151:BO151,BR160:BR165))*1.96 -> 1.689975845 | BV151: =CONCATENATE(TEXT(T156,0)," ",BQ154," ",TEXT(BP151,"0.0")) -> 83 ± 1.7
A152: 151 | B152: 92.75590551 | C152: 60 | D152: 2009 | E152: 44 | F152: 25 | G152: 84 | H152: 0 | J152: Wallace and Hussain estimator of component variances | BI152: Avg | BJ152: =MMULT($BJ$156:$BO$156,BJ160:BJ165) -> 0.05216158398 | BK152: -0.0002361084264 | BL152: -0.0004576323287 | BM152: 8.897692225e-07 | BN152: -3.806385557e-09 | BO152: 2.01755782e-06 | BP152: =SQRT(MMULT(BJ152:BO152,BQ160:BQ165))*1.96 -> 1.997570779 | BQ152: 95% C.I. of profit maximizing rate at conditional mean | BV152: =CONCATENATE(TEXT(U156,0)," ",BQ154," ",TEXT(BP152,"0.0")) -> 95 ± 2.0
A153: 152 | B153: 100 | C153: 120 | D153: 2009 | E153: 44 | F153: 43 | G153: 84 | H153: 0 | J153: White cross-section standard errors & covariance (d.f. corrected) | Q153: What is your cost to apply fertilizer (equipment, labor, fuel or custom)? | U153: 7.5 | V153: =IF(W142,CONCATENATE("$ ha",Z155),"$/acre") -> $/acre | W153: =CONCATENATE("...your rate in ",IF(W142,CONCATENATE("kg K ha",Z155),CONCATENATE("lbs of K",Z153,"O/acre")),":") -> ...your rate in lbs of K₂O/acre: | Y153: =IF(237-1.61*U151>0,237-1.61*U151,0)*IF(W142,BP172,1) -> 100.15 | Z153: ₂ | BI153: Low | BJ153: =MMULT($BJ$155:$BO$155,BJ160:BJ165) -> 0.07715050116 | BK153: =MMULT($BJ$155:$BO$155,BK160:BK165) -> -0.0003490572115 | BL153: -0.0007835967406 | BM153: 1.723084583e-06 | BN153: -7.626473738e-09 | BO153: 3.508020025e-06 | BP153: =SQRT(MMULT(BJ153:BO153,BP160:BP165))*1.96 -> 2.421254893 | BV153: =CONCATENATE(TEXT(V156,0)," ",BQ154," ",TEXT(BP153,"0.0")) -> 104 ± 2.4
A154: 153 | B154: 66.2139219 | C154: 0 | D154: 2009 | E154: 45 | F154: 5 | G154: 85 | H154: 0 | J154: Variable | K154: Coefficient | L154: Std. Error | M154: t-Statistic | N154: Prob. | O154: English | Q154: =CONCATENATE("Profit change comparing applying at ",TEXT(ROUND(U156,1),"0.0"),IF(W142,CONCATENATE(" kg K ha",Z155),CONCATENATE("lb K",Z153,"O/acre"))," to no fertilizer:") -> Profit change comparing applying at 94.7lb K₂O/acre to no fertilizer: | U154: =+U160*$U$145/IF(W142,1,1)-U156*$W$147-IF(U156>0,$U$153)-R165*$U$145/IF(W142,1,1) -> 49.53452649 | V154: =IF(W142,CONCATENATE("$ ha",Z155),"$/acre") -> $/acre | W154: Profit-max rate over your rate: | Y154: =+U162 -> 0.1860743247 | Z154: =CONCATENATE("Fertilizer-K Application Rate (lbs K",Z153,"O/acre)") -> Fertilizer-K Application Rate (lbs K₂O/acre) | BQ154: ±
A155: 154 | B155: 77.58913413 | C155: 40 | D155: 2009 | E155: 45 | F155: 14 | G155: 99 | H155: 0 | Q155: =IF(U154<=0,"The fertilizer does not generate enough revenue to pay for itself and costs to apply","") ->  | T155: =CONCATENATE(U151+Y151," ppm soil K") -> 95 ppm soil K | U155: =CONCATENATE(U151," ppm soil K") -> 85 ppm soil K | V155: =CONCATENATE(U151-Y151," ppm soil K") -> 75 ppm soil K | W155: K yield max | Z155: ⁻¹ | BI155: Low | BJ155: =+V156 -> 104.1113805 | BK155: =+BJ155^2 -> 10839.17954 | BL155: =+(U151-Y151)*BJ155 -> 7808.353534 | BM155: =+(U151-Y151)^2*BJ155 -> 585626.515 | BN155: =+(U151-Y151)^2*BK155 -> 60970384.91 | BO155: =+(U151-Y151)*BK155 -> 812938.4655
A156: 155 | B156: 83.36162988 | C156: 80 | D156: 2009 | E156: 45 | F156: 31 | G156: 101 | H156: 0 | J156: C | K156: 60.01264683 | L156: 3.585006728 | M156: 16.73989797 | N156: 4.429219294e-47 | O156: 59.93589851 | Q156: Profit Maximizing K rate: | T156: =IF((IF(W142,K159,O159)+2*IF(W142,K160,O160)*0.1+IF(W142,K161,O161)*(U151+Y151)+IF(W142,K162,O162)*(U151+Y151)^2+2*IF(W142,K163,O163)*(U151+Y151)^2*0.1+2*IF(W142,K164,O164)*(U151+Y151)*0.1)<0,0,IF(((IF(W142,K159,O159)+2*IF(W142,K160,O160)*Y149+IF(W142,K161,O161)*(U151+Y151)+IF(W142,K162,O162)*(U151+Y151)^2+2*IF(W142,K163,O163)*(U151+Y151)^2*Y149+2*IF(W142,K164,O164)*(U151+Y151)*Y149)*U145/IF(W142,1,1)*W149)>W147,IF(Y149<T188,Y149,T188),IF((W147/(U145/IF(W142,1,1)*W149)-IF(W142,K159,O159)-IF(W142,K161,O161)*(U151+Y151)-IF(W142,K162,O162)*(U151+Y151)^2)/(2*(IF(W142,K160,O160)+IF(W142,K163,O163)*(U151+Y151)^2+IF(W142,K164,O164)*(U151+Y151)))<0,0,IF((W147/(U145/IF(W142,1,1)*W149)-IF(W142,K159,O159)-IF(W142,K161,O161)*(U151+Y151)-IF(W142,K162,O162)*(U151+Y151)^2)/(2*(IF(W142,K160,O160)+IF(W142,K163,O163)*(U151+Y151)^2+IF(W142,K164,O164)*(U151+Y151)))>T188,T188,(W147/(U145/IF(W142,1,1)*W149)-IF(W142,K159,O159)-IF(W142,K161,O161)*(U151+Y151)-IF(W142,K162,O162)*(U151+Y151)^2)/(2*(IF(W142,K160,O160)+IF(W142,K163,O163)*(U151+Y151)^2+IF(W142,K164,O164)*(U151+Y151))))))) -> 83.00249179 | U156: =IF((IF(W142,K159,O159)+2*IF(W142,K160,O160)*0.1+IF(W142,K161,O161)*(U151)+IF(W142,K162,O162)*(U151)^2+2*IF(W142,K163,O163)*(U151)^2*0.1+2*IF(W142,K164,O164)*(U151)*0.1)<0,0,IF(((IF(W142,K159,O159)+2*IF(W142,K160,O160)*Y149+IF(W142,K161,O161)*(U151)+IF(W142,K162,O162)*(U151)^2+2*IF(W142,K163,O163)*(U151)^2*Y149+2*IF(W142,K164,O164)*(U151)*Y149)*U145/IF(W142,1,1)*W149)>W147,IF(Y149<U188,Y149,U188),IF((W147/(U145/IF(W142,1,1)*W149)-IF(W142,K159,O159)-IF(W142,K161,O161)*(U151)-IF(W142,K162,O162)*(U151)^2)/(2*(IF(W142,K160,O160)+IF(W142,K163,O163)*(U151)^2+IF(W142,K164,O164)*(U151)))<0,0,IF((W147/(U145/IF(W142,1,1)*W149)-IF(W142,K159,O159)-IF(W142,K161,O161)*(U151)-IF(W142,K162,O162)*(U151)^2)/(2*(IF(W142,K160,O160)+IF(W142,K163,O163)*(U151)^2+IF(W142,K164,O164)*(U151)))>U188,U188,(W147/(U145/IF(W142,1,1)*W149)-IF(W142,K159,O159)-IF(W142,K161,O161)*(U151)-IF(W142,K162,O162)*(U151)^2)/(2*(IF(W142,K160,O160)+IF(W142,K163,O163)*(U151)^2+IF(W142,K164,O164)*(U151))))))) -> 94.71894608 | V156: =IF((IF(W142,K159,O159)+2*IF(W142,K160,O160)*0.1+IF(W142,K161,O161)*(U151-Y151)+IF(W142,K162,O162)*(U151-Y151)^2+2*IF(W142,K163,O163)*(U151-Y151)^2*0.1+2*IF(W142,K164,O164)*(U151-Y151)*0.1)<0,0,IF(((IF(W142,K159,O159)+2*IF(W142,K160,O160)*Y149+IF(W142,K161,O161)*(U151-Y151)+IF(W142,K162,O162)*(U151-Y151)^2+2*IF(W142,K163,O163)*(U151-Y151)^2*Y149+2*IF(W142,K164,O164)*(U151-Y151)*Y149)*U145/IF(W142,1,1)*W149)>W147,IF(Y149<V188,Y149,V188),IF((W147/(U145/IF(W142,1,1)*W149)-IF(W142,K159,O159)-IF(W142,K161,O161)*(U151-Y151)-IF(W142,K162,O162)*(U151-Y151)^2)/(2*(IF(W142,K160,O160)+IF(W142,K163,O163)*(U151-Y151)^2+IF(W142,K164,O164)*(U151-Y151)))<0,0,IF((W147/(U145/IF(W142,1,1)*W149)-IF(W142,K159,O159)-IF(W142,K161,O161)*(U151-Y151)-IF(W142,K162,O162)*(U151-Y151)^2)/(2*(IF(W142,K160,O160)+IF(W142,K163,O163)*(U151-Y151)^2+IF(W142,K164,O164)*(U151-Y151)))>V188,V188,(W147/(U145/IF(W142,1,1)*W149)-IF(W142,K159,O159)-IF(W142,K161,O161)*(U151-Y151)-IF(W142,K162,O162)*(U151-Y151)^2)/(2*(IF(W142,K160,O160)+IF(W142,K163,O163)*(U151-Y151)^2+IF(W142,K164,O164)*(U151-Y151))))))) -> 104.1113805 | W156: =+U187 -> 148.8796611 | Z156: =CONCATENATE("Soybean Grain Yield (kg ha",Z155,")") -> Soybean Grain Yield (kg ha⁻¹) | BI156: Avg | BJ156: =+U156 -> 94.71894608 | BK156: =+BJ156^2 -> 8971.678746 | BL156: =+U151*BJ156 -> 8051.110416 | BM156: =U151^2*BJ156 -> 684344.3854 | BN156: =+U151^2*BK156 -> 64820378.94 | BO156: =U151*BK156 -> 762592.6934
A157: 156 | B157: 96.26485569 | C157: 120 | D157: 2009 | E157: 45 | F157: 44 | G157: 105 | H157: 0 | J157: KSOIL | K157: 0.3538087627 | L157: 0.03899492056 | M157: 9.073201269 | N157: 7.294997935e-18 | O157: 0.3542995066 | Q157: VMP @ Profit Max: | T157: =IF((IF(W142,K159,O159)+2*IF(W142,K160,O160)*T156+IF(W142,K161,O161)*(U151+Y151)+IF(W142,K162,O162)*(U151+Y151)^2+2*IF(W142,K163,O163)*(U151+Y151)^2*T156+2*IF(W142,K164,O164)*(U151+Y151)*T156)*U145*W149<0,"na",(IF(W142,K159,O159)+2*IF(W142,K160,O160)*T156+IF(W142,K161,O161)*(U151+Y151)+IF(W142,K162,O162)*(U151+Y151)^2+2*IF(W142,K163,O163)*(U151+Y151)^2*T156+2*IF(W142,K164,O164)*(U151+Y151)*T156))*U145*W149 -> 0.6833333333 | U157: =IF((IF(W142,K159,O159)+2*IF(W142,K160,O160)*U156+IF(W142,K161,O161)*(U151)+IF(W142,K162,O162)*(U151)^2+2*IF(W142,K163,O163)*(U151)^2*U156+2*IF(W142,K164,O164)*(U151)*U156)*U145*W149<0,"na",((IF(W142,K159,O159)+2*IF(W142,K160,O160)*U156+IF(W142,K161,O161)*(U151)+IF(W142,K162,O162)*(U151)^2+2*IF(W142,K163,O163)*(U151)^2*U156+2*IF(W142,K164,O164)*(U151)*U156)*U145*W149)) -> 0.6833333333 | V157: =IF((IF(W142,K159,O159)+2*IF(W142,K160,O160)*V156+IF(W142,K161,O161)*(U151-Y151)+IF(W142,K162,O162)*(U151-Y151)^2+2*IF(W142,K163,O163)*(U151-Y151)^2*V156+2*IF(W142,K164,O164)*(U151-Y151)*V156)*U145*W149<0,"na",(IF(W142,K159,O159)+2*IF(W142,K160,O160)*V156+IF(W142,K161,O161)*(U151-Y151)+IF(W142,K162,O162)*(U151-Y151)^2+2*IF(W142,K163,O163)*(U151-Y151)^2*V156+2*IF(W142,K164,O164)*(U151-Y151)*V156)*U145*W149) -> 0.6833333333 | Z157: =CONCATENATE("Fertilizer-K Application Rate (kg K ha",Z155,")") -> Fertilizer-K Application Rate (kg K ha⁻¹) | BI157: High | BJ157: =+T156 -> 83.00249179 | BK157: =+BJ157^2 -> 6889.413643 | BL157: =+(U151+Y151)*BJ157 -> 7885.23672 | BM157: =+(U151+Y151)^2*BJ157 -> 749097.4884 | BN157: =+(U151+Y151)^2*BK157 -> 62176958.13 | BO157: =(U151+Y151)*BK157 -> 654494.2961
A158: 157 | B158: 100 | C158: 160 | D158: 2009 | E158: 45 | F158: 52 | G158: 123 | H158: 0 | J158: KSOIL^2 | K158: -0.0007615153282 | L158: 0.000107035554 | M158: -7.114601645 | N158: 5.975226827e-12 | O158: -0.0007626497765 | Q158: UAEX recommendation: | T158: =IF((237-1.61*(U151+Y151))*0.930509090050236<0,0,(237-1.61*(U151+Y151))*0.930509090050236) -> 78.20928902 | U158: =+Y153 -> 100.15 | V158: =IF((237-1.61*(U151-Y151))*0.930509090050236<0,0,(237-1.61*(U151-Y151))*0.930509090050236) -> 108.1716817 | BJ158: Coefficient Covariance Matrix as available in Eviews under the View Menu in the Equation Editor
A159: 158 | B159: 76.82333874 | C159: 0 | D159: 2009 | E159: 46 | F159: 6 | G159: 81 | H159: 0 | J159: MKRATE | K159: 0.5584222624 | L159: 0.08932162353 | M159: 6.251814962 | N159: 1.133541445e-09 | O159: 0.515588092 | T159: =+T156-T158 -> 4.793202768 | U159: =+U156-U158 -> -5.431053924 | V159: =+V156-V158 -> -4.060301266 | W159: Est. Yield Max | BJ159: K | BK159: K^2 | BL159: S*K | BM159: S^2*K | BN159: S^2*K^2 | BO159: S*K^2 | BP159: Low | BQ159: Avg | BR159: High | BW159: English
A160: 159 | B160: 86.54781199 | C160: 40 | D160: 2009 | E160: 46 | F160: 15 | G160: 94 | H160: 0 | J160: MKRATE^2 | K160: -0.001895548971 | L160: 0.0004438597985 | M160: -4.270602963 | N160: 2.48921076e-05 | O160: -0.001611024819 | Q160: Est. Yield at Profit-Max K: | T160: =IF((+K156+K157*(U151+Y151)+K158*(U151+Y151)^2+IF(W142,K159,O159)*T156+IF(W142,K160,O160)*T156^2+IF(W142,K161,O161)*(U151+Y151)*T156+IF(W142,K162,O162)*(U151+Y151)^2*T156+IF(W142,K163,O163)*(U151+Y151)^2*T156^2+IF(W142,K164,O164)*(U151+Y151)*T156^2)*W149>U149,U149,(+K156+K157*(U151+Y151)+K158*(U151+Y151)^2+IF(W142,K159,O159)*T156+IF(W142,K160,O160)*T156^2+IF(W142,K161,O161)*(U151+Y151)*T156+IF(W142,K162,O162)*(U151+Y151)^2*T156+IF(W142,K163,O163)*(U151+Y151)^2*T156^2+IF(W142,K164,O164)*(U151+Y151)*T156^2)*W149) -> 72.03463182 | U160: =IF((+K156+K157*U151+K158*U151^2+IF(W142,K159,O159)*U156+IF(W142,K160,O160)*U156^2+IF(W142,K161,O161)*U151*U156+IF(W142,K162,O162)*U151^2*U156+IF(W142,K163,O163)*U151^2*U156^2+IF(W142,K164,O164)*(U151)*U156^2)*W149>U149,U149,(+K156+K157*U151+K158*U151^2+IF(W142,K159,O159)*U156+IF(W142,K160,O160)*U156^2+IF(W142,K161,O161)*U151*U156+IF(W142,K162,O162)*U151^2*U156+IF(W142,K163,O163)*U151^2*U156^2+IF(W142,K164,O164)*(U151)*U156^2)*W149) -> 72.42510448 | V160: =IF((+K156+K157*(U151-Y151)+K158*(U151-Y151)^2+IF(W142,K159,O159)*V156+IF(W142,K160,O160)*V156^2+IF(W142,K161,O161)*(U151-Y151)*V156+IF(W142,K162,O162)*(U151-Y151)^2*V156+IF(W142,K163,O163)*(U151-Y151)^2*V156^2+IF(W142,K164,O164)*(U151-Y151)*V156^2)*W149>U149,U149,(+K156+K157*(U151-Y151)+K158*(U151-Y151)^2+IF(W142,K159,O159)*V156+IF(W142,K160,O160)*V156^2+IF(W142,K161,O161)*(U151-Y151)*V156+IF(W142,K162,O162)*(U151-Y151)^2*V156+IF(W142,K163,O163)*(U151-Y151)^2*V156^2+IF(W142,K164,O164)*(U151-Y151)*V156^2)*W149) -> 72.79120283 | W160: =IF((+K156+K157*U151+K158*U151^2+IF(W142,K159,O159)*W156+IF(W142,K160,O160)*W156^2+IF(W142,K161,O161)*U151*W156+IF(W142,K162,O162)*U151^2*W156+IF(W142,K163,O163)*U151^2*W156^2+IF(W142,K164,O164)*(U151)*W156^2)*W149>U149,U149,(+K156+K157*U151+K158*U151^2+IF(W142,K159,O159)*W156+IF(W142,K160,O160)*W156^2+IF(W142,K161,O161)*U151*W156+IF(W142,K162,O162)*U151^2*W156+IF(W142,K163,O163)*U151^2*W156^2+IF(W142,K164,O164)*(U151)*W156^2)*W149) -> 73.79583863 | BI160: KRATE | BJ160: =IF($W$142,BU167,BU160) -> 0.006153623978 | BK160: =IF($W$142,BV167,BV160) -> -2.902443715e-05 | BL160: -7.77397736e-05 | BM160: 1.986694516e-07 | BN160: -9.392180491e-10 | BO160: 3.678351258e-07 | BP160: =+BJ155 -> 104.1113805 | BQ160: =+BJ156 -> 94.71894608 | BR160: =+BJ157 -> 83.00249179 | BU160: 0.006153623978 | BV160: -2.902443715e-05 | BW160: -7.77397736e-05 | BX160: 1.986694516e-07 | BY160: -9.392180491e-10 | BZ160: 3.678351258e-07
A161: 160 | B161: 94.81361426 | C161: 80 | D161: 2009 | E161: 46 | F161: 32 | G161: 98 | H161: 0 | J161: KSOIL*MKRATE | K161: -0.005150455329 | L161: 0.0009872529011 | M161: -5.216956388 | N161: 3.056027235e-07 | O161: -0.004757942336 | Q161: Est. Yield at UAEX rec.: | T161: =IF((+K156+K157*(U151+Y151)+K158*(U151+Y151)^2+IF(W142,K159,O159)*T158+IF(W142,K160,O160)*T158^2+IF(W142,K161,O161)*(U151+Y151)*T158+IF(W142,K162,O162)*(U151+Y151)^2*T158+IF(W142,K163,O163)*(U151+Y151)^2*T158^2+IF(W142,K164,O164)*(U151+Y151)*T158^2)*W149>U149,U149,(+K156+K157*(U151+Y151)+K158*(U151+Y151)^2+IF(W142,K159,O159)*T158+IF(W142,K160,O160)*T158^2+IF(W142,K161,O161)*(U151+Y151)*T158+IF(W142,K162,O162)*(U151+Y151)^2*T158+IF(W142,K163,O163)*(U151+Y151)^2*T158^2+IF(W142,K164,O164)*(U151+Y151)*T158^2)*W149) -> 71.78277747 | U161: =IF((+K156+K157*U151+K158*U151^2+IF(W142,K159,O159)*U158+IF(W142,K160,O160)*U158^2+IF(W142,K161,O161)*U151*U158+IF(W142,K162,O162)*U151^2*U158+IF(W142,K163,O163)*U151^2*U158^2+IF(W142,K164,O164)*(U151)*U158^2)*W149>U149,U149,(+K156+K157*U151+K158*U151^2+IF(W142,K159,O159)*U158+IF(W142,K160,O160)*U158^2+IF(W142,K161,O161)*U151*U158+IF(W142,K162,O162)*U151^2*U158+IF(W142,K163,O163)*U151^2*U158^2+IF(W142,K164,O164)*(U151)*U158^2)*W149) -> 72.6862264 | V161: =IF((+K156+K157*(U151-Y151)+K158*(U151-Y151)^2+IF(W142,K159,O159)*V158+IF(W142,K160,O160)*V158^2+IF(W142,K161,O161)*(U151-Y151)*V158+IF(W142,K162,O162)*(U151-Y151)^2*V158+IF(W142,K163,O163)*(U151-Y151)^2*V158^2+IF(W142,K164,O164)*(U151-Y151)*V158^2)*W149>U149,U149,(+K156+K157*(U151-Y151)+K158*(U151-Y151)^2+IF(W142,K159,O159)*V158+IF(W142,K160,O160)*V158^2+IF(W142,K161,O161)*(U151-Y151)*V158+IF(W142,K162,O162)*(U151-Y151)^2*V158+IF(W142,K163,O163)*(U151-Y151)^2*V158^2+IF(W142,K164,O164)*(U151-Y151)*V158^2)*W149) -> 72.98786798 | BI161: KRATE^2 | BJ161: =IF($W$142,BU168,BU161) -> -2.902443715e-05 | BK161: 1.418102744e-07 | BL161: 3.681021432e-07 | BM161: -9.415661121e-10 | BN161: 4.620038619e-12 | BO161: -1.806952436e-09 | BP161: =+BK155 -> 10839.17954 | BQ161: =+BK156 -> 8971.678746 | BR161: =+BK157 -> 6889.413643 | BU161: -2.902443715e-05 | BV161: 1.418102744e-07 | BW161: 3.681021432e-07 | BX161: -9.415661121e-10 | BY161: 4.620038619e-12 | BZ161: -1.806952436e-09
A162: 161 | B162: 96.75850891 | C162: 120 | D162: 2009 | E162: 46 | F162: 45 | G162: 105 | H162: 0 | J162: KSOIL^2*MKRATE | K162: 1.114166895e-05 | L162: 2.528337922e-06 | M162: 4.406716703 | N162: 1.381572918e-05 | O162: 1.029149839e-05 | Q162: Added Profit in $/acre | T162: =+(T160-T161)*U145/IF(W142,1,1)-(T156-T158)*W147-IF(T158=0,IF(T156=0,0,U153),IF(T156=0,IF(T158>0,-U153,0))) -> 0.1246785392 | U162: =+(U160-U161)*U145/IF(W142,1,1)-(U156-U158)*W147-IF(U158=0,IF(U156=0,0,U153),IF(U156=0,IF(U158>0,-U153,0))) -> 0.1860743247 | V162: =+(V160-V161)*U145/IF(W142,1,1)-(V156-V158)*W147-IF(V158=0,IF(V156=0,0,U153),IF(V156=0,IF(V158>0,-U153,0))) -> 0.1195595928 | W162: =+(U160-W160)*U145/IF(W142,1,1)-(U156-W156)*W147-IF(W156=0,IF(U156=0,0,U153),IF(U156=0,IF(W156>0,-U153,0))) -> 18.50491095 | BI162: KSOIL*KRATE | BJ162: -7.77397736e-05 | BK162: 3.681021432e-07 | BL162: 1.05864846e-06 | BM162: -2.843675092e-09 | BN162: 1.3607416e-11 | BO162: -5.056404994e-09 | BP162: =+BL155 -> 7808.353534 | BQ162: =+BL156 -> 8051.110416 | BR162: =+BL157 -> 7885.23672 | BU162: -7.77397736e-05 | BV162: 3.681021432e-07 | BW162: 1.05864846e-06 | BX162: -2.843675092e-09 | BY162: 1.3607416e-11 | BZ162: -5.056404994e-09
A163: 162 | B163: 100 | C163: 160 | D163: 2009 | E163: 46 | F163: 53 | G163: 115 | H163: 0 | J163: KSOIL^2*MKRATE^2 | K163: -3.614401676e-08 | L163: 1.184281091e-08 | M163: -3.051979554 | N163: 0.002439868623 | O163: -3.06921373e-08 | Q163: Yield change: | T163: =+T161-T160 -> -0.2518543529 | U163: =+U161-U160 -> 0.2611219153 | V163: =+V161-V160 -> 0.196665156 | W163: =+W160-U160 -> 1.370734144 | BI163: KSOIL^2*KRATE | BJ163: 1.986694516e-07 | BK163: -9.415661121e-10 | BL163: -2.843675092e-09 | BM163: 8.114723535e-12 | BN163: -3.905292047e-14 | BO163: 1.362763987e-11 | BP163: =+BM155 -> 585626.515 | BQ163: =+BM156 -> 684344.3854 | BR163: =+BM157 -> 749097.4884 | BU163: 1.986694516e-07 | BV163: -9.415661121e-10 | BW163: -2.843675092e-09 | BX163: 8.114723535e-12 | BY163: -3.905292047e-14 | BZ163: 1.362763987e-11
A164: 163 | B164: 78.63397548 | C164: 0 | D164: 2010 | E164: 47 | F164: 1 | G164: 73 | H164: 0 | J164: KSOIL*MKRATE^2 | K164: 1.673402449e-05 | L164: 4.792630617e-06 | M164: 3.491615739 | N164: 0.0005389506417 | O164: 1.423205995e-05 | Q164: K rate | R164: =CONCATENATE("Est. Yield (STK = ",U151,")") -> Est. Yield (STK = 85) | S164: =CONCATENATE("Est. Yield (STK = ",U151-Y151,")") -> Est. Yield (STK = 75) | T164: =CONCATENATE("Est. Yield (STK = ",U151+Y151,")") -> Est. Yield (STK = 95) | AA164: Year | AB164: Potash Fertilizer Price in $/ton | AC164: Soybean Price in $/bu | AD164: Soybean Yield in bu/acre | AE164: $/kg Ps | AF164: $/Mg K | AG164: Y in kg/ha | AI164: $/kg K | BI164: KSOIL^2*KRATE^2 | BJ164: -9.392180491e-10 | BK164: 4.620038619e-12 | BL164: 1.3607416e-11 | BM164: -3.905292047e-14 | BN164: 1.962642187e-16 | BO164: -6.798547564e-14 | BP164: =+BN155 -> 60970384.91 | BQ164: =+BN156 -> 64820378.94 | BR164: =+BN157 -> 62176958.13 | BU164: -9.392180491e-10 | BV164: 4.620038619e-12 | BW164: 1.3607416e-11 | BX164: -3.905292047e-14 | BY164: 1.962642187e-16 | BZ164: -6.798547564e-14
A165: 164 | B165: 95.79684764 | C165: 45 | D165: 2010 | E165: 47 | F165: 22 | G165: 73 | H165: 0 | Q165: 0 | R165: =IF((IF($W$142,$K$156,$O$156)+IF($W$142,$K$157,$O$157)*$U$151+IF($W$142,$K$158,$O$158)*$U$151^2+IF($W$142,$K$159,$O$159)*Q165+IF($W$142,$K$160,$O$160)*Q165^2+IF($W$142,$K$161,$O$161)*$U$151*Q165+IF($W$142,$K$162,$O$162)*$U$151^2*Q165+IF($W$142,$K$163,$O$163)*$U$151^2*Q165^2+IF($W$142,$K$164,$O$164)*$U$151*Q165^2)*$W$149>$U$149,$U$149,(IF($W$142,$K$156,$O$156)+IF($W$142,$K$157,$O$157)*$U$151+IF($W$142,$K$158,$O$158)*$U$151^2+IF($W$142,$K$159,$O$159)*Q165+IF($W$142,$K$160,$O$160)*Q165^2+IF($W$142,$K$161,$O$161)*$U$151*Q165+IF($W$142,$K$162,$O$162)*$U$151^2*Q165+IF($W$142,$K$163,$O$163)*$U$151^2*Q165^2+IF($W$142,$K$164,$O$164)*$U$151*Q165^2)*$W$149) -> 63.40590895 | S165: =IF((+$K$156+$K$157*($U$151-$Y$151)+$K$158*($U$151-$Y$151)^2+IF($W$142,$K$159,$O$159)*Q165+IF($W$142,$K$160,$O$160)*Q165^2+IF($W$142,$K$161,$O$161)*($U$151-$Y$151)*Q165+IF($W$142,$K$162,$O$162)*($U$151-$Y$151)^2*Q165+IF($W$142,$K$163,$O$163)*($U$151-$Y$151)^2*Q165^2+IF($W$142,$K$164,$O$164)*($U$151-$Y$151)*Q165^2)*$W$149>$U$149,$U$149,(+$K$156+$K$157*($U$151-$Y$151)+$K$158*($U$151-$Y$151)^2+IF($W$142,$K$159,$O$159)*Q165+IF($W$142,$K$160,$O$160)*Q165^2+IF($W$142,$K$161,$O$161)*($U$151-$Y$151)*Q165+IF($W$142,$K$162,$O$162)*($U$151-$Y$151)^2*Q165+IF($W$142,$K$163,$O$163)*($U$151-$Y$151)^2*Q165^2+IF($W$142,$K$164,$O$164)*($U$151-$Y$151)*Q165^2)*$W$149) -> 61.69858524 | T165: =IF((+$K$156+$K$157*($U$151+$Y$151)+$K$158*($U$151+$Y$151)^2+IF($W$142,$K$159,$O$159)*Q165+IF($W$142,$K$160,$O$160)*Q165^2+IF($W$142,$K$161,$O$161)*($U$151+$Y$151)*Q165+IF($W$142,$K$162,$O$162)*($U$151+$Y$151)^2*Q165+IF($W$142,$K$163,$O$163)*($U$151+$Y$151)^2*Q165^2+IF($W$142,$K$164,$O$164)*($U$151+$Y$151)*Q165^2)*$W$149>$U$149,$U$149,(+$K$156+$K$157*($U$151+$Y$151)+$K$158*($U$151+$Y$151)^2+IF($W$142,$K$159,$O$159)*Q165+IF($W$142,$K$160,$O$160)*Q165^2+IF($W$142,$K$161,$O$161)*($U$151+$Y$151)*Q165+IF($W$142,$K$162,$O$162)*($U$151+$Y$151)^2*Q165+IF($W$142,$K$163,$O$163)*($U$151+$Y$151)^2*Q165^2+IF($W$142,$K$164,$O$164)*($U$151+$Y$151)*Q165^2)*$W$149) -> 65.06385259 | U165: =ROUNDUP((MAX(BJ175:BJ548,U149)+IF(W142,500,10))/10,0)*10 -> 90 | AA165: 2009 | AB165: =26.1*20 -> 522 | AC165: 9.66 | AD165: 39 | AE165: =+AC165/60*2204.62/1000 -> 0.35494382 | AF165: =+AB165/2000*2204 -> 575.244 | AG165: =+(AD165*60*0.4536)*2.4711 -> 2622.884846 | AI165: =+AF165/1000/0.49809078131038 -> 1.154897905 | AR165: =CONCATENATE("Obs. Yields (",U151-Y151," < STK < ",U151+Y151,")") -> Obs. Yields (75 < STK < 95) | BI165: KSOIL*KRATE^2 | BJ165: 3.678351258e-07 | BK165: -1.806952436e-09 | BL165: -5.056404994e-09 | BM165: 1.362763987e-11 | BN165: -6.798547564e-14 | BO165: 2.514909949e-11 | BP165: =+BO155 -> 812938.4655 | BQ165: =+BO156 -> 762592.6934 | BR165: =+BO157 -> 654494.2961 | BU165: 3.678351258e-07 | BV165: -1.806952436e-09 | BW165: -5.056404994e-09 | BX165: 1.362763987e-11 | BY165: -6.798547564e-14 | BZ165: 2.514909949e-11
A166: 165 | B166: 100 | C166: 90 | D166: 2010 | E166: 47 | F166: 39 | G166: 73 | H166: 0 | K166: Effects Specification | Q166: 2 | R166: =IF((IF($W$142,$K$156,$O$156)+IF($W$142,$K$157,$O$157)*$U$151+IF($W$142,$K$158,$O$158)*$U$151^2+IF($W$142,$K$159,$O$159)*Q166+IF($W$142,$K$160,$O$160)*Q166^2+IF($W$142,$K$161,$O$161)*$U$151*Q166+IF($W$142,$K$162,$O$162)*$U$151^2*Q166+IF($W$142,$K$163,$O$163)*$U$151^2*Q166^2+IF($W$142,$K$164,$O$164)*$U$151*Q166^2)*$W$149>$U$149,$U$149,(IF($W$142,$K$156,$O$156)+IF($W$142,$K$157,$O$157)*$U$151+IF($W$142,$K$158,$O$158)*$U$151^2+IF($W$142,$K$159,$O$159)*Q166+IF($W$142,$K$160,$O$160)*Q166^2+IF($W$142,$K$161,$O$161)*$U$151*Q166+IF($W$142,$K$162,$O$162)*$U$151^2*Q166+IF($W$142,$K$163,$O$163)*$U$151^2*Q166^2+IF($W$142,$K$164,$O$164)*$U$151*Q166^2)*$W$149) -> 63.68231841 | S166: =IF((+$K$156+$K$157*($U$151-$Y$151)+$K$158*($U$151-$Y$151)^2+IF($W$142,$K$159,$O$159)*Q166+IF($W$142,$K$160,$O$160)*Q166^2+IF($W$142,$K$161,$O$161)*($U$151-$Y$151)*Q166+IF($W$142,$K$162,$O$162)*($U$151-$Y$151)^2*Q166+IF($W$142,$K$163,$O$163)*($U$151-$Y$151)^2*Q166^2+IF($W$142,$K$164,$O$164)*($U$151-$Y$151)*Q166^2)*$W$149>$U$149,$U$149,(+$K$156+$K$157*($U$151-$Y$151)+$K$158*($U$151-$Y$151)^2+IF($W$142,$K$159,$O$159)*Q166+IF($W$142,$K$160,$O$160)*Q166^2+IF($W$142,$K$161,$O$161)*($U$151-$Y$151)*Q166+IF($W$142,$K$162,$O$162)*($U$151-$Y$151)^2*Q166+IF($W$142,$K$163,$O$163)*($U$151-$Y$151)^2*Q166^2+IF($W$142,$K$164,$O$164)*($U$151-$Y$151)*Q166^2)*$W$149) -> 62.02138459 | T166: =IF((+$K$156+$K$157*($U$151+$Y$151)+$K$158*($U$151+$Y$151)^2+IF($W$142,$K$159,$O$159)*Q166+IF($W$142,$K$160,$O$160)*Q166^2+IF($W$142,$K$161,$O$161)*($U$151+$Y$151)*Q166+IF($W$142,$K$162,$O$162)*($U$151+$Y$151)^2*Q166+IF($W$142,$K$163,$O$163)*($U$151+$Y$151)^2*Q166^2+IF($W$142,$K$164,$O$164)*($U$151+$Y$151)*Q166^2)*$W$149>$U$149,$U$149,(+$K$156+$K$157*($U$151+$Y$151)+$K$158*($U$151+$Y$151)^2+IF($W$142,$K$159,$O$159)*Q166+IF($W$142,$K$160,$O$160)*Q166^2+IF($W$142,$K$161,$O$161)*($U$151+$Y$151)*Q166+IF($W$142,$K$162,$O$162)*($U$151+$Y$151)^2*Q166+IF($W$142,$K$163,$O$163)*($U$151+$Y$151)^2*Q166^2+IF($W$142,$K$164,$O$164)*($U$151+$Y$151)*Q166^2)*$W$149) -> 65.29694118 | U166: =ROUNDDOWN((S165-IF(W142,500,10))/10,0)*10 -> 50 | AA166: 2010 | AB166: =23*20 -> 460 | AC166: 10.9 | AD166: 39.5 | AE166: =+AC166/60*2204.62/1000 -> 0.4005059667 | AF166: =+AB166/2000*2204 -> 506.92 | AG166: =+(AD166*60*0.4536)*2.4711 -> 2656.511575 | AI166: =+AF166/1000/0.49809078131038 -> 1.017726123 | AR166: =CONCATENATE("Estimated Yield Response to K Fertilizer and Profit-Maximizing Application Rates for a Range of Initial Soil-Test K Values (STK) at Specified Yield Potential") -> Estimated Yield Response to K Fertilizer and Profit-Maximizing Application Rates for a Range of Initial Soil-Test K Values (STK) at Specified Yield Potential | BW166: Metric
A167: 166 | B167: 92.92543021 | C167: 0 | D167: 2010 | E167: 49 | F167: 2 | G167: 73 | H167: 0 | M167: S.D. | N167: Rho | Q167: 5 | R167: 64.08992327 | S167: 62.49752565 | T167: 65.64054434 | AA167: 2011 | AB167: =29.19*20 -> 583.8 | AC167: 12.3 | AD167: 42.2 | AE167: 0.4519471 | AF167: 643.3476 | AG167: 2838.095911 | AI167: 1.291627198 | BU167: 0.007978352431 | BV167: -3.914722195e-05 | BW167: -8.542603635e-05 | BX167: 1.888551474e-07 | BY167: -8.382988803e-10 | BZ167: 4.079309434e-07
A168: 167 | B168: 98.47036329 | C168: 40 | D168: 2010 | E168: 49 | F168: 14 | G168: 109 | H168: 0 | Q168: 7 | R168: 64.35698696 | S168: 62.80958105 | T168: 65.86559329 | AA168: 2012 | AB168: =29.8*20 -> 596 | AC168: 14.3 | AD168: 48.3 | AE168: 0.5254344333 | AF168: 656.792 | AG168: 3248.342002 | AI168: 1.318619064 | BU168: -3.914722195e-05 | BV168: 1.970115207e-07 | BW168: 4.163377502e-07 | BX168: -8.855216898e-10 | BY168: 4.003477611e-12 | BZ168: -2.037638646e-09
A169: 168 | B169: 100 | C169: 80 | D169: 2010 | E169: 49 | F169: 31 | G169: 115 | H169: 0 | J169: Period random | M169: 1.101110922 | N169: 0.04982149258 | Q169: 10 | R169: 64.75057319 | S169: 63.26960618 | T169: 66.19713699 | AA169: 2013 | AB169: =23.75*20 -> 475 | AC169: 13.1 | AD169: 46.4 | AE169: 0.4813420333 | AF169: 523.45 | AG169: 3120.560433 | AI169: 1.050912845 | BU169: -8.542603635e-05 | BV169: 4.163377502e-07 | BW169: 9.746682908e-07 | BX169: -2.318912192e-09 | BY169: 1.055673656e-11 | BZ169: -4.661499405e-09
A170: 169 | B170: 93.30783939 | C170: 120 | D170: 2010 | E170: 49 | F170: 41 | G170: 142 | H170: 0 | J170: Idiosyncratic random | M170: 4.808673658 | N170: 0.9501785074 | Q170: 15 | R170: 65.38785873 | S170: 64.01482683 | T170: 66.73363056 | AA170: 2014 | AB170: =23.6*20 -> 472 | AC170: 10.6 | AD170: 51.9 | AE170: 0.3894828667 | AF170: 520.144 | AG170: 3490.454449 | AI170: 1.044275501 | BU170: 1.888551474e-07 | BV170: -8.855216898e-10 | BW170: -2.318912192e-09 | BX170: 6.392492648e-12 | BY170: -2.929105109e-14 | BZ170: 1.076790656e-11
A171: 170 | B171: 96.94072658 | C171: 160 | D171: 2010 | E171: 49 | F171: 52 | G171: 151 | H171: 0 | Q171: 30 | R171: 67.15952898 | S171: 66.08932946 | T171: 68.22251674 | AA171: 2015 | AB171: =21.27*20 -> 425.4 | AC171: 9.46 | AD171: 51.4 | AE171: 0.3475950867 | AF171: 468.7908 | AG171: 3456.827721 | AI171: 0.9411754194 | BU171: -8.382988803e-10 | BV171: 4.003477611e-12 | BW171: 1.055673656e-11 | BX171: -2.929105109e-14 | BY171: 1.402521702e-16 | BZ171: -5.056382676e-14
A172: 171 | B172: 74.32432432 | C172: 0 | D172: 2011 | E172: 51 | F172: 1 | G172: 167 | H172: 0 | K172: Weighted Statistics | Q172: 45 | R172: 68.72091973 | S172: 67.92209312 | T172: 69.53051113 | AA172: 2016 | AB172: =16.97*20 -> 339.4 | AC172: 9.83 | AD172: 50 | AE172: 0.3611902433 | AF172: 374.0188 | AG172: 3362.67288 | AI172: 0.7509048833 | BP172: 0.9305090901 | BQ172: convert lbs of K20/acre to kg K ha-1 | BU172: 4.079309434e-07 | BV172: -2.037638646e-09 | BW172: -4.661499405e-09 | BX172: 1.076790656e-11 | BY172: -5.056382676e-14 | BZ172: 2.296930823e-11
A173: 172 | B173: 91.89189189 | C173: 40 | D173: 2011 | E173: 51 | F173: 14 | G173: 57 | H173: 0 | Q173: 60 | R173: 70.07203095 | S173: 69.51311782 | T173: 70.65761374 | AA173: 2017 | AB173: =18.98*20 -> 379.6 | AC173: 9.77 | AD173: 52.9 | AE173: 0.3589856233 | AF173: 418.3192 | AG173: 3557.707907 | AI173: 0.8398452967 | BJ173: Actual RelYld Obs Converted to Yield | BN173: Min Yield
A174: 173 | B174: 95.94594595 | C174: 80 | D174: 2011 | E174: 51 | F174: 31 | G174: 63 | H174: 0 | J174: R-squared | K174: 0.6017576178 | L174: Mean dependent var | N174: 61.92672705 | Q174: 75 | R174: 71.21286266 | S174: 70.86240356 | T174: 71.60382456 | AA174: 2018 | AB174: =20*20 -> 400 | AC174: 8.81 | AD174: 53.2 | AE174: 0.3237117033 | AF174: 440.8 | AG174: 3577.883944 | AI174: 0.8849792378 | BI174: RelYld | BJ174: Yield | BK174: Krate | BL174: Ksoil | BN174: =MIN(BN175:BN548) -> 49.66044143 | BP174: Mkrate
A175: 174 | B175: 98.64864865 | C175: 120 | D175: 2011 | E175: 51 | F175: 41 | G175: 72 | H175: 0 | J175: Adjusted R-squared | K175: 0.5930290176 | L175: S.D. dependent var | N175: 8.558721579 | Q175: 90 | R175: 72.14341486 | S175: 71.96995033 | T175: 72.3691436 | AA175: Avg. | AB175: =AVERAGE($AB$165:$AB$174) -> 465.32 | AC175: =AVERAGE($AC$165:$AC$174) -> 10.873 | AD175: =AVERAGE($AD$165:$AD$174) -> 47.48 | AE175: =+AC175/60*2204.62/1000 -> 0.3995138877 | AF175: 512.78264 | AG175: =+(AD175*60*0.4536)*2.4711 -> 3193.194167 | AI175: 1.029496347 | BI175: =_xlfn.NUMBERVALUE(IF(AND($G2>=($U$151-$Y$151),$G2<=($U$151+$Y$151)),B2,"")) -> 0 | BJ175: =_xlfn.NUMBERVALUE(IFERROR(+BI175*$W$149,"")) -> 0 | BK175: =_xlfn.NUMBERVALUE(IF(AND($G2>=($U$151-$Y$151),$G2<=($U$151+$Y$151)),C2,"")) -> 0 | BL175: =_xlfn.NUMBERVALUE(IF(AND($G2>=($U$151-$Y$151),$G2<=($U$151+$Y$151)),G2,"")) -> 0 | BN175: =IF(BJ175=0,999,BJ175) -> 999 | BP175: =+BK175*$BP$172 -> 0
A176: 175 | B176: 100 | C176: 160 | D176: 2011 | E176: 51 | F176: 52 | G176: 83 | H176: 0 | J176: S.E. of regression | K176: 4.809805925 | L176: Sum squared resid | N176: 8443.995058 | Q176: 105 | R176: 72.86368754 | S176: 72.83575814 | T176: 72.95357085 | AA176: Min. | AB176: =MIN($AB$165:$AB$174) -> 339.4 | AC176: =MIN($AC$165:$AC$174) -> 8.81 | AD176: =MIN($AD$165:$AD$174) -> 39 | BI176: =_xlfn.NUMBERVALUE(IF(AND($G3>=($U$151-$Y$151),$G3<=($U$151+$Y$151)),B3,"")) -> 0 | BJ176: =_xlfn.NUMBERVALUE(IFERROR(+BI176*$W$149,"")) -> 0 | BK176: =_xlfn.NUMBERVALUE(IF(AND($G3>=($U$151-$Y$151),$G3<=($U$151+$Y$151)),C3,"")) -> 0 | BL176: =_xlfn.NUMBERVALUE(IF(AND($G3>=($U$151-$Y$151),$G3<=($U$151+$Y$151)),G3,"")) -> 0 | BN176: =IF(BJ176=0,999,BJ176) -> 999 | BP176: =+BK176*$BP$172 -> 0
A177: 176 | B177: 89.65517241 | C177: 0 | D177: 2011 | E177: 53 | F177: 2 | G177: 89 | H177: 0 | J177: F-statistic | K177: 68.94090769 | L177: Durbin-Watson stat | N177: 1.923903196 | Q177: 120 | R177: 73.37368071 | S177: 73.45982699 | T177: 73.35710631 | AA177: Max. | AB177: =MAX($AB$165:$AB$174) -> 596 | AC177: =MAX($AC$165:$AC$174) -> 14.3 | AD177: =MAX($AD$165:$AD$174) -> 53.2 | BI177: 0 | BJ177: 0 | BK177: 0 | BL177: 0 | BN177: 999 | BP177: 0
A178: 177 | B178: 98.27586207 | C178: 40 | D178: 2011 | E178: 53 | F178: 15 | G178: 113 | H178: 0 | J178: Prob(F-statistic) | K178: 2.45307933e-68 | Q178: 135 | R178: 73.67339436 | S178: 73.84215687 | T178: 73.57974999 | BI178: 0 | BJ178: 0 | BK178: 0 | BL178: 0 | BN178: 999 | BP178: 0
A179: 178 | B179: 100 | C179: 80 | D179: 2011 | E179: 53 | F179: 32 | G179: 120 | H179: 0 | Q179: 150 | R179: 73.76282849 | S179: 73.98274779 | T179: 73.62150188 | BI179: 0 | BJ179: 0 | BK179: 0 | BL179: 0 | BN179: 999 | BP179: 0
A180: 179 | B180: 94.82758621 | C180: 120 | D180: 2011 | E180: 53 | F180: 42 | G180: 126 | H180: 0 | K180: Unweighted Statistics | Q180: 165 | R180: 73.64198311 | S180: 73.88159974 | T180: 73.48236198 | BI180: 77.50865052 | BJ180: 58.13148789 | BK180: 0 | BL180: 85 | BN180: 58.13148789 | BP180: 0
A181: 180 | B181: 93.10344828 | C181: 160 | D181: 2011 | E181: 53 | F181: 53 | G181: 143 | H181: 0 | Q181: 180 | R181: 73.31085822 | S181: 73.53871274 | T181: 73.1623303 | BI181: 82.52595156 | BJ181: 61.89446367 | BK181: 30 | BL181: 86 | BN181: 61.89446367 | BP181: 27.9152727
A182: 181 | B182: 92.06349206 | C182: 0 | D182: 2012 | E182: 57 | F182: 1 | G182: 164 | H182: 0 | J182: R-squared | K182: 0.5978137228 | L182: Mean dependent var | N182: 93.90080214 | R182: 63.40590895 | S182: 61.69858524 | T182: 65.06385259 | BI182: 100 | BJ182: 75 | BK182: 60 | BL182: 85 | BN182: 75 | BP182: 55.8305454
A183: 182 | B183: 98.41269841 | C183: 40 | D183: 2012 | E183: 57 | F183: 14 | G183: 105 | H183: 0 | R183: 63.40590895 | S183: 61.69858524 | T183: 65.06385259 | BI183: 99.30795848 | BJ183: 74.48096886 | BK183: 90 | BL183: 89 | BN183: 74.48096886 | BP183: 83.7458181
A184: 183 | B184: 100 | C184: 80 | D184: 2012 | E184: 57 | F184: 31 | G184: 126 | H184: 0 | J184: Sum squared resid | K184: 8871.074903 | L184: Durbin-Watson stat | N184: 1.876635671 | Q184: Disclaimer: This software is provided ‘as is’ and without warranties as to performance or merchantability. Further, statements may have been made to you about this software, and they do not constitute warranties and shall not be relied upon by the user to use the program or act on its results. This program is provided without any expressed or implied warranties whatsoever. Because the diversity of conditions and hardware under which this program may be used, no warranty of merchantability or warranty of fitness for a particular purpose is offered. The user is advised to test the program thoroughly before relying on it. The user assumes the entire risk of using the program. The authors will not be liable for any claim or damage brought against the user by any third party, nor will the authors be liable for any consequential, indirect, or special damages suffered by the user as a result of the software. Results pertain to silt loam soils common in major rice producing regions of the humid mid-Southern U.S. | BI184: 96.71280277 | BJ184: 72.53460208 | BK184: 120 | BL184: 95 | BN184: 72.53460208 | BP184: 111.6610908
A185: 184 | B185: 96.82539683 | C185: 120 | D185: 2012 | E185: 57 | F185: 41 | G185: 142 | H185: 0 | BI185: 0 | BJ185: 0 | BK185: 0 | BL185: 0 | BN185: 999 | BP185: 0
A186: 185 | B186: 96.82539683 | C186: 160 | D186: 2012 | E186: 57 | F186: 52 | G186: 156 | H186: 0 | BI186: 83.53658537 | BJ186: 62.65243902 | BK186: 30 | BL186: 80 | BN186: 62.65243902 | BP186: 27.9152727
A187: 186 | B187: 96.875 | C187: 0 | D187: 2012 | E187: 58 | F187: 2 | G187: 185 | H187: 0 | R187: Potash fertilizer needed @ RY = 100 if possible or K max or zero if yield max at negative K: | T187: =IF((IF(W142,K159,O159)+IF(W142,K161,O161)*($U$151+$Y$151)+IF(W142,K162,O162)*($U$151+$Y$151)^2)/(-2*(IF(W142,K160,O160)+IF(W142,K163,O163)*($U$151+$Y$151)^2+IF(W142,K164,O164)*($U$151+$Y$151)))>$Y$149,$Y$149,(IF(W142,K159,O159)+IF(W142,K161,O161)*($U$151+$Y$151)+IF(W142,K162,O162)*($U$151+$Y$151)^2)/(-2*(IF(W142,K160,O160)+IF(W142,K163,O163)*($U$151+$Y$151)^2+IF(W142,K164,O164)*($U$151+$Y$151)))) -> 145.9621713 | U187: =IF((IF(W142,K159,O159)+IF(W142,K161,O161)*($U$151)+IF(W142,K162,O162)*($U$151)^2)/(-2*(IF(W142,K160,O160)+IF(W142,K163,O163)*($U$151)^2+IF(W142,K164,O164)*($U$151)))>$Y$149,$Y$149,(IF(W142,K159,O159)+IF(W142,K161,O161)*($U$151)+IF(W142,K162,O162)*($U$151)^2)/(-2*(IF(W142,K160,O160)+IF(W142,K163,O163)*($U$151)^2+IF(W142,K164,O164)*($U$151)))) -> 148.8796611 | V187: =IF((IF(W142,K159,O159)+IF(W142,K161,O161)*($U$151-$Y$151)+IF(W142,K162,O162)*($U$151-$Y$151)^2)/(-2*(IF(W142,K160,O160)+IF(W142,K163,O163)*($U$151-$Y$151)^2+IF(W142,K164,O164)*($U$151-$Y$151)))>$Y$149,$Y$149,(IF(W142,K159,O159)+IF(W142,K161,O161)*($U$151-$Y$151)+IF(W142,K162,O162)*($U$151-$Y$151)^2)/(-2*(IF(W142,K160,O160)+IF(W142,K163,O163)*($U$151-$Y$151)^2+IF(W142,K164,O164)*($U$151-$Y$151)))) -> 151.2237232 | BI187: 87.04268293 | BJ187: 65.2820122 | BK187: 60 | BL187: 78 | BN187: 65.2820122 | BP187: 55.8305454
A188: 187 | B188: 100 | C188: 80 | D188: 2012 | E188: 58 | F188: 32 | G188: 72 | H188: 0 | T188: =IF(T187<0,0,IF(T189<T187,T189,IF(T187<$Y$149,T187,$Y$149))) -> 145.9621713 | U188: =IF(U187<0,0,IF(U189<U187,U189,IF(U187<$Y$149,U187,$Y$149))) -> 148.8796611 | V188: =IF(V187<0,0,IF(V189<V187,V189,IF(V187<$Y$149,V187,$Y$149))) -> 151.2237232 | BI188: 91.61585366 | BJ188: 68.71189024 | BK188: 90 | BL188: 79 | BN188: 68.71189024 | BP188: 83.7458181
A189: 188 | B189: 89.85507246 | C189: 0 | D189: 2012 | E189: 59 | F189: 3 | G189: 72 | H189: 0 | R189: K for RY=100 if solvable or K max: | T189: =IFERROR((SQRT(T191^2+4*T192*T190)-T191)/(2*T192),$Y$149) -> 180 | U189: =IFERROR((SQRT(U191^2+4*U192*U190)-U191)/(2*U192),$Y$149) -> 180 | V189: =IFERROR((SQRT(V191^2+4*V192*V190)-V191)/(2*V192),$Y$149) -> 180 | BI189: 100 | BJ189: 75 | BK189: 120 | BL189: 85 | BN189: 75 | BP189: 111.6610908
A190: 189 | B190: 100 | C190: 80 | D190: 2012 | E190: 59 | F190: 33 | G190: 72 | H190: 0 | S190: c | T190: =100-$K$156-$K$157*(U151+Y151)-$K$158*(U151+Y151)^2 -> 13.24819654 | U190: =100-$K$156-$K$157*U151-$K$158*U151^2 -> 15.41555658 | V190: =100-$K$156-$K$157*(U151-Y151)-$K$158*(U151-Y151)^2 -> 17.73521968 | BI190: 0 | BJ190: 0 | BK190: 0 | BL190: 0 | BN190: 999 | BP190: 0
A191: 190 | B191: 95.83333333 | C191: 0 | D191: 2012 | E191: 60 | F191: 4 | G191: 72 | H191: 0 | S191: a | T191: =IF(W142,K159,O159)+IF(W142,K161,O161)*(U151+Y151)+IF(W142,K162,O162)*(U151+Y151)^2 -> 0.1564643431 | U191: =IF(W142,K159,O159)+IF(W142,K161,O161)*(U151)+IF(W142,K162,O162)*(U151)^2 -> 0.1855190693 | V191: =IF(W142,K159,O159)+IF(W142,K161,O161)*(U151-Y151)+IF(W142,K162,O162)*(U151-Y151)^2 -> 0.2166320953 | BI191: 0 | BJ191: 0 | BK191: 0 | BL191: 0 | BN191: 999 | BP191: 0
A192: 191 | B192: 95.83333333 | C192: 45 | D192: 2012 | E192: 60 | F192: 22 | G192: 95 | H192: 0 | S192: b | T192: =+IF(W142,K160,O160)+IF(W142,K163,O163)*(U151+Y151)^2+IF(W142,K164,O164)*(U151+Y151) -> -0.0005359756631 | U192: =+IF(W142,K160,O160)+IF(W142,K163,O163)*(U151)^2+IF(W142,K164,O164)*(U151) -> -0.0006230504155 | V192: =+IF(W142,K160,O160)+IF(W142,K163,O163)*(U151-Y151)^2+IF(W142,K164,O164)*(U151-Y151) -> -0.0007162635953 | BI192: 89.47368421 | BJ192: 67.10526316 | BK192: 60 | BL192: 81 | BN192: 67.10526316 | BP192: 55.8305454
A193: 192 | B193: 100 | C193: 90 | D193: 2012 | E193: 60 | F193: 39 | G193: 95 | H193: 0 | BI193: 94.54887218 | BJ193: 70.91165414 | BK193: 90 | BL193: 92 | BN193: 70.91165414 | BP193: 83.7458181
A194: 193 | B194: 91.75572519 | C194: 0 | D194: 2012 | E194: 61 | F194: 5 | G194: 95 | H194: 0 | BI194: 100 | BJ194: 75 | BK194: 120 | BL194: 91 | BN194: 75 | BP194: 111.6610908
A195: 194 | B195: 99.84732824 | C195: 40 | D195: 2012 | E195: 61 | F195: 15 | G195: 64 | H195: 0 | BI195: 0 | BJ195: 0 | BK195: 0 | BL195: 0 | BN195: 999 | BP195: 0
A196: 195 | B196: 97.40458015 | C196: 80 | D196: 2012 | E196: 61 | F196: 34 | G196: 73 | H196: 0 | BI196: 0 | BJ196: 0 | BK196: 0 | BL196: 0 | BN196: 999 | BP196: 0
A197: 196 | B197: 100 | C197: 120 | D197: 2012 | E197: 61 | F197: 42 | G197: 78 | H197: 0 | BI197: 0 | BJ197: 0 | BK197: 0 | BL197: 0 | BN197: 999 | BP197: 0
A198: 197 | B198: 98.77862595 | C198: 160 | D198: 2012 | E198: 61 | F198: 53 | G198: 82 | H198: 0 | BI198: 92.7852349 | BJ198: 69.58892617 | BK198: 90 | BL198: 83 | BN198: 69.58892617 | BP198: 83.7458181
A199: 198 | B199: 72.95081967 | C199: 0 | D199: 2013 | E199: 62 | F199: 1 | G199: 91 | H199: 0 | BI199: 100 | BJ199: 75 | BK199: 120 | BL199: 79 | BN199: 75 | BP199: 111.6610908
A200: 199 | B200: 95.49180328 | C200: 40 | D200: 2013 | E200: 62 | F200: 14 | G200: 64 | H200: 0 | BI200: 0 | BJ200: 0 | BK200: 0 | BL200: 0 | BN200: 999 | BP200: 0
... 348 more rows

Sheet K on Rice
B1: RELYLD | C1: KRATE | D1: YEAR | E1: SITE | F1: YEAROB | G1: KSOIL | H1: DCLAY
A2: 1 | B2: 97.1 | C2: 0 | D2: 2004 | E2: 1 | F2: 1 | G2: 104 | H2: 0 | Q2: Rice Price | U2: 10 | V2: $/cwt | Y2: Conventional
A3: 2 | B3: 100 | C3: 40 | D3: 2004 | E3: 1 | F3: 15 | G3: 104 | H3: 0 | J3: Dependent Variable: RELYLD | Y3: Clearfield
A4: 3 | B4: 99.5 | C4: 80 | D4: 2004 | E4: 1 | F4: 37 | G4: 104 | H4: 0 | J4: Method: Panel EGLS (Period random effects) | Q4: Cost of K (0-0-60) | U4: 450 | V4: $/ton
A5: 4 | B5: 99.5 | C5: 120 | D5: 2004 | E5: 1 | F5: 57 | G5: 104 | H5: 0 | J5: Date: 03/12/19 Time: 15:57 | Y5: Clay
A6: 5 | B6: 98.6 | C6: 160 | D6: 2004 | E6: 1 | F6: 71 | G6: 104 | H6: 0 | J6: Sample: 2001 2018 IF KRATE<>135 | Q6: How much K do you currently apply per acre? | U6: 25 | V6: lbs/acre | Y6: Loam
A7: 6 | B7: 88.8 | C7: 0 | D7: 2004 | E7: 2 | F7: 2 | G7: 74 | H7: 0 | J7: Periods included: 17
A8: 7 | B8: 90.8 | C8: 40 | D8: 2004 | E8: 2 | F8: 16 | G8: 74 | H8: 0 | J8: Cross-sections included: 79 | Q8: What yield do you expect at that application rate? | U8: 180 | V8: bu/acre | Y8: Yes
A9: 8 | B9: 96.1 | C9: 80 | D9: 2004 | E9: 2 | F9: 38 | G9: 74 | H9: 0 | J9: Total panel (unbalanced) observations: 440 | Y9: No
A10: 9 | B10: 99 | C10: 120 | D10: 2004 | E10: 2 | F10: 58 | G10: 74 | H10: 0 | J10: Wallace and Hussain estimator of component variances | Q10: Do you use conventional or hybrid seed? | U10: Conventional
A11: 10 | B11: 100 | C11: 160 | D11: 2004 | E11: 2 | F11: 72 | G11: 74 | H11: 0
A12: 11 | B12: 92.5 | C12: 0 | D12: 2004 | E12: 3 | F12: 3 | G12: 87 | H12: 0 | J12: Variable | K12: Coefficient | L12: Std. Error | M12: t-Statistic | N12: Prob. | Q12: What is your soil test K? | U12: 110
A13: 12 | B13: 95.3 | C13: 40 | D13: 2004 | E13: 3 | F13: 17 | G13: 87 | H13: 0
A14: 13 | B14: 96.7 | C14: 80 | D14: 2004 | E14: 3 | F14: 39 | G14: 87 | H14: 0 | J14: C | K14: 85.53190393 | L14: 1.088768197 | M14: 78.55841503 | N14: 1.523340846e-257 | Q14: Does the field have mostly clayey or loamy soil texture? | U14: Loam
A15: 14 | B15: 98.1 | C15: 120 | D15: 2004 | E15: 3 | F15: 59 | G15: 87 | H15: 0 | J15: DRREC | K15: 1.821873436 | L15: 0.6169528489 | M15: 2.953018921 | N15: 0.00331893321
A16: 15 | B16: 100 | C16: 160 | D16: 2004 | E16: 3 | F16: 73 | G16: 87 | H16: 0 | J16: KRATE | K16: 0.1546276126 | L16: 0.01680227412 | M16: 9.202778833 | N16: 1.519289268e-18 | Q16: Do you operate South of I-40? | U16: No
A17: 16 | B17: 91.5 | C17: 0 | D17: 2004 | E17: 4 | F17: 4 | G17: 64 | H17: 0 | J17: KRATE^2 | K17: -0.000421958113 | L17: 8.710848e-05 | M17: -4.84405322 | N17: 1.77718926e-06
A18: 17 | B18: 85.7 | C18: 40 | D18: 2004 | E18: 4 | F18: 18 | G18: 64 | H18: 0 | J18: DCLFIELD | K18: 2.254139283 | L18: 0.9265560337 | M18: 2.432814855 | N18: 0.01538783875 | Q18: Predicted RELYLD based on above questions: | U18: =+K14+IF($U$16="Yes",K15,0)+$U$6*($U$12*K21+K16+IF($U$10="Clearfield",K23,0))+$U$6^2*(K17+IF($U$14="Clay",K22))+IF($U$14="Clay",K20,0)+IF($U$10="Clearfield",K18,0)+$U$12*K19 -> 93.32878185
A19: 18 | B19: 89.7 | C19: 80 | D19: 2004 | E19: 4 | F19: 40 | G19: 64 | H19: 0 | J19: KSOIL | K19: 0.04813541892 | L19: 0.009622753276 | M19: 5.00225014 | N19: 8.265255539e-07
A20: 19 | B20: 100 | C20: 120 | D20: 2004 | E20: 4 | F20: 60 | G20: 64 | H20: 0 | J20: DCLAY | K20: -3.267803257 | L20: 1.636446995 | M20: -1.996889155 | N20: 0.04646560705 | Q20: Yield/RELYLD | U20: =+U8/U18 -> 1.928665482
A21: 20 | B21: 82.5 | C21: 160 | D21: 2004 | E21: 4 | F21: 74 | G21: 64 | H21: 0 | J21: KSOIL*KRATE | K21: -0.0003999944219 | L21: 8.797209869e-05 | M21: -4.546832779 | N21: 7.086112312e-06
A22: 21 | B22: 96.6 | C22: 0 | D22: 2004 | E22: 5 | F22: 5 | G22: 76 | H22: 0 | J22: DCLAY*KRATE^2 | Q22: dRELYLD/dKRATE | U22: =+K16+U12*K21+IF(U10="Clearfield",K23,0)+2*U6*(K17+IF(U14="Clay",K22)) -> 0.08953032052 | W22: =+K16+U12*K21+IF(U10="Clearfield",K23,0)+2*U28*(K17+IF(U14="Clay",K22)) -> 0.0431645616
A23: 22 | B23: 94.1 | C23: 40 | D23: 2004 | E23: 5 | F23: 19 | G23: 76 | H23: 0 | J23: DCLFIELD*KRATE | K23: -0.02087856875 | L23: 0.009566473542 | M23: -2.182472847 | N23: 0.02961379485
A24: 23 | B24: 100 | C24: 80 | D24: 2004 | E24: 5 | F24: 41 | G24: 76 | H24: 0 | Q24: =CONCATENATE("VMP of K @ KRATE = ",U6," lbs/acre and soil test K of ",U12) -> VMP of K @ KRATE = 25 lbs/acre and soil test K of 110 | U24: =+U22*U2/2.22*U20 -> 0.7778109854 | W24: =+W22*U2/2.22*U20 -> 0.375
A25: 24 | B25: 97.5 | C25: 120 | D25: 2004 | E25: 5 | F25: 61 | G25: 76 | H25: 0 | K25: Effects Specification
A26: 25 | B26: 98.5 | C26: 160 | D26: 2004 | E26: 5 | F26: 75 | G26: 76 | H26: 0 | M26: S.D. | N26: Rho | Q26: Cost per lb of K | U26: =+U4/0.6/2000 -> 0.375
A27: 26 | B27: 102.7 | C27: 0 | D27: 2004 | E27: 6 | F27: 6 | G27: 132 | H27: 0
A28: 27 | B28: 98.2 | C28: 40 | D28: 2004 | E28: 6 | F28: 20 | G28: 132 | H28: 0 | J28: Period random | M28: 1.060097175 | N28: 0.04768826784 | Q28: Profit Maximizing K rate: | U28: =IF((U26/(U2/2.22*U20)-(K16+U12*K21+IF(U10="Clearfield",K23,0)))/(2*(K17+IF(U14="Clay",K22)))>180,180,(U26/(U2/2.22*U20)-(K16+U12*K21+IF(U10="Clearfield",K23,0)))/(2*(K17+IF(U14="Clay",K22)))) -> 79.94118668 | W28: 125 | X28: Alt User K
A29: 28 | B29: 99.5 | C29: 80 | D29: 2004 | E29: 6 | F29: 42 | G29: 132 | H29: 0 | J29: Idiosyncratic random | M29: 4.737284535 | N29: 0.9523117322
A30: 29 | B30: 100 | C30: 120 | D30: 2004 | E30: 6 | F30: 62 | G30: 132 | H30: 0 | Q30: Expected Yield at Profit-Maximizing K rate: | U30: =(+K14+IF(U16="Yes",K15,0)+U28*(U12*K21+K16+IF(U10="Clearfield",K23,0))+U28^2*(K17+IF(U14="Clay",K22))+IF(U14="Clay",K20,0)+IF(U10="Clearfield",K18,0)+U12*K19)*U20 -> 187.0303852 | W30: =(+K14+IF(U16="Yes",K15,0)+W28*(U12*K21+K16+IF(U10="Clearfield",K23,0))+W28^2*(K17+IF(U14="Clay",K22))+IF(U14="Clay",K20,0)+IF(U10="Clearfield",K18,0)+U12*K19)*U20 -> 189.1292434
A31: 30 | B31: 98.6 | C31: 160 | D31: 2004 | E31: 6 | F31: 76 | G31: 132 | H31: 0 | K31: Weighted Statistics
A32: 31 | B32: 83.4 | C32: 0 | D32: 2004 | E32: 7 | F32: 7 | G32: 81 | H32: 0 | Q32: Added Profit in $/acre | U32: =+(U30-U8)*U2/2.22-(U28-U6)*U26 -> 11.06545677 | W32: =+(W30-U8)*U2/2.22-(W28-U6)*U26 -> 3.622718031
A33: 32 | B33: 89.4 | C33: 30 | D33: 2004 | E33: 7 | F33: 13 | G33: 81 | H33: 0 | J33: R-squared | K33: 0.2954420526 | L33: Mean dependent var | N33: 60.43268787
A34: 33 | B34: 95.4 | C34: 60 | D34: 2004 | E34: 7 | F34: 27 | G34: 87 | H34: 0 | J34: Adjusted R-squared | K34: 0.2823644109 | L34: S.D. dependent var | N34: 9.884122327 | BH34: K rate | BI34: Exp. Yield
A35: 34 | B35: 89.4 | C35: 90 | D35: 2004 | E35: 7 | F35: 45 | G35: 100 | H35: 0 | J35: S.E. of regression | K35: 4.743914196 | L35: Sum squared resid | N35: 9699.535137 | BH35: 0 | BI35: =(+$K$14+IF($U$16="Yes",$K$15,0)+BH35*($U$12*$K$21+$K$16+IF($U$10="Clearfield",$K$23,0))+BH35^2*($K$17+IF($U$14="Clay",$K$22))+IF($U$14="Clay",$K$20,0)+IF($U$10="Clearfield",$K$18,0)+$U$12*$K$19)*$U$20 -> 175.174514
A36: 35 | B36: 100 | C36: 120 | D36: 2004 | E36: 7 | F36: 63 | G36: 105 | H36: 0 | J36: F-statistic | K36: 22.59138605 | L36: Durbin-Watson stat | N36: 2.49064464 | BH36: 10 | BI36: =(+$K$14+IF($U$16="Yes",$K$15,0)+BH36*($U$12*$K$21+$K$16+IF($U$10="Clearfield",$K$23,0))+BH36^2*($K$17+IF($U$14="Clay",$K$22))+IF($U$14="Clay",$K$20,0)+IF($U$10="Clearfield",$K$18,0)+$U$12*$K$19)*$U$20 -> 177.2267808
A37: 36 | B37: 89.4 | C37: 0 | D37: 2004 | E37: 8 | F37: 8 | G37: 78 | H37: 0 | J37: Prob(F-statistic) | K37: 7.693327162e-29 | BH37: 20 | BI37: 179.1162844
A38: 37 | B38: 94.7 | C38: 30 | D38: 2004 | E38: 8 | F38: 14 | G38: 83 | H38: 0 | BH38: 30 | BI38: 180.8430248
A39: 38 | B39: 95.3 | C39: 60 | D39: 2004 | E39: 8 | F39: 28 | G39: 87 | H39: 0 | K39: Unweighted Statistics | BH39: 40 | BI39: 182.407002
A40: 39 | B40: 100 | C40: 90 | D40: 2004 | E40: 8 | F40: 46 | G40: 112 | H40: 0 | BH40: 50 | BI40: 183.8082159
A41: 40 | B41: 100 | C41: 120 | D41: 2004 | E41: 8 | F41: 64 | G41: 115 | H41: 0 | J41: R-squared | K41: 0.2961173096 | L41: Mean dependent var | N41: 95.92045455 | BH41: 60 | BI41: 185.0466667
A42: 41 | B42: 75.6 | C42: 0 | D42: 2005 | E42: 9 | F42: 1 | G42: 94 | H42: 0 | J42: Sum squared resid | K42: 10114.18604 | L42: Durbin-Watson stat | N42: 2.482420507 | BH42: 70 | BI42: 186.1223542
A43: 42 | B43: 90.3 | C43: 40 | D43: 2005 | E43: 9 | F43: 15 | G43: 94 | H43: 0 | BH43: 80 | BI43: 187.0352786
A44: 43 | B44: 90.9 | C44: 80 | D44: 2005 | E44: 9 | F44: 37 | G44: 94 | H44: 0 | BH44: 90 | BI44: 187.7854397
A45: 44 | B45: 92.6 | C45: 120 | D45: 2005 | E45: 9 | F45: 57 | G45: 94 | H45: 0 | BH45: 100 | BI45: 188.3728376
A46: 45 | B46: 100 | C46: 160 | D46: 2005 | E46: 9 | F46: 71 | G46: 94 | H46: 0 | BH46: 110 | BI46: 188.7974724
A47: 46 | B47: 91.3 | C47: 0 | D47: 2005 | E47: 10 | F47: 2 | G47: 71 | H47: 0 | M47: =174/192 -> 0.90625 | BH47: 120 | BI47: 189.0593439
A48: 47 | B48: 100 | C48: 40 | D48: 2005 | E48: 10 | F48: 16 | G48: 71 | H48: 0 | BH48: 130 | BI48: 189.1584521
A49: 48 | B49: 99.5 | C49: 80 | D49: 2005 | E49: 10 | F49: 38 | G49: 71 | H49: 0 | BH49: 140 | BI49: 189.0947972
A50: 49 | B50: 99.5 | C50: 120 | D50: 2005 | E50: 10 | F50: 58 | G50: 71 | H50: 0 | BH50: 150 | BI50: 188.8683791
A51: 50 | B51: 93.4 | C51: 160 | D51: 2005 | E51: 10 | F51: 72 | G51: 71 | H51: 0 | BH51: 160 | BI51: 188.4791978
A52: 51 | B52: 86.6 | C52: 0 | D52: 2005 | E52: 11 | F52: 3 | G52: 81 | H52: 0 | BH52: 170 | BI52: 187.9272532
A53: 52 | B53: 96.8 | C53: 40 | D53: 2005 | E53: 11 | F53: 17 | G53: 81 | H53: 0 | BH53: 180 | BI53: 187.2125455
A54: 53 | B54: 100 | C54: 80 | D54: 2005 | E54: 11 | F54: 39 | G54: 81 | H54: 0
A55: 54 | B55: 95.5 | C55: 120 | D55: 2005 | E55: 11 | F55: 59 | G55: 81 | H55: 0
A56: 55 | B56: 96.8 | C56: 160 | D56: 2005 | E56: 11 | F56: 73 | G56: 81 | H56: 0
A57: 56 | B57: 93.6 | C57: 0 | D57: 2005 | E57: 12 | F57: 4 | G57: 94 | H57: 0
A58: 57 | B58: 95.5 | C58: 40 | D58: 2005 | E58: 12 | F58: 18 | G58: 94 | H58: 0 | J58: Dependent Variable: RELYLD | Q58: Predicted RELYLD based on above questions: | U58: =+K69+IF($U$16="Yes",K70,0)+$U$6*($U$12*K76+K71+IF($U$10="Clearfield",K77,0)+IF($U$14="Clay",K78))+$U$6^0.5*K72+IF($U$14="Clay",K75,0)+IF($U$10="Clearfield",K73,0)+$U$12*K74 -> 94.5669452
A59: 58 | B59: 97 | C59: 80 | D59: 2005 | E59: 12 | F59: 40 | G59: 94 | H59: 0 | J59: Method: Panel EGLS (Period random effects)
A60: 59 | B60: 100 | C60: 120 | D60: 2005 | E60: 12 | F60: 60 | G60: 94 | H60: 0 | J60: Date: 03/13/19 Time: 09:12 | Q60: Yield/RELYLD | U60: =+U8/U58 -> 1.903413498
A61: 60 | B61: 97.5 | C61: 160 | D61: 2005 | E61: 12 | F61: 74 | G61: 94 | H61: 0 | J61: Sample: 2001 2018 IF KRATE<>135
A62: 61 | B62: 67.7 | C62: 0 | D62: 2005 | E62: 13 | F62: 5 | G62: 64 | H62: 0 | J62: Periods included: 17 | Q62: dRELYLD/dKRATE | U62: =+K71+U12*K76+IF(U10="Clearfield",K77,0)+IF(U14="Clay",K78,0)+0.5*U6^-0.5*K72 -> 0.05961510745 | W62: =+K71+U12*K76+IF(U10="Clearfield",K77,0)+IF(U14="Clay",K78,0)+0.5*U68^-0.5*K72 -> 0.04373721215
A63: 62 | B63: 94.9 | C63: 40 | D63: 2005 | E63: 13 | F63: 19 | G63: 64 | H63: 0 | J63: Cross-sections included: 79
A64: 63 | B64: 96.2 | C64: 80 | D64: 2005 | E64: 13 | F64: 41 | G64: 64 | H64: 0 | J64: Total panel (unbalanced) observations: 440 | Q64: =CONCATENATE("VMP of K @ KRATE = ",U6," lbs/acre and soil test K of ",U12) -> VMP of K @ KRATE = 25 lbs/acre and soil test K of 110 | U64: =+U62*U2/2.22*U60 -> 0.5111360371 | W64: =+W62*U2/2.22*U60 -> 0.375
A65: 64 | B65: 100 | C65: 120 | D65: 2005 | E65: 13 | F65: 61 | G65: 64 | H65: 0 | J65: Wallace and Hussain estimator of component variances
A66: 65 | B66: 99.4 | C66: 160 | D66: 2005 | E66: 13 | F66: 75 | G66: 64 | H66: 0 | Q66: Cost per lb of K | U66: =+U4/0.6/2000 -> 0.375 | W66: =(K71+U12*K76+IF(U10="Clearfield",K77,0)+IF(U14="Clay",K78)+0.5*W68^-0.5*K72)*U2/2.22*U60 -> 1.383980984 | X66: VMP at Alt User K
A67: 66 | B67: 92.7 | C67: 0 | D67: 2005 | E67: 14 | F67: 6 | G67: 164 | H67: 0 | J67: Variable | K67: Coefficient | L67: Std. Error | M67: t-Statistic | N67: Prob.
A68: 67 | B68: 100 | C68: 80 | D68: 2005 | E68: 14 | F68: 42 | G68: 164 | H68: 0 | Q68: Optimal K | U68: =IF(((U66/(U2/2.22*U60)-(K71+U12*K76+IF(U10="Clearfield",K77,0)+IF(U14="Clay",K78,0)))*2/K72)^-2>180,180,((U66/(U2/2.22*U60)-(K71+U12*K76+IF(U10="Clearfield",K77,0)+IF(U14="Clay",K78,0)))*2/K72)^-2) -> 38.36754456 | W68: 5 | X68: Alt User K
A69: 68 | B69: 90.1 | C69: 120 | D69: 2005 | E69: 14 | F69: 62 | G69: 164 | H69: 0 | J69: C | K69: 83.57802419 | L69: 1.206595779 | M69: 69.26762523 | N69: 2.275095698e-235
A70: 69 | B70: 95.4 | C70: 160 | D70: 2005 | E70: 14 | F70: 76 | G70: 164 | H70: 0 | J70: DRREC | K70: 1.901372692 | L70: 0.6112073646 | M70: 3.110847156 | N70: 0.001989737646 | Q70: Expected Yield | U70: =(+K69+IF(U16="Yes",K70,0)+U68*(K71+IF(U10="Clearfield",K77,0)+IF(U14="Clay",K78,0)+U12*K76)+U68^0.5*(K72)+IF(U14="Clay",K75,0)+IF(U10="Clearfield",K73,0)+U12*K74)*U60 -> 181.2932979 | W70: =(K69+IF($U$16="Yes",K70,0)+$W$68*($U$12*K76+K71+IF($U$10="Clearfield",K77,0)+IF($U$14="Clay",K78,0))+$W$68^0.5*K72+IF($U$14="Clay",K75,0)+IF($U$10="Clearfield",K73,0)+$U$12*K74)*U60 -> 176.5329818
A71: 70 | B71: 74.4 | C71: 0 | D71: 2005 | E71: 15 | F71: 7 | G71: 63 | H71: 0 | J71: KRATE | K71: 0.05527424609 | L71: 0.01945111966 | M71: 2.841699967 | N71: 0.004700819505
A72: 71 | B72: 85.6 | C72: 30 | D72: 2005 | E72: 15 | F72: 13 | G72: 68 | H72: 0 | J72: KRATE^.5 | K72: 0.8235966589 | L72: 0.1795438504 | M72: 4.587161615 | N72: 5.902285465e-06 | Q72: Added Profit in $/acre | U72: =+(U70-U8)*U2/2.22-(U68-U6)*U66 -> 0.8128370095 | W72: =+(W70-U8)*U2/2.22-(W68-U6)*U66 -> -8.117199183
A73: 72 | B73: 92.2 | C73: 60 | D73: 2005 | E73: 15 | F73: 27 | G73: 72 | H73: 0 | J73: DCLFIELD | K73: 2.333261436 | L73: 0.9170687768 | M73: 2.544260032 | N73: 0.0112997258
A74: 73 | B74: 95 | C74: 90 | D74: 2005 | E74: 15 | F74: 45 | G74: 69 | H74: 0 | J74: KSOIL | K74: 0.06763228791 | L74: 0.01098263876 | M74: 6.158109118 | N74: 1.69129018e-09
A75: 74 | B75: 100 | C75: 120 | D75: 2005 | E75: 15 | F75: 63 | G75: 93 | H75: 0 | J75: DCLAY | K75: -9.296610794 | L75: 2.441795438 | M75: -3.807284857 | N75: 0.0001609195768
A76: 75 | B76: 78.5 | C76: 0 | D76: 2005 | E76: 16 | F76: 8 | G76: 77 | H76: 0 | J76: KSOIL*KRATE | K76: -0.0007092618593 | L76: 0.0001239922289 | M76: -5.720212189 | N76: 1.99520725e-08 | Q76: K rate | R76: Exp. Yield
A77: 76 | B77: 85.9 | C77: 30 | D77: 2005 | E77: 16 | F77: 14 | G77: 77 | H77: 0 | J77: DCLFIELD*KRATE | K77: -0.02113021601 | L77: 0.009446821853 | M77: -2.236753941 | N77: 0.02581434428 | Q77: 0.01 | R77: =(+$K$69+IF($U$16="Yes",$K$70,0)+Q77*($U$12*$K$76+$K$71+IF($U$10="Clearfield",$K$77,0)+IF($U$14="Clay",$K$78,0))+Q77^0.5*($K$72)+IF($U$14="Clay",$K$75,0)+IF($U$10="Clearfield",$K$73,0)+$U$12*$K$74)*$U$60 -> 173.4004141
A78: 77 | B78: 94.9 | C78: 60 | D78: 2005 | E78: 16 | F78: 28 | G78: 66 | H78: 0 | J78: DCLAY*KRATE | K78: 0.09240656048 | L78: 0.02766610215 | M78: 3.340064314 | N78: 0.0009106295903 | Q78: 2 | R78: 175.3744827
A79: 78 | B79: 96.6 | C79: 90 | D79: 2005 | E79: 16 | F79: 46 | G79: 69 | H79: 0 | Q79: 7 | R79: 177.0886352
A80: 79 | B80: 100 | C80: 120 | D80: 2005 | E80: 16 | F80: 64 | G80: 80 | H80: 0 | K80: Effects Specification | Q80: 15 | R80: 178.666161
A81: 80 | B81: 98.6 | C81: 0 | D81: 2006 | E81: 17 | F81: 1 | G81: 151 | H81: 0 | M81: S.D. | N81: Rho | Q81: 25 | R81: 180
A82: 81 | B82: 98.1 | C82: 40 | D82: 2006 | E82: 17 | F82: 15 | G82: 151 | H82: 0 | Q82: 45 | R82: 181.8120114
A83: 82 | B83: 95.3 | C83: 80 | D83: 2006 | E83: 17 | F83: 37 | G83: 151 | H83: 0 | J83: Period random | M83: 1.099880019 | N83: 0.05237979079 | Q83: 60 | R83: 182.7894705
A84: 83 | B84: 100 | C84: 120 | D84: 2006 | E84: 17 | F84: 57 | G84: 151 | H84: 0 | J84: Idiosyncratic random | M84: 4.678219447 | N84: 0.9476202092 | Q84: 70 | R84: 183.3294806
A85: 84 | B85: 90.6 | C85: 160 | D85: 2006 | E85: 17 | F85: 71 | G85: 151 | H85: 0 | Q85: 80 | R85: 183.8021417
A86: 85 | B86: 86.4 | C86: 0 | D86: 2006 | E86: 18 | F86: 2 | G86: 71 | H86: 0 | K86: Weighted Statistics | Q86: 90 | R86: 184.2197618
A87: 86 | B87: 94.3 | C87: 40 | D87: 2006 | E87: 18 | F87: 16 | G87: 76 | H87: 0 | Q87: 100 | R87: 184.5913025
A88: 87 | B88: 94.9 | C88: 80 | D88: 2006 | E88: 18 | F88: 38 | G88: 85 | H88: 0 | J88: R-squared | K88: 0.3131037289 | L88: Mean dependent var | N88: 58.69433819 | Q88: 110 | R88: 184.923529
A89: 88 | B89: 95.5 | C89: 120 | D89: 2006 | E89: 18 | F89: 58 | G89: 98 | H89: 0 | J89: Adjusted R-squared | K89: 0.2987268302 | L89: S.D. dependent var | N89: 10.00229228 | Q89: 120 | R89: 185.2216971
A90: 89 | B90: 100 | C90: 160 | D90: 2006 | E90: 18 | F90: 72 | G90: 100 | H90: 0 | J90: S.E. of regression | K90: 4.685069483 | L90: Sum squared resid | N90: 9438.446708 | Q90: 130 | R90: 185.4899866
A91: 90 | B91: 91.3 | C91: 0 | D91: 2006 | E91: 19 | F91: 3 | G91: 116 | H91: 0 | J91: F-statistic | K91: 21.77825243 | L91: Durbin-Watson stat | N91: 2.440948805 | Q91: 140 | R91: 185.7317863
A92: 91 | B92: 93.6 | C92: 40 | D92: 2006 | E92: 19 | F92: 17 | G92: 116 | H92: 0 | J92: Prob(F-statistic) | K92: 1.9758798e-30 | Q92: 150 | R92: 185.9498893
A93: 92 | B93: 100 | C93: 80 | D93: 2006 | E93: 19 | F93: 39 | G93: 116 | H93: 0 | Q93: 160 | R93: 186.1466296
A94: 93 | B94: 94.8 | C94: 120 | D94: 2006 | E94: 19 | F94: 59 | G94: 116 | H94: 0 | K94: Unweighted Statistics | Q94: 170 | R94: 186.3239817
A95: 94 | B95: 94.8 | C95: 160 | D95: 2006 | E95: 19 | F95: 73 | G95: 116 | H95: 0 | Q95: 180 | R95: 186.4836333
A96: 95 | B96: 99.4 | C96: 0 | D96: 2006 | E96: 20 | F96: 4 | G96: 104 | H96: 0 | J96: R-squared | K96: 0.3119695218 | L96: Mean dependent var | N96: 95.92045455
A97: 96 | B97: 100 | C97: 40 | D97: 2006 | E97: 20 | F97: 18 | G97: 104 | H97: 0 | J97: Sum squared resid | K97: 9886.403451 | L97: Durbin-Watson stat | N97: 2.431277786
A98: 97 | B98: 97.4 | C98: 80 | D98: 2006 | E98: 20 | F98: 40 | G98: 104 | H98: 0
A99: 98 | B99: 98.7 | C99: 120 | D99: 2006 | E99: 20 | F99: 60 | G99: 104 | H99: 0
A100: 99 | B100: 98.7 | C100: 160 | D100: 2006 | E100: 20 | F100: 74 | G100: 104 | H100: 0
A101: 100 | B101: 97.9 | C101: 0 | D101: 2006 | E101: 21 | F101: 5 | G101: 121 | H101: 0 | J101: Dependent Variable: RELYLD | Q101: Predicted RELYLD based on above questions: | U101: =+K112+IF($U$16="Yes",K113,0)+LN($U$6)*(K117+$U$12*K120+IF($U$10="Clearfield",K119,0)+IF($U$14="Clay",K118))+IF($U$14="Clay",K116,0)+IF($U$10="Clearfield",K114,0)+$U$12*K115 -> 96.18393227
A102: 101 | B102: 88 | C102: 40 | D102: 2006 | E102: 21 | F102: 19 | G102: 121 | H102: 0 | J102: Method: Panel EGLS (Period random effects)
A103: 102 | B103: 95.8 | C103: 80 | D103: 2006 | E103: 21 | F103: 41 | G103: 121 | H103: 0 | J103: Date: 03/13/19 Time: 16:57 | Q103: Yield/RELYLD | U103: =+U8/U101 -> 1.871414443
A104: 103 | B104: 99.5 | C104: 120 | D104: 2006 | E104: 21 | F104: 61 | G104: 121 | H104: 0 | J104: Sample: 2001 2018 IF KRATE<>135
A105: 104 | B105: 100 | C105: 160 | D105: 2006 | E105: 21 | F105: 75 | G105: 121 | H105: 0 | J105: Periods included: 17 | Q105: dRELYLD/dKRATE | U105: =(K117+IF(U14="Clay",K118,0)+IF(U10="Clearfield",K119,0)+U12*K120)/U6 -> 0.01701949554 | W105: =(K117+IF(U14="Clay",K118,0)+IF(U10="Clearfield",K119,0)+U12*K120)/U111 -> 0.04448506867
A106: 105 | B106: 103.3 | C106: 0 | D106: 2006 | E106: 22 | F106: 6 | G106: 133 | H106: 0 | J106: Cross-sections included: 79
A107: 106 | B107: 100 | C107: 80 | D107: 2006 | E107: 22 | F107: 42 | G107: 133 | H107: 0 | J107: Total panel (unbalanced) observations: 440 | Q107: =CONCATENATE("VMP of K @ KRATE = ",U49," lbs/acre and soil test K of ",U55) -> VMP of K @ KRATE = lbs/acre and soil test K of | U107: =+U105*U2/2.22*U103 -> 0.1434708548 | W107: =+W105*U2/2.22*U103 -> 0.375
A108: 107 | B108: 100 | C108: 140 | D108: 2006 | E108: 22 | F108: 68 | G108: 133 | H108: 0 | J108: Wallace and Hussain estimator of component variances
A109: 108 | B109: 96.5 | C109: 0 | D109: 2007 | E109: 23 | F109: 1 | G109: 92 | H109: 0 | Q109: Cost per lb of K | U109: =+U4/0.6/2000 -> 0.375 | W109: =(K117+IF(U14="Clay",K118,0)+IF(U10="Clearfield",K119,0)+U12*K120)/W111*U2/2.22*U103 -> 0.717354274 | X109: VMP at Alt User K
A110: 109 | B110: 96.5 | C110: 40 | D110: 2007 | E110: 23 | F110: 15 | G110: 92 | H110: 0 | J110: Variable | K110: Coefficient | L110: Std. Error | M110: t-Statistic | N110: Prob.
A111: 110 | B111: 100 | C111: 80 | D111: 2007 | E111: 23 | F111: 37 | G111: 92 | H111: 0 | Q111: Optimal K | U111: =IF(((K117+IF(U14="Clay",K118,0)+IF(U10="Clearfield",K119,0)+U12*K120)/(U109/(U2/2.22*U103)))>180,180,((K117+IF(U14="Clay",K118,0)+IF(U10="Clearfield",K119,0)+U12*K120)/(U109/(U2/2.22*U103)))) -> 9.564723654 | W111: 5 | X111: Alt User K
A112: 111 | B112: 97.8 | C112: 120 | D112: 2007 | E112: 23 | F112: 57 | G112: 92 | H112: 0 | J112: C | K112: 92.04835626 | L112: 0.8118564696 | M112: 113.3800859 | N112: 0
A113: 112 | B113: 98.7 | C113: 160 | D113: 2007 | E113: 23 | F113: 71 | G113: 92 | H113: 0 | J113: DRREC | K113: 1.674272927 | L113: 0.6247099459 | M113: 2.680080472 | N113: 0.007642508367 | Q113: Expected Yield | U113: =(+K112+IF(U16="Yes",K113,0)+LN(U111)*(K117+IF(U10="Clearfield",K119,0)+IF(U14="Clay",K118,0)+U12*K120)+IF(U14="Clay",K116,0)+IF(U10="Clearfield",K114,0)+U12*K115)*U103 -> 179.234955 | W113: =(+K112+IF(U16="Yes",K113,0)+LN(W111)*(K117+IF(U10="Clearfield",K119,0)+IF(U14="Clay",K118,0)+U12*K120)+IF(U14="Clay",K116,0)+IF(U10="Clearfield",K114,0)+U12*K115)*U103 -> 178.7184637
A114: 113 | B114: 93.7 | C114: 0 | D114: 2007 | E114: 24 | F114: 2 | G114: 104 | H114: 0 | J114: DCLFIELD | K114: 0.9538761766 | L114: 0.599352375 | M114: 1.591511465 | N114: 0.1122276617
A115: 114 | B115: 100 | C115: 40 | D115: 2007 | E115: 24 | F115: 16 | G115: 104 | H115: 0 | J115: KSOIL | K115: 0.02514531757 | L115: 0.007907350482 | M115: 3.179992796 | N115: 0.001579079719 | Q115: Added Profit in $/acre | U115: =+(U113-U8)*U2/2.22-(U111-U6)*U109 -> 2.34207981 | W115: =+(W113-U8)*U2/2.22-(W111-U6)*U109 -> 1.727314174
A116: 115 | B116: 98.9 | C116: 80 | D116: 2007 | E116: 24 | F116: 38 | G116: 104 | H116: 0 | J116: DCLAY | K116: -3.488411949 | L116: 1.646380839 | M116: -2.118836581 | N116: 0.03467569419
A117: 116 | B117: 100 | C117: 120 | D117: 2007 | E117: 24 | F117: 58 | G117: 104 | H117: 0 | J117: LNK | K117: 0.9466911285 | L117: 0.1187053689 | M117: 7.975133199 | N117: 1.383119288e-14
A118: 117 | B118: 97.4 | C118: 160 | D118: 2007 | E118: 24 | F118: 72 | G118: 104 | H118: 0 | J118: LNK*DCLAY | K118: 0.4990002373 | L118: 0.2438559311 | M118: 2.046291165 | N118: 0.04133396676 | Q118: K rate | R118: Exp. Yield
A119: 118 | B119: 101.4 | C119: 0 | D119: 2007 | E119: 25 | F119: 3 | G119: 101 | H119: 0 | J119: LNK*DCLFIELD | K119: -0.1496455639 | L119: 0.09193539344 | M119: -1.627725279 | N119: 0.1043139117 | Q119: 0.01 | R119: =(+$K$112+IF($U$16="Yes",$K$113,0)+LN(Q119)*($K$117+IF($U$10="Clearfield",$K$119,0)+IF($U$14="Clay",$K$118,0)+$U$12*$K$120)+IF($U$14="Clay",$K$116,0)+IF($U$10="Clearfield",$K$114,0)+$U$12*$K$115)*$U$103 -> 173.7699997
A120: 119 | B120: 99.5 | C120: 40 | D120: 2007 | E120: 25 | F120: 17 | G120: 101 | H120: 0 | J120: LNK*KSOIL | K120: -0.004738215818 | L120: 0.001134485983 | M120: -4.176530947 | N120: 3.583942662e-05 | Q120: 2 | R120: 177.9888551
A121: 120 | B121: 95.2 | C121: 80 | D121: 2007 | E121: 25 | F121: 39 | G121: 101 | H121: 0 | Q121: 5 | R121: 178.7184637
A122: 121 | B122: 98.1 | C122: 120 | D122: 2007 | E122: 25 | F122: 59 | G122: 101 | H122: 0 | K122: Effects Specification | Q122: 7 | R122: 178.9863842
A123: 122 | B123: 100 | C123: 160 | D123: 2007 | E123: 25 | F123: 73 | G123: 101 | H123: 0 | M123: S.D. | N123: Rho | Q123: 10 | R123: 179.2703914
A124: 123 | B124: 100 | C124: 0 | D124: 2007 | E124: 26 | F124: 4 | G124: 132 | H124: 0 | Q124: 15 | R124: 179.5932483
A125: 124 | B125: 100 | C125: 40 | D125: 2007 | E125: 26 | F125: 18 | G125: 132 | H125: 0 | J125: Period random | M125: 1.106470735 | N125: 0.05032333769 | Q125: 30 | R125: 180.145176
A126: 125 | B126: 87.4 | C126: 80 | D126: 2007 | E126: 26 | F126: 40 | G126: 132 | H126: 0 | J126: Idiosyncratic random | M126: 4.806656593 | N126: 0.9496766623 | Q126: 50 | R126: 180.5519276
A127: 126 | B127: 98.2 | C127: 120 | D127: 2007 | E127: 26 | F127: 60 | G127: 132 | H127: 0 | Q127: 70 | R127: 180.8198481
A128: 127 | B128: 92.8 | C128: 160 | D128: 2007 | E128: 26 | F128: 74 | G128: 132 | H128: 0 | K128: Weighted Statistics | Q128: 90 | R128: 181.0199605
A129: 128 | B129: 97.8 | C129: 0 | D129: 2007 | E129: 27 | F129: 5 | G129: 150 | H129: 0 | Q129: 100 | R129: 181.1038552
A130: 129 | B130: 100 | C130: 40 | D130: 2007 | E130: 27 | F130: 19 | G130: 150 | H130: 0 | J130: R-squared | K130: 0.2740428809 | L130: Mean dependent var | N130: 59.43892963 | Q130: 110 | R130: 181.1797472
A131: 130 | B131: 97.2 | C131: 80 | D131: 2007 | E131: 27 | F131: 41 | G131: 150 | H131: 0 | J131: Adjusted R-squared | K131: 0.2605680388 | L131: S.D. dependent var | N131: 9.954107887 | Q131: 120 | R131: 181.2490312
A132: 131 | B132: 98.9 | C132: 120 | D132: 2007 | E132: 27 | F132: 61 | G132: 150 | H132: 0 | J132: S.E. of regression | K132: 4.812796269 | L132: Sum squared resid | N132: 9983.256415 | Q132: 130 | R132: 181.3127663
A133: 132 | B133: 98.3 | C133: 160 | D133: 2007 | E133: 27 | F133: 75 | G133: 150 | H133: 0 | J133: F-statistic | K133: 20.33737231 | L133: Durbin-Watson stat | N133: 2.371216243 | Q133: 140 | R133: 181.3717757
A134: 133 | B134: 86.9 | C134: 0 | D134: 2007 | E134: 28 | F134: 6 | G134: 81 | H134: 0 | J134: Prob(F-statistic) | K134: 3.890647391e-26 | Q134: 150 | R134: 181.4267122
A135: 134 | B135: 96.2 | C135: 40 | D135: 2007 | E135: 28 | F135: 20 | G135: 81 | H135: 0 | Q135: 160 | R135: 181.4781019
A136: 135 | B136: 95.6 | C136: 80 | D136: 2007 | E136: 28 | F136: 42 | G136: 81 | H136: 0 | K136: Unweighted Statistics | Q136: 170 | R136: 181.526375
A137: 136 | B137: 100 | C137: 120 | D137: 2007 | E137: 28 | F137: 62 | G137: 81 | H137: 0 | Q137: 180 | R137: 181.5718882
A138: 137 | B138: 100 | C138: 160 | D138: 2007 | E138: 28 | F138: 76 | G138: 81 | H138: 0 | J138: R-squared | K138: 0.2734639836 | L138: Mean dependent var | N138: 95.92045455
A139: 138 | B139: 81.2 | C139: 0 | D139: 2007 | E139: 29 | F139: 7 | G139: 56 | H139: 0 | J139: Sum squared resid | K139: 10439.69476 | L139: Durbin-Watson stat | N139: 2.364096255
A140: 139 | B140: 94.2 | C140: 40 | D140: 2007 | E140: 29 | F140: 21 | G140: 61 | H140: 0
A141: 140 | B141: 96.9 | C141: 80 | D141: 2007 | E141: 29 | F141: 43 | G141: 78 | H141: 0
A142: 141 | B142: 99 | C142: 120 | D142: 2007 | E142: 29 | F142: 63 | G142: 87 | H142: 0 | W142: FALSE
A143: 142 | B143: 100 | C143: 160 | D143: 2007 | E143: 29 | F143: 77 | G143: 121 | H143: 0 | J143: =0.8301513*2.47105*0.453592 -> 0.930473849 | Q143: Profit-Maximizing K Rate Calculator for Rice as developed by Dr. M. Popp, Dr. N. Slaton, J. Norsworthy and Dr. B. Dixon
A144: 143 | B144: 84 | C144: 0 | D144: 2007 | E144: 30 | F144: 8 | G144: 54 | H144: 0
A145: 144 | B145: 93.6 | C145: 40 | D145: 2007 | E145: 30 | F145: 22 | G145: 64 | H145: 0 | J145: Dependent Variable: RELYLD | Q145: What is your expected rice price? | U145: 15 | V145: =IF(W142,CONCATENATE("$ kg",Z155),"$/cwt") -> $/cwt
A146: 145 | B146: 95.7 | C146: 80 | D146: 2007 | E146: 30 | F146: 44 | G146: 70 | H146: 0 | J146: Method: Panel EGLS (Period random effects)
A147: 146 | B147: 99.5 | C147: 120 | D147: 2007 | E147: 30 | F147: 64 | G147: 74 | H147: 0 | J147: Date: 01/31/20 Time: 14:06 | Q147: What do you expect to pay for muriate of potash fertilizer? | U147: 820 | V147: =IF(W142,CONCATENATE("$ Mg",Z155),"$/ton") -> $/ton | W147: =+U147/IF(W142,1000,2000)/IF(W142,0.49809078131038,0.6) -> 0.6833333333 | X147: =IF(W142,CONCATENATE("$ kg",Z155," K"),CONCATENATE("$/lb of K",Z153,"O")) -> $/lb of K₂O
A148: 147 | B148: 100 | C148: 160 | D148: 2007 | E148: 30 | F148: 78 | G148: 99 | H148: 0 | J148: Sample: 2001 2018 IF KRATE<>135 AND DCLAY=0
A149: 148 | B149: 81.8 | C149: 0 | D149: 2006 | E149: 31 | F149: 7 | G149: 60 | H149: 0 | J149: Periods included: 17 | Q149: What is the yield potential of your field? | U149: 200 | V149: =IF(W142,CONCATENATE("kg ha",Z155),"bu/acre") -> bu/acre | W149: =+U149/100 -> 2 | X149: kg ha-1/relative yield % (100% = yield potential)
A150: 149 | B150: 94.9 | C150: 40 | D150: 2006 | E150: 31 | F150: 20 | G150: 66 | H150: 0 | J150: Cross-sections included: 77 | BV150: Labels
A151: 150 | B151: 97.5 | C151: 80 | D151: 2006 | E151: 31 | F151: 43 | G151: 67 | H151: 0 | J151: Total panel (unbalanced) observations: 414 | Q151: What is your soil test-K value (STK) and range? | U151: 85 | V151: =IF(W142,CONCATENATE("mg K kg",Z155),"ppm") -> ppm | W151: Soil test range +/- | Y151: 10 | BI151: High | BJ151: =MMULT($BJ$157:$BO$157,BJ160:BJ165) -> 0 | BK151: 0 | BL151: 0 | BM151: 0 | BN151: 0 | BO151: 0 | BP151: =SQRT(MMULT(BJ151:BO151,BR160:BR165))*1.96 -> 0 | BV151: =CONCATENATE(TEXT(T156,0)," ",BQ154," ",TEXT(BP151,"0.0")) -> 0 ± 0.0
A152: 151 | B152: 97.5 | C152: 120 | D152: 2006 | E152: 31 | F152: 62 | G152: 81 | H152: 0 | J152: Wallace and Hussain estimator of component variances | W152: Max K recommendation: | Y152: =180*IF(W142,BP172,1) -> 180 | BI152: Avg | BJ152: =MMULT($BJ$156:$BO$156,BJ160:BJ165) -> -0.141339899 | BK152: 0.0004108738086 | BL152: -0.002546973961 | BM152: 0.04186538712 | BN152: -0.0001449811014 | BO152: 9.366749586e-06 | BP152: =SQRT(MMULT(BJ152:BO152,BQ160:BQ165))*1.96 -> 2.008387145 | BQ152: 95% C.I. of profit maximizing rate at conditional mean | BV152: =CONCATENATE(TEXT(U156,0)," ",BQ154," ",TEXT(BP152,"0.0")) -> 48 ± 2.0
A153: 152 | B153: 100 | C153: 160 | D153: 2006 | E153: 31 | F153: 76 | G153: 94 | H153: 0 | J153: White cross-section standard errors & covariance (d.f. corrected) | Q153: What is your cost to apply fertilizer (equipment, labor, fuel or custom)? | U153: 7.5 | V153: =IF(W142,CONCATENATE("$ ha",Z155),"$/acre") -> $/acre | W153: =CONCATENATE("...your rate in ",IF(W142,CONCATENATE("kg K ha",Z155),CONCATENATE("lbs of K",Z153,"O/acre")),":") -> ...your rate in lbs of K₂O/acre: | Y153: =IF(223-1.825*U151<0,0,223-1.825*U151)*IF(W142,BP172,1) -> 67.875 | Z153: ₂ | BI153: Low | BJ153: =MMULT($BJ$155:$BO$155,BJ160:BJ165) -> -0.1189178389 | BK153: =MMULT($BJ$155:$BO$155,BK160:BK165) -> 0.0002865120417 | BL153: -0.002869647343 | BM153: 0.04368653244 | BN153: -0.0001483537095 | BO153: 1.057057401e-05 | BP153: =SQRT(MMULT(BJ153:BO153,BP160:BP165))*1.96 -> 2.906793021 | BV153: =CONCATENATE(TEXT(V156,0)," ",BQ154," ",TEXT(BP153,"0.0")) -> 78 ± 2.9
A154: 153 | B154: 96.5 | C154: 0 | D154: 2001 | E154: 32 | F154: 1 | G154: 153 | H154: 0 | J154: Variable | K154: Coefficient | L154: Std. Error | M154: t-Statistic | N154: Prob. | O154: English | Q154: =CONCATENATE("Profit change comparing applying at ",TEXT(ROUND(U156,1),"0.0"),IF(W142,CONCATENATE("kg K ha",Z155),CONCATENATE("lb K",Z153,"O/acre"))," to no fertilizer:") -> Profit change comparing applying at 47.8lb K₂O/acre to no fertilizer: | U154: =+U160*$U$145/IF(W142,1,2.22222222222)-U156*$W$147-IF(U156>0,$U$153)-R165*$U$145/IF(W142,1,2.22222222222) -> -0.4482836069 | V154: =IF(W142,CONCATENATE("$ ha",Z155),"$/acre") -> $/acre | W154: Profit-max rate over your rate: | Y154: =+U162 -> 1.236051091 | Z154: =CONCATENATE("lb Fertilizer-K",Z153,"O/acre") -> lb Fertilizer-K₂O/acre | BQ154: ±
A155: 154 | B155: 96.5 | C155: 60 | D155: 2001 | E155: 32 | F155: 27 | G155: 153 | H155: 0 | Q155: =IF(U154<=0,"The fertilizer does not generate enough revenue to pay for itself and costs to apply","") -> The fertilizer does not generate enough revenue to pay for itself and costs to apply | T155: =CONCATENATE(U151+Y151," ppm soil K") -> 95 ppm soil K | U155: =CONCATENATE(U151," ppm soil K") -> 85 ppm soil K | V155: =CONCATENATE(U151-Y151," ppm soil K") -> 75 ppm soil K | W155: K yield max | Z155: ⁻¹ | BI155: Low | BJ155: =+V156 -> 78.19487222 | BK155: =+BJ155^2 -> 6114.438042 | BL155: =+(U151-Y151)*BJ155 -> 5864.615417 | BM155: =+(U151-Y151)^0.5*BJ155 -> 677.1874579 | BN155: =+(U151-Y151)^0.5*BK155 -> 52952.58674 | BO155: =+(U151-Y151)*BK155 -> 458582.8532
A156: 155 | B156: 100 | C156: 120 | D156: 2001 | E156: 32 | F156: 57 | G156: 153 | H156: 0 | J156: C | K156: 11.75039641 | L156: 25.15261737 | M156: 0.4671639628 | N156: 0.640633807 | O156: 11.75039641 | Q156: Profit Maximizing K rate: | T156: =IF((IF(W142,K159,O159)+2*IF(W142,K160,O160)*0.1+IF(W142,K161,O161)*(U151+Y151)+IF(W142,K162,O162)*(U151+Y151)^0.5+2*IF(W142,K163,O163)*(U151+Y151)^0.5*0.1+2*IF(W142,K164,O164)*(U151+Y151)*0.1)<0,0,IF(((IF(W142,K159,O159)+2*IF(W142,K160,O160)*Y152+IF(W142,K161,O161)*(U151+Y151)+IF(W142,K162,O162)*(U151+Y151)^0.5+2*IF(W142,K163,O163)*(U151+Y151)^0.5*Y152+2*IF(W142,K164,O164)*(U151+Y151)*Y152)*U145/IF(W142,1,2.2222222222222)*W149)>W147,IF(Y152<T188,Y152,T188),IF((W147/(U145/IF(W142,1,2.2222222222222)*W149)-IF(W142,K159,O159)-IF(W142,K161,O161)*(U151+Y151)-IF(W142,K162,O162)*(U151+Y151)^0.5)/(2*(IF(W142,K160,O160)+IF(W142,K163,O163)*(U151+Y151)^0.5+IF(W142,K164,O164)*(U151+Y151)))<0,0,IF((W147/(U145/IF(W142,1,2.2222222222222)*W149)-IF(W142,K159,O159)-IF(W142,K161,O161)*(U151+Y151)-IF(W142,K162,O162)*(U151+Y151)^0.5)/(2*(IF(W142,K160,O160)+IF(W142,K163,O163)*(U151+Y151)^0.5+IF(W142,K164,O164)*(U151+Y151)))>T188,T188,(W147/(U145/IF(W142,1,2.2222222222222)*W149)-IF(W142,K159,O159)-IF(W142,K161,O161)*(U151+Y151)-IF(W142,K162,O162)*(U151+Y151)^0.5)/(2*(IF(W142,K160,O160)+IF(W142,K163,O163)*(U151+Y151)^0.5+IF(W142,K164,O164)*(U151+Y151))))))) -> 0 | U156: =IF((IF(W142,K159,O159)+2*IF(W142,K160,O160)*0.1+IF(W142,K161,O161)*(U151)+IF(W142,K162,O162)*(U151)^0.5+2*IF(W142,K163,O163)*(U151)^0.5*0.1+2*IF(W142,K164,O164)*(U151)*0.1)<0,0,IF(((IF(W142,K159,O159)+2*IF(W142,K160,O160)*Y152+IF(W142,K161,O161)*(U151)+IF(W142,K162,O162)*(U151)^0.5+2*IF(W142,K163,O163)*(U151)^0.5*Y152+2*IF(W142,K164,O164)*(U151)*Y152)*U145/IF(W142,1,2.2222222222222)*W149)>W147,IF(Y152<U188,Y152,U188),IF((W147/(U145/IF(W142,1,2.2222222222222)*W149)-IF(W142,K159,O159)-IF(W142,K161,O161)*(U151)-IF(W142,K162,O162)*(U151)^0.5)/(2*(IF(W142,K160,O160)+IF(W142,K163,O163)*(U151)^0.5+IF(W142,K164,O164)*(U151)))<0,0,IF((W147/(U145/IF(W142,1,2.2222222222222)*W149)-IF(W142,K159,O159)-IF(W142,K161,O161)*(U151)-IF(W142,K162,O162)*(U151)^0.5)/(2*(IF(W142,K160,O160)+IF(W142,K163,O163)*(U151)^0.5+IF(W142,K164,O164)*(U151)))>U188,U188,(W147/(U145/IF(W142,1,2.2222222222222)*W149)-IF(W142,K159,O159)-IF(W142,K161,O161)*(U151)-IF(W142,K162,O162)*(U151)^0.5)/(2*(IF(W142,K160,O160)+IF(W142,K163,O163)*(U151)^0.5+IF(W142,K164,O164)*(U151))))))) -> 47.84414164 | V156: =IF((IF(W142,K159,O159)+2*IF(W142,K160,O160)*0.1+IF(W142,K161,O161)*(U151-Y151)+IF(W142,K162,O162)*(U151-Y151)^0.5+2*IF(W142,K163,O163)*(U151-Y151)^0.5*0.1+2*IF(W142,K164,O164)*(U151-Y151)*0.1)<0,0,IF(((IF(W142,K159,O159)+2*IF(W142,K160,O160)*Y152+IF(W142,K161,O161)*(U151-Y151)+IF(W142,K162,O162)*(U151-Y151)^0.5+2*IF(W142,K163,O163)*(U151-Y151)^0.5*Y152+2*IF(W142,K164,O164)*(U151-Y151)*Y152)*U145/IF(W142,1,2.2222222222222)*W149)>W147,IF(Y152<V188,Y152,V188),IF((W147/(U145/IF(W142,1,2.2222222222222)*W149)-IF(W142,K159,O159)-IF(W142,K161,O161)*(U151-Y151)-IF(W142,K162,O162)*(U151-Y151)^0.5)/(2*(IF(W142,K160,O160)+IF(W142,K163,O163)*(U151-Y151)^0.5+IF(W142,K164,O164)*(U151-Y151)))<0,0,IF((W147/(U145/IF(W142,1,2.2222222222222)*W149)-IF(W142,K159,O159)-IF(W142,K161,O161)*(U151-Y151)-IF(W142,K162,O162)*(U151-Y151)^0.5)/(2*(IF(W142,K160,O160)+IF(W142,K163,O163)*(U151-Y151)^0.5+IF(W142,K164,O164)*(U151-Y151)))>V188,V188,(W147/(U145/IF(W142,1,2.2222222222222)*W149)-IF(W142,K159,O159)-IF(W142,K161,O161)*(U151-Y151)-IF(W142,K162,O162)*(U151-Y151)^0.5)/(2*(IF(W142,K160,O160)+IF(W142,K163,O163)*(U151-Y151)^0.5+IF(W142,K164,O164)*(U151-Y151))))))) -> 78.19487222 | W156: =+U187 -> 158.7527634 | Z156: =CONCATENATE("Rice Yield in kg ha",Z155) -> Rice Yield in kg ha⁻¹ | BI156: Avg | BJ156: =+U156 -> 47.84414164 | BK156: =+BJ156^2 -> 2289.061889 | BL156: =+U151*BJ156 -> 4066.752039 | BM156: =U151^0.5*BJ156 -> 441.1011909 | BN156: =+U151^0.5*BK156 -> 21104.10785 | BO156: =U151*BK156 -> 194570.2606
A157: 156 | B157: 94.8 | C157: 180 | D157: 2001 | E157: 32 | F157: 79 | G157: 153 | H157: 0 | J157: KSOIL | K157: -0.5530711173 | L157: 0.2697197605 | M157: -2.050539851 | N157: 0.0409548935 | O157: -0.5530711174 | Q157: VMP @ Profit Max: | T157: =IF((IF(W142,K159,O159)+2*IF(W142,K160,O160)*T156+IF(W142,K161,O161)*(U151+Y151)+IF(W142,K162,O162)*(U151+Y151)^0.5+2*IF(W142,K163,O163)*(U151+Y151)^0.5*T156+2*IF(W142,K164,O164)*(U151+Y151)*T156)*U145/IF(W142,1,2.2222222222222)*W149<0,"na",(IF(W142,K159,O159)+2*IF(W142,K160,O160)*T156+IF(W142,K161,O161)*(U151+Y151)+IF(W142,K162,O162)*(U151+Y151)^0.5+2*IF(W142,K163,O163)*(U151+Y151)^0.5*T156+2*IF(W142,K164,O164)*(U151+Y151)*T156)*U145/IF(W142,1,2.2222222222222)*W149) -> 0.615467758 | U157: =IF((IF(W142,K159,O159)+2*IF(W142,K160,O160)*U156+IF(W142,K161,O161)*(U151)+IF(W142,K162,O162)*(U151)^0.5+2*IF(W142,K163,O163)*(U151)^0.5*U156+2*IF(W142,K164,O164)*(U151)*U156)*U145/IF(W142,1,2.2222222222222)*W149<0,"na",(IF(W142,K159,O159)+2*IF(W142,K160,O160)*U156+IF(W142,K161,O161)*(U151)+IF(W142,K162,O162)*(U151)^0.5+2*IF(W142,K163,O163)*(U151)^0.5*U156+2*IF(W142,K164,O164)*(U151)*U156)*U145/IF(W142,1,2.2222222222222)*W149) -> 0.6833333333 | V157: =IF((IF(W142,K159,O159)+2*IF(W142,K160,O160)*V156+IF(W142,K161,O161)*(U151-Y151)+IF(W142,K162,O162)*(U151-Y151)^0.5+2*IF(W142,K163,O163)*(U151-Y151)^0.5*V156+2*IF(W142,K164,O164)*(U151-Y151)*V156)*U145/IF(W142,1,2.2222222222222)*W149<0,"na",(IF(W142,K159,O159)+2*IF(W142,K160,O160)*V156+IF(W142,K161,O161)*(U151-Y151)+IF(W142,K162,O162)*(U151-Y151)^0.5+2*IF(W142,K163,O163)*(U151-Y151)^0.5*V156+2*IF(W142,K164,O164)*(U151-Y151)*V156)*U145/IF(W142,1,2.2222222222222)*W149) -> 0.6833333333 | Z157: =CONCATENATE("kg Fertilizer-K ha",Z155) -> kg Fertilizer-K ha⁻¹ | BI157: High | BJ157: =+T156 -> 0 | BK157: =+BJ157^2 -> 0 | BL157: =+(U151+Y151)*BJ157 -> 0 | BM157: =+(U151+Y151)^0.5*BJ157 -> 0 | BN157: =+(U151+Y151)^0.5*BK157 -> 0 | BO157: =(U151+Y151)*BK157 -> 0
A158: 157 | B158: 95.3 | C158: 0 | D158: 2002 | E158: 33 | F158: 1 | G158: 113 | H158: 0 | J158: KSOIL^.5 | K158: 13.89586261 | L158: 5.254161259 | M158: 2.644734701 | N158: 0.008493422719 | O158: 13.89586261 | Q158: UAEX recommendation: | T158: =IF(223-1.825*(U151+Y151)<0,0,223-1.825*(U151+Y151))*IF(W142,BP172,1) -> 49.625 | U158: =+Y153 -> 67.875 | V158: =IF(223-1.825*(U151-Y151)<0,0,223-1.825*(U151-Y151))*IF(W142,BP172,1) -> 86.125 | BJ158: Coefficient Covariance Matrix as available in Eviews under the View Menu in the Equation Editor
A159: 158 | B159: 100 | C159: 60 | D159: 2002 | E159: 33 | F159: 27 | G159: 113 | H159: 0 | J159: MKRATE | K159: 1.468430116 | L159: 0.3784135595 | M159: 3.880490217 | N159: 0.0001216566887 | O159: 1.366387571 | W159: Est. Yield Max | BJ159: K | BK159: K^2 | BL159: S*K | BM159: S^.5*K | BN159: S^.5*K^2 | BO159: S*K^2 | BP159: Low | BQ159: Avg | BR159: High | BW159: English
A160: 159 | B160: 98.4 | C160: 120 | D160: 2002 | E160: 33 | F160: 57 | G160: 113 | H160: 0 | J160: MKRATE^2 | K160: -0.006536869186 | L160: 0.00163267241 | M160: -4.003784926 | N160: 7.415189242e-05 | O160: -0.005659929664 | Q160: Est. Yield at Profit-Max K: | T160: =IF((+K156+K157*(U151+Y151)+K158*(U151+Y151)^0.5+IF(W142,K159,O159)*T156+IF(W142,K160,O160)*T156^2+IF(W142,K161,O161)*(U151+Y151)*T156+IF(W142,K162,O162)*(U151+Y151)^0.5*T156+IF(W142,K163,O163)*(U151+Y151)^0.5*T156^2+IF(W142,K164,O164)*(U151+Y151)*T156^2)*W149>U149,U149,(+K156+K157*(U151+Y151)+K158*(U151+Y151)^0.5+IF(W142,K159,O159)*T156+IF(W142,K160,O160)*T156^2+IF(W142,K161,O161)*(U151+Y151)*T156+IF(W142,K162,O162)*(U151+Y151)^0.5*T156+IF(W142,K163,O163)*(U151+Y151)^0.5*T156^2+IF(W142,K164,O164)*(U151+Y151)*T156^2)*W149) -> 189.2975107 | U160: =IF((+K156+K157*U151+K158*U151^0.5+IF(W142,K159,O159)*U156+IF(W142,K160,O160)*U156^2+IF(W142,K161,O161)*U151*U156+IF(W142,K162,O162)*U151^0.5*U156+IF(W142,K163,O163)*U151^0.5*U156^2+IF(W142,K164,O164)*(U151)*U156^2)*W149>U149,U149,(+K156+K157*U151+K158*U151^0.5+IF(W142,K159,O159)*U156+IF(W142,K160,O160)*U156^2+IF(W142,K161,O161)*U151*U156+IF(W142,K162,O162)*U151^0.5*U156+IF(W142,K163,O163)*U151^0.5*U156^2+IF(W142,K164,O164)*(U151)*U156^2)*W149) -> 191.5939288 | V160: =IF((+K156+K157*(U151-Y151)+K158*(U151-Y151)^0.5+IF(W142,K159,O159)*V156+IF(W142,K160,O160)*V156^2+IF(W142,K161,O161)*(U151-Y151)*V156+IF(W142,K162,O162)*(U151-Y151)^0.5*V156+IF(W142,K163,O163)*(U151-Y151)^0.5*V156^2+IF(W142,K164,O164)*(U151-Y151)*V156^2)*W149>U149,U149,(+K156+K157*(U151-Y151)+K158*(U151-Y151)^0.5+IF(W142,K159,O159)*V156+IF(W142,K160,O160)*V156^2+IF(W142,K161,O161)*(U151-Y151)*V156+IF(W142,K162,O162)*(U151-Y151)^0.5*V156+IF(W142,K163,O163)*(U151-Y151)^0.5*V156^2+IF(W142,K164,O164)*(U151-Y151)*V156^2)*W149) -> 193.5109728 | W160: =IF((+K156+K157*U151+K158*U151^0.5+IF(W142,K159,O159)*W156+IF(W142,K160,O160)*W156^2+IF(W142,K161,O161)*U151*W156+IF(W142,K162,O162)*U151^0.5*W156+IF(W142,K163,O163)*U151^0.5*W156^2+IF(W142,K164,O164)*(U151)*W156^2)*W149>U149,U149,(+K156+K157*U151+K158*U151^0.5+IF(W142,K159,O159)*W156+IF(W142,K160,O160)*W156^2+IF(W142,K161,O161)*U151*W156+IF(W142,K162,O162)*U151^0.5*W156+IF(W142,K163,O163)*U151^0.5*W156^2+IF(W142,K164,O164)*(U151)*W156^2)*W149) -> 197.207822 | BI160: KRATE | BJ160: =IF($W$142,BU167,BU160) -> 0.1239865626 | BK160: =IF($W$142,BV167,BV160) -> -0.0004468687905 | BL160: 0.001346796763 | BM160: -0.02627442232 | BN160: 9.627036054e-05 | BO160: -4.983134738e-06 | BP160: =+BJ155 -> 78.19487222 | BQ160: =+BJ156 -> 47.84414164 | BR160: =+BJ157 -> 0 | BU160: 0.1239865626 | BV160: -0.0004468687905 | BW160: 0.001346796763 | BX160: -0.02627442232 | BY160: 9.627036054e-05 | BZ160: -4.983134738e-06
A161: 160 | B161: 97.9 | C161: 180 | D161: 2002 | E161: 33 | F161: 79 | G161: 113 | H161: 0 | J161: KSOIL*MKRATE | K161: 0.009857073615 | L161: 0.004293023232 | M161: 2.296068081 | N161: 0.02218196532 | O161: 0.009172096602 | Q161: Est. Yield at UAEX rec.: | T161: =IF((+K156+K157*(U151+Y151)+K158*(U151+Y151)^0.5+IF(W142,K159,O159)*T158+IF(W142,K160,O160)*T158^2+IF(W142,K161,O161)*(U151+Y151)*T158+IF(W142,K162,O162)*(U151+Y151)^0.5*T158+IF(W142,K163,O163)*(U151+Y151)^0.5*T158^2+IF(W142,K164,O164)*(U151+Y151)*T158^2)*W149>U149,U149,(+K156+K157*(U151+Y151)+K158*(U151+Y151)^0.5+IF(W142,K159,O159)*T158+IF(W142,K160,O160)*T158^2+IF(W142,K161,O161)*(U151+Y151)*T158+IF(W142,K162,O162)*(U151+Y151)^0.5*T158+IF(W142,K163,O163)*(U151+Y151)^0.5*T158^2+IF(W142,K164,O164)*(U151+Y151)*T158^2)*W149) -> 193.1820092 | U161: =IF((+K156+K157*U151+K158*U151^0.5+IF(W142,K159,O159)*U158+IF(W142,K160,O160)*U158^2+IF(W142,K161,O161)*U151*U158+IF(W142,K162,O162)*U151^0.5*U158+IF(W142,K163,O163)*U151^0.5*U158^2+IF(W142,K164,O164)*(U151)*U158^2)*W149>U149,U149,(+K156+K157*U151+K158*U151^0.5+IF(W142,K159,O159)*U158+IF(W142,K160,O160)*U158^2+IF(W142,K161,O161)*U151*U158+IF(W142,K162,O162)*U151^0.5*U158+IF(W142,K163,O163)*U151^0.5*U158^2+IF(W142,K164,O164)*(U151)*U158^2)*W149) -> 193.4386254 | V161: =IF((+K156+K157*(U151-Y151)+K158*(U151-Y151)^0.5+IF(W142,K159,O159)*V158+IF(W142,K160,O160)*V158^2+IF(W142,K161,O161)*(U151-Y151)*V158+IF(W142,K162,O162)*(U151-Y151)^0.5*V158+IF(W142,K163,O163)*(U151-Y151)^0.5*V158^2+IF(W142,K164,O164)*(U151-Y151)*V158^2)*W149>U149,U149,(+K156+K157*(U151-Y151)+K158*(U151-Y151)^0.5+IF(W142,K159,O159)*V158+IF(W142,K160,O160)*V158^2+IF(W142,K161,O161)*(U151-Y151)*V158+IF(W142,K162,O162)*(U151-Y151)^0.5*V158+IF(W142,K163,O163)*(U151-Y151)^0.5*V158^2+IF(W142,K164,O164)*(U151-Y151)*V158^2)*W149) -> 194.2688158 | BI161: KRATE^2 | BJ161: =IF($W$142,BU168,BU161) -> -0.0004468687905 | BK161: 1.998391566e-06 | BL161: -4.599211807e-06 | BM161: 9.20516686e-05 | BN161: -4.090993712e-07 | BO161: 2.030071881e-08 | BP161: =+BK155 -> 6114.438042 | BQ161: =+BK156 -> 2289.061889 | BR161: =+BK157 -> 0 | BU161: -0.0004468687905 | BV161: 1.998391566e-06 | BW161: -4.599211807e-06 | BX161: 9.20516686e-05 | BY161: -4.090993712e-07 | BZ161: 2.030071881e-08
A162: 161 | B162: 98.8 | C162: 0 | D162: 2001 | E162: 34 | F162: 2 | G162: 113 | H162: 0 | J162: KSOIL^.5*MKRATE | K162: -0.2417058492 | L162: 0.0814382365 | M162: -2.967965167 | N162: 0.003175726744 | O162: -0.2249094898 | Q162: Added Profit in $/acre | T162: =+(T160-T161)*U145/IF(W142,1,2.2222222222222)-(T156-T158)*W147-IF(T158=0,IF(T156=0,0,U153),IF(T156=0,IF(T158>0,-U153,0))) -> 15.19005158 | U162: =+(U160-U161)*U145/IF(W142,1,2.2222222222222)-(U156-U158)*W147-IF(U158=0,IF(U156=0,0,U153),IF(U156=0,IF(U158>0,-U153,0))) -> 1.236051091 | V162: =+(V160-V161)*U145/IF(W142,1,2.2222222222222)-(V156-V158)*W147-IF(V158=0,IF(V156=0,0,U153),IF(V156=0,IF(V158>0,-U153,0))) -> 0.3034802393 | W162: =+(U160-W160)*U145/IF(W142,1,2.2222222222222)-(U156-W156)*W147-IF(W156=0,IF(U156=0,0,U153),IF(U156=0,IF(W156>0,-U153,0))) -> 37.89377911 | BI162: KSOIL*KRATE | BJ162: 0.001346796763 | BK162: -4.599211807e-06 | BL162: 1.595760525e-05 | BM162: -0.0003005845988 | BN162: 1.065079506e-06 | BO162: -5.777029094e-08 | BP162: =+BL155 -> 5864.615417 | BQ162: =+BL156 -> 4066.752039 | BR162: =+BL157 -> 0 | BU162: 0.001346796763 | BV162: -4.599211807e-06 | BW162: 1.595760525e-05 | BX162: -0.0003005845988 | BY162: 1.065079506e-06 | BZ162: -5.777029094e-08
A163: 162 | B163: 100 | C163: 30 | D163: 2001 | E163: 34 | F163: 13 | G163: 113 | H163: 0 | J163: KSOIL^.5*MKRATE^2 | K163: 0.001120626718 | L163: 0.0003424969586 | M163: 3.27193188 | N163: 0.001159693785 | O163: 0.0009702914686 | T163: =+T161-T160 -> 3.884498532 | U163: =+U161-U160 -> 1.844696611 | V163: =+V161-V160 -> 0.7578430234 | BI163: KSOIL^.5*KRATE | BJ163: -0.02627442232 | BK163: 9.20516686e-05 | BL163: -0.0003005845988 | BM163: 0.005742459773 | BN163: -2.068054483e-05 | BO163: 1.10023103e-06 | BP163: =+BM155 -> 677.1874579 | BQ163: =+BM156 -> 441.1011909 | BR163: =+BM157 -> 0 | BU163: -0.02627442232 | BV163: 9.20516686e-05 | BW163: -0.0003005845988 | BX163: 0.005742459773 | BY163: -2.068054483e-05 | BZ163: 1.10023103e-06
A164: 163 | B164: 98.2 | C164: 60 | D164: 2001 | E164: 34 | F164: 28 | G164: 113 | H164: 0 | J164: KSOIL*MKRATE^2 | K164: -4.774527315e-05 | L164: 1.782473111e-05 | M164: -2.678597105 | N164: 0.007694186614 | O164: -4.134010948e-05 | Q164: K rate | R164: =CONCATENATE("Est. Yield (STK = ",U151,")") -> Est. Yield (STK = 85) | S164: =CONCATENATE("Est. Yield (STK = ",U151-Y151,")") -> Est. Yield (STK = 75) | T164: =CONCATENATE("Est. Yield (STK = ",U151+Y151,")") -> Est. Yield (STK = 95) | AA164: Year | AB164: Potash Fertilizer Price in $/ton | AC164: Rough Rice Price in $/cwt | AD164: Rough Rice Yield in bu/acre | AE164: lbs/acre | BI164: KSOIL^.5*KRATE^2 | BJ164: 9.627036054e-05 | BK164: -4.090993712e-07 | BL164: 1.065079506e-06 | BM164: -2.068054483e-05 | BN164: 8.79419151e-08 | BO164: -4.52092238e-09 | BP164: =+BN155 -> 52952.58674 | BQ164: =+BN156 -> 21104.10785 | BR164: =+BN157 -> 0 | BU164: 9.627036054e-05 | BV164: -4.090993712e-07 | BW164: 1.065079506e-06 | BX164: -2.068054483e-05 | BY164: 8.79419151e-08 | BZ164: -4.52092238e-09
A165: 164 | B165: 98.2 | C165: 90 | D165: 2001 | E165: 34 | F165: 45 | G165: 113 | H165: 0 | Q165: 0 | R165: =IF((IF($W$142,$K$156,$O$156)+IF($W$142,$K$157,$O$157)*$U$151+IF($W$142,$K$158,$O$158)*$U$151^0.5+IF($W$142,$K$159,$O$159)*Q165+IF($W$142,$K$160,$O$160)*Q165^2+IF($W$142,$K$161,$O$161)*$U$151*Q165+IF($W$142,$K$162,$O$162)*$U$151^0.5*Q165+IF($W$142,$K$163,$O$163)*$U$151^0.5*Q165^2+IF($W$142,$K$164,$O$164)*$U$151*Q165^2)*$W$149>$U$149,$U$149,(IF($W$142,$K$156,$O$156)+IF($W$142,$K$157,$O$157)*$U$151+IF($W$142,$K$158,$O$158)*$U$151^0.5+IF($W$142,$K$159,$O$159)*Q165+IF($W$142,$K$160,$O$160)*Q165^2+IF($W$142,$K$161,$O$161)*$U$151*Q165+IF($W$142,$K$162,$O$162)*$U$151^0.5*Q165+IF($W$142,$K$163,$O$163)*$U$151^0.5*Q165^2+IF($W$142,$K$164,$O$164)*$U$151*Q165^2)*$W$149) -> 185.7057491 | S165: =IF((IF($W$142,$K$156,$O$156)+IF($W$142,$K$157,$O$157)*($U$151-$Y$151)+IF($W$142,$K$158,$O$158)*($U$151-$Y$151)^0.5+IF($W$142,$K$159,$O$159)*Q165+IF($W$142,$K$160,$O$160)*Q165^2+IF($W$142,$K$161,$O$161)*($U$151-$Y$151)*Q165+IF($W$142,$K$162,$O$162)*($U$151-$Y$151)^0.5*Q165+IF($W$142,$K$163,$O$163)*($U$151-$Y$151)^0.5*Q165^2+IF($W$142,$K$164,$O$164)*($U$151-$Y$151)*Q165^2)*$W$149>$U$149,$U$149,(IF($W$142,$K$156,$O$156)+IF($W$142,$K$157,$O$157)*($U$151-$Y$151)+IF($W$142,$K$158,$O$158)*($U$151-$Y$151)^0.5+IF($W$142,$K$159,$O$159)*Q165+IF($W$142,$K$160,$O$160)*Q165^2+IF($W$142,$K$161,$O$161)*($U$151-$Y$151)*Q165+IF($W$142,$K$162,$O$162)*($U$151-$Y$151)^0.5*Q165+IF($W$142,$K$163,$O$163)*($U$151-$Y$151)^0.5*Q165^2+IF($W$142,$K$164,$O$164)*($U$151-$Y$151)*Q165^2)*$W$149) -> 181.2235257 | T165: =IF((IF($W$142,$K$156,$O$156)+IF($W$142,$K$157,$O$157)*($U$151+$Y$151)+IF($W$142,$K$158,$O$158)*($U$151+$Y$151)^0.5+IF($W$142,$K$159,$O$159)*Q165+IF($W$142,$K$160,$O$160)*Q165^2+IF($W$142,$K$161,$O$161)*($U$151+$Y$151)*Q165+IF($W$142,$K$162,$O$162)*($U$151+$Y$151)^0.5*Q165+IF($W$142,$K$163,$O$163)*($U$151+$Y$151)^0.5*Q165^2+IF($W$142,$K$164,$O$164)*($U$151+$Y$151)*Q165^2)*$W$149>$U$149,$U$149,(IF($W$142,$K$156,$O$156)+IF($W$142,$K$157,$O$157)*($U$151+$Y$151)+IF($W$142,$K$158,$O$158)*($U$151+$Y$151)^0.5+IF($W$142,$K$159,$O$159)*Q165+IF($W$142,$K$160,$O$160)*Q165^2+IF($W$142,$K$161,$O$161)*($U$151+$Y$151)*Q165+IF($W$142,$K$162,$O$162)*($U$151+$Y$151)^0.5*Q165+IF($W$142,$K$163,$O$163)*($U$151+$Y$151)^0.5*Q165^2+IF($W$142,$K$164,$O$164)*($U$151+$Y$151)*Q165^2)*$W$149) -> 189.2975107 | U165: =ROUNDUP((MAX(BJ175:BJ588,U149)+IF(W142,500,10))/10,0)*10 -> 210 | AA165: 2009 | AB165: 880 | AC165: 15 | AD165: =+AE165/45 -> 157.4444444 | AE165: 7085 | AR165: =CONCATENATE("Obs. Yields (",U151-Y151," < SK < ",U151+Y151,")") -> Obs. Yields (75 < SK < 95) | BI165: KSOIL*KRATE^2 | BJ165: -4.983134738e-06 | BK165: 2.030071881e-08 | BL165: -5.777029094e-08 | BM165: 1.10023103e-06 | BN165: -4.52092238e-09 | BO165: 2.381927039e-10 | BP165: =+BO155 -> 458582.8532 | BQ165: =+BO156 -> 194570.2606 | BR165: =+BO157 -> 0 | BU165: -4.983134738e-06 | BV165: 2.030071881e-08 | BW165: -5.777029094e-08 | BX165: 1.10023103e-06 | BY165: -4.52092238e-09 | BZ165: 2.381927039e-10
A166: 165 | B166: 97.5 | C166: 120 | D166: 2001 | E166: 34 | F166: 58 | G166: 113 | H166: 0 | K166: Effects Specification | Q166: 2 | R166: =IF((IF($W$142,$K$156,$O$156)+IF($W$142,$K$157,$O$157)*$U$151+IF($W$142,$K$158,$O$158)*$U$151^0.5+IF($W$142,$K$159,$O$159)*Q166+IF($W$142,$K$160,$O$160)*Q166^2+IF($W$142,$K$161,$O$161)*$U$151*Q166+IF($W$142,$K$162,$O$162)*$U$151^0.5*Q166+IF($W$142,$K$163,$O$163)*$U$151^0.5*Q166^2+IF($W$142,$K$164,$O$164)*$U$151*Q166^2)*$W$149>$U$149,$U$149,(IF($W$142,$K$156,$O$156)+IF($W$142,$K$157,$O$157)*$U$151+IF($W$142,$K$158,$O$158)*$U$151^0.5+IF($W$142,$K$159,$O$159)*Q166+IF($W$142,$K$160,$O$160)*Q166^2+IF($W$142,$K$161,$O$161)*$U$151*Q166+IF($W$142,$K$162,$O$162)*$U$151^0.5*Q166+IF($W$142,$K$163,$O$163)*$U$151^0.5*Q166^2+IF($W$142,$K$164,$O$164)*$U$151*Q166^2)*$W$149) -> 185.9937345 | S166: =IF((IF($W$142,$K$156,$O$156)+IF($W$142,$K$157,$O$157)*($U$151-$Y$151)+IF($W$142,$K$158,$O$158)*($U$151-$Y$151)^0.5+IF($W$142,$K$159,$O$159)*Q166+IF($W$142,$K$160,$O$160)*Q166^2+IF($W$142,$K$161,$O$161)*($U$151-$Y$151)*Q166+IF($W$142,$K$162,$O$162)*($U$151-$Y$151)^0.5*Q166+IF($W$142,$K$163,$O$163)*($U$151-$Y$151)^0.5*Q166^2+IF($W$142,$K$164,$O$164)*($U$151-$Y$151)*Q166^2)*$W$149>$U$149,$U$149,(IF($W$142,$K$156,$O$156)+IF($W$142,$K$157,$O$157)*($U$151-$Y$151)+IF($W$142,$K$158,$O$158)*($U$151-$Y$151)^0.5+IF($W$142,$K$159,$O$159)*Q166+IF($W$142,$K$160,$O$160)*Q166^2+IF($W$142,$K$161,$O$161)*($U$151-$Y$151)*Q166+IF($W$142,$K$162,$O$162)*($U$151-$Y$151)^0.5*Q166+IF($W$142,$K$163,$O$163)*($U$151-$Y$151)^0.5*Q166^2+IF($W$142,$K$164,$O$164)*($U$151-$Y$151)*Q166^2)*$W$149) -> 181.646752 | T166: =IF((IF($W$142,$K$156,$O$156)+IF($W$142,$K$157,$O$157)*($U$151+$Y$151)+IF($W$142,$K$158,$O$158)*($U$151+$Y$151)^0.5+IF($W$142,$K$159,$O$159)*Q166+IF($W$142,$K$160,$O$160)*Q166^2+IF($W$142,$K$161,$O$161)*($U$151+$Y$151)*Q166+IF($W$142,$K$162,$O$162)*($U$151+$Y$151)^0.5*Q166+IF($W$142,$K$163,$O$163)*($U$151+$Y$151)^0.5*Q166^2+IF($W$142,$K$164,$O$164)*($U$151+$Y$151)*Q166^2)*$W$149>$U$149,$U$149,(IF($W$142,$K$156,$O$156)+IF($W$142,$K$157,$O$157)*($U$151+$Y$151)+IF($W$142,$K$158,$O$158)*($U$151+$Y$151)^0.5+IF($W$142,$K$159,$O$159)*Q166+IF($W$142,$K$160,$O$160)*Q166^2+IF($W$142,$K$161,$O$161)*($U$151+$Y$151)*Q166+IF($W$142,$K$162,$O$162)*($U$151+$Y$151)^0.5*Q166+IF($W$142,$K$163,$O$163)*($U$151+$Y$151)^0.5*Q166^2+IF($W$142,$K$164,$O$164)*($U$151+$Y$151)*Q166^2)*$W$149) -> 189.4788314 | U166: =ROUNDDOWN((S165-IF(W142,500,10))/10,0)*10 -> 170 | AA166: 2010 | AB166: 522 | AC166: 13.4 | AD166: =+AE166/45 -> 149.4444444 | AE166: 6725 | AR166: =CONCATENATE("Estimated Yield Response to K Fertilizer and Profit-Maximizing Application Rates for a Range of Initial Soil-Test K Values at Specified Yield Potential") -> Estimated Yield Response to K Fertilizer and Profit-Maximizing Application Rates for a Range of Initial Soil-Test K Values at Specified Yield Potential | BW166: Metric
A167: 166 | B167: 92.7 | C167: 0 | D167: 2002 | E167: 35 | F167: 2 | G167: 65 | H167: 0 | M167: S.D. | N167: Rho | Q167: 5 | R167: 186.4188668 | S167: 182.2708674 | T167: 189.7469123 | AA167: 2011 | AB167: 460 | AC167: 11.3 | AD167: 157.0444444 | AE167: 7067 | BU167: 0.143196822 | BV167: -0.0005546489103 | BW167: 0.001555467079 | BX167: -0.03034533498 | BY167: 0.0001194897735 | BZ167: -6.18501518e-06
A168: 167 | B168: 98.3 | C168: 30 | D168: 2002 | E168: 35 | F168: 13 | G168: 65 | H168: 0 | Q168: 7 | R168: 186.6977245 | S168: 182.6797949 | T168: 189.9230327 | AA168: 2012 | AB168: 583.8 | AC168: 13.4 | AD168: 165.8444444 | AE168: 7463 | BU168: -0.0005546489103 | BV168: 2.665619199e-06 | BW168: -5.708494017e-06 | BX168: 0.0001142535768 | BY168: -5.456904227e-07 | BZ168: 2.707877012e-08
A169: 168 | B169: 96.6 | C169: 60 | D169: 2002 | E169: 35 | F169: 28 | G169: 65 | H169: 0 | J169: Period random | M169: 1.560918191 | N169: 0.1360718419 | Q169: 10 | R169: 187.1091652 | S169: 183.2824623 | T169: 190.1833131 | AA169: 2013 | AB169: 596 | AC169: 14.3 | AD169: 170.9777778 | AE169: 7694 | BU169: 0.001555467079 | BV169: -5.708494017e-06 | BW169: 1.843004847e-05 | BX169: -0.0003471566465 | BY169: 1.321965641e-06 | BZ169: -7.170388624e-08
A170: 169 | B170: 95.5 | C170: 90 | D170: 2002 | E170: 35 | F170: 45 | G170: 65 | H170: 0 | J170: Idiosyncratic random | M170: 3.933098517 | N170: 0.8639281581 | Q170: 15 | R170: 187.7766442 | S170: 184.2583104 | T170: 190.6067129 | AA170: 2014 | AB170: 475 | AC170: 15.2 | AD170: 168.3555556 | AE170: 7576 | BU170: -0.03034533498 | BV170: 0.0001142535768 | BW170: -0.0003471566465 | BX170: 0.006632186364 | BY170: -2.566847786e-05 | BZ170: 1.365595349e-06
A171: 170 | B171: 100 | C171: 120 | D171: 2002 | E171: 35 | F171: 58 | G171: 65 | H171: 0 | Q171: 30 | R171: 189.642165 | S171: 186.9713746 | T171: 191.7989074 | AA171: 2015 | AB171: 472 | AC171: 12 | AD171: 166.0444444 | AE171: 7472 | BU171: 0.0001194897735 | BV171: -5.456904227e-07 | BW171: 1.321965641e-06 | BX171: -2.566847786e-05 | BY171: 1.173041667e-07 | BZ171: -6.030378481e-09
A172: 171 | B172: 94.5 | C172: 0 | D172: 2008 | E172: 36 | F172: 1 | G172: 147 | H172: 0 | K172: Weighted Statistics | Q172: 45 | R172: 191.3023116 | S172: 189.3627182 | T172: 192.874094 | AA172: 2016 | AB172: 425.4 | AC172: 10.9 | AD172: 160.8222222 | AE172: 7237 | BP172: 0.9305090901 | BQ172: convert lbs of K20/acre to kg K ha-1 | BU172: -6.18501518e-06 | BV172: 2.707877012e-08 | BW172: -7.170388624e-08 | BX172: 1.365595349e-06 | BY172: -6.030378481e-09 | BZ172: 3.17721039e-10
A173: 172 | B173: 100 | C173: 40 | D173: 2008 | E173: 36 | F173: 15 | G173: 147 | H173: 0 | Q173: 60 | R173: 192.7570838 | S173: 191.4323412 | T173: 193.8322728 | AA173: 2017 | AB173: =16.97*20 -> 339.4 | AC173: 9.39 | AD173: 166.8222222 | AE173: 7507 | BJ173: Actual RelYld Obs Converted to Yield | BN173: Min Yield
A174: 173 | B174: 94.1 | C174: 80 | D174: 2008 | E174: 36 | F174: 37 | G174: 147 | H174: 0 | J174: R-squared | K174: 0.5125997896 | L174: Mean dependent var | N174: 41.75075271 | Q174: 75 | R174: 194.0064818 | S174: 193.1802438 | T174: 194.6734439 | AA174: 2018 | AB174: =22.2*20 -> 444 | AC174: 11.1 | AD174: 170.9333333 | AE174: 7692 | BI174: RelYld | BJ174: Yield | BK174: Krate | BL174: Ksoil | BN174: =MIN(BN175:BN588) -> 151.2 | BP174: Mkrate
A175: 174 | B175: 93 | C175: 120 | D175: 2008 | E175: 36 | F175: 57 | G175: 147 | H175: 0 | J175: Adjusted R-squared | K175: 0.5029721311 | L175: S.D. dependent var | N175: 9.812127135 | Q175: 90 | R175: 195.0505056 | S175: 194.6064257 | T175: 195.3976071 | AA175: Avg. | AB175: =AVERAGE($AB$165:$AB$174) -> 519.76 | AC175: =AVERAGE($AC$165:$AC$174) -> 12.599 | AD175: =AVERAGE($AD$165:$AD$174) -> 163.3733333 | BI175: =_xlfn.NUMBERVALUE(IF(AND($G2>=($U$151-$Y$151),$G2<=($U$151+$Y$151)),B2,"")) -> 0 | BJ175: =_xlfn.NUMBERVALUE(IFERROR(+BI175*$W$149,"")) -> 0 | BK175: =_xlfn.NUMBERVALUE(IF(AND($G2>=($U$151-$Y$151),$G2<=($U$151+$Y$151)),C2,"")) -> 0 | BL175: =_xlfn.NUMBERVALUE(IF(AND($G2>=($U$151-$Y$151),$G2<=($U$151+$Y$151)),G2,"")) -> 0 | BN175: =IF(BJ175=0,999,BJ175) -> 999 | BP175: =+BK175*$BP$172 -> 0
A176: 175 | B176: 95 | C176: 160 | D176: 2008 | E176: 36 | F176: 71 | G176: 147 | H176: 0 | J176: S.E. of regression | K176: 3.938924371 | L176: Sum squared resid | N176: 6283.625706 | Q176: 108 | R176: 196.03224 | S176: 195.893173 | T176: 196.1121527 | AA176: Min. | AB176: =MIN($AB$165:$AB$174) -> 339.4 | AC176: =MIN($AC$165:$AC$174) -> 9.39 | AD176: =MIN($AD$165:$AD$174) -> 149.4444444 | BI176: =_xlfn.NUMBERVALUE(IF(AND($G3>=($U$151-$Y$151),$G3<=($U$151+$Y$151)),B3,"")) -> 0 | BJ176: =_xlfn.NUMBERVALUE(IFERROR(+BI176*$W$149,"")) -> 0 | BK176: =_xlfn.NUMBERVALUE(IF(AND($G3>=($U$151-$Y$151),$G3<=($U$151+$Y$151)),C3,"")) -> 0 | BL176: =_xlfn.NUMBERVALUE(IF(AND($G3>=($U$151-$Y$151),$G3<=($U$151+$Y$151)),G3,"")) -> 0 | BN176: =IF(BJ176=0,999,BJ176) -> 999 | BP176: =+BK176*$BP$172 -> 0
A177: 176 | B177: 81.6 | C177: 0 | D177: 2008 | E177: 38 | F177: 2 | G177: 104 | H177: 0 | J177: F-statistic | K177: 53.24241515 | L177: Durbin-Watson stat | N177: 2.161163646 | Q177: 120 | R177: 196.5224302 | S177: 196.4936281 | T177: 196.4949102 | AA177: Max. | AB177: =MAX($AB$165:$AB$174) -> 880 | AC177: =MAX($AC$165:$AC$174) -> 15.2 | AD177: =MAX($AD$165:$AD$174) -> 170.9777778 | BI177: 0 | BJ177: 0 | BK177: 0 | BL177: 0 | BN177: 999 | BP177: 0
A178: 177 | B178: 95.3 | C178: 60 | D178: 2008 | E178: 38 | F178: 27 | G178: 104 | H178: 0 | J178: Prob(F-statistic) | K178: 1.219584143e-58 | Q178: 135 | R178: 196.9503311 | S178: 196.9546485 | T178: 196.86805 | BI178: 0 | BJ178: 0 | BK178: 0 | BL178: 0 | BN178: 999 | BP178: 0
A179: 178 | B179: 100 | C179: 120 | D179: 2008 | E179: 38 | F179: 58 | G179: 104 | H179: 0 | Q179: 150 | R179: 197.1728578 | S179: 197.0939483 | T179: 197.124182 | BI179: 0 | BJ179: 0 | BK179: 0 | BL179: 0 | BN179: 999 | BP179: 0
A180: 179 | B180: 94.3 | C180: 0 | D180: 2008 | E180: 39 | F180: 3 | G180: 103 | H180: 0 | K180: Unweighted Statistics | Q180: 165 | R180: 197.1900101 | S180: 196.9115276 | T180: 197.2633063 | BI180: 0 | BJ180: 0 | BK180: 0 | BL180: 0 | BN180: 999 | BP180: 0
A181: 180 | B181: 99.5 | C181: 60 | D181: 2008 | E181: 39 | F181: 28 | G181: 103 | H181: 0 | Q181: 180 | R181: 197.0017882 | S181: 196.4073863 | T181: 197.2854227 | BI181: 0 | BJ181: 0 | BK181: 0 | BL181: 0 | BN181: 999 | BP181: 0
A182: 181 | B182: 100 | C182: 120 | D182: 2008 | E182: 39 | F182: 59 | G182: 103 | H182: 0 | J182: R-squared | K182: 0.4751019154 | L182: Mean dependent var | N182: 95.85821256 | R182: 185.7057491 | S182: 181.2235257 | T182: 189.2975107 | BI182: 0 | BJ182: 0 | BK182: 0 | BL182: 0 | BN182: 999 | BP182: 0
A183: 182 | B183: 91.4 | C183: 0 | D183: 2008 | E183: 40 | F183: 4 | G183: 78 | H183: 0 | J183: Sum squared resid | K183: 7193.08109 | L183: Durbin-Watson stat | N183: 2.036288816 | R183: 185.7057491 | S183: 181.2235257 | T183: 189.2975107 | BI183: 0 | BJ183: 0 | BK183: 0 | BL183: 0 | BN183: 999 | BP183: 0
A184: 183 | B184: 96.1 | C184: 60 | D184: 2008 | E184: 40 | F184: 29 | G184: 78 | H184: 0 | Q184: Disclaimer: This software is provided ‘as is’ and without warranties as to performance or merchantability. Further, statements may have been made to you about this software, and they do not constitute warranties and shall not be relied upon by the user to use the program or act on its results. This program is provided without any expressed or implied warranties whatsoever. Because the diversity of conditions and hardware under which this program may be used, no warranty of merchantability or warranty of fitness for a particular purpose is offered. The user is advised to test the program thoroughly before relying on it. The user assumes the entire risk of using the program. The authors will not be liable for any claim or damage brought against the user by any third party, nor will the authors be liable for any consequential, indirect, or special damages suffered by the user as a result of the software. Results pertain to silt loam soils common in major rice producing regions of the humid mid-Southern U.S. | BI184: 0 | BJ184: 0 | BK184: 0 | BL184: 0 | BN184: 999 | BP184: 0
A185: 184 | B185: 100 | C185: 120 | D185: 2008 | E185: 40 | F185: 60 | G185: 78 | H185: 0 | BI185: 92.5 | BJ185: 185 | BK185: 0 | BL185: 87 | BN185: 185 | BP185: 0
A186: 185 | B186: 83.7 | C186: 0 | D186: 2008 | E186: 41 | F186: 5 | G186: 56 | H186: 0 | BI186: 95.3 | BJ186: 190.6 | BK186: 40 | BL186: 87 | BN186: 190.6 | BP186: 37.2203636
A187: 186 | B187: 92.3 | C187: 60 | D187: 2008 | E187: 41 | F187: 30 | G187: 56 | H187: 0 | R187: Potash fertilizer needed @ RY = 100 if possible or K max or zero if yield max at negative K: | T187: =IF((IF(W142,K159,O159)+IF(W142,K161,O161)*($U$151+$Y$151)+IF(W142,K162,O162)*($U$151+$Y$151)^0.5)/(-2*(IF(W142,K160,O160)+IF(W142,K163,O163)*($U$151+$Y$151)^0.5+IF(W142,K164,O164)*($U$151+$Y$151)))>$Y$152,$Y$152,(IF(W142,K159,O159)+IF(W142,K161,O161)*($U$151+$Y$151)+IF(W142,K162,O162)*($U$151+$Y$151)^0.5)/(-2*(IF(W142,K160,O160)+IF(W142,K163,O163)*($U$151+$Y$151)^0.5+IF(W142,K164,O164)*($U$151+$Y$151)))) -> 175.3352516 | U187: =IF((IF(W142,K159,O159)+IF(W142,K161,O161)*($U$151)+IF(W142,K162,O162)*($U$151)^0.5)/(-2*(IF(W142,K160,O160)+IF(W142,K163,O163)*($U$151)^0.5+IF(W142,K164,O164)*($U$151)))>$Y$152,$Y$152,(IF(W142,K159,O159)+IF(W142,K161,O161)*($U$151)+IF(W142,K162,O162)*($U$151)^0.5)/(-2*(IF(W142,K160,O160)+IF(W142,K163,O163)*($U$151)^0.5+IF(W142,K164,O164)*($U$151)))) -> 158.7527634 | V187: =IF((IF(W142,K159,O159)+IF(W142,K161,O161)*($U$151-$Y$151)+IF(W142,K162,O162)*($U$151-$Y$151)^0.5)/(-2*(IF(W142,K160,O160)+IF(W142,K163,O163)*($U$151-$Y$151)^0.5+IF(W142,K164,O164)*($U$151-$Y$151)))>$Y$152,$Y$152,(IF(W142,K159,O159)+IF(W142,K161,O161)*($U$151-$Y$151)+IF(W142,K162,O162)*($U$151-$Y$151)^0.5)/(-2*(IF(W142,K160,O160)+IF(W142,K163,O163)*($U$151-$Y$151)^0.5+IF(W142,K164,O164)*($U$151-$Y$151)))) -> 148.994759 | BI187: 96.7 | BJ187: 193.4 | BK187: 80 | BL187: 87 | BN187: 193.4 | BP187: 74.4407272
A188: 187 | B188: 100 | C188: 120 | D188: 2008 | E188: 41 | F188: 61 | G188: 56 | H188: 0 | T188: =IF(T187<0,0,IF(T189<T187,T189,IF(T187<$Y$152,T187,$Y$152))) -> 175.3352516 | U188: =IF(U187<0,0,IF(U189<U187,U189,IF(U187<$Y$152,U187,$Y$152))) -> 158.7527634 | V188: 148.994759 | BI188: 98.1 | BJ188: 196.2 | BK188: 120 | BL188: 87 | BN188: 196.2 | BP188: 111.6610908
A189: 188 | B189: 98.1 | C189: 0 | D189: 2009 | E189: 42 | F189: 1 | G189: 146 | H189: 0 | R189: K for RY=100 if solvable or K max: | T189: =IFERROR((SQRT(T191^2+4*T192*T190)-T191)/(2*T192),$Y$152) -> 180 | U189: =IFERROR((SQRT(U191^2+4*U192*U190)-U191)/(2*U192),$Y$152) -> 180 | V189: =IFERROR((SQRT(V191^2+4*V192*V190)-V191)/(2*V192),$Y$152) -> 180 | BI189: 100 | BJ189: 200 | BK189: 160 | BL189: 87 | BN189: 200 | BP189: 148.8814544
A190: 189 | B190: 100 | C190: 45 | D190: 2009 | E190: 42 | F190: 23 | G190: 146 | H190: 0 | S190: c | T190: =100-$K$156-$K$157*(U151+Y151)-$K$158*(U151+Y151)^0.5 -> 5.351244648 | U190: =100-$K$156-$K$157*U151-$K$158*U151^0.5 -> 7.147125472 | V190: =100-$K$156-$K$157*(U151-Y151)-$K$158*(U151-Y151)^0.5 -> 9.388237126 | BI190: 0 | BJ190: 0 | BK190: 0 | BL190: 0 | BN190: 999 | BP190: 0
A191: 190 | B191: 98.6 | C191: 90 | D191: 2009 | E191: 42 | F191: 45 | G191: 146 | H191: 0 | S191: a | T191: =IF(W142,K159,O159)+IF(W142,K161,O161)*(U151+Y151)+IF(W142,K162,O162)*(U151+Y151)^0.5 -> 0.0455902043 | U191: =IF(W142,K159,O159)+IF(W142,K161,O161)*(U151)+IF(W142,K162,O162)*(U151)^0.5 -> 0.0724527415 | V191: =IF(W142,K159,O159)+IF(W142,K161,O161)*(U151-Y151)+IF(W142,K162,O162)*(U151-Y151)^0.5 -> 0.1065214984 | BI191: 0 | BJ191: 0 | BK191: 0 | BL191: 0 | BN191: 999 | BP191: 0
A192: 191 | B192: 68.4 | C192: 0 | D192: 2009 | E192: 43 | F192: 2 | G192: 62 | H192: 0 | S192: b | T192: =+IF(W142,K160,O160)+IF(W142,K163,O163)*(U151+Y151)^0.5+IF(W142,K164,O164)*(U151+Y151) -> -0.0001300086659 | U192: =+IF(W142,K160,O160)+IF(W142,K163,O163)*(U151)^0.5+IF(W142,K164,O164)*(U151) -> -0.0002281936388 | V192: =+IF(W142,K160,O160)+IF(W142,K163,O163)*(U151-Y151)^0.5+IF(W142,K164,O164)*(U151-Y151) -> -0.0003574672664 | BI192: 0 | BJ192: 0 | BK192: 0 | BL192: 0 | BN192: 999 | BP192: 0
A193: 192 | B193: 90.4 | C193: 60 | D193: 2009 | E193: 43 | F193: 27 | G193: 62 | H193: 0 | BI193: 0 | BJ193: 0 | BK193: 0 | BL193: 0 | BN193: 999 | BP193: 0
A194: 193 | B194: 100 | C194: 120 | D194: 2009 | E194: 43 | F194: 57 | G194: 62 | H194: 0 | BI194: 0 | BJ194: 0 | BK194: 0 | BL194: 0 | BN194: 999 | BP194: 0
A195: 194 | B195: 63.4 | C195: 0 | D195: 2009 | E195: 44 | F195: 3 | G195: 66 | H195: 0 | BI195: 96.6 | BJ195: 193.2 | BK195: 0 | BL195: 76 | BN195: 193.2 | BP195: 0
A196: 195 | B196: 84.1 | C196: 40 | D196: 2009 | E196: 44 | F196: 15 | G196: 79 | H196: 0 | BI196: 94.1 | BJ196: 188.2 | BK196: 40 | BL196: 76 | BN196: 188.2 | BP196: 37.2203636
A197: 196 | B197: 93.8 | C197: 80 | D197: 2009 | E197: 44 | F197: 37 | G197: 86 | H197: 0 | BI197: 100 | BJ197: 200 | BK197: 80 | BL197: 76 | BN197: 200 | BP197: 74.4407272
A198: 197 | B198: 92.4 | C198: 120 | D198: 2009 | E198: 44 | F198: 58 | G198: 109 | H198: 0 | BI198: 97.5 | BJ198: 195 | BK198: 120 | BL198: 76 | BN198: 195 | BP198: 111.6610908
A199: 198 | B199: 100 | C199: 160 | D199: 2009 | E199: 44 | F199: 71 | G199: 116 | H199: 0 | BI199: 98.5 | BJ199: 197 | BK199: 160 | BL199: 76 | BN199: 197 | BP199: 148.8814544
A200: 199 | B200: 93.9 | C200: 0 | D200: 2009 | E200: 45 | F200: 4 | G200: 96 | H200: 0 | BI200: 0 | BJ200: 0 | BK200: 0 | BL200: 0 | BN200: 999 | BP200: 0
... 388 more rows

Sheet K on Corn1 (hidden)
B1: RY | C1: K | D1: YEAR | E1: SITE | F1: YEAROB | G1: STK
A2: 1 | B2: 84 | C2: 0 | D2: 2010 | E2: 3 | F2: 1 | G2: 84 | Q2: Rice Price | U2: 10 | V2: $/cwt | Y2: Conventional
A3: 2 | B3: 96 | C3: 40 | D3: 2010 | E3: 3 | F3: 7 | G3: 84 | J3: Dependent Variable: RELYLD | Y3: Clearfield
A4: 3 | B4: 93 | C4: 80 | D4: 2010 | E4: 3 | F4: 20 | G4: 84 | J4: Method: Panel EGLS (Period random effects) | Q4: Cost of K (0-0-60) | U4: 450 | V4: $/ton
A5: 4 | B5: 95 | C5: 120 | D5: 2010 | E5: 3 | F5: 31 | G5: 84 | J5: Date: 03/12/19 Time: 15:57 | Y5: Clay
A6: 5 | B6: 98 | C6: 160 | D6: 2010 | E6: 3 | F6: 44 | G6: 84 | J6: Sample: 2001 2018 IF KRATE<>135 | Q6: How much K do you currently apply per acre? | U6: 25 | V6: lbs/acre | Y6: Loam
A7: 6 | B7: 100 | C7: 200 | D7: 2010 | E7: 3 | F7: 51 | G7: 84 | J7: Periods included: 17
J8: Cross-sections included: 79 | Q8: What yield do you expect at that application rate? | U8: 180 | V8: bu/acre | Y8: Yes
J9: Total panel (unbalanced) observations: 440 | Y9: No
J10: Wallace and Hussain estimator of component variances | Q10: Do you use conventional or hybrid seed? | U10: Conventional
J12: Variable | K12: Coefficient | L12: Std. Error | M12: t-Statistic | N12: Prob. | Q12: What is your soil test K? | U12: 110
A14: 13 | B14: 62 | C14: 0 | D14: 2010 | E14: 6 | F14: 3 | G14: 57 | J14: C | K14: 85.53190393 | L14: 1.088768197 | M14: 78.55841503 | N14: 1.523340846e-257 | Q14: Does the field have mostly clayey or loamy soil texture? | U14: Loam
A15: 14 | B15: 85 | C15: 40 | D15: 2010 | E15: 6 | F15: 9 | G15: 57 | J15: DRREC | K15: 1.821873436 | L15: 0.6169528489 | M15: 2.953018921 | N15: 0.00331893321
A16: 15 | B16: 100 | C16: 80 | D16: 2010 | E16: 6 | F16: 22 | G16: 57 | J16: KRATE | K16: 0.1546276126 | L16: 0.01680227412 | M16: 9.202778833 | N16: 1.519289268e-18 | Q16: Do you operate South of I-40? | U16: No
A17: 16 | B17: 100 | C17: 120 | D17: 2010 | E17: 6 | F17: 33 | G17: 57 | J17: KRATE^2 | K17: -0.000421958113 | L17: 8.710848e-05 | M17: -4.84405322 | N17: 1.77718926e-06
A18: 17 | B18: 95 | C18: 160 | D18: 2010 | E18: 6 | F18: 46 | G18: 57 | J18: DCLFIELD | K18: 2.254139283 | L18: 0.9265560337 | M18: 2.432814855 | N18: 0.01538783875 | Q18: Predicted RELYLD based on above questions: | U18: =+K14+IF($U$16="Yes",K15,0)+$U$6*($U$12*K21+K16+IF($U$10="Clearfield",K23,0))+$U$6^2*(K17+IF($U$14="Clay",K22))+IF($U$14="Clay",K20,0)+IF($U$10="Clearfield",K18,0)+$U$12*K19 -> 93.32878185
A19: 18 | B19: 98 | C19: 200 | D19: 2010 | E19: 6 | F19: 53 | G19: 57 | J19: KSOIL | K19: 0.04813541892 | L19: 0.009622753276 | M19: 5.00225014 | N19: 8.265255539e-07
A20: 19 | B20: 97 | C20: 0 | D20: 2011 | E20: 9 | F20: 1 | G20: 95 | J20: DCLAY | K20: -3.267803257 | L20: 1.636446995 | M20: -1.996889155 | N20: 0.04646560705 | Q20: Yield/RELYLD | U20: =+U8/U18 -> 1.928665482
A21: 20 | B21: 97 | C21: 40 | D21: 2011 | E21: 9 | F21: 7 | G21: 95 | J21: KSOIL*KRATE | K21: -0.0003999944219 | L21: 8.797209869e-05 | M21: -4.546832779 | N21: 7.086112312e-06
A22: 21 | B22: 100 | C22: 80 | D22: 2011 | E22: 9 | F22: 20 | G22: 95 | J22: DCLAY*KRATE^2 | Q22: dRELYLD/dKRATE | U22: =+K16+U12*K21+IF(U10="Clearfield",K23,0)+2*U6*(K17+IF(U14="Clay",K22)) -> 0.08953032052 | W22: =+K16+U12*K21+IF(U10="Clearfield",K23,0)+2*U28*(K17+IF(U14="Clay",K22)) -> 0.0431645616
A23: 22 | B23: 94 | C23: 120 | D23: 2011 | E23: 9 | F23: 31 | G23: 95 | J23: DCLFIELD*KRATE | K23: -0.02087856875 | L23: 0.009566473542 | M23: -2.182472847 | N23: 0.02961379485
A24: 23 | B24: 94 | C24: 160 | D24: 2011 | E24: 9 | F24: 44 | G24: 95 | Q24: =CONCATENATE("VMP of K @ KRATE = ",U6," lbs/acre and soil test K of ",U12) -> VMP of K @ KRATE = 25 lbs/acre and soil test K of 110 | U24: =+U22*U2/2.22*U20 -> 0.7778109854 | W24: =+W22*U2/2.22*U20 -> 0.375
A25: 24 | B25: 99 | C25: 200 | D25: 2011 | E25: 9 | F25: 51 | G25: 95 | K25: Effects Specification
A26: 25 | B26: 100 | C26: 0 | D26: 2011 | E26: 10 | F26: 2 | G26: 120 | M26: S.D. | N26: Rho | Q26: Cost per lb of K | U26: =+U4/0.6/2000 -> 0.375
A27: 26 | B27: 100 | C27: 40 | D27: 2011 | E27: 10 | F27: 8 | G27: 120
A28: 27 | B28: 91 | C28: 80 | D28: 2011 | E28: 10 | F28: 21 | G28: 120 | J28: Period random | M28: 1.060097175 | N28: 0.04768826784 | Q28: Profit Maximizing K rate: | U28: =IF((U26/(U2/2.22*U20)-(K16+U12*K21+IF(U10="Clearfield",K23,0)))/(2*(K17+IF(U14="Clay",K22)))>180,180,(U26/(U2/2.22*U20)-(K16+U12*K21+IF(U10="Clearfield",K23,0)))/(2*(K17+IF(U14="Clay",K22)))) -> 79.94118668 | W28: 125 | X28: Alt User K
A29: 28 | B29: 90 | C29: 120 | D29: 2011 | E29: 10 | F29: 32 | G29: 120 | J29: Idiosyncratic random | M29: 4.737284535 | N29: 0.9523117322
A30: 29 | B30: 98 | C30: 160 | D30: 2011 | E30: 10 | F30: 45 | G30: 120 | Q30: Expected Yield at Profit-Maximizing K rate: | U30: =(+K14+IF(U16="Yes",K15,0)+U28*(U12*K21+K16+IF(U10="Clearfield",K23,0))+U28^2*(K17+IF(U14="Clay",K22))+IF(U14="Clay",K20,0)+IF(U10="Clearfield",K18,0)+U12*K19)*U20 -> 187.0303852 | W30: =(+K14+IF(U16="Yes",K15,0)+W28*(U12*K21+K16+IF(U10="Clearfield",K23,0))+W28^2*(K17+IF(U14="Clay",K22))+IF(U14="Clay",K20,0)+IF(U10="Clearfield",K18,0)+U12*K19)*U20 -> 189.1292434
A31: 30 | B31: 93 | C31: 200 | D31: 2011 | E31: 10 | F31: 52 | G31: 120 | K31: Weighted Statistics
A32: 31 | B32: 95 | C32: 0 | D32: 2012 | E32: 11 | F32: 1 | G32: 94 | Q32: Added Profit in $/acre | U32: =+(U30-U8)*U2/2.22-(U28-U6)*U26 -> 11.06545677 | W32: =+(W30-U8)*U2/2.22-(W28-U6)*U26 -> 3.622718031
A33: 32 | B33: 100 | C33: 40 | D33: 2012 | E33: 11 | F33: 7 | G33: 94 | J33: R-squared | K33: 0.2954420526 | L33: Mean dependent var | N33: 60.43268787
A34: 33 | B34: 96 | C34: 80 | D34: 2012 | E34: 11 | F34: 20 | G34: 94 | J34: Adjusted R-squared | K34: 0.2823644109 | L34: S.D. dependent var | N34: 9.884122327 | BH34: K rate | BI34: Exp. Yield
A35: 34 | B35: 97 | C35: 120 | D35: 2012 | E35: 11 | F35: 31 | G35: 94 | J35: S.E. of regression | K35: 4.743914196 | L35: Sum squared resid | N35: 9699.535137 | BH35: 0 | BI35: =(+$K$14+IF($U$16="Yes",$K$15,0)+BH35*($U$12*$K$21+$K$16+IF($U$10="Clearfield",$K$23,0))+BH35^2*($K$17+IF($U$14="Clay",$K$22))+IF($U$14="Clay",$K$20,0)+IF($U$10="Clearfield",$K$18,0)+$U$12*$K$19)*$U$20 -> 175.174514
A36: 35 | B36: 93 | C36: 160 | D36: 2012 | E36: 11 | F36: 44 | G36: 94 | J36: F-statistic | K36: 22.59138605 | L36: Durbin-Watson stat | N36: 2.49064464 | BH36: 10 | BI36: =(+$K$14+IF($U$16="Yes",$K$15,0)+BH36*($U$12*$K$21+$K$16+IF($U$10="Clearfield",$K$23,0))+BH36^2*($K$17+IF($U$14="Clay",$K$22))+IF($U$14="Clay",$K$20,0)+IF($U$10="Clearfield",$K$18,0)+$U$12*$K$19)*$U$20 -> 177.2267808
A37: 36 | B37: 92 | C37: 200 | D37: 2012 | E37: 11 | F37: 51 | G37: 94 | J37: Prob(F-statistic) | K37: 7.693327162e-29 | BH37: 20 | BI37: 179.1162844
A38: 37 | B38: 92 | C38: 0 | D38: 2012 | E38: 12 | F38: 2 | G38: 89 | BH38: 30 | BI38: 180.8430248
A39: 38 | B39: 100 | C39: 40 | D39: 2012 | E39: 12 | F39: 8 | G39: 89 | K39: Unweighted Statistics | BH39: 40 | BI39: 182.407002
A40: 39 | B40: 88 | C40: 80 | D40: 2012 | E40: 12 | F40: 21 | G40: 89 | BH40: 50 | BI40: 183.8082159
A41: 40 | B41: 94 | C41: 120 | D41: 2012 | E41: 12 | F41: 32 | G41: 89 | J41: R-squared | K41: 0.2961173096 | L41: Mean dependent var | N41: 95.92045455 | BH41: 60 | BI41: 185.0466667
A42: 41 | B42: 91 | C42: 160 | D42: 2012 | E42: 12 | F42: 45 | G42: 89 | J42: Sum squared resid | K42: 10114.18604 | L42: Durbin-Watson stat | N42: 2.482420507 | BH42: 70 | BI42: 186.1223542
A43: 42 | B43: 95 | C43: 200 | D43: 2012 | E43: 12 | F43: 52 | G43: 89 | BH43: 80 | BI43: 187.0352786
A44: 43 | B44: 89 | C44: 0 | D44: 2012 | E44: 13 | F44: 3 | G44: 114 | BH44: 90 | BI44: 187.7854397
A45: 44 | B45: 91 | C45: 40 | D45: 2012 | E45: 13 | F45: 9 | G45: 114 | BH45: 100 | BI45: 188.3728376
A46: 45 | B46: 88 | C46: 80 | D46: 2012 | E46: 13 | F46: 22 | G46: 114 | BH46: 110 | BI46: 188.7974724
A47: 46 | B47: 100 | C47: 120 | D47: 2012 | E47: 13 | F47: 33 | G47: 114 | M47: =174/192 -> 0.90625 | BH47: 120 | BI47: 189.0593439
A48: 47 | B48: 97 | C48: 160 | D48: 2012 | E48: 13 | F48: 46 | G48: 114 | BH48: 130 | BI48: 189.1584521
A49: 48 | B49: 92 | C49: 200 | D49: 2012 | E49: 13 | F49: 53 | G49: 114 | BH49: 140 | BI49: 189.0947972
A50: 49 | B50: 91 | C50: 0 | D50: 2012 | E50: 14 | F50: 4 | G50: 64 | BH50: 150 | BI50: 188.8683791
A51: 50 | B51: 91 | C51: 40 | D51: 2012 | E51: 14 | F51: 10 | G51: 64 | BH51: 160 | BI51: 188.4791978
A52: 51 | B52: 96 | C52: 80 | D52: 2012 | E52: 14 | F52: 23 | G52: 64 | BH52: 170 | BI52: 187.9272532
A53: 52 | B53: 98 | C53: 120 | D53: 2012 | E53: 14 | F53: 34 | G53: 64 | BH53: 180 | BI53: 187.2125455
A54: 53 | B54: 100 | C54: 160 | D54: 2012 | E54: 14 | F54: 47 | G54: 64
A55: 54 | B55: 99 | C55: 200 | D55: 2012 | E55: 14 | F55: 54 | G55: 64
A56: 55 | B56: 97 | C56: 0 | D56: 2012 | E56: 15 | F56: 5 | G56: 114
A57: 56 | B57: 100 | C57: 40 | D57: 2012 | E57: 15 | F57: 11 | G57: 114
A58: 57 | B58: 96 | C58: 80 | D58: 2012 | E58: 15 | F58: 24 | G58: 114 | J58: Dependent Variable: RELYLD | Q58: Predicted RELYLD based on above questions: | U58: =+K69+IF($U$16="Yes",K70,0)+$U$6*($U$12*K76+K71+IF($U$10="Clearfield",K77,0)+IF($U$14="Clay",K78))+$U$6^0.5*K72+IF($U$14="Clay",K75,0)+IF($U$10="Clearfield",K73,0)+$U$12*K74 -> 94.5669452
A59: 58 | B59: 93 | C59: 120 | D59: 2012 | E59: 15 | F59: 35 | G59: 114 | J59: Method: Panel EGLS (Period random effects)
A60: 59 | B60: 92 | C60: 160 | D60: 2012 | E60: 15 | F60: 48 | G60: 114 | J60: Date: 03/13/19 Time: 09:12 | Q60: Yield/RELYLD | U60: =+U8/U58 -> 1.903413498
A61: 60 | B61: 98 | C61: 200 | D61: 2012 | E61: 15 | F61: 55 | G61: 114 | J61: Sample: 2001 2018 IF KRATE<>135
A62: 61 | B62: 85 | C62: 0 | D62: 2013 | E62: 16 | F62: 1 | G62: 53 | J62: Periods included: 17 | Q62: dRELYLD/dKRATE | U62: =+K71+U12*K76+IF(U10="Clearfield",K77,0)+IF(U14="Clay",K78,0)+0.5*U6^-0.5*K72 -> 0.05961510745 | W62: =+K71+U12*K76+IF(U10="Clearfield",K77,0)+IF(U14="Clay",K78,0)+0.5*U68^-0.5*K72 -> 0.04373721215
A63: 62 | B63: 92 | C63: 40 | D63: 2013 | E63: 16 | F63: 7 | G63: 53 | J63: Cross-sections included: 79
A64: 63 | B64: 100 | C64: 80 | D64: 2013 | E64: 16 | F64: 20 | G64: 53 | J64: Total panel (unbalanced) observations: 440 | Q64: =CONCATENATE("VMP of K @ KRATE = ",U6," lbs/acre and soil test K of ",U12) -> VMP of K @ KRATE = 25 lbs/acre and soil test K of 110 | U64: =+U62*U2/2.22*U60 -> 0.5111360371 | W64: =+W62*U2/2.22*U60 -> 0.375
A65: 64 | B65: 98 | C65: 120 | D65: 2013 | E65: 16 | F65: 31 | G65: 53 | J65: Wallace and Hussain estimator of component variances
A66: 65 | B66: 100 | C66: 160 | D66: 2013 | E66: 16 | F66: 44 | G66: 53 | Q66: Cost per lb of K | U66: =+U4/0.6/2000 -> 0.375 | W66: =(K71+U12*K76+IF(U10="Clearfield",K77,0)+IF(U14="Clay",K78)+0.5*W68^-0.5*K72)*U2/2.22*U60 -> 1.383980984 | X66: VMP at Alt User K
A67: 66 | B67: 97 | C67: 200 | D67: 2013 | E67: 16 | F67: 51 | G67: 53 | J67: Variable | K67: Coefficient | L67: Std. Error | M67: t-Statistic | N67: Prob.
A68: 67 | B68: 63 | C68: 0 | D68: 2013 | E68: 17 | F68: 2 | G68: 80 | Q68: Optimal K | U68: =IF(((U66/(U2/2.22*U60)-(K71+U12*K76+IF(U10="Clearfield",K77,0)+IF(U14="Clay",K78,0)))*2/K72)^-2>180,180,((U66/(U2/2.22*U60)-(K71+U12*K76+IF(U10="Clearfield",K77,0)+IF(U14="Clay",K78,0)))*2/K72)^-2) -> 38.36754456 | W68: 5 | X68: Alt User K
A69: 68 | B69: 93 | C69: 40 | D69: 2013 | E69: 17 | F69: 8 | G69: 80 | J69: C | K69: 83.57802419 | L69: 1.206595779 | M69: 69.26762523 | N69: 2.275095698e-235
A70: 69 | B70: 96 | C70: 80 | D70: 2013 | E70: 17 | F70: 21 | G70: 80 | J70: DRREC | K70: 1.901372692 | L70: 0.6112073646 | M70: 3.110847156 | N70: 0.001989737646 | Q70: Expected Yield | U70: =(+K69+IF(U16="Yes",K70,0)+U68*(K71+IF(U10="Clearfield",K77,0)+IF(U14="Clay",K78,0)+U12*K76)+U68^0.5*(K72)+IF(U14="Clay",K75,0)+IF(U10="Clearfield",K73,0)+U12*K74)*U60 -> 181.2932979 | W70: =(K69+IF($U$16="Yes",K70,0)+$W$68*($U$12*K76+K71+IF($U$10="Clearfield",K77,0)+IF($U$14="Clay",K78,0))+$W$68^0.5*K72+IF($U$14="Clay",K75,0)+IF($U$10="Clearfield",K73,0)+$U$12*K74)*U60 -> 176.5329818
A71: 70 | B71: 94 | C71: 120 | D71: 2013 | E71: 17 | F71: 32 | G71: 80 | J71: KRATE | K71: 0.05527424609 | L71: 0.01945111966 | M71: 2.841699967 | N71: 0.004700819505
A72: 71 | B72: 98 | C72: 160 | D72: 2013 | E72: 17 | F72: 45 | G72: 80 | J72: KRATE^.5 | K72: 0.8235966589 | L72: 0.1795438504 | M72: 4.587161615 | N72: 5.902285465e-06 | Q72: Added Profit in $/acre | U72: =+(U70-U8)*U2/2.22-(U68-U6)*U66 -> 0.8128370095 | W72: =+(W70-U8)*U2/2.22-(W68-U6)*U66 -> -8.117199183
A73: 72 | B73: 100 | C73: 200 | D73: 2013 | E73: 17 | F73: 52 | G73: 80 | J73: DCLFIELD | K73: 2.333261436 | L73: 0.9170687768 | M73: 2.544260032 | N73: 0.0112997258
A74: 73 | B74: 78 | C74: 0 | D74: 2013 | E74: 18 | F74: 3 | G74: 104 | J74: KSOIL | K74: 0.06763228791 | L74: 0.01098263876 | M74: 6.158109118 | N74: 1.69129018e-09
A75: 74 | B75: 93 | C75: 40 | D75: 2013 | E75: 18 | F75: 9 | G75: 104 | J75: DCLAY | K75: -9.296610794 | L75: 2.441795438 | M75: -3.807284857 | N75: 0.0001609195768
A76: 75 | B76: 85 | C76: 80 | D76: 2013 | E76: 18 | F76: 22 | G76: 104 | J76: KSOIL*KRATE | K76: -0.0007092618593 | L76: 0.0001239922289 | M76: -5.720212189 | N76: 1.99520725e-08 | Q76: K rate | R76: Exp. Yield
A77: 76 | B77: 96 | C77: 120 | D77: 2013 | E77: 18 | F77: 33 | G77: 104 | J77: DCLFIELD*KRATE | K77: -0.02113021601 | L77: 0.009446821853 | M77: -2.236753941 | N77: 0.02581434428 | Q77: 0.01 | R77: =(+$K$69+IF($U$16="Yes",$K$70,0)+Q77*($U$12*$K$76+$K$71+IF($U$10="Clearfield",$K$77,0)+IF($U$14="Clay",$K$78,0))+Q77^0.5*($K$72)+IF($U$14="Clay",$K$75,0)+IF($U$10="Clearfield",$K$73,0)+$U$12*$K$74)*$U$60 -> 173.4004141
A78: 77 | B78: 87 | C78: 160 | D78: 2013 | E78: 18 | F78: 46 | G78: 104 | J78: DCLAY*KRATE | K78: 0.09240656048 | L78: 0.02766610215 | M78: 3.340064314 | N78: 0.0009106295903 | Q78: 2 | R78: 175.3744827
A79: 78 | B79: 100 | C79: 200 | D79: 2013 | E79: 18 | F79: 53 | G79: 104 | Q79: 7 | R79: 177.0886352
A80: 79 | B80: 96 | C80: 0 | D80: 2013 | E80: 19 | F80: 4 | G80: 72 | K80: Effects Specification | Q80: 15 | R80: 178.666161
A81: 80 | B81: 99 | C81: 40 | D81: 2013 | E81: 19 | F81: 10 | G81: 72 | M81: S.D. | N81: Rho | Q81: 25 | R81: 180
A82: 81 | B82: 98 | C82: 80 | D82: 2013 | E82: 19 | F82: 23 | G82: 72 | Q82: 45 | R82: 181.8120114
A83: 82 | B83: 98 | C83: 120 | D83: 2013 | E83: 19 | F83: 34 | G83: 72 | J83: Period random | M83: 1.099880019 | N83: 0.05237979079 | Q83: 60 | R83: 182.7894705
A84: 83 | B84: 99 | C84: 160 | D84: 2013 | E84: 19 | F84: 47 | G84: 72 | J84: Idiosyncratic random | M84: 4.678219447 | N84: 0.9476202092 | Q84: 70 | R84: 183.3294806
A85: 84 | B85: 100 | C85: 200 | D85: 2013 | E85: 19 | F85: 54 | G85: 72 | Q85: 80 | R85: 183.8021417
A86: 85 | B86: 90 | C86: 0 | D86: 2013 | E86: 20 | F86: 5 | G86: 115 | K86: Weighted Statistics | Q86: 90 | R86: 184.2197618
A87: 86 | B87: 89 | C87: 40 | D87: 2013 | E87: 20 | F87: 11 | G87: 115 | Q87: 100 | R87: 184.5913025
A88: 87 | B88: 98 | C88: 80 | D88: 2013 | E88: 20 | F88: 24 | G88: 115 | J88: R-squared | K88: 0.3131037289 | L88: Mean dependent var | N88: 58.69433819 | Q88: 110 | R88: 184.923529
A89: 88 | B89: 93 | C89: 120 | D89: 2013 | E89: 20 | F89: 35 | G89: 115 | J89: Adjusted R-squared | K89: 0.2987268302 | L89: S.D. dependent var | N89: 10.00229228 | Q89: 120 | R89: 185.2216971
A90: 89 | B90: 87 | C90: 160 | D90: 2013 | E90: 20 | F90: 48 | G90: 115 | J90: S.E. of regression | K90: 4.685069483 | L90: Sum squared resid | N90: 9438.446708 | Q90: 130 | R90: 185.4899866
A91: 90 | B91: 100 | C91: 200 | D91: 2013 | E91: 20 | F91: 55 | G91: 115 | J91: F-statistic | K91: 21.77825243 | L91: Durbin-Watson stat | N91: 2.440948805 | Q91: 140 | R91: 185.7317863
A92: 91 | B92: 92 | C92: 0 | D92: 2014 | E92: 21 | F92: 1 | G92: 101 | J92: Prob(F-statistic) | K92: 1.9758798e-30 | Q92: 150 | R92: 185.9498893
A93: 92 | B93: 93 | C93: 40 | D93: 2014 | E93: 21 | F93: 7 | G93: 101 | Q93: 160 | R93: 186.1466296
A94: 93 | B94: 92 | C94: 80 | D94: 2014 | E94: 21 | F94: 20 | G94: 101 | K94: Unweighted Statistics | Q94: 170 | R94: 186.3239817
A95: 94 | B95: 100 | C95: 120 | D95: 2014 | E95: 21 | F95: 31 | G95: 101 | Q95: 180 | R95: 186.4836333
A96: 95 | B96: 93 | C96: 160 | D96: 2014 | E96: 21 | F96: 44 | G96: 101 | J96: R-squared | K96: 0.3119695218 | L96: Mean dependent var | N96: 95.92045455
A97: 96 | B97: 97 | C97: 200 | D97: 2014 | E97: 21 | F97: 51 | G97: 101 | J97: Sum squared resid | K97: 9886.403451 | L97: Durbin-Watson stat | N97: 2.431277786
A98: 97 | B98: 77 | C98: 0 | D98: 2014 | E98: 22 | F98: 2 | G98: 48
A99: 98 | B99: 100 | C99: 40 | D99: 2014 | E99: 22 | F99: 8 | G99: 48
A100: 99 | B100: 93 | C100: 80 | D100: 2014 | E100: 22 | F100: 21 | G100: 48
A101: 100 | B101: 94 | C101: 120 | D101: 2014 | E101: 22 | F101: 32 | G101: 48 | J101: Dependent Variable: RELYLD | Q101: Predicted RELYLD based on above questions: | U101: =+K112+IF($U$16="Yes",K113,0)+LN($U$6)*(K117+$U$12*K120+IF($U$10="Clearfield",K119,0)+IF($U$14="Clay",K118))+IF($U$14="Clay",K116,0)+IF($U$10="Clearfield",K114,0)+$U$12*K115 -> 96.18393227
A102: 101 | B102: 92 | C102: 160 | D102: 2014 | E102: 22 | F102: 45 | G102: 48 | J102: Method: Panel EGLS (Period random effects)
A103: 102 | B103: 100 | C103: 200 | D103: 2014 | E103: 22 | F103: 52 | G103: 48 | J103: Date: 03/13/19 Time: 16:57 | Q103: Yield/RELYLD | U103: =+U8/U101 -> 1.871414443
A104: 103 | B104: 97 | C104: 0 | D104: 2014 | E104: 23 | F104: 3 | G104: 117 | J104: Sample: 2001 2018 IF KRATE<>135
A105: 104 | B105: 98 | C105: 40 | D105: 2014 | E105: 23 | F105: 9 | G105: 117 | J105: Periods included: 17 | Q105: dRELYLD/dKRATE | U105: =(K117+IF(U14="Clay",K118,0)+IF(U10="Clearfield",K119,0)+U12*K120)/U6 -> 0.01701949554 | W105: =(K117+IF(U14="Clay",K118,0)+IF(U10="Clearfield",K119,0)+U12*K120)/U111 -> 0.04448506867
A106: 105 | B106: 97 | C106: 80 | D106: 2014 | E106: 23 | F106: 22 | G106: 117 | J106: Cross-sections included: 79
A107: 106 | B107: 98 | C107: 120 | D107: 2014 | E107: 23 | F107: 33 | G107: 117 | J107: Total panel (unbalanced) observations: 440 | Q107: =CONCATENATE("VMP of K @ KRATE = ",U49," lbs/acre and soil test K of ",U55) -> VMP of K @ KRATE = lbs/acre and soil test K of | U107: =+U105*U2/2.22*U103 -> 0.1434708548 | W107: =+W105*U2/2.22*U103 -> 0.375
A108: 107 | B108: 100 | C108: 160 | D108: 2014 | E108: 23 | F108: 46 | G108: 117 | J108: Wallace and Hussain estimator of component variances
A109: 108 | B109: 97 | C109: 200 | D109: 2014 | E109: 23 | F109: 53 | G109: 117 | Q109: Cost per lb of K | U109: =+U4/0.6/2000 -> 0.375 | W109: =(K117+IF(U14="Clay",K118,0)+IF(U10="Clearfield",K119,0)+U12*K120)/W111*U2/2.22*U103 -> 0.717354274 | X109: VMP at Alt User K
A110: 109 | B110: 59 | C110: 0 | D110: 2014 | E110: 24 | F110: 4 | G110: 58 | J110: Variable | K110: Coefficient | L110: Std. Error | M110: t-Statistic | N110: Prob.
A111: 110 | B111: 91 | C111: 40 | D111: 2014 | E111: 24 | F111: 10 | G111: 58 | Q111: Optimal K | U111: =IF(((K117+IF(U14="Clay",K118,0)+IF(U10="Clearfield",K119,0)+U12*K120)/(U109/(U2/2.22*U103)))>180,180,((K117+IF(U14="Clay",K118,0)+IF(U10="Clearfield",K119,0)+U12*K120)/(U109/(U2/2.22*U103)))) -> 9.564723654 | W111: 5 | X111: Alt User K
A112: 111 | B112: 100 | C112: 80 | D112: 2014 | E112: 24 | F112: 23 | G112: 58 | J112: C | K112: 92.04835626 | L112: 0.8118564696 | M112: 113.3800859 | N112: 0
A113: 112 | B113: 94 | C113: 120 | D113: 2014 | E113: 24 | F113: 34 | G113: 58 | J113: DRREC | K113: 1.674272927 | L113: 0.6247099459 | M113: 2.680080472 | N113: 0.007642508367 | Q113: Expected Yield | U113: =(+K112+IF(U16="Yes",K113,0)+LN(U111)*(K117+IF(U10="Clearfield",K119,0)+IF(U14="Clay",K118,0)+U12*K120)+IF(U14="Clay",K116,0)+IF(U10="Clearfield",K114,0)+U12*K115)*U103 -> 179.234955 | W113: =(+K112+IF(U16="Yes",K113,0)+LN(W111)*(K117+IF(U10="Clearfield",K119,0)+IF(U14="Clay",K118,0)+U12*K120)+IF(U14="Clay",K116,0)+IF(U10="Clearfield",K114,0)+U12*K115)*U103 -> 178.7184637
A114: 113 | B114: 100 | C114: 160 | D114: 2014 | E114: 24 | F114: 47 | G114: 58 | J114: DCLFIELD | K114: 0.9538761766 | L114: 0.599352375 | M114: 1.591511465 | N114: 0.1122276617
A115: 114 | B115: 97 | C115: 200 | D115: 2014 | E115: 24 | F115: 54 | G115: 58 | J115: KSOIL | K115: 0.02514531757 | L115: 0.007907350482 | M115: 3.179992796 | N115: 0.001579079719 | Q115: Added Profit in $/acre | U115: =+(U113-U8)*U2/2.22-(U111-U6)*U109 -> 2.34207981 | W115: =+(W113-U8)*U2/2.22-(W111-U6)*U109 -> 1.727314174
A116: 115 | B116: 73 | C116: 0 | D116: 2014 | E116: 26 | F116: 5 | G116: 66 | J116: DCLAY | K116: -3.488411949 | L116: 1.646380839 | M116: -2.118836581 | N116: 0.03467569419
A117: 116 | B117: 89 | C117: 50 | D117: 2014 | E117: 26 | F117: 12 | G117: 66 | J117: LNK | K117: 0.9466911285 | L117: 0.1187053689 | M117: 7.975133199 | N117: 1.383119288e-14
A118: 117 | B118: 98 | C118: 100 | D118: 2014 | E118: 26 | F118: 25 | G118: 66 | J118: LNK*DCLAY | K118: 0.4990002373 | L118: 0.2438559311 | M118: 2.046291165 | N118: 0.04133396676 | Q118: K rate | R118: Exp. Yield
A119: 118 | B119: 100 | C119: 150 | D119: 2014 | E119: 26 | F119: 38 | G119: 66 | J119: LNK*DCLFIELD | K119: -0.1496455639 | L119: 0.09193539344 | M119: -1.627725279 | N119: 0.1043139117 | Q119: 0.01 | R119: =(+$K$112+IF($U$16="Yes",$K$113,0)+LN(Q119)*($K$117+IF($U$10="Clearfield",$K$119,0)+IF($U$14="Clay",$K$118,0)+$U$12*$K$120)+IF($U$14="Clay",$K$116,0)+IF($U$10="Clearfield",$K$114,0)+$U$12*$K$115)*$U$103 -> 173.7699997
A120: 119 | B120: 98 | C120: 200 | D120: 2014 | E120: 26 | F120: 55 | G120: 66 | J120: LNK*KSOIL | K120: -0.004738215818 | L120: 0.001134485983 | M120: -4.176530947 | N120: 3.583942662e-05 | Q120: 2 | R120: 177.9888551
A121: 120 | B121: 101 | C121: 0 | D121: 2014 | E121: 27 | F121: 6 | G121: 140 | Q121: 5 | R121: 178.7184637
A122: 121 | B122: 100 | C122: 40 | D122: 2014 | E122: 27 | F122: 11 | G122: 140 | K122: Effects Specification | Q122: 7 | R122: 178.9863842
A123: 122 | B123: 100 | C123: 80 | D123: 2014 | E123: 27 | F123: 24 | G123: 140 | M123: S.D. | N123: Rho | Q123: 10 | R123: 179.2703914
A124: 123 | B124: 96 | C124: 120 | D124: 2014 | E124: 27 | F124: 35 | G124: 140 | Q124: 15 | R124: 179.5932483
A125: 124 | B125: 95 | C125: 160 | D125: 2014 | E125: 27 | F125: 48 | G125: 140 | J125: Period random | M125: 1.106470735 | N125: 0.05032333769 | Q125: 30 | R125: 180.145176
A126: 125 | B126: 98 | C126: 200 | D126: 2014 | E126: 27 | F126: 56 | G126: 140 | J126: Idiosyncratic random | M126: 4.806656593 | N126: 0.9496766623 | Q126: 50 | R126: 180.5519276
A127: 126 | B127: 89 | C127: 0 | D127: 2015 | E127: 28 | F127: 1 | G127: 64 | Q127: 70 | R127: 180.8198481
A128: 127 | B128: 100 | C128: 40 | D128: 2015 | E128: 28 | F128: 7 | G128: 64 | K128: Weighted Statistics | Q128: 90 | R128: 181.0199605
A129: 128 | B129: 98 | C129: 80 | D129: 2015 | E129: 28 | F129: 20 | G129: 64 | Q129: 100 | R129: 181.1038552
A130: 129 | B130: 99 | C130: 120 | D130: 2015 | E130: 28 | F130: 31 | G130: 64 | J130: R-squared | K130: 0.2740428809 | L130: Mean dependent var | N130: 59.43892963 | Q130: 110 | R130: 181.1797472
A131: 130 | B131: 98 | C131: 160 | D131: 2015 | E131: 28 | F131: 44 | G131: 64 | J131: Adjusted R-squared | K131: 0.2605680388 | L131: S.D. dependent var | N131: 9.954107887 | Q131: 120 | R131: 181.2490312
A132: 131 | B132: 97 | C132: 200 | D132: 2015 | E132: 28 | F132: 51 | G132: 64 | J132: S.E. of regression | K132: 4.812796269 | L132: Sum squared resid | N132: 9983.256415 | Q132: 130 | R132: 181.3127663
A133: 132 | B133: 94 | C133: 0 | D133: 2015 | E133: 29 | F133: 2 | G133: 73 | J133: F-statistic | K133: 20.33737231 | L133: Durbin-Watson stat | N133: 2.371216243 | Q133: 140 | R133: 181.3717757
A134: 133 | B134: 95 | C134: 40 | D134: 2015 | E134: 29 | F134: 8 | G134: 73 | J134: Prob(F-statistic) | K134: 3.890647391e-26 | Q134: 150 | R134: 181.4267122
A135: 134 | B135: 100 | C135: 80 | D135: 2015 | E135: 29 | F135: 21 | G135: 73 | Q135: 160 | R135: 181.4781019
A136: 135 | B136: 96 | C136: 120 | D136: 2015 | E136: 29 | F136: 32 | G136: 73 | K136: Unweighted Statistics | Q136: 170 | R136: 181.526375
A137: 136 | B137: 100 | C137: 160 | D137: 2015 | E137: 29 | F137: 45 | G137: 73 | Q137: 180 | R137: 181.5718882
A138: 137 | B138: 100 | C138: 200 | D138: 2015 | E138: 29 | F138: 52 | G138: 73 | J138: R-squared | K138: 0.2734639836 | L138: Mean dependent var | N138: 95.92045455
A139: 138 | B139: 98 | C139: 0 | D139: 2015 | E139: 30 | F139: 3 | G139: 79 | J139: Sum squared resid | K139: 10439.69476 | L139: Durbin-Watson stat | N139: 2.364096255
A140: 139 | B140: 100 | C140: 40 | D140: 2015 | E140: 30 | F140: 9 | G140: 79
A141: 140 | B141: 96 | C141: 80 | D141: 2015 | E141: 30 | F141: 22 | G141: 79
A142: 141 | B142: 99 | C142: 120 | D142: 2015 | E142: 30 | F142: 33 | G142: 79 | W142: TRUE
A143: 142 | B143: 95 | C143: 160 | D143: 2015 | E143: 30 | F143: 46 | G143: 79 | J143: =0.8301513*2.47105*0.453592 -> 0.930473849 | Q143: Profit-Maximizing K Rate Calculator for Irrigated Corn as developed by Dr. M. Popp, Dr. N. Slaton, Dr. G. Drescher, K. Oliver and Dr. T. Roberts
A144: 143 | B144: 93 | C144: 200 | D144: 2015 | E144: 30 | F144: 53 | G144: 79 | AA144: Year | AB144: Potash Fertilizer Price in $/ton | AC144: Corn Price in $/bu | AD144: Corn Yield in bu/acre | AE144: $/kg Pc | AF144: $/Mg K | AG144: Y in kg/ha | AI144: $/kg K
A145: 144 | B145: 66 | C145: 0 | D145: 2015 | E145: 31 | F145: 4 | G145: 51 | J145: Dependent Variable: RY | Q145: What is your expected corn price? | U145: 0.2680975393 | V145: =IF(W142,CONCATENATE("$ kg",Z155),"$/bu") -> $ kg⁻¹ | AA145: 2009 | AB145: =26.1*20 -> 522 | AC145: 3.79 | AD145: 148 | AE145: =+AC145/56*2204.62/1000 -> 0.1492055321 | AF145: =+AB145/2000*2204 -> 575.244 | AG145: =+(AD145*56*0.4536)*2.4711 -> 9289.944276 | AI145: =+AF145/1000/0.49809078131038 -> 1.154897905
A146: 145 | B146: 78 | C146: 40 | D146: 2015 | E146: 31 | F146: 10 | G146: 51 | J146: Method: Panel EGLS (Period random effects) | AA146: 2010 | AB146: =23*20 -> 460 | AC146: 4.55 | AD146: 150 | AE146: =+AC146/56*2204.62/1000 -> 0.179125375 | AF146: =+AB146/2000*2204 -> 506.92 | AG146: =+(AD146*56*0.4536)*2.4711 -> 9415.484064 | AI146: =+AF146/1000/0.49809078131038 -> 1.017726123
A147: 146 | B147: 95 | C147: 80 | D147: 2015 | E147: 31 | F147: 23 | G147: 51 | J147: Date: 04/07/21 Time: 16:24 | Q147: What do you expect to pay for muriate of potash fertilizer? | U147: 374.0188 | V147: =IF(W142,CONCATENATE("$ Mg",Z155),"$/ton") -> $ Mg⁻¹ | W147: =+U147/IF(W142,1000,2000)/IF(W142,0.49809078131038,0.6) -> 0.7509048833 | X147: =IF(W142,CONCATENATE("$ kg",Z155," K"),CONCATENATE("$/lb of K",Z153,"O")) -> $ kg⁻¹ K | AA147: 2011 | AB147: =29.19*20 -> 583.8 | AC147: 6.27 | AD147: 141 | AE147: =+AC147/56*2204.62/1000 -> 0.2468387036 | AF147: 643.3476 | AG147: =+(AD147*56*0.4536)*2.4711 -> 8850.55502 | AI147: 1.291627198
A148: 147 | B148: 94 | C148: 120 | D148: 2015 | E148: 31 | F148: 34 | G148: 51 | J148: Sample: 2010 2020 IF SITE<>5 AND SITE<>41 AND SITE<>43 | AA148: 2012 | AB148: =29.8*20 -> 596 | AC148: 6.81 | AD148: 178 | AE148: 0.2680975393 | AF148: 656.792 | AG148: 11173.04109 | AI148: 1.318619064
A149: 148 | B149: 91 | C149: 160 | D149: 2015 | E149: 31 | F149: 47 | G149: 51 | J149: Periods included: 10 | Q149: What is the yield potential of your field? | U149: 11173.04109 | V149: =IF(W142,CONCATENATE("kg ha",Z155),"bu/acre") -> kg ha⁻¹ | W149: =+U149/100 -> 111.7304109 | X149: kg ha-1/relative yield % (100% = yield potential) | Y149: =200*IF(W142,BP172,1) -> 186.101818 | Z149: Max. Fert applied per acre in the experiment | AA149: 2013 | AB149: =23.75*20 -> 475 | AC149: 5.12 | AD149: 186 | AE149: 0.2015652571 | AF149: 523.45 | AG149: 11675.20024 | AI149: 1.050912845
A150: 149 | B150: 100 | C150: 200 | D150: 2015 | E150: 31 | F150: 54 | G150: 51 | J150: Cross-sections included: 53 | AA150: 2014 | AB150: =23.6*20 -> 472 | AC150: 4.13 | AD150: 187 | AE150: 0.162590725 | AF150: 520.144 | AG150: 11737.97013 | AI150: 1.044275501 | BV150: Labels
A151: 150 | B151: 61 | C151: 0 | D151: 2015 | E151: 32 | F151: 5 | G151: 49 | J151: Total panel (unbalanced) observations: 218 | Q151: What is your soil-test K value (STK) and range? | U151: 151 | V151: =IF(W142,CONCATENATE("mg K kg",Z155),"ppm") -> mg K kg⁻¹ | W151: Soil test range +/- | Y151: 0 | AA151: 2015 | AB151: =21.27*20 -> 425.4 | AC151: 4.11 | AD151: 181 | AE151: 0.1618033607 | AF151: 468.7908 | AG151: 11361.35077 | AI151: 0.9411754194 | BI151: High | BJ151: =MMULT($BJ$157:$BO$157,BJ160:BJ165) -> -0.02055100386 | BK151: =MMULT($BJ$157:$BO$157,BK160:BK165) -> 1.048705532 | BL151: 0.0006443665455 | BM151: -4.449239737e-06 | BN151: 0.0001735438745 | BO151: -0.02872790252 | BP151: =SQRT(MMULT(BJ151:BO151,BR160:BR165))*1.96 -> 1.39046951 | BV151: =CONCATENATE(TEXT(T156,0)," ",BQ154," ",TEXT(BP151,"0.0")) -> 1 ± 1.4
A152: 151 | B152: 82 | C152: 50 | D152: 2015 | E152: 32 | F152: 12 | G152: 49 | J152: Wallace and Hussain estimator of component variances | AA152: 2016 | AB152: =16.97*20 -> 339.4 | AC152: 3.69 | AD152: 171 | AE152: 0.1452687107 | AF152: 374.0188 | AG152: 10733.65183 | AI152: 0.7509048833 | BI152: Avg | BJ152: =MMULT($BJ$156:$BO$156,BJ160:BJ165) -> -0.02055100386 | BK152: =MMULT($BJ$156:$BO$156,BK160:BK165) -> 1.048705532 | BL152: 0.0006443665455 | BM152: -4.449239737e-06 | BN152: 0.0001735438745 | BO152: -0.02872790252 | BP152: =SQRT(MMULT(BJ152:BO152,BQ160:BQ165))*1.96 -> 1.39046951 | BQ152: 95% C.I. of profit maximizing rate at conditional mean | BV152: =CONCATENATE(TEXT(U156,0)," ",BQ154," ",TEXT(BP152,"0.0")) -> 1 ± 1.4
A153: 152 | B153: 91 | C153: 100 | D153: 2015 | E153: 32 | F153: 25 | G153: 49 | J153: White cross-section standard errors & covariance (d.f. corrected) | Q153: What is your cost to apply fertilizer (equipment, labor, fuel or custom)? | U153: 18.53 | V153: =IF(W142,CONCATENATE("$ ha",Z155),"$/acre") -> $ ha⁻¹ | W153: =CONCATENATE("...your rate in ",IF(W142,CONCATENATE("kg K ha",Z155),CONCATENATE("lbs of K",Z153,"O/acre")),":") -> ...your rate in kg K ha⁻¹: | Y153: =IF(173.17-0.8316*U151<0,0,173.17-0.8316*U151)*IF(W142,BP172,1) -> 44.29074387 | Z153: ₂ | AA153: 2017 | AB153: =18.98*20 -> 379.6 | AC153: 3.64 | AD153: 183 | AE153: 0.1433003 | AF153: 418.3192 | AG153: 11486.89056 | AI153: 0.8398452967 | BI153: Low | BJ153: =MMULT($BJ$155:$BO$155,BJ160:BJ165) -> -0.02055100386 | BK153: =MMULT($BJ$155:$BO$155,BK160:BK165) -> 1.048705532 | BL153: 0.0006443665455 | BM153: -4.449239737e-06 | BN153: 0.0001735438745 | BO153: -0.02872790252 | BP153: =SQRT(MMULT(BJ153:BO153,BP160:BP165))*1.96 -> 1.39046951 | BV153: =CONCATENATE(TEXT(V156,0)," ",BQ154," ",TEXT(BP153,"0.0")) -> 1 ± 1.4
A154: 153 | B154: 100 | C154: 150 | D154: 2015 | E154: 32 | F154: 38 | G154: 49 | J154: Variable | K154: Coefficient | L154: Std. Error | M154: t-Statistic | N154: Prob. | O154: English | Q154: =CONCATENATE("Profit change comparing applying at ",TEXT(ROUND(U156,1),"0.0"),IF(W142,CONCATENATE(" kg K ha",Z155),CONCATENATE("lb K",Z153,"O/acre"))," to no fertilizer:") -> Profit change comparing applying at 0.6 kg K ha⁻¹ to no fertilizer: | U154: =+U160*$U$145/IF(W142,1,1)-U156*$W$147-IF(U156>0,$U$153)-R165*$U$145/IF(W142,1,1) -> -17.96412238 | V154: =IF(W142,CONCATENATE("$ ha",Z155),"$/acre") -> $ ha⁻¹ | W154: ...to your rate: | Y154: =+U162 -> 34.73933358 | Z154: =CONCATENATE("Fertilizer-K Application Rate (lbs K",Z153,"O/acre)") -> Fertilizer-K Application Rate (lbs K₂O/acre) | AA154: 2018 | AB154: =20*20 -> 400 | AC154: 3.8 | AD154: 181 | AE154: 0.1495992143 | AF154: 440.8 | AG154: 11361.35077 | AI154: 0.8849792378 | BQ154: ±
A155: 154 | B155: 90 | C155: 200 | D155: 2015 | E155: 32 | F155: 55 | G155: 49 | T155: =CONCATENATE(U151+Y151," ppm soil K") -> 151 ppm soil K | U155: =CONCATENATE(U151," ppm soil K") -> 151 ppm soil K | V155: =CONCATENATE(U151-Y151," ppm soil K") -> 151 ppm soil K | W155: K yield max | Z155: ⁻¹ | AA155: 2019 | AB155: =27.5*20 -> 550 | AC155: 3.86 | AD155: 175 | AE155: 0.1519613071 | AF155: 606.1 | AG155: 10984.73141 | AI155: 1.216846452 | BI155: Low | BJ155: =+V156 -> 0.602096583 | BK155: =+BJ155^0.5 -> 0.7759488276 | BL155: =+(U151-Y151)*BJ155 -> 90.91658403 | BM155: =+(U151-Y151)^2*BJ155 -> 13728.40419 | BN155: =+(U151-Y151)^2*BK155 -> 17692.40922 | BO155: =+(U151-Y151)*BK155 -> 117.168273
A156: 155 | B156: 64 | C156: 0 | D156: 2015 | E156: 33 | F156: 6 | G156: 83 | J156: C | K156: 29.11259347 | L156: 18.84314009 | M156: 1.544996924 | N156: 0.1238598159 | O156: 29.11259347 | Q156: Profit Maximizing K rate: | T156: =IF((IF(W142,K159,O159)+0.5*IF(W142,K160,O160)*0.1^-0.5+IF(W142,K161,O161)*(U151+Y151)+IF(W142,K162,O162)*(U151+Y151)^2+0.5*IF(W142,K163,O163)*(U151+Y151)^2*0.1^-0.5+0.5*IF(W142,K164,O164)*(U151+Y151)*0.1^-0.5)<0,0,IF(((IF(W142,K159,O159)+0.5*IF(W142,K160,O160)*Y149^-0.5+IF(W142,K161,O161)*(U151+Y151)+IF(W142,K162,O162)*(U151+Y151)^2+0.5*IF(W142,K163,O163)*(U151+Y151)^2*Y149^-0.5+0.5*IF(W142,K164,O164)*(U151+Y151)*Y149^-0.5)*U145/IF(W142,1,1)*W149)>W147,IF(Y149<T188,Y149,T188),IF(((W147/(U145*W149)-IF(W142,K159,O159)-IF(W142,K161,O161)*(U151+Y151)-IF(W142,K162,O162)*(U151+Y151)^2)/(0.5*(IF(W142,K160,O160)+IF(W142,K163,O163)*(U151+Y151)^2+IF(W142,K164,O164)*(U151+Y151))))^-2<0,0,IF(((W147/(U145*W149)-IF(W142,K159,O159)-IF(W142,K161,O161)*(U151+Y151)-IF(W142,K162,O162)*(U151+Y151)^2)/(0.5*(IF(W142,K160,O160)+IF(W142,K163,O163)*(U151+Y151)^2+IF(W142,K164,O164)*(U151+Y151))))^-2>T188,T188,((W147/(U145*W149)-IF(W142,K159,O159)-IF(W142,K161,O161)*(U151+Y151)-IF(W142,K162,O162)*(U151+Y151)^2)/(0.5*(IF(W142,K160,O160)+IF(W142,K163,O163)*(U151+Y151)^2+IF(W142,K164,O164)*(U151+Y151))))^-2)))) -> 0.602096583 | U156: =IF((IF(W142,K159,O159)+0.5*IF(W142,K160,O160)*0.1^-0.5+IF(W142,K161,O161)*(U151)+IF(W142,K162,O162)*(U151)^2+0.5*IF(W142,K163,O163)*(U151)^2*0.1^-0.5+0.5*IF(W142,K164,O164)*(U151)*0.1^-0.5)<0,0,IF(((IF(W142,K159,O159)+0.5*IF(W142,K160,O160)*Y149^-0.5+IF(W142,K161,O161)*(U151)+IF(W142,K162,O162)*(U151)^2+0.5*IF(W142,K163,O163)*(U151)^2*Y149^-0.5+0.5*IF(W142,K164,O164)*(U151)*Y149^-0.5)*U145*W149)>W147,IF(Y149<T188,Y149,T188),IF(((W147/(U145*W149)-IF(W142,K159,O159)-IF(W142,K161,O161)*(U151)-IF(W142,K162,O162)*(U151)^2)/(0.5*(IF(W142,K160,O160)+IF(W142,K163,O163)*(U151)^2+IF(W142,K164,O164)*(U151))))^-2<0,0,IF(((W147/(U145*W149)-IF(W142,K159,O159)-IF(W142,K161,O161)*(U151)-IF(W142,K162,O162)*(U151)^2)/(0.5*(IF(W142,K160,O160)+IF(W142,K163,O163)*(U151)^2+IF(W142,K164,O164)*(U151))))^-2>U188,U188,((W147/(U145*W149)-IF(W142,K159,O159)-IF(W142,K161,O161)*(U151)-IF(W142,K162,O162)*(U151)^2)/(0.5*(IF(W142,K160,O160)+IF(W142,K163,O163)*(U151)^2+IF(W142,K164,O164)*(U151))))^-2)))) -> 0.602096583 | V156: =IF((IF(W142,K159,O159)+0.5*IF(W142,K160,O160)*0.1^-0.5+IF(W142,K161,O161)*(U151-Y151)+IF(W142,K162,O162)*(U151-Y151)^2+0.5*IF(W142,K163,O163)*(U151-Y151)^2*0.1^-0.5+0.5*IF(W142,K164,O164)*(U151-Y151)*0.1^-0.5)<0,0,IF(((IF(W142,K159,O159)+0.5*IF(W142,K160,O160)*Y149^-0.5+IF(W142,K161,O161)*(U151-Y151)+IF(W142,K162,O162)*(U151-Y151)^2+0.5*IF(W142,K163,O163)*(U151-Y151)^2*Y149^-0.5+0.5*IF(W142,K164,O164)*(U151-Y151)*Y149^-0.5)*U145*W149)>W147,IF(Y149<T188,Y149,T188),IF(((W147/(U145*W149)-IF(W142,K159,O159)-IF(W142,K161,O161)*(U151-Y151)-IF(W142,K162,O162)*(U151-Y151)^2)/(0.5*(IF(W142,K160,O160)+IF(W142,K163,O163)*(U151-Y151)^2+IF(W142,K164,O164)*(U151-Y151))))^-2<0,0,IF(((W147/(U145*W149)-IF(W142,K159,O159)-IF(W142,K161,O161)*(U151-Y151)-IF(W142,K162,O162)*(U151-Y151)^2)/(0.5*(IF(W142,K160,O160)+IF(W142,K163,O163)*(U151-Y151)^2+IF(W142,K164,O164)*(U151-Y151))))^-2>V188,V188,((W147/(U145*W149)-IF(W142,K159,O159)-IF(W142,K161,O161)*(U151-Y151)-IF(W142,K162,O162)*(U151-Y151)^2)/(0.5*(IF(W142,K160,O160)+IF(W142,K163,O163)*(U151-Y151)^2+IF(W142,K164,O164)*(U151-Y151))))^-2)))) -> 0.602096583 | W156: =+U187 -> 14.8980454 | Z156: =CONCATENATE("Corn Grain Yield (kg ha",Z155,")") -> Corn Grain Yield (kg ha⁻¹) | AA156: 2020 | AB156: =22.11*20 -> 442.2 | AC156: 3.95 | AD156: 184 | AE156: 0.1555044464 | AF156: 487.3044 | AG156: 11549.66045 | AI156: 0.9783445474 | BI156: Avg | BJ156: =+U156 -> 0.602096583 | BK156: =+BJ156^0.5 -> 0.7759488276 | BL156: =+U151*BJ156 -> 90.91658403 | BM156: =U151^2*BJ156 -> 13728.40419 | BN156: =+U151^2*BK156 -> 17692.40922 | BO156: =U151*BK156 -> 117.168273
A157: 156 | B157: 88 | C157: 40 | D157: 2015 | E157: 33 | F157: 11 | G157: 83 | J157: STK | K157: 1.001431124 | L157: 0.4441843704 | M157: 2.25453931 | N157: 0.0251991809 | O157: 1.001431124 | Q157: VMP @ Profit Max: | T157: =IF((IF(W142,K159,O159)+0.5*IF(W142,K160,O160)*T156^-0.5+IF(W142,K161,O161)*(U151+Y151)+IF(W142,K162,O162)*(U151+Y151)^2+0.5*IF(W142,K163,O163)*(U151+Y151)^2*T156^-0.5+0.5*IF(W142,K164,O164)*(U151+Y151)*T156^-0.5)*U145*W149<0,"na",(IF(W142,K159,O159)+0.5*IF(W142,K160,O160)*T156^-0.5+IF(W142,K161,O161)*(U151+Y151)+IF(W142,K162,O162)*(U151+Y151)^2+0.5*IF(W142,K163,O163)*(U151+Y151)^2*T156^-0.5+0.5*IF(W142,K164,O164)*(U151+Y151)*T156^-0.5)*U145*W149) -> 0.7509048833 | U157: =IF((IF(W142,K159,O159)+0.5*IF(W142,K160,O160)*U156^-0.5+IF(W142,K161,O161)*(U151)+IF(W142,K162,O162)*(U151)^2+0.5*IF(W142,K163,O163)*(U151)^2*U156^-0.5+0.5*IF(W142,K164,O164)*(U151)*U156^-0.5)*U145*W149<0,"na",(IF(W142,K159,O159)+0.5*IF(W142,K160,O160)*U156^-0.5+IF(W142,K161,O161)*(U151)+IF(W142,K162,O162)*(U151)^2+0.5*IF(W142,K163,O163)*(U151)^2*U156^-0.5+0.5*IF(W142,K164,O164)*(U151)*U156^-0.5)*U145*W149) -> 0.7509048833 | V157: =IF((IF(W142,K159,O159)+0.5*IF(W142,K160,O160)*V156^-0.5+IF(W142,K161,O161)*(U151-Y151)+IF(W142,K162,O162)*(U151-Y151)^2+0.5*IF(W142,K163,O163)*(U151-Y151)^2*V156^-0.5+0.5*IF(W142,K164,O164)*(U151-Y151)*V156^-0.5)*U145*W149<0,"na",(IF(W142,K159,O159)+0.5*IF(W142,K160,O160)*V156^-0.5+IF(W142,K161,O161)*(U151-Y151)+IF(W142,K162,O162)*(U151-Y151)^2+0.5*IF(W142,K163,O163)*(U151-Y151)^2*V156^-0.5+0.5*IF(W142,K164,O164)*(U151-Y151)*V156^-0.5)*U145*W149) -> 0.7509048833 | Z157: =CONCATENATE("Fertilizer-K Application Rate (kg K ha",Z155,")") -> Fertilizer-K Application Rate (kg K ha⁻¹) | AA157: Avg. | AB157: =AVERAGE(AB146:AB156) -> 465.7636364 | AC157: =AVERAGE(AC146:AC156) -> 4.539090909 | AD157: =AVERAGE(AD146:AD156) -> 174.2727273 | AE157: 0.1786959036 | AF157: =+AB157/2000*2204 -> 513.2715273 | AG157: 10939.08058 | AI157: =+AF157/1000/0.49809078131038 -> 1.03047787 | BI157: High | BJ157: =+T156 -> 0.602096583 | BK157: 0.7759488276 | BL157: =+(U151+Y151)*BJ157 -> 90.91658403 | BM157: =+(U151+Y151)^2*BJ157 -> 13728.40419 | BN157: =+(U151+Y151)^2*BK157 -> 17692.40922 | BO157: =(U151+Y151)*BK157 -> 117.168273
A158: 157 | B158: 90 | C158: 80 | D158: 2015 | E158: 33 | F158: 24 | G158: 83 | J158: STK^2 | K158: -0.003676489001 | L158: 0.002402171742 | M158: -1.530485492 | N158: 0.1274087607 | O158: -0.003676489001 | Q158: UAEX recommendation: | T158: =IF(U151+Y151<61,149,IF(U151+Y151<91,107,IF(U151+Y151<131,74,IF(U151+Y151<176,47,0)))) -> 47 | U158: =IF(U151<61,149,IF(U151<91,107,IF(U151<131,74,IF(U151<176,47,0)))) -> 47 | V158: =IF(U151-Y151<61,149,IF(U151-Y151<91,107,IF(U151-Y151<131,74,IF(U151-Y151<176,47,0)))) -> 47 | AA158: Min. | AB158: =MIN(AB146:AB156) -> 339.4 | AC158: =MIN(AC146:AC156) -> 3.64 | AD158: =MIN(AD146:AD156) -> 141 | BJ158: Coefficient Covariance Matrix as available in Eviews under the View Menu in the Equation Editor
A159: 158 | B159: 100 | C159: 120 | D159: 2015 | E159: 33 | F159: 35 | G159: 83 | J159: MK | K159: -0.4623244014 | L159: 0.1480119398 | M159: -3.123561532 | N159: 0.00204015325 | O159: -0.4301970581 | T159: =+T156-T158 -> -46.39790342 | U159: =+U156-U158 -> -46.39790342 | V159: =+V156-V158 -> -46.39790342 | W159: Est. Yield Max | AA159: Max. | AB159: =MAX(AB146:AB156) -> 596 | AC159: =MAX(AC146:AC156) -> 6.81 | AD159: =MAX(AD146:AD156) -> 187 | BJ159: K | BK159: K^.5 | BL159: S*K | BM159: S^2*K | BN159: S^2*K^.5 | BO159: S*K^.5 | BP159: Low | BQ159: Avg | BR159: High | BW159: English
A160: 159 | B160: 91 | C160: 160 | D160: 2015 | E160: 33 | F160: 48 | G160: 83 | J160: MK^.5 | K160: 11.63731984 | L160: 2.543522998 | M160: 4.575276046 | N160: 8.148634653e-06 | O160: 11.2256961 | Q160: Est. Yield at Profit-Max K: | T160: =IF((+K156+K157*(U151+Y151)+K158*(U151+Y151)^2+IF(W142,K159,O159)*T156+IF(W142,K160,O160)*T156^0.5+IF(W142,K161,O161)*(U151+Y151)*T156+IF(W142,K162,O162)*(U151+Y151)^2*T156+IF(W142,K163,O163)*(U151+Y151)^2*T156^0.5+IF(W142,K164,O164)*(U151+Y151)*T156^0.5)*W149>U149,U149,(+K156+K157*(U151+Y151)+K158*(U151+Y151)^2+IF(W142,K159,O159)*T156+IF(W142,K160,O160)*T156^0.5+IF(W142,K161,O161)*(U151+Y151)*T156+IF(W142,K162,O162)*(U151+Y151)^2*T156+IF(W142,K163,O163)*(U151+Y151)^2*T156^0.5+IF(W142,K164,O164)*(U151+Y151)*T156^0.5)*W149) -> 10785.90102 | U160: =IF((+K156+K157*U151+K158*U151^2+IF(W142,K159,O159)*U156+IF(W142,K160,O160)*U156^0.5+IF(W142,K161,O161)*U151*U156+IF(W142,K162,O162)*U151^2*U156+IF(W142,K163,O163)*U151^2*U156^0.5+IF(W142,K164,O164)*(U151)*U156^0.5)*W149>U149,U149,(+K156+K157*U151+K158*U151^2+IF(W142,K159,O159)*U156+IF(W142,K160,O160)*U156^0.5+IF(W142,K161,O161)*U151*U156+IF(W142,K162,O162)*U151^2*U156+IF(W142,K163,O163)*U151^2*U156^0.5+IF(W142,K164,O164)*(U151)*U156^0.5)*W149) -> 10785.90102 | V160: =IF((+K156+K157*(U151-Y151)+K158*(U151-Y151)^2+IF(W142,K159,O159)*V156+IF(W142,K160,O160)*V156^0.5+IF(W142,K161,O161)*(U151-Y151)*V156+IF(W142,K162,O162)*(U151-Y151)^2*V156+IF(W142,K163,O163)*(U151-Y151)^2*V156^0.5+IF(W142,K164,O164)*(U151-Y151)*V156^0.5)*W149>U149,U149,(+K156+K157*(U151-Y151)+K158*(U151-Y151)^2+IF(W142,K159,O159)*V156+IF(W142,K160,O160)*V156^0.5+IF(W142,K161,O161)*(U151-Y151)*V156+IF(W142,K162,O162)*(U151-Y151)^2*V156+IF(W142,K163,O163)*(U151-Y151)^2*V156^0.5+IF(W142,K164,O164)*(U151-Y151)*V156^0.5)*W149) -> 10785.90102 | W160: =IF((+K156+K157*U151+K158*U151^2+IF(W142,K159,O159)*W156+IF(W142,K160,O160)*W156^0.5+IF(W142,K161,O161)*U151*W156+IF(W142,K162,O162)*U151^2*W156+IF(W142,K163,O163)*U151^2*W156^0.5+IF(W142,K164,O164)*(U151)*W156^0.5)*W149>U149,U149,(+K156+K157*U151+K158*U151^2+IF(W142,K159,O159)*W156+IF(W142,K160,O160)*W156^0.5+IF(W142,K161,O161)*U151*W156+IF(W142,K162,O162)*U151^2*W156+IF(W142,K163,O163)*U151^2*W156^0.5+IF(W142,K164,O164)*(U151)*W156^0.5)*W149) -> 10792.60324 | BI160: KRATE | BJ160: =IF($W$142,BU167,BU160) -> 0.02190753432 | BK160: =IF($W$142,BV167,BV160) -> -0.3109598553 | BL160: -0.0004618303936 | BM160: 2.265573671e-06 | BN160: -2.985851642e-05 | BO160: 0.006372901834 | BP160: =+BJ155 -> 0.602096583 | BQ160: =+BJ156 -> 0.602096583 | BR160: =+BJ157 -> 0.602096583 | BU160: 0.01896857652 | BV160: -0.2791163361 | BW160: -0.0003998745378 | BX160: 1.961640544e-06 | BY160: -2.680088624e-05 | BZ160: 0.005720291479
A161: 160 | B161: 95 | C161: 200 | D161: 2015 | E161: 33 | F161: 56 | G161: 83 | J161: STK*MK | K161: 0.00710174966 | L161: 0.003144439771 | M161: 2.258510316 | N161: 0.02494645103 | O161: 0.006608242614 | Q161: Est. Yield at UAEX rec.: | T161: =IF((+K156+K157*(U151+Y151)+K158*(U151+Y151)^2+IF(W142,K159,O159)*T158+IF(W142,K160,O160)*T158^0.5+IF(W142,K161,O161)*(U151+Y151)*T158+IF(W142,K162,O162)*(U151+Y151)^2*T158+IF(W142,K163,O163)*(U151+Y151)^2*T158^0.5+IF(W142,K164,O164)*(U151+Y151)*T158^0.5)*W149>U149,U149,(+K156+K157*(U151+Y151)+K158*(U151+Y151)^2+IF(W142,K159,O159)*T158+IF(W142,K160,O160)*T158^0.5+IF(W142,K161,O161)*(U151+Y151)*T158+IF(W142,K162,O162)*(U151+Y151)^2*T158+IF(W142,K163,O163)*(U151+Y151)^2*T158^0.5+IF(W142,K164,O164)*(U151+Y151)*T158^0.5)*W149) -> 10786.27805 | U161: =IF((+K156+K157*U151+K158*U151^2+IF(W142,K159,O159)*U158+IF(W142,K160,O160)*U158^0.5+IF(W142,K161,O161)*U151*U158+IF(W142,K162,O162)*U151^2*U158+IF(W142,K163,O163)*U151^2*U158^0.5+IF(W142,K164,O164)*(U151)*U158^0.5)*W149>U149,U149,(+K156+K157*U151+K158*U151^2+IF(W142,K159,O159)*U158+IF(W142,K160,O160)*U158^0.5+IF(W142,K161,O161)*U151*U158+IF(W142,K162,O162)*U151^2*U158+IF(W142,K163,O163)*U151^2*U158^0.5+IF(W142,K164,O164)*(U151)*U158^0.5)*W149) -> 10786.27805 | V161: =IF((+K156+K157*(U151-Y151)+K158*(U151-Y151)^2+IF(W142,K159,O159)*V158+IF(W142,K160,O160)*V158^0.5+IF(W142,K161,O161)*(U151-Y151)*V158+IF(W142,K162,O162)*(U151-Y151)^2*V158+IF(W142,K163,O163)*(U151-Y151)^2*V158^0.5+IF(W142,K164,O164)*(U151-Y151)*V158^0.5)*W149>U149,U149,(+K156+K157*(U151-Y151)+K158*(U151-Y151)^2+IF(W142,K159,O159)*V158+IF(W142,K160,O160)*V158^0.5+IF(W142,K161,O161)*(U151-Y151)*V158+IF(W142,K162,O162)*(U151-Y151)^2*V158+IF(W142,K163,O163)*(U151-Y151)^2*V158^0.5+IF(W142,K164,O164)*(U151-Y151)*V158^0.5)*W149) -> 10786.27805 | BI161: KRATE^2 | BJ161: =IF($W$142,BU168,BU161) -> -0.3109598553 | BK161: 6.469509241 | BL161: 0.006849914863 | BM161: -3.537725992e-05 | BN161: 0.0007297184349 | BO161: -0.1436536443 | BP161: =+BK155 -> 0.7759488276 | BQ161: =+BK156 -> 0.7759488276 | BR161: =+BK157 -> 0.7759488276 | BU161: -0.2791163361 | BV161: 6.019937157 | BW161: 0.006148456487 | BX161: -3.175448858e-05 | BY161: 0.0006790096369 | BZ161: -0.1336710219
A162: 161 | B162: 61 | C162: 0 | D162: 2017 | E162: 34 | F162: 1 | G162: 60 | J162: STK^2*MK | K162: -2.703159271e-05 | L162: 1.579753603e-05 | M162: -1.711127144 | N162: 0.08854128161 | O162: -2.515314274e-05 | Q162: Added Profit in $/acre | T162: =+(T160-T161)*U145/IF(W142,1,1)-(T156-T158)*W147-IF(T158=0,IF(T156=0,0,U153),IF(T156=0,IF(T158>0,-U153,0))) -> 34.73933358 | U162: =+(U160-U161)*U145/IF(W142,1,1)-(U156-U158)*W147-IF(U158=0,IF(U156=0,0,U153),IF(U156=0,IF(U158>0,-U153,0))) -> 34.73933358 | V162: =+(V160-V161)*U145/IF(W142,1,1)-(V156-V158)*W147-IF(V158=0,IF(V156=0,0,U153),IF(V156=0,IF(V158>0,-U153,0))) -> 34.73933358 | W162: =+(U160-W160)*U145/IF(W142,1,1)-(U156-W156)*W147-IF(W156=0,IF(U156=0,0,U153),IF(U156=0,IF(W156>0,-U153,0))) -> 8.938050252 | BI162: KSOIL*KRATE | BJ162: -0.0004618303936 | BK162: 0.006849914863 | BL162: 9.887501472e-06 | BM162: -4.926404325e-08 | BN162: 6.932847998e-07 | BO162: -0.0001440769713 | BP162: =+BL155 -> 90.91658403 | BQ162: =+BL156 -> 90.91658403 | BR162: =+BL157 -> 90.91658403 | BU162: -0.0003998745378 | BV162: 0.006148456487 | BW162: 8.561065135e-06 | BX162: -4.265513227e-08 | BY162: 6.222896941e-07 | BZ162: -0.0001293229196
A163: 162 | B163: 93 | C163: 50 | D163: 2017 | E163: 34 | F163: 12 | G163: 60 | J163: STK^2*MK^.5 | K163: 0.0006719042177 | L163: 0.0003032016248 | M163: 2.216031059 | N163: 0.02776802679 | O163: 0.0006481382876 | Q163: Yield change: | T163: =+T160-T161 -> -0.3770219898 | U163: =+U160-U161 -> -0.3770219898 | V163: =+V161-V160 -> 0.3770219898 | W163: =+W160-U160 -> 6.702215668 | BI163: KSOIL^2*KRATE | BJ163: 2.265573671e-06 | BK163: -3.537725992e-05 | BL163: -4.926404325e-08 | BM163: 2.495621445e-10 | BN163: -3.777094303e-09 | BO163: 7.63998084e-07 | BP163: =+BM155 -> 13728.40419 | BQ163: =+BM156 -> 13728.40419 | BR163: =+BM157 -> 13728.40419 | BU163: 1.961640544e-06 | BV163: -3.175448858e-05 | BW163: -4.265513227e-08 | BX163: 2.160826757e-10 | BY163: -3.390304906e-09 | BZ163: 6.857616583e-07
A164: 163 | B164: 100 | C164: 100 | D164: 2017 | E164: 34 | F164: 25 | G164: 60 | J164: STK*MK^.5 | K164: -0.1782034184 | L164: 0.05735084969 | M164: -3.107249838 | N164: 0.002150814832 | O164: -0.1719001837 | Q164: K rate | R164: =CONCATENATE("Est. Yield (STK = ",U151,")") -> Est. Yield (STK = 151) | S164: =CONCATENATE("Est. Yield (STK = ",U151-Y151,")") -> Est. Yield (STK = 151) | T164: =CONCATENATE("Est. Yield (STK = ",U151+Y151,")") -> Est. Yield (STK = 151) | BI164: KSOIL^2*KRATE^2 | BJ164: -2.985851642e-05 | BK164: 0.0007297184349 | BL164: 6.932847998e-07 | BM164: -3.777094303e-09 | BN164: 9.19312253e-08 | BO164: -1.717499963e-05 | BP164: =+BN155 -> 17692.40922 | BQ164: =+BN156 -> 17692.40922 | BR164: =+BN157 -> 17692.40922 | BU164: -2.680088624e-05 | BV164: 0.0006790096369 | BW164: 6.222896941e-07 | BX164: -3.390304906e-09 | BY164: 8.554284081e-08 | BZ164: -1.598149328e-05
A165: 164 | B165: 96 | C165: 150 | D165: 2017 | E165: 34 | F165: 38 | G165: 60 | Q165: 0 | R165: =IF((IF($W$142,$K$156,$O$156)+IF($W$142,$K$157,$O$157)*$U$151+IF($W$142,$K$158,$O$158)*$U$151^2+IF($W$142,$K$159,$O$159)*Q165+IF($W$142,$K$160,$O$160)*Q165^0.5+IF($W$142,$K$161,$O$161)*$U$151*Q165+IF($W$142,$K$162,$O$162)*$U$151^2*Q165+IF($W$142,$K$163,$O$163)*$U$151^2*Q165^0.5+IF($W$142,$K$164,$O$164)*$U$151*Q165^0.5)*$W$149>$U$149,$U$149,(IF($W$142,$K$156,$O$156)+IF($W$142,$K$157,$O$157)*$U$151+IF($W$142,$K$158,$O$158)*$U$151^2+IF($W$142,$K$159,$O$159)*Q165+IF($W$142,$K$160,$O$160)*Q165^0.5+IF($W$142,$K$161,$O$161)*$U$151*Q165+IF($W$142,$K$162,$O$162)*$U$151^2*Q165+IF($W$142,$K$163,$O$163)*$U$151^2*Q165^0.5+IF($W$142,$K$164,$O$164)*$U$151*Q165^0.5)*$W$149) -> 10782.10392 | S165: =IF((IF($W$142,$K$156,$O$156)+IF($W$142,$K$157,$O$157)*($U$151-$Y$151)+IF($W$142,$K$158,$O$158)*($U$151-$Y$151)^2+IF($W$142,$K$159,$O$159)*Q165+IF($W$142,$K$160,$O$160)*Q165^0.5+IF($W$142,$K$161,$O$161)*($U$151-$Y$151)*Q165+IF($W$142,$K$162,$O$162)*($U$151-$Y$151)^2*Q165+IF($W$142,$K$163,$O$163)*($U$151-$Y$151)^2*Q165^0.5+IF($W$142,$K$164,$O$164)*($U$151-$Y$151)*Q165^0.5)*$W$149>$U$149,$U$149,(IF($W$142,$K$156,$O$156)+IF($W$142,$K$157,$O$157)*($U$151-$Y$151)+IF($W$142,$K$158,$O$158)*($U$151-$Y$151)^2+IF($W$142,$K$159,$O$159)*Q165+IF($W$142,$K$160,$O$160)*Q165^0.5+IF($W$142,$K$161,$O$161)*($U$151-$Y$151)*Q165+IF($W$142,$K$162,$O$162)*($U$151-$Y$151)^2*Q165+IF($W$142,$K$163,$O$163)*($U$151-$Y$151)^2*Q165^0.5+IF($W$142,$K$164,$O$164)*($U$151-$Y$151)*Q165^0.5)*$W$149) -> 10782.10392 | T165: =IF((IF($W$142,$K$156,$O$156)+IF($W$142,$K$157,$O$157)*($U$151+$Y$151)+IF($W$142,$K$158,$O$158)*($U$151+$Y$151)^2+IF($W$142,$K$159,$O$159)*Q165+IF($W$142,$K$160,$O$160)*Q165^0.5+IF($W$142,$K$161,$O$161)*($U$151+$Y$151)*Q165+IF($W$142,$K$162,$O$162)*($U$151+$Y$151)^2*Q165+IF($W$142,$K$163,$O$163)*($U$151+$Y$151)^2*Q165^0.5+IF($W$142,$K$164,$O$164)*($U$151+$Y$151)*Q165^0.5)*$W$149>$U$149,$U$149,(IF($W$142,$K$156,$O$156)+IF($W$142,$K$157,$O$157)*($U$151+$Y$151)+IF($W$142,$K$158,$O$158)*($U$151+$Y$151)^2+IF($W$142,$K$159,$O$159)*Q165+IF($W$142,$K$160,$O$160)*Q165^0.5+IF($W$142,$K$161,$O$161)*($U$151+$Y$151)*Q165+IF($W$142,$K$162,$O$162)*($U$151+$Y$151)^2*Q165+IF($W$142,$K$163,$O$163)*($U$151+$Y$151)^2*Q165^0.5+IF($W$142,$K$164,$O$164)*($U$151+$Y$151)*Q165^0.5)*$W$149) -> 10782.10392 | U165: =ROUNDUP((MAX(BJ175:BJ408,U149)+IF(W142,500,10))/10,0)*10 -> 11680 | AR165: =CONCATENATE("Obs. Yields (",U151-Y151," < STK < ",U151+Y151,")") -> Obs. Yields (151 < STK < 151) | BI165: KSOIL*KRATE^2 | BJ165: 0.006372901834 | BK165: -0.1436536443 | BL165: -0.0001440769713 | BM165: 7.63998084e-07 | BN165: -1.717499963e-05 | BO165: 0.003289119961 | BP165: =+BO155 -> 117.168273 | BQ165: =+BO156 -> 117.168273 | BR165: =+BO157 -> 117.168273 | BU165: 0.005720291479 | BV165: -0.1336710219 | BW165: -0.0001293229196 | BX165: 6.857616583e-07 | BY165: -1.598149328e-05 | BZ165: 0.003060556022
A166: 165 | B166: 97 | C166: 200 | D166: 2017 | E166: 34 | F166: 51 | G166: 60 | K166: Effects Specification | Q166: 2.5 | R166: =IF((IF($W$142,$K$156,$O$156)+IF($W$142,$K$157,$O$157)*$U$151+IF($W$142,$K$158,$O$158)*$U$151^2+IF($W$142,$K$159,$O$159)*Q166+IF($W$142,$K$160,$O$160)*Q166^0.5+IF($W$142,$K$161,$O$161)*$U$151*Q166+IF($W$142,$K$162,$O$162)*$U$151^2*Q166+IF($W$142,$K$163,$O$163)*$U$151^2*Q166^0.5+IF($W$142,$K$164,$O$164)*$U$151*Q166^0.5)*$W$149>$U$149,$U$149,(IF($W$142,$K$156,$O$156)+IF($W$142,$K$157,$O$157)*$U$151+IF($W$142,$K$158,$O$158)*$U$151^2+IF($W$142,$K$159,$O$159)*Q166+IF($W$142,$K$160,$O$160)*Q166^0.5+IF($W$142,$K$161,$O$161)*$U$151*Q166+IF($W$142,$K$162,$O$162)*$U$151^2*Q166+IF($W$142,$K$163,$O$163)*$U$151^2*Q166^0.5+IF($W$142,$K$164,$O$164)*$U$151*Q166^0.5)*$W$149) -> 10788.944 | S166: =IF((IF($W$142,$K$156,$O$156)+IF($W$142,$K$157,$O$157)*($U$151-$Y$151)+IF($W$142,$K$158,$O$158)*($U$151-$Y$151)^2+IF($W$142,$K$159,$O$159)*Q166+IF($W$142,$K$160,$O$160)*Q166^0.5+IF($W$142,$K$161,$O$161)*($U$151-$Y$151)*Q166+IF($W$142,$K$162,$O$162)*($U$151-$Y$151)^2*Q166+IF($W$142,$K$163,$O$163)*($U$151-$Y$151)^2*Q166^0.5+IF($W$142,$K$164,$O$164)*($U$151-$Y$151)*Q166^0.5)*$W$149>$U$149,$U$149,(IF($W$142,$K$156,$O$156)+IF($W$142,$K$157,$O$157)*($U$151-$Y$151)+IF($W$142,$K$158,$O$158)*($U$151-$Y$151)^2+IF($W$142,$K$159,$O$159)*Q166+IF($W$142,$K$160,$O$160)*Q166^0.5+IF($W$142,$K$161,$O$161)*($U$151-$Y$151)*Q166+IF($W$142,$K$162,$O$162)*($U$151-$Y$151)^2*Q166+IF($W$142,$K$163,$O$163)*($U$151-$Y$151)^2*Q166^0.5+IF($W$142,$K$164,$O$164)*($U$151-$Y$151)*Q166^0.5)*$W$149) -> 10788.944 | T166: =IF((IF($W$142,$K$156,$O$156)+IF($W$142,$K$157,$O$157)*($U$151+$Y$151)+IF($W$142,$K$158,$O$158)*($U$151+$Y$151)^2+IF($W$142,$K$159,$O$159)*Q166+IF($W$142,$K$160,$O$160)*Q166^0.5+IF($W$142,$K$161,$O$161)*($U$151+$Y$151)*Q166+IF($W$142,$K$162,$O$162)*($U$151+$Y$151)^2*Q166+IF($W$142,$K$163,$O$163)*($U$151+$Y$151)^2*Q166^0.5+IF($W$142,$K$164,$O$164)*($U$151+$Y$151)*Q166^0.5)*$W$149>$U$149,$U$149,(IF($W$142,$K$156,$O$156)+IF($W$142,$K$157,$O$157)*($U$151+$Y$151)+IF($W$142,$K$158,$O$158)*($U$151+$Y$151)^2+IF($W$142,$K$159,$O$159)*Q166+IF($W$142,$K$160,$O$160)*Q166^0.5+IF($W$142,$K$161,$O$161)*($U$151+$Y$151)*Q166+IF($W$142,$K$162,$O$162)*($U$151+$Y$151)^2*Q166+IF($W$142,$K$163,$O$163)*($U$151+$Y$151)^2*Q166^0.5+IF($W$142,$K$164,$O$164)*($U$151+$Y$151)*Q166^0.5)*$W$149) -> 10788.944 | U166: =ROUNDDOWN((S165-IF(W142,2000,30))/10,0)*10 -> 8780 | AR166: =CONCATENATE("Estimated Yield Response to K Fertilizer and Profit-Maximizing Application Rates for a Range of Initial Soil-Test K Values (STK) at Specified Yield Potential") -> Estimated Yield Response to K Fertilizer and Profit-Maximizing Application Rates for a Range of Initial Soil-Test K Values (STK) at Specified Yield Potential | BW166: Metric
A167: 166 | B167: 90 | C167: 0 | D167: 2017 | E167: 35 | F167: 2 | G167: 70 | M167: S.D. | N167: Rho | Q167: 5 | R167: 10790.74518 | S167: 10790.74518 | T167: 10790.74518 | BU167: 0.02190753432 | BV167: -0.3109598553 | BW167: -0.0004618303936 | BX167: 2.265573671e-06 | BY167: -2.985851642e-05 | BZ167: 0.006372901834
A168: 167 | B168: 92 | C168: 50 | D168: 2017 | E168: 35 | F168: 13 | G168: 70 | Q168: 7.5 | R168: 10791.71734 | S168: 10791.71734 | T168: 10791.71734 | BU168: -0.3109598553 | BV168: 6.469509241 | BW168: 0.006849914863 | BX168: -3.537725992e-05 | BY168: 0.0007297184349 | BZ168: -0.1436536443
A169: 168 | B169: 100 | C169: 100 | D169: 2017 | E169: 35 | F169: 26 | G169: 70 | J169: Period random | M169: 0 | N169: 0 | Q169: 10 | R169: 10792.26036 | S169: 10792.26036 | T169: 10792.26036 | BU169: -0.0004618303936 | BV169: 0.006849914863 | BW169: 9.887501472e-06 | BX169: -4.926404325e-08 | BY169: 6.932847998e-07 | BZ169: -0.0001440769713
A170: 169 | B170: 100 | C170: 150 | D170: 2017 | E170: 35 | F170: 39 | G170: 70 | J170: Idiosyncratic random | M170: 6.008704598 | N170: 1 | Q170: 15 | R170: 10792.60312 | S170: 10792.60312 | T170: 10792.60312 | BU170: 2.265573671e-06 | BV170: -3.537725992e-05 | BW170: -4.926404325e-08 | BX170: 2.495621445e-10 | BY170: -3.777094303e-09 | BZ170: 7.63998084e-07
A171: 170 | B171: 95 | C171: 200 | D171: 2017 | E171: 35 | F171: 52 | G171: 70 | Q171: 20 | R171: 10792.33899 | S171: 10792.33899 | T171: 10792.33899 | BU171: -2.985851642e-05 | BV171: 0.0007297184349 | BW171: 6.932847998e-07 | BX171: -3.777094303e-09 | BY171: 9.19312253e-08 | BZ171: -1.717499963e-05
A172: 171 | B172: 94 | C172: 0 | D172: 2017 | E172: 36 | F172: 3 | G172: 101 | K172: Weighted Statistics | Q172: 30 | R172: 10790.75958 | S172: 10790.75958 | T172: 10790.75958 | BP172: 0.9305090901 | BQ172: convert lbs of K20/acre to kg K ha-1 | BU172: 0.006372901834 | BV172: -0.1436536443 | BW172: -0.0001440769713 | BX172: 7.63998084e-07 | BY172: -1.717499963e-05 | BZ172: 0.003289119961
A173: 172 | B173: 96 | C173: 50 | D173: 2017 | E173: 36 | F173: 14 | G173: 101 | Q173: 45 | R173: 10786.88535 | S173: 10786.88535 | T173: 10786.88535 | BJ173: Actual RelYld Obs Converted to Yield | BN173: Min Yield
A174: 173 | B174: 100 | C174: 100 | D174: 2017 | E174: 36 | F174: 27 | G174: 101 | J174: R-squared | K174: 0.4692666694 | L174: Mean dependent var | N174: 93.6559633 | Q174: 60 | R174: 10781.95997 | S174: 10781.95997 | T174: 10781.95997 | BI174: RelYld | BJ174: Yield | BK174: Krate | BL174: Ksoil | BN174: =MIN(BN175:BN548) -> 999 | BP174: Mkrate
A175: 174 | B175: 93 | C175: 150 | D175: 2017 | E175: 36 | F175: 40 | G175: 101 | J175: Adjusted R-squared | K175: 0.448951518 | L175: S.D. dependent var | N175: 8.064600135 | Q175: 80 | R175: 10774.38427 | S175: 10774.38427 | T175: 10774.38427 | BI175: =_xlfn.NUMBERVALUE(IF(AND($G2>=($U$151-$Y$151),$G2<=($U$151+$Y$151)),B2,"")) -> 0 | BJ175: =_xlfn.NUMBERVALUE(IFERROR(+BI175*$W$149,"")) -> 0 | BK175: =_xlfn.NUMBERVALUE(IF(AND($G2>=($U$151-$Y$151),$G2<=($U$151+$Y$151)),C2,"")) -> 0 | BL175: =_xlfn.NUMBERVALUE(IF(AND($G2>=($U$151-$Y$151),$G2<=($U$151+$Y$151)),G2,"")) -> 0 | BN175: =IF(BJ175=0,999,BJ175) -> 999 | BP175: =+BK175*$BP$172 -> 0
A176: 175 | B176: 94 | C176: 200 | D176: 2017 | E176: 36 | F176: 53 | G176: 101 | J176: S.E. of regression | K176: 5.986565574 | L176: Sum squared resid | N176: 7490.34418 | Q176: 100 | R176: 10766.0329 | S176: 10766.0329 | T176: 10766.0329 | BI176: 0 | BJ176: =_xlfn.NUMBERVALUE(IFERROR(+BI176*$W$149,"")) -> 0 | BK176: 0 | BL176: 0 | BN176: =IF(BJ176=0,999,BJ176) -> 999 | BP176: =+BK176*$BP$172 -> 0
A177: 176 | B177: 98 | C177: 0 | D177: 2017 | E177: 37 | F177: 4 | G177: 72 | J177: F-statistic | K177: 23.09934393 | L177: Durbin-Watson stat | N177: 1.971221647 | Q177: 120 | R177: 10757.13054 | S177: 10757.13054 | T177: 10757.13054 | BI177: 0 | BJ177: 0 | BK177: 0 | BL177: 0 | BN177: 999 | BP177: 0
A178: 177 | B178: 99 | C178: 50 | D178: 2017 | E178: 37 | F178: 15 | G178: 72 | J178: Prob(F-statistic) | K178: 3.817121232e-25 | Q178: 140 | R178: 10747.81068 | S178: 10747.81068 | T178: 10747.81068 | BI178: 0 | BJ178: 0 | BK178: 0 | BL178: 0 | BN178: 999 | BP178: 0
A179: 178 | B179: 91 | C179: 100 | D179: 2017 | E179: 37 | F179: 28 | G179: 72 | Q179: 160 | R179: 10738.16028 | S179: 10738.16028 | T179: 10738.16028 | BI179: 0 | BJ179: 0 | BK179: 0 | BL179: 0 | BN179: 999 | BP179: 0
A180: 179 | B180: 96 | C180: 150 | D180: 2017 | E180: 37 | F180: 41 | G180: 72 | K180: Unweighted Statistics | Q180: 180 | R180: 10728.23975 | S180: 10728.23975 | T180: 10728.23975 | BI180: 0 | BJ180: 0 | BK180: 0 | BL180: 0 | BN180: 999 | BP180: 0
A181: 180 | B181: 100 | C181: 200 | D181: 2017 | E181: 37 | F181: 54 | G181: 72 | Q181: 200 | R181: 10718.09306 | S181: 10718.09306 | T181: 10718.09306 | BI181: 0 | BJ181: 0 | BK181: 0 | BL181: 0 | BN181: 999 | BP181: 0
A182: 181 | B182: 92 | C182: 0 | D182: 2017 | E182: 40 | F182: 5 | G182: 66 | J182: R-squared | K182: 0.4692666694 | L182: Mean dependent var | N182: 93.6559633 | R182: 10782.10392 | S182: 10782.10392 | T182: 10782.10392 | BI182: 0 | BJ182: 0 | BK182: 0 | BL182: 0 | BN182: 999 | BP182: 0
A183: 182 | B183: 100 | C183: 50 | D183: 2017 | E183: 40 | F183: 16 | G183: 66 | J183: Sum squared resid | K183: 7490.34418 | L183: Durbin-Watson stat | N183: 1.971221647 | R183: 10782.10392 | S183: 10782.10392 | T183: 10782.10392 | BI183: 0 | BJ183: 0 | BK183: 0 | BL183: 0 | BN183: 999 | BP183: 0
A184: 183 | B184: 100 | C184: 100 | D184: 2017 | E184: 40 | F184: 29 | G184: 66 | Q184: Disclaimer: This software is provided ‘as is’ and without warranties as to performance or merchantability. Further, statements may have been made to you about this software, and they do not constitute warranties and shall not be relied upon by the user to use the program or act on its results. This program is provided without any expressed or implied warranties whatsoever. Because the diversity of conditions and hardware under which this program may be used, no warranty of merchantability or warranty of fitness for a particular purpose is offered. The user is advised to test the program thoroughly before relying on it. The user assumes the entire risk of using the program. The authors will not be liable for any claim or damage brought against the user by any third party, nor will the authors be liable for any consequential, indirect, or special damages suffered by the user as a result of the software. Results pertain to silt loam soils common in major rice producing regions of the humid mid-Southern U.S. | BI184: 0 | BJ184: 0 | BK184: 0 | BL184: 0 | BN184: 999 | BP184: 0
A185: 184 | B185: 93 | C185: 150 | D185: 2017 | E185: 40 | F185: 42 | G185: 66 | BI185: 0 | BJ185: 0 | BK185: 0 | BL185: 0 | BN185: 999 | BP185: 0
A186: 185 | B186: 92 | C186: 200 | D186: 2017 | E186: 40 | F186: 55 | G186: 66 | BI186: 0 | BJ186: 0 | BK186: 0 | BL186: 0 | BN186: 999 | BP186: 0
R187: Potash fertilizer needed @ RY = 100 if possible or Y max or zero if yield max at negative K: | T187: =IF(((IF(W142,K159,O159)+IF(W142,K161,O161)*($U$151+$Y$151)+IF(W142,K162,O162)*($U$151+$Y$151)^2)/(-0.5*(IF(W142,K160,O160)+IF(W142,K163,O163)*($U$151+$Y$151)^2+IF(W142,K164,O164)*($U$151+$Y$151))))^-2>$Y$149,$Y$149,((IF(W142,K159,O159)+IF(W142,K161,O161)*($U$151+$Y$151)+IF(W142,K162,O162)*($U$151+$Y$151)^2)/(-0.5*(IF(W142,K160,O160)+IF(W142,K163,O163)*($U$151+$Y$151)^2+IF(W142,K164,O164)*($U$151+$Y$151))))^-2) -> 14.8980454 | U187: =IF(((IF(W142,K159,O159)+IF(W142,K161,O161)*($U$151)+IF(W142,K162,O162)*($U$151)^2)/(-0.5*(IF(W142,K160,O160)+IF(W142,K163,O163)*($U$151)^2+IF(W142,K164,O164)*($U$151))))^-2>$Y$149,$Y$149,((IF(W142,K159,O159)+IF(W142,K161,O161)*($U$151)+IF(W142,K162,O162)*($U$151)^2)/(-0.5*(IF(W142,K160,O160)+IF(W142,K163,O163)*($U$151)^2+IF(W142,K164,O164)*($U$151))))^-2) -> 14.8980454 | V187: =IF(((IF(W142,K159,O159)+IF(W142,K161,O161)*($U$151-$Y$151)+IF(W142,K162,O162)*($U$151-$Y$151)^2)/(-0.5*(IF(W142,K160,O160)+IF(W142,K163,O163)*($U$151-$Y$151)^2+IF(W142,K164,O164)*($U$151-$Y$151))))^-2>$Y$149,$Y$149,((IF(W142,K159,O159)+IF(W142,K161,O161)*($U$151-$Y$151)+IF(W142,K162,O162)*($U$151-$Y$151)^2)/(-0.5*(IF(W142,K160,O160)+IF(W142,K163,O163)*($U$151-$Y$151)^2+IF(W142,K164,O164)*($U$151-$Y$151))))^-2) -> 14.8980454 | BI187: 0 | BJ187: 0 | BK187: 0 | BL187: 0 | BN187: 999 | BP187: 0
T188: =IF(T187<0,0,IF(T189<T187,T189,IF(T187<$Y$149,T187,$Y$149))) -> 14.8980454 | U188: =IF(U187<0,0,IF(U189<U187,U189,IF(U187<$Y$149,U187,$Y$149))) -> 14.8980454 | V188: =IF(V187<0,0,IF(V189<V187,V189,IF(V187<$Y$149,V187,$Y$149))) -> 14.8980454 | BI188: 0 | BJ188: 0 | BK188: 0 | BL188: 0 | BN188: 999 | BP188: 0
R189: K for RY=100 if solvable or K max: | T189: =IFERROR(IF((SQRT(4*T190*T191*T192^2+T192^4)+2*T190*T191+T192^2)/(2*T191^2)<0,-(SQRT(4*T190*T191*T192^2+T192^4)+2*T190*T191+T192^2)/(2*T191^2),(SQRT(4*T190*T191*T192^2+T192^4)+2*T190*T191+T192^2)/(2*T191^2)),$Y$149) -> 186.101818 | U189: =IFERROR(IF((SQRT(4*U190*U191*U192^2+U192^4)+2*U190*U191+U192^2)/(2*U191^2)<0,-(SQRT(4*U190*U191*U192^2+U192^4)+2*U190*U191+U192^2)/(2*U191^2),(SQRT(4*U190*U191*U192^2+U192^4)+2*U190*U191+U192^2)/(2*U191^2)),$Y$149) -> 186.101818 | V189: 186.101818 | BI189: 0 | BJ189: 0 | BK189: 0 | BL189: 0 | BN189: 999 | BP189: 0
S190: c | T190: =100-IF($W$142,$K$156,$O$156)-IF($W$142,$K$157,$O$157)*($U$151+$Y$151)-IF($W$142,$K$158,$O$158)*($U$151+$Y$151)^2 -> 3.498932543 | U190: =100-IF($W$142,$K$156,$O$156)-IF($W$142,$K$157,$O$157)*($U$151)-IF($W$142,$K$158,$O$158)*($U$151)^2 -> 3.498932543 | V190: =100-IF($W$142,$K$156,$O$156)-IF($W$142,$K$157,$O$157)*($U$151-$Y$151)-IF($W$142,$K$158,$O$158)*($U$151-$Y$151)^2 -> 3.498932543 | BI190: 0 | BJ190: 0 | BK190: 0 | BL190: 0 | BN190: 999 | BP190: 0
S191: a | T191: =IF(W142,K159,O159)+IF(W142,K161,O161)*(U151+Y151)+IF(W142,K162,O162)*(U151+Y151)^2 -> -0.006307548077 | U191: =IF(W142,K159,O159)+IF(W142,K161,O161)*(U151)+IF(W142,K162,O162)*(U151)^2 -> -0.006307548077 | V191: =IF(W142,K159,O159)+IF(W142,K161,O161)*(U151-Y151)+IF(W142,K162,O162)*(U151-Y151)^2 -> -0.006307548077 | BI191: 0 | BJ191: 0 | BK191: 0 | BL191: 0 | BN191: 999 | BP191: 0
S192: b | T192: =+IF(W142,K160,O160)+IF(W142,K163,O163)*(U151+Y151)^2+IF(W142,K164,O164)*(U151+Y151) -> 0.04869173075 | U192: =+IF(W142,K160,O160)+IF(W142,K163,O163)*(U151)^2+IF(W142,K164,O164)*(U151) -> 0.04869173075 | V192: =+IF(W142,K160,O160)+IF(W142,K163,O163)*(U151-Y151)^2+IF(W142,K164,O164)*(U151-Y151) -> 0.04869173075 | BI192: 0 | BJ192: 0 | BK192: 0 | BL192: 0 | BN192: 999 | BP192: 0
BI193: 0 | BJ193: 0 | BK193: 0 | BL193: 0 | BN193: 999 | BP193: 0
BI194: 0 | BJ194: 0 | BK194: 0 | BL194: 0 | BN194: 999 | BP194: 0
BI195: 0 | BJ195: 0 | BK195: 0 | BL195: 0 | BN195: 999 | BP195: 0
BI196: 0 | BJ196: 0 | BK196: 0 | BL196: 0 | BN196: 999 | BP196: 0
A197: 196 | B197: 90 | C197: 0 | D197: 2018 | E197: 45 | F197: 2 | G197: 78 | BI197: 0 | BJ197: 0 | BK197: 0 | BL197: 0 | BN197: 999 | BP197: 0
A198: 197 | B198: 99 | C198: 50 | D198: 2018 | E198: 45 | F198: 13 | G198: 78 | BI198: 0 | BJ198: 0 | BK198: 0 | BL198: 0 | BN198: 999 | BP198: 0
A199: 198 | B199: 100 | C199: 100 | D199: 2018 | E199: 45 | F199: 26 | G199: 78 | BI199: 0 | BJ199: 0 | BK199: 0 | BL199: 0 | BN199: 999 | BP199: 0
A200: 199 | B200: 92 | C200: 150 | D200: 2018 | E200: 45 | F200: 39 | G200: 78 | BI200: 0 | BJ200: 0 | BK200: 0 | BL200: 0 | BN200: 999 | BP200: 0
A201: 200 | B201: 99 | C201: 200 | D201: 2018 | E201: 45 | F201: 52 | G201: 78 | BI201: 0 | BJ201: 0 | BK201: 0 | BL201: 0 | BN201: 999 | BP201: 0
A202: 201 | B202: 94 | C202: 0 | D202: 2019 | E202: 46 | F202: 1 | G202: 109 | BI202: 0 | BJ202: 0 | BK202: 0 | BL202: 0 | BN202: 999 | BP202: 0
... 206 more rows

Sheet K on Corn3 (hidden)
B1: RY | C1: K | D1: YEAR | E1: SITE | F1: YEAROB | G1: STK
A2: 1 | B2: 83.61581921 | C2: 0 | D2: 2010 | E2: 3 | F2: 1 | G2: 84 | Q2: Rice Price | U2: 10 | V2: $/cwt | Y2: Conventional
A3: 2 | B3: 96.04519774 | C3: 40 | D3: 2010 | E3: 3 | F3: 9 | G3: 84 | J3: Dependent Variable: RELYLD | Y3: Clearfield
A4: 3 | B4: 93.22033898 | C4: 80 | D4: 2010 | E4: 3 | F4: 26 | G4: 84 | J4: Method: Panel EGLS (Period random effects) | Q4: Cost of K (0-0-60) | U4: 450 | V4: $/ton
A5: 4 | B5: 95.48022599 | C5: 120 | D5: 2010 | E5: 3 | F5: 37 | G5: 84 | J5: Date: 03/12/19 Time: 15:57 | Y5: Clay
A6: 5 | B6: 98.30508475 | C6: 160 | D6: 2010 | E6: 3 | F6: 52 | G6: 84 | J6: Sample: 2001 2018 IF KRATE<>135 | Q6: How much K do you currently apply per acre? | U6: 25 | V6: lbs/acre | Y6: Loam
A7: 6 | B7: 100 | C7: 200 | D7: 2010 | E7: 3 | F7: 64 | G7: 84 | J7: Periods included: 17
A8: 7 | B8: 62.44343891 | C8: 0 | D8: 2010 | E8: 6 | F8: 2 | G8: 57 | J8: Cross-sections included: 79 | Q8: What yield do you expect at that application rate? | U8: 180 | V8: bu/acre | Y8: Yes
A9: 8 | B9: 85.0678733 | C9: 40 | D9: 2010 | E9: 6 | F9: 10 | G9: 57 | J9: Total panel (unbalanced) observations: 440 | Y9: No
A10: 9 | B10: 100 | C10: 80 | D10: 2010 | E10: 6 | F10: 27 | G10: 57 | J10: Wallace and Hussain estimator of component variances | Q10: Do you use conventional or hybrid seed? | U10: Conventional
A11: 10 | B11: 100 | C11: 120 | D11: 2010 | E11: 6 | F11: 38 | G11: 57
A12: 11 | B12: 95.02262443 | C12: 160 | D12: 2010 | E12: 6 | F12: 53 | G12: 57 | J12: Variable | K12: Coefficient | L12: Std. Error | M12: t-Statistic | N12: Prob. | Q12: What is your soil test K? | U12: 110
A13: 12 | B13: 98.19004525 | C13: 200 | D13: 2010 | E13: 6 | F13: 65 | G13: 57
A14: 13 | B14: 96.61016949 | C14: 0 | D14: 2011 | E14: 9 | F14: 1 | G14: 95 | J14: C | K14: 85.53190393 | L14: 1.088768197 | M14: 78.55841503 | N14: 1.523340846e-257 | Q14: Does the field have mostly clayey or loamy soil texture? | U14: Loam
A15: 14 | B15: 97.17514124 | C15: 40 | D15: 2011 | E15: 9 | F15: 9 | G15: 95 | J15: DRREC | K15: 1.821873436 | L15: 0.6169528489 | M15: 2.953018921 | N15: 0.00331893321
A16: 15 | B16: 100 | C16: 80 | D16: 2011 | E16: 9 | F16: 26 | G16: 95 | J16: KRATE | K16: 0.1546276126 | L16: 0.01680227412 | M16: 9.202778833 | N16: 1.519289268e-18 | Q16: Do you operate South of I-40? | U16: No
A17: 16 | B17: 94.35028249 | C17: 120 | D17: 2011 | E17: 9 | F17: 37 | G17: 95 | J17: KRATE^2 | K17: -0.000421958113 | L17: 8.710848e-05 | M17: -4.84405322 | N17: 1.77718926e-06
A18: 17 | B18: 93.78531073 | C18: 160 | D18: 2011 | E18: 9 | F18: 52 | G18: 95 | J18: DCLFIELD | K18: 2.254139283 | L18: 0.9265560337 | M18: 2.432814855 | N18: 0.01538783875 | Q18: Predicted RELYLD based on above questions: | U18: =+K14+IF($U$16="Yes",K15,0)+$U$6*($U$12*K21+K16+IF($U$10="Clearfield",K23,0))+$U$6^2*(K17+IF($U$14="Clay",K22))+IF($U$14="Clay",K20,0)+IF($U$10="Clearfield",K18,0)+$U$12*K19 -> 93.32878185
A19: 18 | B19: 98.8700565 | C19: 200 | D19: 2011 | E19: 9 | F19: 64 | G19: 95 | J19: KSOIL | K19: 0.04813541892 | L19: 0.009622753276 | M19: 5.00225014 | N19: 8.265255539e-07
A20: 19 | B20: 100 | C20: 0 | D20: 2011 | E20: 10 | F20: 2 | G20: 120 | J20: DCLAY | K20: -3.267803257 | L20: 1.636446995 | M20: -1.996889155 | N20: 0.04646560705 | Q20: Yield/RELYLD | U20: =+U8/U18 -> 1.928665482
A21: 20 | B21: 100 | C21: 40 | D21: 2011 | E21: 10 | F21: 10 | G21: 120 | J21: KSOIL*KRATE | K21: -0.0003999944219 | L21: 8.797209869e-05 | M21: -4.546832779 | N21: 7.086112312e-06
A22: 21 | B22: 90.76086957 | C22: 80 | D22: 2011 | E22: 10 | F22: 27 | G22: 120 | J22: DCLAY*KRATE^2 | Q22: dRELYLD/dKRATE | U22: =+K16+U12*K21+IF(U10="Clearfield",K23,0)+2*U6*(K17+IF(U14="Clay",K22)) -> 0.08953032052 | W22: =+K16+U12*K21+IF(U10="Clearfield",K23,0)+2*U28*(K17+IF(U14="Clay",K22)) -> 0.0431645616
A23: 22 | B23: 89.67391304 | C23: 120 | D23: 2011 | E23: 10 | F23: 38 | G23: 120 | J23: DCLFIELD*KRATE | K23: -0.02087856875 | L23: 0.009566473542 | M23: -2.182472847 | N23: 0.02961379485
A24: 23 | B24: 97.82608696 | C24: 160 | D24: 2011 | E24: 10 | F24: 53 | G24: 120 | Q24: =CONCATENATE("VMP of K @ KRATE = ",U6," lbs/acre and soil test K of ",U12) -> VMP of K @ KRATE = 25 lbs/acre and soil test K of 110 | U24: =+U22*U2/2.22*U20 -> 0.7778109854 | W24: =+W22*U2/2.22*U20 -> 0.375
A25: 24 | B25: 92.93478261 | C25: 200 | D25: 2011 | E25: 10 | F25: 65 | G25: 120 | K25: Effects Specification
A26: 25 | B26: 94.81132075 | C26: 0 | D26: 2012 | E26: 11 | F26: 1 | G26: 94 | M26: S.D. | N26: Rho | Q26: Cost per lb of K | U26: =+U4/0.6/2000 -> 0.375
A27: 26 | B27: 100 | C27: 40 | D27: 2012 | E27: 11 | F27: 9 | G27: 94
A28: 27 | B28: 96.22641509 | C28: 80 | D28: 2012 | E28: 11 | F28: 26 | G28: 94 | J28: Period random | M28: 1.060097175 | N28: 0.04768826784 | Q28: Profit Maximizing K rate: | U28: =IF((U26/(U2/2.22*U20)-(K16+U12*K21+IF(U10="Clearfield",K23,0)))/(2*(K17+IF(U14="Clay",K22)))>180,180,(U26/(U2/2.22*U20)-(K16+U12*K21+IF(U10="Clearfield",K23,0)))/(2*(K17+IF(U14="Clay",K22)))) -> 79.94118668 | W28: 125 | X28: Alt User K
A29: 28 | B29: 97.16981132 | C29: 120 | D29: 2012 | E29: 11 | F29: 37 | G29: 94 | J29: Idiosyncratic random | M29: 4.737284535 | N29: 0.9523117322
A30: 29 | B30: 92.9245283 | C30: 160 | D30: 2012 | E30: 11 | F30: 52 | G30: 94 | Q30: Expected Yield at Profit-Maximizing K rate: | U30: =(+K14+IF(U16="Yes",K15,0)+U28*(U12*K21+K16+IF(U10="Clearfield",K23,0))+U28^2*(K17+IF(U14="Clay",K22))+IF(U14="Clay",K20,0)+IF(U10="Clearfield",K18,0)+U12*K19)*U20 -> 187.0303852 | W30: =(+K14+IF(U16="Yes",K15,0)+W28*(U12*K21+K16+IF(U10="Clearfield",K23,0))+W28^2*(K17+IF(U14="Clay",K22))+IF(U14="Clay",K20,0)+IF(U10="Clearfield",K18,0)+U12*K19)*U20 -> 189.1292434
A31: 30 | B31: 92.45283019 | C31: 200 | D31: 2012 | E31: 11 | F31: 64 | G31: 94 | K31: Weighted Statistics
A32: 31 | B32: 91.70305677 | C32: 0 | D32: 2012 | E32: 12 | F32: 2 | G32: 89 | Q32: Added Profit in $/acre | U32: =+(U30-U8)*U2/2.22-(U28-U6)*U26 -> 11.06545677 | W32: =+(W30-U8)*U2/2.22-(W28-U6)*U26 -> 3.622718031
A33: 32 | B33: 100 | C33: 40 | D33: 2012 | E33: 12 | F33: 10 | G33: 89 | J33: R-squared | K33: 0.2954420526 | L33: Mean dependent var | N33: 60.43268787
A34: 33 | B34: 87.77292576 | C34: 80 | D34: 2012 | E34: 12 | F34: 27 | G34: 89 | J34: Adjusted R-squared | K34: 0.2823644109 | L34: S.D. dependent var | N34: 9.884122327 | BH34: K rate | BI34: Exp. Yield
A35: 34 | B35: 94.3231441 | C35: 120 | D35: 2012 | E35: 12 | F35: 38 | G35: 89 | J35: S.E. of regression | K35: 4.743914196 | L35: Sum squared resid | N35: 9699.535137 | BH35: 0 | BI35: =(+$K$14+IF($U$16="Yes",$K$15,0)+BH35*($U$12*$K$21+$K$16+IF($U$10="Clearfield",$K$23,0))+BH35^2*($K$17+IF($U$14="Clay",$K$22))+IF($U$14="Clay",$K$20,0)+IF($U$10="Clearfield",$K$18,0)+$U$12*$K$19)*$U$20 -> 175.174514
A36: 35 | B36: 91.26637555 | C36: 160 | D36: 2012 | E36: 12 | F36: 53 | G36: 89 | J36: F-statistic | K36: 22.59138605 | L36: Durbin-Watson stat | N36: 2.49064464 | BH36: 10 | BI36: =(+$K$14+IF($U$16="Yes",$K$15,0)+BH36*($U$12*$K$21+$K$16+IF($U$10="Clearfield",$K$23,0))+BH36^2*($K$17+IF($U$14="Clay",$K$22))+IF($U$14="Clay",$K$20,0)+IF($U$10="Clearfield",$K$18,0)+$U$12*$K$19)*$U$20 -> 177.2267808
A37: 36 | B37: 94.75982533 | C37: 200 | D37: 2012 | E37: 12 | F37: 65 | G37: 89 | J37: Prob(F-statistic) | K37: 7.693327162e-29 | BH37: 20 | BI37: 179.1162844
A38: 37 | B38: 89.3877551 | C38: 0 | D38: 2012 | E38: 13 | F38: 3 | G38: 114 | BH38: 30 | BI38: 180.8430248
A39: 38 | B39: 91.02040816 | C39: 40 | D39: 2012 | E39: 13 | F39: 11 | G39: 114 | K39: Unweighted Statistics | BH39: 40 | BI39: 182.407002
A40: 39 | B40: 87.75510204 | C40: 80 | D40: 2012 | E40: 13 | F40: 28 | G40: 114 | BH40: 50 | BI40: 183.8082159
A41: 40 | B41: 100 | C41: 120 | D41: 2012 | E41: 13 | F41: 39 | G41: 114 | J41: R-squared | K41: 0.2961173096 | L41: Mean dependent var | N41: 95.92045455 | BH41: 60 | BI41: 185.0466667
A42: 41 | B42: 97.14285714 | C42: 160 | D42: 2012 | E42: 13 | F42: 54 | G42: 114 | J42: Sum squared resid | K42: 10114.18604 | L42: Durbin-Watson stat | N42: 2.482420507 | BH42: 70 | BI42: 186.1223542
A43: 42 | B43: 91.83673469 | C43: 200 | D43: 2012 | E43: 13 | F43: 66 | G43: 114 | BH43: 80 | BI43: 187.0352786
A44: 43 | B44: 90.95238095 | C44: 0 | D44: 2012 | E44: 14 | F44: 4 | G44: 64 | BH44: 90 | BI44: 187.7854397
A45: 44 | B45: 91.42857143 | C45: 40 | D45: 2012 | E45: 14 | F45: 12 | G45: 64 | BH45: 100 | BI45: 188.3728376
A46: 45 | B46: 96.19047619 | C46: 80 | D46: 2012 | E46: 14 | F46: 29 | G46: 64 | BH46: 110 | BI46: 188.7974724
A47: 46 | B47: 97.61904762 | C47: 120 | D47: 2012 | E47: 14 | F47: 40 | G47: 64 | M47: =174/192 -> 0.90625 | BH47: 120 | BI47: 189.0593439
A48: 47 | B48: 100 | C48: 160 | D48: 2012 | E48: 14 | F48: 55 | G48: 64 | BH48: 130 | BI48: 189.1584521
A49: 48 | B49: 99.04761905 | C49: 200 | D49: 2012 | E49: 14 | F49: 67 | G49: 64 | BH49: 140 | BI49: 189.0947972
A50: 49 | B50: 97.27272727 | C50: 0 | D50: 2012 | E50: 15 | F50: 5 | G50: 114 | BH50: 150 | BI50: 188.8683791
A51: 50 | B51: 100 | C51: 40 | D51: 2012 | E51: 15 | F51: 13 | G51: 114 | BH51: 160 | BI51: 188.4791978
A52: 51 | B52: 95.90909091 | C52: 80 | D52: 2012 | E52: 15 | F52: 30 | G52: 114 | BH52: 170 | BI52: 187.9272532
A53: 52 | B53: 93.18181818 | C53: 120 | D53: 2012 | E53: 15 | F53: 41 | G53: 114 | BH53: 180 | BI53: 187.2125455
A54: 53 | B54: 92.27272727 | C54: 160 | D54: 2012 | E54: 15 | F54: 56 | G54: 114
A55: 54 | B55: 97.72727273 | C55: 200 | D55: 2012 | E55: 15 | F55: 68 | G55: 114
A56: 55 | B56: 85.30805687 | C56: 0 | D56: 2013 | E56: 16 | F56: 1 | G56: 53
A57: 56 | B57: 91.94312796 | C57: 40 | D57: 2013 | E57: 16 | F57: 9 | G57: 53
A58: 57 | B58: 100 | C58: 80 | D58: 2013 | E58: 16 | F58: 26 | G58: 53 | J58: Dependent Variable: RELYLD | Q58: Predicted RELYLD based on above questions: | U58: =+K69+IF($U$16="Yes",K70,0)+$U$6*($U$12*K76+K71+IF($U$10="Clearfield",K77,0)+IF($U$14="Clay",K78))+$U$6^0.5*K72+IF($U$14="Clay",K75,0)+IF($U$10="Clearfield",K73,0)+$U$12*K74 -> 94.5669452
A59: 58 | B59: 98.1042654 | C59: 120 | D59: 2013 | E59: 16 | F59: 37 | G59: 53 | J59: Method: Panel EGLS (Period random effects)
A60: 59 | B60: 99.52606635 | C60: 160 | D60: 2013 | E60: 16 | F60: 52 | G60: 53 | J60: Date: 03/13/19 Time: 09:12 | Q60: Yield/RELYLD | U60: =+U8/U58 -> 1.903413498
A61: 60 | B61: 97.1563981 | C61: 200 | D61: 2013 | E61: 16 | F61: 64 | G61: 53 | J61: Sample: 2001 2018 IF KRATE<>135
A62: 61 | B62: 63.15789474 | C62: 0 | D62: 2013 | E62: 17 | F62: 2 | G62: 80 | J62: Periods included: 17 | Q62: dRELYLD/dKRATE | U62: =+K71+U12*K76+IF(U10="Clearfield",K77,0)+IF(U14="Clay",K78,0)+0.5*U6^-0.5*K72 -> 0.05961510745 | W62: =+K71+U12*K76+IF(U10="Clearfield",K77,0)+IF(U14="Clay",K78,0)+0.5*U68^-0.5*K72 -> 0.04373721215
A63: 62 | B63: 93.30143541 | C63: 40 | D63: 2013 | E63: 17 | F63: 10 | G63: 80 | J63: Cross-sections included: 79
A64: 63 | B64: 95.6937799 | C64: 80 | D64: 2013 | E64: 17 | F64: 27 | G64: 80 | J64: Total panel (unbalanced) observations: 440 | Q64: =CONCATENATE("VMP of K @ KRATE = ",U6," lbs/acre and soil test K of ",U12) -> VMP of K @ KRATE = 25 lbs/acre and soil test K of 110 | U64: =+U62*U2/2.22*U60 -> 0.5111360371 | W64: =+W62*U2/2.22*U60 -> 0.375
A65: 64 | B65: 94.25837321 | C65: 120 | D65: 2013 | E65: 17 | F65: 38 | G65: 80 | J65: Wallace and Hussain estimator of component variances
A66: 65 | B66: 97.6076555 | C66: 160 | D66: 2013 | E66: 17 | F66: 53 | G66: 80 | Q66: Cost per lb of K | U66: =+U4/0.6/2000 -> 0.375 | W66: =(K71+U12*K76+IF(U10="Clearfield",K77,0)+IF(U14="Clay",K78)+0.5*W68^-0.5*K72)*U2/2.22*U60 -> 1.383980984 | X66: VMP at Alt User K
A67: 66 | B67: 100 | C67: 200 | D67: 2013 | E67: 17 | F67: 65 | G67: 80 | J67: Variable | K67: Coefficient | L67: Std. Error | M67: t-Statistic | N67: Prob.
A68: 67 | B68: 78.125 | C68: 0 | D68: 2013 | E68: 18 | F68: 3 | G68: 104 | Q68: Optimal K | U68: =IF(((U66/(U2/2.22*U60)-(K71+U12*K76+IF(U10="Clearfield",K77,0)+IF(U14="Clay",K78,0)))*2/K72)^-2>180,180,((U66/(U2/2.22*U60)-(K71+U12*K76+IF(U10="Clearfield",K77,0)+IF(U14="Clay",K78,0)))*2/K72)^-2) -> 38.36754456 | W68: 5 | X68: Alt User K
A69: 68 | B69: 93.30357143 | C69: 40 | D69: 2013 | E69: 18 | F69: 11 | G69: 104 | J69: C | K69: 83.57802419 | L69: 1.206595779 | M69: 69.26762523 | N69: 2.275095698e-235
A70: 69 | B70: 84.82142857 | C70: 80 | D70: 2013 | E70: 18 | F70: 28 | G70: 104 | J70: DRREC | K70: 1.901372692 | L70: 0.6112073646 | M70: 3.110847156 | N70: 0.001989737646 | Q70: Expected Yield | U70: =(+K69+IF(U16="Yes",K70,0)+U68*(K71+IF(U10="Clearfield",K77,0)+IF(U14="Clay",K78,0)+U12*K76)+U68^0.5*(K72)+IF(U14="Clay",K75,0)+IF(U10="Clearfield",K73,0)+U12*K74)*U60 -> 181.2932979 | W70: =(K69+IF($U$16="Yes",K70,0)+$W$68*($U$12*K76+K71+IF($U$10="Clearfield",K77,0)+IF($U$14="Clay",K78,0))+$W$68^0.5*K72+IF($U$14="Clay",K75,0)+IF($U$10="Clearfield",K73,0)+$U$12*K74)*U60 -> 176.5329818
A71: 70 | B71: 95.98214286 | C71: 120 | D71: 2013 | E71: 18 | F71: 39 | G71: 104 | J71: KRATE | K71: 0.05527424609 | L71: 0.01945111966 | M71: 2.841699967 | N71: 0.004700819505
A72: 71 | B72: 86.60714286 | C72: 160 | D72: 2013 | E72: 18 | F72: 54 | G72: 104 | J72: KRATE^.5 | K72: 0.8235966589 | L72: 0.1795438504 | M72: 4.587161615 | N72: 5.902285465e-06 | Q72: Added Profit in $/acre | U72: =+(U70-U8)*U2/2.22-(U68-U6)*U66 -> 0.8128370095 | W72: =+(W70-U8)*U2/2.22-(W68-U6)*U66 -> -8.117199183
A73: 72 | B73: 100 | C73: 200 | D73: 2013 | E73: 18 | F73: 66 | G73: 104 | J73: DCLFIELD | K73: 2.333261436 | L73: 0.9170687768 | M73: 2.544260032 | N73: 0.0112997258
A74: 73 | B74: 96.3562753 | C74: 0 | D74: 2013 | E74: 19 | F74: 4 | G74: 72 | J74: KSOIL | K74: 0.06763228791 | L74: 0.01098263876 | M74: 6.158109118 | N74: 1.69129018e-09
A75: 74 | B75: 98.7854251 | C75: 40 | D75: 2013 | E75: 19 | F75: 12 | G75: 72 | J75: DCLAY | K75: -9.296610794 | L75: 2.441795438 | M75: -3.807284857 | N75: 0.0001609195768
A76: 75 | B76: 97.9757085 | C76: 80 | D76: 2013 | E76: 19 | F76: 29 | G76: 72 | J76: KSOIL*KRATE | K76: -0.0007092618593 | L76: 0.0001239922289 | M76: -5.720212189 | N76: 1.99520725e-08 | Q76: K rate | R76: Exp. Yield
A77: 76 | B77: 97.9757085 | C77: 120 | D77: 2013 | E77: 19 | F77: 40 | G77: 72 | J77: DCLFIELD*KRATE | K77: -0.02113021601 | L77: 0.009446821853 | M77: -2.236753941 | N77: 0.02581434428 | Q77: 0.01 | R77: =(+$K$69+IF($U$16="Yes",$K$70,0)+Q77*($U$12*$K$76+$K$71+IF($U$10="Clearfield",$K$77,0)+IF($U$14="Clay",$K$78,0))+Q77^0.5*($K$72)+IF($U$14="Clay",$K$75,0)+IF($U$10="Clearfield",$K$73,0)+$U$12*$K$74)*$U$60 -> 173.4004141
A78: 77 | B78: 99.1902834 | C78: 160 | D78: 2013 | E78: 19 | F78: 55 | G78: 72 | J78: DCLAY*KRATE | K78: 0.09240656048 | L78: 0.02766610215 | M78: 3.340064314 | N78: 0.0009106295903 | Q78: 2 | R78: 175.3744827
A79: 78 | B79: 100 | C79: 200 | D79: 2013 | E79: 19 | F79: 67 | G79: 72 | Q79: 7 | R79: 177.0886352
A80: 79 | B80: 89.83739837 | C80: 0 | D80: 2013 | E80: 20 | F80: 5 | G80: 115 | K80: Effects Specification | Q80: 15 | R80: 178.666161
A81: 80 | B81: 89.02439024 | C81: 40 | D81: 2013 | E81: 20 | F81: 13 | G81: 115 | M81: S.D. | N81: Rho | Q81: 25 | R81: 180
A82: 81 | B82: 98.37398374 | C82: 80 | D82: 2013 | E82: 20 | F82: 30 | G82: 115 | Q82: 45 | R82: 181.8120114
A83: 82 | B83: 92.68292683 | C83: 120 | D83: 2013 | E83: 20 | F83: 41 | G83: 115 | J83: Period random | M83: 1.099880019 | N83: 0.05237979079 | Q83: 60 | R83: 182.7894705
A84: 83 | B84: 87.39837398 | C84: 160 | D84: 2013 | E84: 20 | F84: 56 | G84: 115 | J84: Idiosyncratic random | M84: 4.678219447 | N84: 0.9476202092 | Q84: 70 | R84: 183.3294806
A85: 84 | B85: 100 | C85: 200 | D85: 2013 | E85: 20 | F85: 68 | G85: 115 | Q85: 80 | R85: 183.8021417
A86: 85 | B86: 91.92825112 | C86: 0 | D86: 2014 | E86: 21 | F86: 1 | G86: 101 | K86: Weighted Statistics | Q86: 90 | R86: 184.2197618
A87: 86 | B87: 93.2735426 | C87: 40 | D87: 2014 | E87: 21 | F87: 9 | G87: 101 | Q87: 100 | R87: 184.5913025
A88: 87 | B88: 92.37668161 | C88: 80 | D88: 2014 | E88: 21 | F88: 26 | G88: 101 | J88: R-squared | K88: 0.3131037289 | L88: Mean dependent var | N88: 58.69433819 | Q88: 110 | R88: 184.923529
A89: 88 | B89: 100 | C89: 120 | D89: 2014 | E89: 21 | F89: 37 | G89: 101 | J89: Adjusted R-squared | K89: 0.2987268302 | L89: S.D. dependent var | N89: 10.00229228 | Q89: 120 | R89: 185.2216971
A90: 89 | B90: 93.2735426 | C90: 160 | D90: 2014 | E90: 21 | F90: 52 | G90: 101 | J90: S.E. of regression | K90: 4.685069483 | L90: Sum squared resid | N90: 9438.446708 | Q90: 130 | R90: 185.4899866
A91: 90 | B91: 97.30941704 | C91: 200 | D91: 2014 | E91: 21 | F91: 64 | G91: 101 | J91: F-statistic | K91: 21.77825243 | L91: Durbin-Watson stat | N91: 2.440948805 | Q91: 140 | R91: 185.7317863
A92: 91 | B92: 76.95852535 | C92: 0 | D92: 2014 | E92: 22 | F92: 2 | G92: 48 | J92: Prob(F-statistic) | K92: 1.9758798e-30 | Q92: 150 | R92: 185.9498893
A93: 92 | B93: 100 | C93: 40 | D93: 2014 | E93: 22 | F93: 10 | G93: 48 | Q93: 160 | R93: 186.1466296
A94: 93 | B94: 92.62672811 | C94: 80 | D94: 2014 | E94: 22 | F94: 27 | G94: 48 | K94: Unweighted Statistics | Q94: 170 | R94: 186.3239817
A95: 94 | B95: 94.47004608 | C95: 120 | D95: 2014 | E95: 22 | F95: 38 | G95: 48 | Q95: 180 | R95: 186.4836333
A96: 95 | B96: 92.16589862 | C96: 160 | D96: 2014 | E96: 22 | F96: 53 | G96: 48 | J96: R-squared | K96: 0.3119695218 | L96: Mean dependent var | N96: 95.92045455
A97: 96 | B97: 100 | C97: 200 | D97: 2014 | E97: 22 | F97: 65 | G97: 48 | J97: Sum squared resid | K97: 9886.403451 | L97: Durbin-Watson stat | N97: 2.431277786
A98: 97 | B98: 96.812749 | C98: 0 | D98: 2014 | E98: 23 | F98: 3 | G98: 117
A99: 98 | B99: 97.60956175 | C99: 40 | D99: 2014 | E99: 23 | F99: 11 | G99: 117
A100: 99 | B100: 96.812749 | C100: 80 | D100: 2014 | E100: 23 | F100: 28 | G100: 117
A101: 100 | B101: 97.60956175 | C101: 120 | D101: 2014 | E101: 23 | F101: 39 | G101: 117 | J101: Dependent Variable: RELYLD | Q101: Predicted RELYLD based on above questions: | U101: =+K112+IF($U$16="Yes",K113,0)+LN($U$6)*(K117+$U$12*K120+IF($U$10="Clearfield",K119,0)+IF($U$14="Clay",K118))+IF($U$14="Clay",K116,0)+IF($U$10="Clearfield",K114,0)+$U$12*K115 -> 96.18393227
A102: 101 | B102: 100 | C102: 160 | D102: 2014 | E102: 23 | F102: 54 | G102: 117 | J102: Method: Panel EGLS (Period random effects)
A103: 102 | B103: 96.812749 | C103: 200 | D103: 2014 | E103: 23 | F103: 66 | G103: 117 | J103: Date: 03/13/19 Time: 16:57 | Q103: Yield/RELYLD | U103: =+U8/U101 -> 1.871414443
A104: 103 | B104: 58.64661654 | C104: 0 | D104: 2014 | E104: 24 | F104: 4 | G104: 58 | J104: Sample: 2001 2018 IF KRATE<>135
A105: 104 | B105: 91.35338346 | C105: 40 | D105: 2014 | E105: 24 | F105: 12 | G105: 58 | J105: Periods included: 17 | Q105: dRELYLD/dKRATE | U105: =(K117+IF(U14="Clay",K118,0)+IF(U10="Clearfield",K119,0)+U12*K120)/U6 -> 0.01701949554 | W105: =(K117+IF(U14="Clay",K118,0)+IF(U10="Clearfield",K119,0)+U12*K120)/U111 -> 0.04448506867
A106: 105 | B106: 100 | C106: 80 | D106: 2014 | E106: 24 | F106: 29 | G106: 58 | J106: Cross-sections included: 79
A107: 106 | B107: 93.98496241 | C107: 120 | D107: 2014 | E107: 24 | F107: 40 | G107: 58 | J107: Total panel (unbalanced) observations: 440 | Q107: =CONCATENATE("VMP of K @ KRATE = ",U49," lbs/acre and soil test K of ",U55) -> VMP of K @ KRATE = lbs/acre and soil test K of | U107: =+U105*U2/2.22*U103 -> 0.1434708548 | W107: =+W105*U2/2.22*U103 -> 0.375
A108: 107 | B108: 99.62406015 | C108: 160 | D108: 2014 | E108: 24 | F108: 55 | G108: 58 | J108: Wallace and Hussain estimator of component variances
A109: 108 | B109: 96.61654135 | C109: 200 | D109: 2014 | E109: 24 | F109: 67 | G109: 58 | Q109: Cost per lb of K | U109: =+U4/0.6/2000 -> 0.375 | W109: =(K117+IF(U14="Clay",K118,0)+IF(U10="Clearfield",K119,0)+U12*K120)/W111*U2/2.22*U103 -> 0.717354274 | X109: VMP at Alt User K
A110: 109 | B110: 93.41085271 | C110: 0 | D110: 2014 | E110: 25 | F110: 5 | G110: 111 | J110: Variable | K110: Coefficient | L110: Std. Error | M110: t-Statistic | N110: Prob.
A111: 110 | B111: 96.12403101 | C111: 40 | D111: 2014 | E111: 25 | F111: 13 | G111: 111 | Q111: Optimal K | U111: =IF(((K117+IF(U14="Clay",K118,0)+IF(U10="Clearfield",K119,0)+U12*K120)/(U109/(U2/2.22*U103)))>180,180,((K117+IF(U14="Clay",K118,0)+IF(U10="Clearfield",K119,0)+U12*K120)/(U109/(U2/2.22*U103)))) -> 9.564723654 | W111: 5 | X111: Alt User K
A112: 111 | B112: 100 | C112: 80 | D112: 2014 | E112: 25 | F112: 30 | G112: 111 | J112: C | K112: 92.04835626 | L112: 0.8118564696 | M112: 113.3800859 | N112: 0
A113: 112 | B113: 94.96124031 | C113: 120 | D113: 2014 | E113: 25 | F113: 41 | G113: 111 | J113: DRREC | K113: 1.674272927 | L113: 0.6247099459 | M113: 2.680080472 | N113: 0.007642508367 | Q113: Expected Yield | U113: =(+K112+IF(U16="Yes",K113,0)+LN(U111)*(K117+IF(U10="Clearfield",K119,0)+IF(U14="Clay",K118,0)+U12*K120)+IF(U14="Clay",K116,0)+IF(U10="Clearfield",K114,0)+U12*K115)*U103 -> 179.234955 | W113: =(+K112+IF(U16="Yes",K113,0)+LN(W111)*(K117+IF(U10="Clearfield",K119,0)+IF(U14="Clay",K118,0)+U12*K120)+IF(U14="Clay",K116,0)+IF(U10="Clearfield",K114,0)+U12*K115)*U103 -> 178.7184637
A114: 113 | B114: 99.2248062 | C114: 160 | D114: 2014 | E114: 25 | F114: 56 | G114: 111 | J114: DCLFIELD | K114: 0.9538761766 | L114: 0.599352375 | M114: 1.591511465 | N114: 0.1122276617
A115: 114 | B115: 94.96124031 | C115: 200 | D115: 2014 | E115: 25 | F115: 68 | G115: 111 | J115: KSOIL | K115: 0.02514531757 | L115: 0.007907350482 | M115: 3.179992796 | N115: 0.001579079719 | Q115: Added Profit in $/acre | U115: =+(U113-U8)*U2/2.22-(U111-U6)*U109 -> 2.34207981 | W115: =+(W113-U8)*U2/2.22-(W111-U6)*U109 -> 1.727314174
A116: 115 | B116: 73.09236948 | C116: 0 | D116: 2014 | E116: 26 | F116: 6 | G116: 66 | J116: DCLAY | K116: -3.488411949 | L116: 1.646380839 | M116: -2.118836581 | N116: 0.03467569419
A117: 116 | B117: 89.15662651 | C117: 50 | D117: 2014 | E117: 26 | F117: 15 | G117: 66 | J117: LNK | K117: 0.9466911285 | L117: 0.1187053689 | M117: 7.975133199 | N117: 1.383119288e-14
A118: 117 | B118: 97.99196787 | C118: 100 | D118: 2014 | E118: 26 | F118: 32 | G118: 66 | J118: LNK*DCLAY | K118: 0.4990002373 | L118: 0.2438559311 | M118: 2.046291165 | N118: 0.04133396676 | Q118: K rate | R118: Exp. Yield
A119: 118 | B119: 100 | C119: 150 | D119: 2014 | E119: 26 | F119: 47 | G119: 66 | J119: LNK*DCLFIELD | K119: -0.1496455639 | L119: 0.09193539344 | M119: -1.627725279 | N119: 0.1043139117 | Q119: 0.01 | R119: =(+$K$112+IF($U$16="Yes",$K$113,0)+LN(Q119)*($K$117+IF($U$10="Clearfield",$K$119,0)+IF($U$14="Clay",$K$118,0)+$U$12*$K$120)+IF($U$14="Clay",$K$116,0)+IF($U$10="Clearfield",$K$114,0)+$U$12*$K$115)*$U$103 -> 173.7699997
A120: 119 | B120: 97.99196787 | C120: 200 | D120: 2014 | E120: 26 | F120: 69 | G120: 66 | J120: LNK*KSOIL | K120: -0.004738215818 | L120: 0.001134485983 | M120: -4.176530947 | N120: 3.583942662e-05 | Q120: 2 | R120: 177.9888551
A121: 120 | B121: 100.7490637 | C121: 0 | D121: 2014 | E121: 27 | F121: 7 | G121: 140 | Q121: 5 | R121: 178.7184637
A122: 121 | B122: 99.62546816 | C122: 40 | D122: 2014 | E122: 27 | F122: 14 | G122: 140 | K122: Effects Specification | Q122: 7 | R122: 178.9863842
A123: 122 | B123: 100 | C123: 80 | D123: 2014 | E123: 27 | F123: 31 | G123: 140 | M123: S.D. | N123: Rho | Q123: 10 | R123: 179.2703914
A124: 123 | B124: 95.88014981 | C124: 120 | D124: 2014 | E124: 27 | F124: 42 | G124: 140 | Q124: 15 | R124: 179.5932483
A125: 124 | B125: 94.75655431 | C125: 160 | D125: 2014 | E125: 27 | F125: 57 | G125: 140 | J125: Period random | M125: 1.106470735 | N125: 0.05032333769 | Q125: 30 | R125: 180.145176
A126: 125 | B126: 98.12734082 | C126: 200 | D126: 2014 | E126: 27 | F126: 70 | G126: 140 | J126: Idiosyncratic random | M126: 4.806656593 | N126: 0.9496766623 | Q126: 50 | R126: 180.5519276
A127: 126 | B127: 89.47368421 | C127: 0 | D127: 2015 | E127: 28 | F127: 1 | G127: 64 | Q127: 70 | R127: 180.8198481
A128: 127 | B128: 100 | C128: 40 | D128: 2015 | E128: 28 | F128: 9 | G128: 64 | K128: Weighted Statistics | Q128: 90 | R128: 181.0199605
A129: 128 | B129: 97.6076555 | C129: 80 | D129: 2015 | E129: 28 | F129: 26 | G129: 64 | Q129: 100 | R129: 181.1038552
A130: 129 | B130: 99.0430622 | C130: 120 | D130: 2015 | E130: 28 | F130: 37 | G130: 64 | J130: R-squared | K130: 0.2740428809 | L130: Mean dependent var | N130: 59.43892963 | Q130: 110 | R130: 181.1797472
A131: 130 | B131: 98.0861244 | C131: 160 | D131: 2015 | E131: 28 | F131: 52 | G131: 64 | J131: Adjusted R-squared | K131: 0.2605680388 | L131: S.D. dependent var | N131: 9.954107887 | Q131: 120 | R131: 181.2490312
A132: 131 | B132: 96.6507177 | C132: 200 | D132: 2015 | E132: 28 | F132: 64 | G132: 64 | J132: S.E. of regression | K132: 4.812796269 | L132: Sum squared resid | N132: 9983.256415 | Q132: 130 | R132: 181.3127663
A133: 132 | B133: 94.36619718 | C133: 0 | D133: 2015 | E133: 29 | F133: 2 | G133: 73 | J133: F-statistic | K133: 20.33737231 | L133: Durbin-Watson stat | N133: 2.371216243 | Q133: 140 | R133: 181.3717757
A134: 133 | B134: 95.30516432 | C134: 40 | D134: 2015 | E134: 29 | F134: 10 | G134: 73 | J134: Prob(F-statistic) | K134: 3.890647391e-26 | Q134: 150 | R134: 181.4267122
A135: 134 | B135: 99.53051643 | C135: 80 | D135: 2015 | E135: 29 | F135: 27 | G135: 73 | Q135: 160 | R135: 181.4781019
A136: 135 | B136: 96.24413146 | C136: 120 | D136: 2015 | E136: 29 | F136: 38 | G136: 73 | K136: Unweighted Statistics | Q136: 170 | R136: 181.526375
A137: 136 | B137: 100 | C137: 160 | D137: 2015 | E137: 29 | F137: 53 | G137: 73 | Q137: 180 | R137: 181.5718882
A138: 137 | B138: 100 | C138: 200 | D138: 2015 | E138: 29 | F138: 65 | G138: 73 | J138: R-squared | K138: 0.2734639836 | L138: Mean dependent var | N138: 95.92045455
A139: 138 | B139: 97.81659389 | C139: 0 | D139: 2015 | E139: 30 | F139: 3 | G139: 79 | J139: Sum squared resid | K139: 10439.69476 | L139: Durbin-Watson stat | N139: 2.364096255 | AC139: Potash | AD139: https://www.agecon.msstate.edu/whatwedo/budgets/archive.php
A140: 139 | B140: 100 | C140: 40 | D140: 2015 | E140: 30 | F140: 11 | G140: 79 | AC140: Price | AD140: https://quickstats.nass.usda.gov/results/24C09A3B-7C32-3F9D-97CC-EE25D5E8F433
A141: 140 | B141: 96.069869 | C141: 80 | D141: 2015 | E141: 30 | F141: 28 | G141: 79 | AC141: Yield | AD141: https://quickstats.nass.usda.gov/results/D905BC84-07EB-3302-96B2-0E131472707E
A142: 141 | B142: 99.12663755 | C142: 120 | D142: 2015 | E142: 30 | F142: 39 | G142: 79 | W142: FALSE
A143: 142 | B143: 94.75982533 | C143: 160 | D143: 2015 | E143: 30 | F143: 54 | G143: 79 | J143: =0.8301513*2.47105*0.453592 -> 0.930473849 | Q143: Profit-Maximizing K Rate Calculator for Irrigated Corn as developed by Dr. M. Popp, Dr. N. Slaton, Dr. G. Drescher, K. Oliver and Dr. T. Roberts
A144: 143 | B144: 93.01310044 | C144: 200 | D144: 2015 | E144: 30 | F144: 66 | G144: 79 | AA144: Year | AB144: Potash Fertilizer Price in $/ton | AC144: Corn Price in $/bu | AD144: Corn Yield in bu/acre | AE144: $/kg Pc | AF144: $/Mg K | AG144: Y in kg/ha | AI144: $/kg K
A145: 144 | B145: 66.06334842 | C145: 0 | D145: 2015 | E145: 31 | F145: 4 | G145: 51 | J145: Dependent Variable: RY | Q145: What is your expected corn price? | U145: 5.8 | V145: =IF(W142,CONCATENATE("$ kg",Z155),"$/bu") -> $/bu | AA145: 2012 | AB145: =29.8*20 -> 596 | AC145: 6.81 | AD145: 178 | AE145: =+AC145/56*2204.62/1000 -> 0.2680975393 | AF145: =+AB145/2000*2204 -> 656.792 | AG145: =+(AD145*56*0.4536)*2.4711 -> 11173.04109 | AI145: =+AF145/1000/0.49809078131038 -> 1.318619064
A146: 145 | B146: 78.28054299 | C146: 40 | D146: 2015 | E146: 31 | F146: 12 | G146: 51 | J146: Method: Panel EGLS (Period random effects) | AA146: 2013 | AB146: =23.75*20 -> 475 | AC146: 5.12 | AD146: 186 | AE146: 0.2015652571 | AF146: 523.45 | AG146: 11675.20024 | AI146: 1.050912845
A147: 146 | B147: 95.02262443 | C147: 80 | D147: 2015 | E147: 31 | F147: 29 | G147: 51 | J147: Date: 11/25/24 Time: 19:25 | Q147: What do you expect to pay for muriate of potash fertilizer? | U147: 820 | V147: =IF(W142,CONCATENATE("$ Mg",Z155),"$/ton") -> $/ton | W147: =+U147/IF(W142,1000,2000)/IF(W142,0.49809078131038,0.6) -> 0.6833333333 | X147: =IF(W142,CONCATENATE("$ kg",Z155," K"),CONCATENATE("$/lb of K",Z153,"O")) -> $/lb of K₂O | AA147: 2014 | AB147: =23.6*20 -> 472 | AC147: 4.13 | AD147: 187 | AE147: 0.162590725 | AF147: 520.144 | AG147: 11737.97013 | AI147: 1.044275501
A148: 147 | B148: 93.66515837 | C148: 120 | D148: 2015 | E148: 31 | F148: 40 | G148: 51 | J148: Sample: 2010 2024 | AA148: 2015 | AB148: =21.27*20 -> 425.4 | AC148: 4.11 | AD148: 181 | AE148: 0.1618033607 | AF148: 468.7908 | AG148: 11361.35077 | AI148: 0.9411754194
A149: 148 | B149: 90.95022624 | C149: 160 | D149: 2015 | E149: 31 | F149: 55 | G149: 51 | J149: Periods included: 13 | Q149: What is the yield potential of your field? | U149: 175 | V149: =IF(W142,CONCATENATE("kg ha",Z155),"bu/acre") -> bu/acre | W149: =+U149/100 -> 1.75 | X149: kg ha-1/relative yield % (100% = yield potential) | Y149: =200*IF(W142,BP172,1) -> 200 | Z149: Max. Fert applied per acre in the experiment | AA149: 2016 | AB149: =16.97*20 -> 339.4 | AC149: 3.69 | AD149: 171 | AE149: 0.1452687107 | AF149: 374.0188 | AG149: 10733.65183 | AI149: 0.7509048833
A150: 149 | B150: 100 | C150: 200 | D150: 2015 | E150: 31 | F150: 67 | G150: 51 | J150: Cross-sections included: 70 | AA150: 2017 | AB150: =18.98*20 -> 379.6 | AC150: 3.64 | AD150: 183 | AE150: 0.1433003 | AF150: 418.3192 | AG150: 11486.89056 | AI150: 0.8398452967 | BV150: Labels
A151: 150 | B151: 60.6557377 | C151: 0 | D151: 2015 | E151: 32 | F151: 5 | G151: 49 | J151: Total panel (unbalanced) observations: 312 | Q151: What is your soil-test K value (STK) and range? | U151: 49 | V151: =IF(W142,CONCATENATE("mg K kg",Z155),"ppm") -> ppm | W151: Soil test range +/- | Y151: 10 | AA151: 2018 | AB151: =20*20 -> 400 | AC151: 3.8 | AD151: 181 | AE151: 0.1495992143 | AF151: 440.8 | AG151: 11361.35077 | AI151: 0.8849792378 | BI151: High | BJ151: =MMULT($BJ$157:$BO$157,BJ160:BJ165) -> 0.3038742745 | BK151: =MMULT($BJ$157:$BO$157,BK160:BK165) -> -0.001010747368 | BL151: -0.006243610796 | BM151: 3.001506208e-05 | BN151: -1.049010199e-07 | BO151: 2.118818461e-05 | BP151: =SQRT(MMULT(BJ151:BO151,BR160:BR165))*1.96 -> 3.373564956 | BV151: =CONCATENATE(TEXT(T156,0)," ",BQ154," ",TEXT(BP151,"0.0")) -> 118 ± 3.4
A152: 151 | B152: 81.96721311 | C152: 50 | D152: 2015 | E152: 32 | F152: 15 | G152: 49 | J152: Wallace and Hussain estimator of component variances | AA152: 2019 | AB152: =27.5*20 -> 550 | AC152: 3.86 | AD152: 175 | AE152: 0.1519613071 | AF152: 606.1 | AG152: 10984.73141 | AI152: 1.216846452 | BI152: Avg | BJ152: =MMULT($BJ$156:$BO$156,BJ160:BJ165) -> 0.7057337876 | BK152: -0.002242017259 | BL152: -0.0152878066 | BM152: 7.540345866e-05 | BN152: -2.541568809e-07 | BO152: 4.989782971e-05 | BP152: =SQRT(MMULT(BJ152:BO152,BQ160:BQ165))*1.96 -> 6.468656242 | BQ152: 95% C.I. of profit maximizing rate at conditional mean | BV152: =CONCATENATE(TEXT(U156,0)," ",BQ154," ",TEXT(BP152,"0.0")) -> 126 ± 6.5
A153: 152 | B153: 91.39344262 | C153: 100 | D153: 2015 | E153: 32 | F153: 32 | G153: 49 | J153: White cross-section standard errors & covariance (d.f. corrected) | Q153: What is your cost to apply fertilizer (equipment, labor, fuel or custom)? | U153: 7.5 | V153: =IF(W142,CONCATENATE("$ ha",Z155),"$/acre") -> $/acre | W153: =CONCATENATE("...your rate in ",IF(W142,CONCATENATE("kg K ha",Z155),CONCATENATE("lbs of K",Z153,"O/acre")),":") -> ...your rate in lbs of K₂O/acre: | Y153: =IF(173.17-0.8316*U151<0,0,173.17-0.8316*U151)*IF(W142,BP172,1) -> 132.4216 | Z153: ₂ | AA153: 2020 | AB153: =22.11*20 -> 442.2 | AC153: 4.49 | AD153: 184 | AE153: 0.1767632821 | AF153: 487.3044 | AG153: 11549.66045 | AI153: 0.9783445474 | BI153: Low | BJ153: =MMULT($BJ$155:$BO$155,BJ160:BJ165) -> 1.195202109 | BK153: =MMULT($BJ$155:$BO$155,BK160:BK165) -> -0.003739055102 | BL153: -0.02633338734 | BM153: 0.0001309330721 | BN153: -4.364831451e-07 | BO153: 8.490321574e-05 | BP153: =SQRT(MMULT(BJ153:BO153,BP160:BP165))*1.96 -> 10.63670163 | BV153: =CONCATENATE(TEXT(V156,0)," ",BQ154," ",TEXT(BP153,"0.0")) -> 132 ± 10.6
A154: 153 | B154: 100 | C154: 150 | D154: 2015 | E154: 32 | F154: 47 | G154: 49 | J154: Variable | K154: Coefficient | L154: Std. Error | M154: t-Statistic | N154: Prob. | O154: English | Q154: =CONCATENATE("Profit change comparing applying at ",TEXT(ROUND(U156,1),"0.0"),IF(W142,CONCATENATE(" kg K ha",Z155),CONCATENATE("lb K",Z153,"O/acre"))," to no fertilizer:") -> Profit change comparing applying at 126.3lb K₂O/acre to no fertilizer: | U154: =+U160*$U$145/IF(W142,1,1)-U156*$W$147-IF(U156>0,$U$153)-R165*$U$145/IF(W142,1,1) -> 212.1549048 | V154: =IF(W142,CONCATENATE("$ ha",Z155),"$/acre") -> $/acre | W154: Profit-max rate over your rate: | Y154: =+U162 -> 0.5147210887 | Z154: =CONCATENATE("Fertilizer-K Application Rate (lbs K",Z153,"O/acre)") -> Fertilizer-K Application Rate (lbs K₂O/acre) | AA154: 2021 | AB154: =26.3*20 -> 526 | AC154: 5.95 | AD154: 184 | AE154: =+AC154/56*2204.62/1000 -> 0.234240875 | AF154: =+AB154/2000*2204 -> 579.652 | AG154: =+(AD154*56*0.4536)*2.4711 -> 11549.66045 | AI154: =+AF154/1000/0.49809078131038 -> 1.163747698 | BQ154: ±
A155: 154 | B155: 90.16393443 | C155: 200 | D155: 2015 | E155: 32 | F155: 68 | G155: 49 | Q155: =IF(U154<=0,"The fertilizer does not generate enough revenue to pay for itself and costs to apply","") ->  | T155: =CONCATENATE(U151+Y151," ppm soil K") -> 59 ppm soil K | U155: =CONCATENATE(U151," ppm soil K") -> 49 ppm soil K | V155: =CONCATENATE(U151-Y151," ppm soil K") -> 39 ppm soil K | W155: K yield max | Z155: ⁻¹ | AA155: 2022 | AB155: =46.6*20 -> 932 | AC155: 6.78 | AD155: 173 | AE155: 0.2669164929 | AF155: 1027.064 | AG155: 10859.19162 | AI155: 2.062001624 | BI155: Low | BJ155: =+V156 -> 131.7878641 | BK155: =+BJ155^2 -> 17368.04113 | BL155: =+(U151-Y151)*BJ155 -> 5139.726701 | BM155: =+(U151-Y151)^2*BJ155 -> 200449.3414 | BN155: =+(U151-Y151)^2*BK155 -> 26416790.56 | BO155: =+(U151-Y151)*BK155 -> 677353.6042
